Workbook

Sheet Summary
B2: Inputs: | L2: Assumptions: | N2: Current year plus three required data set.
C3: Rate Impact for Year (2025-2029) | D3: 2025 | I3: Include CA Climate Credit in Rates | J3: N | L3: Current Effective Rates | N3: 2025-06-01
C4: Baseline Region - (Residential bill) | D4: 9 warm | I4: Typical residential average usage kWh/month | J4: 500 | L4: Sales Forecast | N4: =D3 -> 2025
L5: Residential bill calculated using | N5: Schedule D, Basic, Single Family | S5: Annual Usage
L6: Non-CARE bill impact calculated with average summer usage of | P6: =IF($D$4="All",SUMPRODUCT('Res Bill Impact'!P$22:P$30,'Res Bill Impact'!$T$22:$T$30),VLOOKUP(D$4,'Res Bill Impact'!$O$22:$S$30,2,FALSE)) -> 736.1896342 | Q6: kWh per month | R6: Non-CARE | S6: =(P6*4)+(P7*8) -> 6577.192703
B7: Pending Proceedings | D7: Include in Impact (Y) | E7: Applicable Year(s) | L7: Non-CARE bill impact calculated with average winter usage of | P7: =IF($D$4="All",SUMPRODUCT('Res Bill Impact'!Q$22:Q$30,'Res Bill Impact'!$T$22:$T$30),VLOOKUP(D$4,'Res Bill Impact'!$O$22:$S$30,3,FALSE)) -> 454.0542708 | Q7: kWh per month
B8: 2025 GRC | D8: Y | E8: 2025-2028 | L8: CARE bill impact calculated with average summer usage of | P8: =IF($D$4="All",SUMPRODUCT('Res Bill Impact'!R$22:R$30,'Res Bill Impact'!$U$22:$U$30),VLOOKUP(D$4,'Res Bill Impact'!$O$22:$S$30,4,FALSE)) -> 685.496621 | Q8: kWh per month | R8: CARE | S8: =(P8*4)+(P10*8) -> 6135.943566
B9: 2026 ERRA Forecast | D9: Y | E9: 2026
B10: WMCE | D10: Y | E10: 2025 | L10: CARE bill impact calculated with average winter usage of | P10: =IF($D$4="All",SUMPRODUCT('Res Bill Impact'!S$22:S$30,'Res Bill Impact'!$U$22:$U$30),VLOOKUP(D$4,'Res Bill Impact'!$O$22:$S$30,5,FALSE)) -> 424.2446352 | Q10: kWh per month
B11: 2021 ERRA Review | D11: Y | E11: 2025 | L11: Essential Use (Basic) bill impact calculated with average summer usage of | P11: =IF($D$4="All",SUMPRODUCT('Res Bill Impact'!I$22:I$30,'Res Bill Impact'!$T$22:$T$30),VLOOKUP(D$4,'Res Bill Impact'!$H$22:$L$30,2,FALSE)) -> 514.0473 | Q11: kWh per month | R11: Essential Use (Basic) | S11: =(P11*4)+(P12*8) -> 4976.2212
B12: 2022 ERRA Review | D12: Y | E12: 2026 | L12: Essential Use (Basic) bill impact calculated with average winter usage of | P12: =IF($D$4="All",SUMPRODUCT('Res Bill Impact'!J$22:J$30,'Res Bill Impact'!$T$22:$T$30),VLOOKUP(D$4,'Res Bill Impact'!$H$22:$L$30,3,FALSE)) -> 365.004 | Q12: kWh per month
B13: 2023 ERRA Review | D13: Y | E13: 2026 | L13: Essential Use (All-Electric) bill impact calculated with average summer usage of | P13: =IF($D$4="All",SUMPRODUCT('Res Bill Impact'!K$22:K$30,'Res Bill Impact'!$T$22:$T$30),VLOOKUP(D$4,'Res Bill Impact'!$H$22:$L$30,4,FALSE)) -> 380.2125 | Q13: kWh per month | R13: Essential Use (All-Electric) | S13: =(P13*4)+(P15*8) -> 4903.2204
B14: 2024 ERRA Review | D14: Y | E14: 2027
B15: 2022 WM/VM (Non-IRR Portion) | D15: Y | E15: 2025 | L15: Essential Use (All-Electric) bill impact calculated with average winter usage of | P15: =IF($D$4="All",SUMPRODUCT('Res Bill Impact'!L$22:L$30,'Res Bill Impact'!$T$22:$T$30),VLOOKUP(D$4,'Res Bill Impact'!$H$22:$L$30,5,FALSE)) -> 422.7963 | Q15: kWh per month
B16: Thomas Fire WEMA FRC | D16: Y | E16: 2026-2029 | L16: Average monthly usage is for all customers (Non-CARE and CARE) based on seasonal usage in | R16: 2024
B17: Woolsey CEMA | D17: Y | E17: 2027 | L17: Summer season | N17: 4 | O17: months
B18: Woolsey WEMA FRC | D18: Y | E18: 2027-2029 | L18: Winter Season | N18: 8 | O18: months
B19: Section 851 - Sale of GO 5 Property | D19: Y | E19: 2025 | L19: Residential Bi-Annual Climate Credit | N19: -56
B20: Section 851 - Sale of Hydroelectric San Bernardino | D20: Y | E20: 2025
B21: Section 851 - Sale of Hydroelectric Fontana Union Water | D21: Y | E21: 2025
B22: Section 851 - Sale of Irwindale Business Center | D22: Y | E22: 2025
B23: Section 851 - Sale of Hydroelectric TULE | D23: Y | E23: 2026
B24: CEMA Insurance Reimbursement | D24: Y | E24: 2025
B25: 2026 Cost of Capital | D25: Y | E25: 2026
B26: NextGen | D26: Y | E26: 2026-2029
B27: Diablo Canyon Extended Operations NBC | D27: Y | E27: 2026-2029
B28: 2023/2024 TAMA Balance | D28: Y | E28: 2025-2026
B29: Outputs:
D30: (A) | E30: (B) | F30: (C) | G30: (D) | H30: (D)/(A) | I30: (D)/(B) | J30: (D)/(C) | N30: (A) | O30: (B) | P30: (C) | Q30: (D) | R30: (D)/(A) | S30: (D)/(B) | T30: (D)/(C)
B31: Bundled Average Rates - ¢/kWh | L31: Total System (Bundled and Unbundled) Average Rates - ¢/kWh
B32: Customer Group | D32: 2025-01-01 | E32: =N3 -> 2025-06-01 | F32: =$D$3&" Authorized" -> 2025 Authorized | G32: =$D$3&" w/Pending" -> 2025 w/Pending | H32: ="% Change over "&MONTH(D32)&"/"&DAY(D32)&"/"&YEAR(D32) -> % Change over 1/1/2025 | I32: ="% Change over "&MONTH(E32)&"/"&DAY(E32)&"/"&YEAR(E32) -> % Change over 6/1/2025 | J32: % Change over Authorized | L32: Customer Group | N32: =$D$32 -> 2025-01-01 | O32: =$E$32 -> 2025-06-01 | P32: =$D$3&" Authorized" -> 2025 Authorized | Q32: =$D$3&" w/Pending" -> 2025 w/Pending | R32: =$H$32 -> % Change over 1/1/2025 | S32: =$I$32 -> % Change over 6/1/2025 | T32: % Change over Authorized
B33: Residential | D33: =IF(J3="Y",'SAR and RAR'!W28,'SAR and RAR'!X28) -> 31.62973815 | E33: ='SAR and RAR'!G28 -> 31.17865091 | F33: ='SAR and RAR'!H28 -> 31.97686579 | G33: ='SAR and RAR'!I28 -> 36.21380056 | H33: =$G33/D33-1 -> 0.1449288764 | I33: =$G33/E33-1 -> 0.1614935062 | J33: =$G33/F33-1 -> 0.1325000016 | L33: Total Residential (RAR) | N33: =IF(J3="Y",'SAR and RAR'!Z28,'SAR and RAR'!AA28) -> 28.36130718 | O33: ='SAR and RAR'!O28 -> 27.86095985 | P33: ='SAR and RAR'!P28 -> 28.25811485 | Q33: ='SAR and RAR'!Q28 -> 32.40296055 | R33: =$Q33/N33-1 -> 0.1425058919 | S33: 0.1630238414 | T33: 0.1466780683
C34: Small Commercial | D34: =IF(J3="Y",'SAR and AR (GS1)'!W28,'SAR and AR (GS1)'!X28) -> 29.17406766 | E34: ='SAR and AR (GS1)'!G28 -> 28.4109163 | F34: ='SAR and AR (GS1)'!H28 -> 29.27267465 | G34: ='SAR and AR (GS1)'!I28 -> 32.79800055 | H34: 0.1242176077 | I34: =$G34/E34-1 -> 0.1544154439 | J34: =$G34/F34-1 -> 0.1204306044 | M34: Total Small Commercial (AR) | N34: =IF(J3="Y",'SAR and AR (GS1)'!Z28,'SAR and AR (GS1)'!AA28) -> 25.77950096 | O34: ='SAR and AR (GS1)'!O28 -> 25.01610122 | P34: ='SAR and AR (GS1)'!P28 -> 25.36010329 | Q34: ='SAR and AR (GS1)'!Q28 -> 28.68975481 | R34: =$Q34/N34-1 -> 0.1128902321 | S34: =$Q34/O34-1 -> 0.1468515643 | T34: =$Q34/P34-1 -> 0.1312948723
B35: System | D35: =IF(J3="Y",'SAR and RAR'!W29,'SAR and RAR'!X29) -> 27.30660685 | E35: ='SAR and RAR'!G29 -> 26.64700642 | F35: ='SAR and RAR'!H29 -> 27.40125201 | G35: ='SAR and RAR'!I29 -> 30.82810024 | H35: 0.1289612221 | I35: =$G35/E35-1 -> 0.156906699 | J35: =$G35/F35-1 -> 0.1250617392 | L35: Total System (SAR) | N35: =IF(J3="Y",'SAR and RAR'!Z29,'SAR and RAR'!AA29) -> 22.91911704 | O35: ='SAR and RAR'!O29 -> 22.25245758 | P35: ='SAR and RAR'!P29 -> 22.68214714 | Q35: ='SAR and RAR'!Q29 -> 25.8228456 | R35: 0.1266946083 | S35: 0.1604491552 | T35: 0.1384656594
B38: Bundled Residential Monthly Average Bills
D39: =$D$32 -> 2025-01-01 | E39: =$E$32 -> 2025-06-01 | F39: =$D$3&" Authorized" -> 2025 Authorized | G39: =$D$3&" w/Pending" -> 2025 w/Pending | H39: =$H$32 -> % Change over 1/1/2025 | I39: =$I$32 -> % Change over 6/1/2025 | J39: % Change over Authorized
B40: Non-CARE | D40: =((D46*4)+(D52*8))/12 -> 186.8593137 | E40: =((E46*4)+(E52*8))/12 -> 181.4275528 | F40: 184.3637096 | G40: 210.0360407 | H40: =$G40/D40-1 -> 0.1240330307 | I40: 0.1576854646 | J40: =$G40/F40-1 -> 0.1392482888
B41: CARE | D41: 104.2673392 | E41: =((E47*4)+(E53*8))/12 -> 101.3811251 | F41: 103.0837612 | G41: 117.9707844 | H41: 0.1314260561 | I41: 0.1636365667 | J41: 0.1444167642
B42: Total | D42: 157.9521226 | E42: =((E48*4)+(E54*8))/12 -> 153.4113031 | F42: 155.9157277 | G42: 177.813201 | H42: 0.1257411298 | I42: 0.1590619297 | J42: =$G42/F42-1 -> 0.1404442878
B44: Bundled Residential Monthly Average Bills - Summer
D45: =$D$32 -> 2025-01-01 | E45: =$E$32 -> 2025-06-01 | F45: =$D$3&" Authorized" -> 2025 Authorized | G45: =$D$3&" w/Pending" -> 2025 w/Pending | H45: =$H$32 -> % Change over 1/1/2025 | I45: =$I$32 -> % Change over 6/1/2025 | J45: % Change over Authorized
B46: Non-CARE | D46: =VLOOKUP($D$4,'Res Bill Impact'!$B$37:$J$46,2,FALSE)+O19 -> 257.9491103 | E46: =VLOOKUP($D$4,'Res Bill Impact'!$B$37:$J$46,4,FALSE) -> 250.540398 | F46: =VLOOKUP($D$4,'Res Bill Impact'!$B$37:$J$46,6,FALSE) -> 254.5455951 | G46: =VLOOKUP($D$4,'Res Bill Impact'!$B$37:$J$46,8,FALSE) -> 289.5650948 | H46: =$G46/D46-1 -> 0.1225667518 | I46: 0.1557620932 | J46: =$G46/F46-1 -> 0.1375765303
B47: CARE | D47: =VLOOKUP($D$4,'Res Bill Impact'!$B$52:$J$61,2,FALSE) -> 145.4334121 | E47: =VLOOKUP($D$4,'Res Bill Impact'!$B$52:$J$61,4,FALSE) -> 141.4899597 | F47: =VLOOKUP($D$4,'Res Bill Impact'!$B$52:$J$61,6,FALSE) -> 143.8130008 | G47: =VLOOKUP($D$4,'Res Bill Impact'!$B$52:$J$61,8,FALSE) -> 164.1245445 | H47: 0.128520208 | I47: 0.1599730806 | J47: 0.1412357964
B48: Total | D48: =D46*0.65+D47*0.35 -> 218.5686159 | E48: =E46*0.65+E47*0.35 -> 212.3727446 | F48: =F46*0.65+F47*0.35 -> 215.7891871 | G48: =G46*0.65+G47*0.35 -> 245.6609022 | H48: 0.1239532318 | I48: 0.1567440194 | J48: =$G48/F48-1 -> 0.1384300833
B50: Bundled Residential Monthly Average Bills - Winter
D51: =$D$32 -> 2025-01-01 | E51: =$E$32 -> 2025-06-01 | F51: =$D$3&" Authorized" -> 2025 Authorized | G51: =$D$3&" w/Pending" -> 2025 w/Pending | H51: =$H$32 -> % Change over 1/1/2025 | I51: =$I$32 -> % Change over 6/1/2025 | J51: % Change over Authorized
B52: Non-CARE | D52: =VLOOKUP($D$4,'Res Bill Impact'!$B$37:$J$46,3,FALSE) -> 151.3144154 | E52: =VLOOKUP($D$4,'Res Bill Impact'!$B$37:$J$46,5,FALSE) -> 146.8711301 | F52: =VLOOKUP($D$4,'Res Bill Impact'!$B$37:$J$46,7,FALSE) -> 149.2727669 | G52: =VLOOKUP($D$4,'Res Bill Impact'!$B$37:$J$46,9,FALSE) -> 170.2715136 | H52: =$G52/D52-1 -> 0.1252828301 | I52: 0.1593259579 | J52: =$G52/F52-1 -> 0.1406736618
B53: CARE | D53: =VLOOKUP($D$4,'Res Bill Impact'!$B$52:$J$61,3,FALSE) -> 83.68430279 | E53: =VLOOKUP($D$4,'Res Bill Impact'!$B$52:$J$61,5,FALSE) -> 81.32670786 | F53: =VLOOKUP($D$4,'Res Bill Impact'!$B$52:$J$61,7,FALSE) -> 82.71914136 | G53: =VLOOKUP($D$4,'Res Bill Impact'!$B$52:$J$61,9,FALSE) -> 94.89390437 | H53: 0.1339510661 | I53: 0.1668233827 | J53: 0.1471819315
B54: Total | D54: =D52*0.65+D53*0.35 -> 127.643876 | E54: =E52*0.65+E53*0.35 -> 123.9305823 | F54: =F52*0.65+F53*0.35 -> 125.978998 | G54: =G52*0.65+G53*0.35 -> 143.8893504 | H54: 0.1272718668 | I54: 0.1610479647 | J54: 0.1421693513
B57: Bundled Residential Monthly Average Bills
D58: =$D$32 -> 2025-01-01 | E58: =$E$32 -> 2025-06-01 | F58: =$D$3&" Authorized" -> 2025 Authorized | G58: =$D$3&" w/Pending" -> 2025 w/Pending | H58: =$H$32 -> % Change over 1/1/2025 | I58: =$I$32 -> % Change over 6/1/2025 | J58: % Change over Authorized
B59: Essential Use (Basic) - Non-CARE | D59: =((D66*4)+(D73*8))/12 -> 129.7299798 | E59: 125.8858489 | F59: 127.9628845 | G59: 146.1234763 | H59: =$G59/D59-1 -> 0.1263662922 | I59: 0.1607617344 | J59: =$G59/F59-1 -> 0.1419207752
B60: Essential Use (Basic) - CARE | D60: 77.88462184 | E60: 75.68264396 | F60: 76.98777487 | G60: 88.39920629 | H60: 0.1350020607 | I60: 0.168024816 | J60: =$G60/F60-1 -> 0.1482239413
B61: Essential Use (All-Electric) - Non-CARE | D61: 127.7037209 | E61: 123.9159831 | F61: 125.9625488 | G61: 143.856726 | H61: 0.1264881322 | I61: 0.1609214759 | J61: 0.1420595041
B62: Essential Use (All-Electric) - CARE | D62: 76.61452959 | E62: 74.44485457 | F62: 75.7308393 | G62: 86.97486586 | H62: 0.1352267817 | I62: 0.1683126573 | J62: 0.14847355
B64: Bundled Residential Monthly Average Bills - Summer
D65: =$D$32 -> 2025-01-01 | E65: =$E$32 -> 2025-06-01 | F65: =$D$3&" Authorized" -> 2025 Authorized | G65: =$D$3&" w/Pending" -> 2025 w/Pending | H65: =$H$32 -> % Change over 1/1/2025 | I65: =$I$32 -> % Change over 6/1/2025 | J65: % Change over Authorized
B66: Essential Use (Basic) - Non-CARE | D66: =VLOOKUP($D$4,'Res Bill Impact'!$L$37:$T$46,2,FALSE) -> 162.8255414 | E66: =VLOOKUP($D$4,'Res Bill Impact'!$L$37:$T$46,4,FALSE) -> 158.0603229 | F66: =VLOOKUP($D$4,'Res Bill Impact'!$L$37:$T$46,6,FALSE) -> 160.6350345 | G66: =VLOOKUP($D$4,'Res Bill Impact'!$L$37:$T$46,8,FALSE) -> 183.1470639 | H66: =$G66/D66-1 -> 0.1248054969 | I66: 0.1587162458 | J66: =$G66/F66-1 -> 0.1401439573
B67: Essential Use (Basic) - CARE | D67: =VLOOKUP($D$4,'Res Bill Impact'!$V$37:$AD$46,2,FALSE) -> 98.62946196 | E67: =VLOOKUP($D$4,'Res Bill Impact'!$V$37:$AD$46,4,FALSE) -> 95.8998708 | F67: =VLOOKUP($D$4,'Res Bill Impact'!$V$37:$AD$46,6,FALSE) -> 97.51772256 | G67: =VLOOKUP($D$4,'Res Bill Impact'!$V$37:$AD$46,8,FALSE) -> 111.6634334 | H67: 0.1321508926 | I67: 0.1643752224 | J67: =$G67/F67-1 -> 0.1450578465
B68: Essential Use (All-Electric) - Non-CARE | D68: =VLOOKUP($D$4,'Res Bill Impact'!$L$52:$T$61,2,FALSE) -> 118.2478462 | E68: =VLOOKUP($D$4,'Res Bill Impact'!$L$52:$T$61,4,FALSE) -> 114.7232763 | F68: =VLOOKUP($D$4,'Res Bill Impact'!$L$52:$T$61,6,FALSE) -> 116.6276488 | G68: =VLOOKUP($D$4,'Res Bill Impact'!$L$52:$T$61,8,FALSE) -> 133.2785581 | H68: 0.1271119302 | I68: 0.1617394695 | J68: 0.1427698277
B69: Essential Use (All-Electric) - CARE | D69: =VLOOKUP($D$4,'Res Bill Impact'!$V$52:$AD$61,2,FALSE) -> 70.68743242 | E69: =VLOOKUP($D$4,'Res Bill Impact'!$V$52:$AD$61,4,FALSE) -> 68.66850404 | F69: =VLOOKUP($D$4,'Res Bill Impact'!$V$46:$AD$61,6,FALSE) -> 69.86513996 | G69: =VLOOKUP($D$4,'Res Bill Impact'!$V$52:$AD$61,8,FALSE) -> 80.32794383 | H69: 0.1363822547 | I69: 0.1697931235 | J69: 0.1497571446
B71: Bundled Residential Monthly Average Bills - Winter
D72: =$D$32 -> 2025-01-01 | E72: =$E$32 -> 2025-06-01 | F72: =$D$3&" Authorized" -> 2025 Authorized | G72: =$D$3&" w/Pending" -> 2025 w/Pending | H72: =$H$32 -> % Change over 1/1/2025 | I72: =$I$32 -> % Change over 6/1/2025 | J72: % Change over Authorized
B73: Essential Use (Basic) - Non-CARE | D73: =VLOOKUP($D$4,'Res Bill Impact'!$L$37:$T$46,3,FALSE) -> 113.182199 | E73: =VLOOKUP($D$4,'Res Bill Impact'!$L$37:$T$46,5,FALSE) -> 109.7986119 | F73: =VLOOKUP($D$4,'Res Bill Impact'!$L$37:$T$46,7,FALSE) -> 111.6268095 | G73: =VLOOKUP($D$4,'Res Bill Impact'!$L$37:$T$46,9,FALSE) -> 127.6116825 | H73: =$G73/D73-1 -> 0.1274889835 | I73: 0.1622340234 | J73: =$G73/F73-1 -> 0.1431992281
B74: Essential Use (Basic) - CARE | D74: =VLOOKUP($D$4,'Res Bill Impact'!$V$37:$AD$46,3,FALSE) -> 67.51220179 | E74: =VLOOKUP($D$4,'Res Bill Impact'!$V$37:$AD$46,5,FALSE) -> 65.57403055 | F74: =VLOOKUP($D$4,'Res Bill Impact'!$V$37:$AD$46,7,FALSE) -> 66.72280103 | G74: =VLOOKUP($D$4,'Res Bill Impact'!$V$37:$AD$46,9,FALSE) -> 76.76709274 | H74: 0.1370847152 | I74: 0.1706935216 | J74: 0.1505376207
B75: Essential Use (All-Electric) - Non-CARE | D75: =VLOOKUP($D$4,'Res Bill Impact'!$L$52:$T$61,3,FALSE) -> 132.4316583 | E75: =VLOOKUP($D$4,'Res Bill Impact'!$L$52:$T$61,5,FALSE) -> 128.5123366 | F75: =VLOOKUP($D$4,'Res Bill Impact'!$L$52:$T$61,7,FALSE) -> 130.6299988 | G75: =VLOOKUP($D$4,'Res Bill Impact'!$L$52:$T$61,9,FALSE) -> 149.14581 | H75: 0.1262096385 | I75: 0.1605563634 | J75: 0.1417424125
B76: Essential Use (All-Electric) - CARE | D76: =VLOOKUP($D$4,'Res Bill Impact'!$V$52:$AD$61,3,FALSE) -> 79.57807818 | E76: =VLOOKUP($D$4,'Res Bill Impact'!$V$52:$AD$61,5,FALSE) -> 77.33302983 | F76: =VLOOKUP($D$4,'Res Bill Impact'!$V$46:$AD$61,7,FALSE) -> 78.66368897 | G76: =VLOOKUP($D$4,'Res Bill Impact'!$V$52:$AD$61,9,FALSE) -> 90.29832687 | H76: 0.1347135912 | I76: 0.1676553611 | J76: 0.1479035379
B79: Bundled Residential Monthly Average Bills
D80: =$D$32 -> 2025-01-01 | E80: =$E$32 -> 2025-06-01 | F80: =$D$3&" Authorized" -> 2025 Authorized | G80: =$D$3&" w/Pending" -> 2025 w/Pending | H80: =$H$32 -> % Change over 1/1/2025 | I80: =$I$32 -> % Change over 6/1/2025 | J80: % Change over Authorized
B81: =J4&"kWh Monthly Usage - Non-CARE" -> 500kWh Monthly Usage - Non-CARE | D81: =((D86*4)+(D91*8))/12 -> 166.708113 | E81: 161.83642 | F81: 164.4695405 | G81: 187.4922682 | H81: =$G81/D81-1 -> 0.1246739279 | I81: =$G81/E81-1 -> 0.1585295092 | J81: =$G81/F81-1 -> 0.1399817116
B82: =J4&"kWh Monthly Usage - CARE" -> 500kWh Monthly Usage - CARE | D82: 101.4753954 | E82: 98.66110016 | F82: 100.3216627 | G82: 114.8408161 | H82: =$G82/D82-1 -> 0.1317109493 | I82: =$G82/E82-1 -> 0.1639928595 | J82: 0.1447260041
B84: Bundled Residential Monthly Average Bills - Summer
D85: =$D$32 -> 2025-01-01 | E85: =$E$32 -> 2025-06-01 | F85: =$D$3&" Authorized" -> 2025 Authorized | G85: =$D$3&" w/Pending" -> 2025 w/Pending | H85: =$H$32 -> % Change over 1/1/2025 | I85: =$I$32 -> % Change over 6/1/2025 | J85: % Change over Authorized
B86: =J4&"kWh Monthly Usage - Non-CARE" -> 500kWh Monthly Usage - Non-CARE | D86: =VLOOKUP($D$4,'Res Bill Impact'!$L$67:$T$76,2,FALSE) -> 158.1466667 | E86: =VLOOKUP($D$4,'Res Bill Impact'!$L$67:$T$76,4,FALSE) -> 153.5116667 | F86: =VLOOKUP($D$4,'Res Bill Impact'!$L$67:$T$76,6,FALSE) -> 156.0160195 | G86: =VLOOKUP($D$4,'Res Bill Impact'!$L$67:$T$76,8,FALSE) -> 177.9128658 | H86: =$G86/D86-1 -> 0.1249865049 | I86: =$G86/E86-1 -> 0.1589533855 | J86: =$G86/F86-1 -> 0.1403499868
B87: =J4&"kWh Monthly Usage - CARE" -> 500kWh Monthly Usage - CARE | D87: =VLOOKUP($D$4,'Res Bill Impact'!$V$67:$AD$76,2,FALSE) -> 95.69666667 | E87: =VLOOKUP($D$4,'Res Bill Impact'!$V$67:$AD$76,4,FALSE) -> 93.04166667 | F87: =VLOOKUP($D$4,'Res Bill Impact'!$V$67:$AD$76,6,FALSE) -> 94.61530762 | G87: =VLOOKUP($D$4,'Res Bill Impact'!$V$67:$AD$76,8,FALSE) -> 108.3744605 | H87: =$G87/D87-1 -> 0.1324789496 | I87: =$G87/E87-1 -> 0.1647949186 | J87: 0.1454220599
B89: Bundled Residential Monthly Average Bills - Winter
D90: =$D$32 -> 2025-01-01 | E90: =$E$32 -> 2025-06-01 | F90: =$D$3&" Authorized" -> 2025 Authorized | G90: =$D$3&" w/Pending" -> 2025 w/Pending | H90: =$H$32 -> % Change over 1/1/2025 | I90: =$I$32 -> % Change over 6/1/2025 | J90: % Change over Authorized
B91: =J4&"kWh Monthly Usage - Non-CARE" -> 500kWh Monthly Usage - Non-CARE | D91: =VLOOKUP($D$4,'Res Bill Impact'!$L$67:$T$76,3,FALSE) -> 170.9888361 | E91: =VLOOKUP($D$4,'Res Bill Impact'!$L$67:$T$76,5,FALSE) -> 165.9987967 | F91: =VLOOKUP($D$4,'Res Bill Impact'!$L$67:$T$76,7,FALSE) -> 168.6963009 | G91: =VLOOKUP($D$4,'Res Bill Impact'!$L$67:$T$76,9,FALSE) -> 192.2819695 | H91: =$G91/D91-1 -> 0.1245293774 | I91: =$G91/E91-1 -> 0.158333514 | J91: =$G91/F91-1 -> 0.1398114149
B92: =J4&"kWh Monthly Usage - CARE" -> 500kWh Monthly Usage - CARE | D92: =VLOOKUP($D$4,'Res Bill Impact'!$V$67:$AD$76,3,FALSE) -> 104.3647598 | E92: =VLOOKUP($D$4,'Res Bill Impact'!$V$67:$AD$76,5,FALSE) -> 101.4708169 | F92: =VLOOKUP($D$4,'Res Bill Impact'!$V$67:$AD$76,7,FALSE) -> 103.1748403 | G92: =VLOOKUP($D$4,'Res Bill Impact'!$V$67:$AD$76,9,FALSE) -> 118.0739939 | H92: =$G92/D92-1 -> 0.1313588425 | I92: =$G92/E92-1 -> 0.1636251434 | J92: 0.1444068491
B95: Bundled Residential Monthly Average Bills
D96: =$D$32 -> 2025-01-01 | E96: =$E$32 -> 2025-06-01 | F96: =$D$3&" Authorized" -> 2025 Authorized | G96: =$D$3&" w/Pending" -> 2025 w/Pending | H96: =$H$32 -> % Change over 1/1/2025 | I96: =$I$32 -> % Change over 6/1/2025 | J96: % Change over Authorized
B97: All-Electric - Non-CARE | D97: =((D103*4)+(D109*8))/12 -> 139.7381152 | E97: =((E103*4)+(E109*8))/12 -> 135.6163289 | F97: 137.843876 | G97: 157.3204668 | H97: =$G97/D97-1 -> 0.1258235917 | I97: 0.1600407419 | J97: =$G97/F97-1 -> 0.1412945673
B98: All-Electric - CARE | D98: =((D104*4)+(D110*8))/12 -> 81.86581957 | E98: 79.55666218 | F98: 80.92171655 | G98: 92.85708968 | H98: 0.1342595746 | I98: 0.167181819 | J98: 0.1474928317
B99: All-Electric - Total | D99: =((D105*4)+(D111*8))/12 -> 119.4828118 | E99: 115.9954456 | F99: 117.9211202 | G99: 134.7582848 | H99: 0.1278466151 | I99: 0.1617549651 | J99: =$G99/F99-1 -> 0.1427832826
B101: Bundled Residential Monthly Average Bills - Summer
D102: =$D$32 -> 2025-01-01 | E102: =$E$32 -> 2025-06-01 | F102: =$D$3&" Authorized" -> 2025 Authorized | G102: =$D$3&" w/Pending" -> 2025 w/Pending | H102: =$H$32 -> % Change over 1/1/2025 | I102: =$I$32 -> % Change over 6/1/2025 | J102: % Change over Authorized
B103: All-Electric - Non-CARE | D103: =VLOOKUP($D$4,'Res Bill Impact'!$B$67:$J$76,2,FALSE) -> 182.7427053 | E103: =VLOOKUP($D$4,'Res Bill Impact'!$B$67:$J$76,4,FALSE) -> 177.4258166 | F103: =VLOOKUP($D$4,'Res Bill Impact'!$B$67:$J$76,6,FALSE) -> 180.3000745 | G103: =VLOOKUP($D$4,'Res Bill Impact'!$B$67:$J$76,8,FALSE) -> 205.4311906 | H103: =$G103/D103-1 -> 0.1241553546 | I103: =$G103/E103-1 -> 0.157842723 | J103: =$G103/F103-1 -> 0.1393849461
B104: All-Electric - CARE | D104: =VLOOKUP($D$4,'Res Bill Impact'!$B$82:$J$91,2,FALSE) -> 106.1209049 | E104: =VLOOKUP($D$4,'Res Bill Impact'!$B$82:$J$91,4,FALSE) -> 103.1830088 | F104: =VLOOKUP($D$4,'Res Bill Impact'!$B$82:$J$91,6,FALSE) -> 104.9135165 | G104: =VLOOKUP($D$4,'Res Bill Impact'!$B$82:$J$91,8,FALSE) -> 120.0442355 | H104: =$G104/D104-1 -> 0.1312025244 | I104: =$G104/E104-1 -> 0.1634108838 | J104: =$G104/F104-1 -> 0.144220874
B105: All-Electric - Total | D105: =D103*0.65+D104*0.35 -> 155.9250751 | E105: =E103*0.65+E104*0.35 -> 151.4408339 | F105: =F103*0.65+F104*0.35 -> 153.9147792 | G105: =G103*0.65+G104*0.35 -> 175.5457563 | H105: =$G105/D105-1 -> 0.125834034 | I105: =$G105/E105-1 -> 0.1591705607 | J105: =$G105/F105-1 -> 0.1405386623
B107: Bundled Residential Monthly Average Bills - Winter
D108: =$D$32 -> 2025-01-01 | E108: =$E$32 -> 2025-06-01 | F108: =$D$3&" Authorized" -> 2025 Authorized | G108: =$D$3&" w/Pending" -> 2025 w/Pending | H108: =$H$32 -> % Change over 1/1/2025 | I108: =$I$32 -> % Change over 6/1/2025 | J108: % Change over Authorized
B109: All-Electric - Non-CARE | D109: =VLOOKUP($D$4,'Res Bill Impact'!$B$67:$J$76,3,FALSE) -> 118.2358202 | E109: =VLOOKUP($D$4,'Res Bill Impact'!$B$67:$J$76,5,FALSE) -> 114.711585 | F109: =VLOOKUP($D$4,'Res Bill Impact'!$B$67:$J$76,7,FALSE) -> 116.6157767 | G109: =VLOOKUP($D$4,'Res Bill Impact'!$B$67:$J$76,9,FALSE) -> 133.2651049 | H109: =$G109/D109-1 -> 0.1271127871 | I109: 0.1617405933 | J109: =$G109/F109-1 -> 0.1427708035
B110: All-Electric - CARE | D110: =VLOOKUP($D$4,'Res Bill Impact'!$B$82:$J$91,3,FALSE) -> 69.73827691 | E110: =VLOOKUP($D$4,'Res Bill Impact'!$B$82:$J$91,5,FALSE) -> 67.74348886 | F110: =VLOOKUP($D$4,'Res Bill Impact'!$B$82:$J$91,7,FALSE) -> 68.9258166 | G110: =VLOOKUP($D$4,'Res Bill Impact'!$B$82:$J$91,9,FALSE) -> 79.26351677 | H110: 0.1365855349 | I110: 0.1700536554 | J110: 0.1499829915
B111: All-Electric - Total | D111: =D109*0.65+D110*0.35 -> 101.2616801 | E111: =E109*0.65+E110*0.35 -> 98.27275138 | F111: =F109*0.65+F110*0.35 -> 99.92429068 | G111: =G109*0.65+G110*0.35 -> 114.364549 | H111: 0.1293961246 | I111: 0.163746282 | J111: 0.1445119926
B113: Small Commercial Monthly Average Bills
D114: =$D$32 -> 2025-01-01 | E114: =$E$32 -> 2025-06-01 | F114: =$D$3&" Authorized" -> 2025 Authorized | G114: =$D$3&" w/Pending" -> 2025 w/Pending | H114: =$H$32 -> % Change over 1/1/2025 | I114: =$I$32 -> % Change over 6/1/2025 | J114: % Change over Authorized
B115: NAICS 531 | D115: =((D121*4)+(D127*8))/12 -> 200.0192632 | E115: =((E121*4)+(E127*8))/12 -> 194.8698628 | F115: 200.8654353 | G115: 224.615355 | H115: =$G115/D115-1 -> 0.1229686151 | I115: 0.1526428547 | J115: =$G115/F115-1 -> 0.1182379621
B116: NAICS 621 | D116: =((D122*4)+(D128*8))/12 -> 276.15071 | E116: 268.8677976 | F116: 277.319485 | G116: 310.7986728 | H116: 0.1254675854 | I116: 0.1559535041 | J116: 0.1207242536
B117: NAICS 722 | D117: =((D123*4)+(D129*8))/12 -> 798.5610323 | E117: 777.0703134 | F117: 802.39009 | G117: 902.6878795 | H117: 0.1303930983 | I117: 0.1616553406 | J117: =$G117/F117-1 -> 0.1249987889
B119: Small Commercial Monthly Average Bills - Summer
D120: =D114 -> 2025-01-01 | E120: =$E$32 -> 2025-06-01 | F120: =$D$3&" Authorized" -> 2025 Authorized | G120: =$D$3&" w/Pending" -> 2025 w/Pending | H120: =$H$32 -> % Change over 1/1/2025 | I120: =$I$32 -> % Change over 6/1/2025 | J120: % Change over Authorized
B121: NAICS 531 | D121: ='Bill Impact (GS1)'!C37 -> 221.6737636 | E121: ='Bill Impact (GS1)'!E37 -> 216.2914337 | F121: ='Bill Impact (GS1)'!G37 -> 222.9980238 | G121: ='Bill Impact (GS1)'!I37 -> 249.5644573 | H121: =$G121/D121-1 -> 0.1258186502 | I121: =$G121/E121-1 -> 0.1538342184 | J121: =$G121/F121-1 -> 0.1191330447
B122: NAICS 621 | D122: ='Bill Impact (GS1)'!C38 -> 369.469769 | E122: ='Bill Impact (GS1)'!E38 -> 360.411944 | F122: ='Bill Impact (GS1)'!G38 -> 371.9021342 | G122: ='Bill Impact (GS1)'!I38 -> 417.4175707 | H122: =$G122/D122-1 -> 0.1297746277 | I122: =$G122/E122-1 -> 0.1581679734 | J122: =$G122/F122-1 -> 0.1223855211
B123: NAICS 722 | D123: ='Bill Impact (GS1)'!C39 -> 1048.787661 | E123: ='Bill Impact (GS1)'!E39 -> 1022.656419 | F123: ='Bill Impact (GS1)'!G39 -> 1056.127608 | G123: ='Bill Impact (GS1)'!I39 -> 1188.715124 | H123: =$G123/D123-1 -> 0.1334182961 | I123: =$G123/E123-1 -> 0.1623797611 | J123: =$G123/F123-1 -> 0.1255411892
B125: Small Commercial Monthly Average Bills - Winter
D126: =D114 -> 2025-01-01 | E126: =$E$32 -> 2025-06-01 | F126: =$D$3&" Authorized" -> 2025 Authorized | G126: =$D$3&" w/Pending" -> 2025 w/Pending | H126: =$H$32 -> % Change over 1/1/2025 | I126: =$I$32 -> % Change over 6/1/2025 | J126: % Change over Authorized
B127: NAICS 531 | D127: ='Bill Impact (GS1)'!D37 -> 189.192013 | E127: ='Bill Impact (GS1)'!F37 -> 184.1590774 | F127: ='Bill Impact (GS1)'!H37 -> 189.799141 | G127: ='Bill Impact (GS1)'!J37 -> 212.1408038 | H127: =$G127/D127-1 -> 0.1212989409 | I127: 0.1519432373 | J127: =$G127/F127-1 -> 0.1177121387
B128: NAICS 621 | D128: ='Bill Impact (GS1)'!D38 -> 229.4911805 | E128: ='Bill Impact (GS1)'!F38 -> 223.0957245 | F128: ='Bill Impact (GS1)'!H38 -> 230.0281603 | G128: ='Bill Impact (GS1)'!J38 -> 257.4892238 | H128: 0.1220005199 | I128: 0.1541647625 | J128: 0.1193813116
B129: NAICS 722 | D129: ='Bill Impact (GS1)'!D39 -> 673.4477179 | E129: ='Bill Impact (GS1)'!F39 -> 654.2772607 | F129: ='Bill Impact (GS1)'!H39 -> 675.521331 | G129: ='Bill Impact (GS1)'!J39 -> 759.6742574 | H129: 0.1280374662 | I129: 0.1610891942 | J129: 0.1245747876

Sheet Selected Data
A1: Summary of Selected Data
N2: 2025 Revenue
N3: Requirement
N4: $000
A5: 1 | B5: Current total system-level revenue requirement that is used for defining the reporting threshold: | N5: ='Authorized Rev Req'!M99 -> 17047779.16
B7: A | C7: One-percent reporting threshold | N7: =N5*0.01 -> 170477.7916
A9: 2 | B9: List of currently open proceedings that exceed the threshold for use of the affordability metrics (proceedings shaded gray filed prior to D.22-08-023):
N10: Annual Revenue
B11: A | C11: ='Incremental Rev Req'!B87 -> A.23-05-010 | D11: ='Incremental Rev Req'!$A$86 -> 2025 GRC | N11: =SUM('Incremental Rev Req'!L86:L88) -> 2006727.886
B12: B | C12: A.23-10-001 | D12: 2022 Wildfire Mgmt/Veg. Mgmt (WM/VM) | N12: 383538
B13: C | C13: ='Incremental Rev Req'!B101 -> A.24-04-005 | D13: =Summary!B10 -> WMCE | N13: ='Incremental Rev Req'!F101 -> 326337
B14: D | C14: A.24-10-002 | D14: Woolsey WEMA FRC/CEMA | N14: =SUM('Incremental Rev Req'!D114:D115) -> 419967
B15: E | C15: A.25-03-012 | D15: 2026 Cost of Capital | N15: =SUM('Incremental Rev Req'!D119:D121) -> 381579
B16: F | C16: A.25-03-009 | D16: NextGen | N16: 145266 | O16: Average annual revenue requirement from 2025-2032
A18: 3 | B18: List of currently open proceedings for which affordability metrics have been filed: | N18: Annual Revenue
B19: A | C19: =C11 -> A.23-05-010 | D19: 2025 GRC | N19: =N11 -> 2006727.886
B20: B | C20: A.23-10-001 | D20: 2022 Wildfire Mgmt/Veg. Mgmt (WM/VM) | N20: =N12 -> 383538
B21: C | C21: =C13 -> A.24-04-005 | D21: WMCE | N21: =N13 -> 326337
B22: D | C22: =C14 -> A.24-10-002 | D22: =D14 -> Woolsey WEMA FRC/CEMA | N22: =N14 -> 419967
B23: E | C23: =C15 -> A.25-03-012 | D23: =D15 -> 2026 Cost of Capital | N23: =N15 -> 381579
B24: F | C24: A.25-03-009 | D24: NextGen | N24: 145266
A26: 4 | B26: List of currently open proceedings that do not exceed the threshold for use of the affordability metrics (proceedings shaded gray filed prior to D.22-08-023):
N27: Annual Revenue
B28: A | C28: ='Incremental Rev Req'!$B$102 -> A.22-04-001 | D28: ='Incremental Rev Req'!$A$102 -> 2021 ERRA Review | N28: ='Incremental Rev Req'!$D$102 -> 25706
B29: B | C29: ='Incremental Rev Req'!B103 -> A.23-04-003 | D29: ='Incremental Rev Req'!A103 -> 2022 ERRA Review | N29: ='Incremental Rev Req'!D103+'Incremental Rev Req'!D104 -> 50874
B30: C | C30: ='Incremental Rev Req'!B106 -> A.24-04-001 | D30: 2023 ERRA Review | N30: =SUM('Incremental Rev Req'!D105:D106) -> -63195
B31: D | C31: A.24-08-003 | D31: Section 851 - Sale of GO 5 Property | N31: 29400
B32: E | C32: A.24-08-012 | D32: Section 851 - Sale of Hydroelectric San Bernardino | N32: 60300
B33: F | C33: A.24-09-008 | D33: Section 851 - Sale of Hydroelectric Fontana Union Water | N33: 9500
B34: G | C34: A.24-12-010 | D34: Section 851 - Sale of Irwindale Business Center | N34: ='Incremental Rev Req'!D116 -> 2500
B35: H | C35: A.25-03-001 | D35: Section 851 - Sale of Hydroelectric TULE | N35: ='Incremental Rev Req'!D117 -> 31100
B36: I | C36: A.25-04-004 | D36: 2024 ERRA Review | N36: =SUM('Incremental Rev Req'!D107:D108) -> 3992
A39: 5 | B39: Total system-level revenue requirement if all pending revenue were granted in full: requests were granted in full
B40: A | C40: YE 2025 | N40: ='Incremental Rev Req'!$T$76 -> 19797901.86
B41: B | C41: YE 2026 | N41: ='Incremental Rev Req'!$U$76 -> 19183695.44
B42: C | C42: YE 2027 | N42: ='Incremental Rev Req'!$V$76 -> 20059079.9
B43: D | C43: YE 2028 | N43: ='Incremental Rev Req'!$W$76 -> 20877132.02
B44: E | C44: YE 2029 | N44: ='Incremental Rev Req'!$X$76 -> 20984863.02
A46: 6 | B46: Bundled residential average rate (RAR) if all pending revenue were granted in full (from Cost and Rate Tracker (CRT) as submitted by utility):
N47: cents/kWh
B48: A | C48: YE 2025 | N48: 36.21380056 | R48: =Summary!G33 -> 36.21380056 | S48: =Summary!G33 -> 36.21380056
B49: B | C49: YE 2026 | N49: 34.19232566
B50: C | C50: YE 2027 | N50: 34.80999073
B51: D | C51: YE 2028 | N51: 35.15381801
B52: E | C52: YE 2029 | N52: 35.32184486
A54: 7 | B54: Bundled residential average monthly bill corresponding to RAR above for typical customer in climate zone 9 using 500 kWh (from CRT as submitted by utility):
M55: Non-CARE | N55: CARE
B56: A | C56: YE 2025 | M56: 187.4922682 | N56: 114.8408161 | Q56: =Summary!G81 -> 187.4922682 | R56: =Summary!G82 -> 114.8408161 | S56: =Summary!G81 -> 187.4922682 | T56: =Summary!G82 -> 114.8408161
B57: B | C57: YE 2026 | M57: 177.9076688 | N57: 108.7963425
B58: C | C58: YE 2027 | M58: 181.3206657 | N58: 110.9487298
B59: D | C59: YE 2028 | M59: 183.2150079 | N59: 112.143386
B60: E | C60: YE 2029 | M60: 184.1347372 | N60: 112.7234081
A62: 8 | B62: Bundled small commercial average rate (TOU-GS-1) if all pending revenue were granted in full (from Cost and Rate Tracker (CRT) as submitted by utility):
N63: cents/kWh
B64: A | C64: YE 2025 | N64: 32.79800055 | R64: =Summary!G34 -> 32.79800055 | S64: =Summary!G34 -> 32.79800055
B65: B | C65: YE 2026 | N65: 31.23445471
B66: C | C66: YE 2027 | N66: 31.4658717
B67: D | C67: YE 2028 | N67: 31.7523058
B68: E | C68: YE 2029 | N68: 31.88492547
A70: 9 | B70: Bundled small commercial average monthly bill corresponding to TOU-GS-1 rate above for typical customer by NAICS (from CRT as submitted by utility):
L71: NAICS 531 | M71: NAICS 621 | N71: NAICS 722
B72: A | C72: YE 2025 | L72: 224.615355 | M72: 310.7986728 | N72: 902.6878795 | P72: =Summary!G115 -> 224.615355 | Q72: =Summary!G116 -> 310.7986728 | R72: =Summary!G117 -> 902.6878795 | S72: =Summary!G115 -> 224.615355 | T72: =Summary!G116 -> 310.7986728 | U72: =Summary!G117 -> 902.6878795
B73: B | C73: YE 2026 | L73: 215.4166815 | M73: 297.8317188 | N73: 863.8411538 | P73: =M73/M72-1 -> -0.04172139452 | Q73: -0.04303450463 | S73: -1.000185746 | T73: -1.000138464
B74: C | C74: YE 2027 | L74: 217.3687101 | M74: 300.5834053 | N74: 872.0847252 | P74: 0.009239064711 | Q74: 0.009542925079 | S74: -1.22144669 | T74: -1.22175055
B75: D | C75: YE 2028 | L75: 219.4618619 | M75: 303.5340267 | N75: 880.9242707 | P75: 0.009816314999 | Q75: 0.01013610858 | S75: 0.06247929912 | T75: 0.06215950554
B76: E | C76: YE 2029 | L76: 220.3584676 | M76: 304.7979311 | N76: 884.7107073 | P76: 0.004163963005 | Q76: 0.004298254413 | S76: -0.5758120022 | T76: -0.5759462936

Sheet Authorized Rev Req
B2: Annual Period 2025
B3: Reporting Date: Quarter Ended June 30
C4: January 1, 2023 | D4: March 1, 2023 | E4: June 1, 2023 | F4: October 1, 2023 | G4: January 1, 2024 | H4: March 1, 2024 | I4: June 1, 2024 | J4: October 1, 2024 | K4: January 1, 2025 | L4: March 1, 2025 | M4: June 1, 2025
C5: 4929-E-A | D5: 4977-E | E5: 5041-E | F5: 5109-E | G5: 5178-E | H5: 5235-E | I5: 5307-E | J5: 5379-E / E-A | K5: 5449-E | L5: 5484-E | M5: 5555-E
B6: Filing Description | N6: Revenue Recovery Mechanism | O6: Authority for Revenue Requirement | P6: Balancing Account
A7: Safety Affordability Reliability Proceedings | B7: Safety Affordability Reliability Proceedings
A8: 2018 GRC (Attrition Years) | B8: General Rate Case (GRC-G) | C8: 735101 | D8: 729370 | E8: 729370 | F8: 729370 | G8: 754977 | H8: 766648.8347 | I8: 766648.8347 | J8: 766648.8347 | K8: 760627.5753 | L8: 760627.5753 | M8: 760627.5753 | N8: Generation | O8: D.23-11-096; Advice 5120-E; Advice 5406-E | P8: N
A9: 2018 GRC (Attrition Years) | B9: General Rate Case (GRC-N) | C9: 62456 | D9: 61815 | E9: 61815 | F9: 61815 | G9: 61347 | H9: 62607.60614 | I9: 62607.60614 | J9: 62607.60614 | K9: 61952.34378 | L9: 61952.34378 | M9: 61952.34378 | N9: New System Gen | O9: D.23-11-096; Advice 5120-E; Advice 5406-E | P9: N
A10: 2018 GRC (Attrition Years) | B10: General Rate Case (GRC-D) | C10: 6995075 | D10: 6911672 | E10: 6841923 | F10: 6841923 | G10: 7565233 | H10: 7752988.246 | I10: 7752988.246 | J10: 7752988.246 | K10: 7655298.489 | L10: 7655298.489 | M10: 7655298.489 | N10: Distribution | O10: D.23-11-096; Advice 5120-E; Advice 5406-E | P10: N
A11: 2018 GRC Memo Account/One-Time/FF&U | B11: 2021 GRCRRMA (27-month amortization) | C11: -3564.790897 | D11: -3564.790897 | E11: -3564.790897 | F11: -3564.790897 | G11: 0 | H11: 0 | I11: 0 | J11: 0 | N11: Generation | O11: D.21-08-036 | P11: Y
A12: 2018 GRC Memo Account/One-Time/FF&U | B12: 2021 GRCRRMA (27-month amortization) | C12: 2213.394759 | D12: 2213.394759 | E12: 2213.394759 | F12: 2213.394759 | G12: 0 | H12: 0 | I12: 0 | J12: 0 | N12: New System Gen | O12: D.21-08-036 | P12: Y
A13: Non-utility Affiliate Credits | B13: 2021 GRCRRMA (27-month amortization) | C13: 322298.9749 | D13: 322298.9749 | E13: 322298.9749 | F13: 322298.9749 | G13: 0 | H13: 0 | I13: 0 | J13: 0 | N13: Distribution | O13: D.21-08-036 | P13: Y
A14: Pole Loading & Deteriorated Poles Balancing Account | B14: Non-utility Affiliate Credits | C14: -4288.865465 | D14: -4288.865465 | E14: -4288.865465 | F14: -4288.865465 | G14: -4485.891476 | H14: -4485.891476 | I14: -4485.891476 | J14: -4485.891476 | K14: -4572.580314 | L14: -4572.580314 | M14: -4572.580314 | N14: Distribution | O14: D.15-10-037 | P14: N
A15: Tax Accounting Memorandum Account (TAMA) | B15: Pole Loading & Deteriorated Pole Programs Balancing Account | C15: 52270.76244 | D15: 52270.76244 | E15: 52270.76244 | F15: 52270.76244 | G15: -51916.65043 | H15: -51916.65043 | I15: -51916.65043 | J15: -51916.65043 | K15: -14072.56849 | L15: -14072.56849 | M15: -14072.56849 | N15: Distribution | O15: D.21-08-036 | P15: Y
A16: Pension/PBOP/Medical Balancing Accounts | B16: 2020 TAMA Balance | C16: 142.5835769 | D16: 142.5835769 | E16: 142.5835769 | F16: 142.5835769 | G16: 0 | H16: 0 | I16: 0 | N16: Distribution | O16: D.15-10-037; Advice 4453-E | P16: Y
B17: 2022/2023 TAMA Balance | C17: 18398 | D17: 18398 | E17: 18398 | F17: 18398 | G17: 19974.10359 | H17: 19974.10359 | I17: 19974.10359 | J17: 19974.10359 | K17: 14976.03009 | L17: 14976.03009 | M17: 14976.03009 | N17: Generation | O17: Advice 5260-E | P17: Y
B18: 2022/2023 TAMA Balance | C18: 119343.2066 | D18: 119343.2066 | E18: 119343.2066 | F18: 129422.3922 | G18: 129422.3922 | H18: 129422.3922 | I18: 129422.3922 | J18: 97197.38039 | K18: 97197.38039 | L18: 97197.38039 | M18: 97197.38039 | N18: Distribution | O18: Advice 5260-E | P18: Y
A19: Pension/PBOP/Medical Balancing Accounts | B19: Pension/PBOP/Medical Balancing Accounts | C19: -9738 | D19: -9738 | E19: -9738 | F19: -9738 | G19: -12071.66001 | H19: -12071.66001 | I19: -12071.66001 | J19: -12071.66001 | K19: -10009.34302 | L19: -10009.34302 | M19: -10009.34302 | N19: Generation | O19: D.21-08-036 | P19: Y
A20: 2019 ERRA Forecast | B20: Pension/PBOP/Medical Balancing Accounts | C20: -63095.20256 | D20: -63095.20256 | E20: -63095.20256 | F20: -63095.20256 | G20: -78219.42906 | H20: -78219.42906 | I20: -78219.42906 | J20: -78219.42906 | K20: -64990.5188 | L20: -64990.5188 | M20: -64990.5188 | N20: Distribution | O20: D.21-08-036 | P20: Y
A21: 2019 ERRA Forecast | B21: ERRA Forecast | C21: 4995616 | D21: 4995616 | E21: 4995616 | F21: 4995616 | G21: 4703703 | H21: 4703703 | I21: 4703703 | J21: 4703703 | K21: 4088354.669 | L21: 4088354.669 | M21: 4088354.669 | N21: Generation | O21: D.24-12-039 | P21: N
A22: 2020 ERRA Forecast | B22: ERRA Forecast | C22: 288812 | D22: 288812 | E22: 288812 | F22: 288812 | G22: 402997 | H22: 402997 | I22: 402997 | J22: 402997 | K22: 457466.7391 | L22: 457466.7391 | M22: 457466.7391 | N22: New System Gen | O22: D.24-12-039 | P22: N
A23: 2019 ERRA Forecast | B23: ERRA Forecast (BA) | C23: 4417.190949 | D23: 4417.190949 | E23: 4417.190949 | F23: 4417.190949 | G23: 222439.7825 | H23: 222439.7825 | I23: 222439.7825 | J23: 222439.7825 | K23: 78023.95761 | L23: 78023.95761 | M23: 78023.95761 | N23: New System Gen | O23: D.24-12-039 | P23: Y
A24: 2019 ERRA Forecast | B24: ERRA Forecast | C24: -773198 | D24: -773198 | E24: -773198 | F24: -773198 | G24: -955105 | H24: -955105 | I24: -955105 | J24: -955105 | K24: -641623.9439 | L24: -641623.9439 | M24: -641623.9439 | N24: GHG Revenue | O24: D.24-12-039 | P24: N
A25: 2019 ERRA Forecast | B25: ERRA Forecast | C25: 4740 | D25: 4740 | E25: 4740 | F25: 4740 | G25: 4958 | H25: 4958 | I25: 4958 | J25: 4958 | K25: 5157.179022 | L25: 5157.179022 | M25: 5157.179022 | N25: Nuclear | O25: D.24-12-039 | P25: N
A26: 2019 ERRA Forecast | B26: ERRA Forecast | C26: -11473 | D26: -11473 | E26: -11473 | F26: -11473 | G26: -3582 | H26: -3582 | I26: -3582 | J26: -3582 | K26: -19169.38659 | L26: -19169.38659 | M26: -19169.38659 | N26: Distribution | O26: D.24-12-039 | P26: N
B27: ERRA Forecast | C27: 11161.49722 | D27: 11161.49722 | E27: 11161.49722 | F27: 11161.49722 | G27: 6584.546087 | H27: 6584.546087 | I27: 6584.546087 | J27: 6584.546087 | K27: 2344.499701 | L27: 2344.499701 | M27: 2344.499701 | N27: Public Purpose | O27: D.24-12-039 | P27: N
B28: Modified CAM (MCAM) Rate Component: | G28: 2362.884396 | H28: 2362.884396 | I28: 2362.884396 | J28: 2362.884396 | K28: 4709.193664 | L28: 4709.193664 | M28: 4709.193664 | N28: MCAM | O28: D.24-12-039 | P28: N
A29: 2018 ERRA Balancing Account Trigger | B29: TMNBA/BMNBC BA | C29: -48062.22234 | D29: -48062.22234 | E29: -48062.22234 | F29: -48062.22234 | G29: 8772.952 | H29: 8772.952 | I29: 8772.952 | J29: 8772.952 | K29: 18400.88905 | L29: 18400.88905 | M29: 18400.88905 | N29: Public Purpose | O29: D.24-12-039 | P29: Y
B30: ERRA/PABA/ESMA Balancing Account | C30: 1079567.057 | D30: 1079567.057 | E30: 1079567.057 | F30: 1079567.057 | G30: 676260.1571 | H30: 676260.1571 | I30: 676260.1571 | J30: 676260.1571 | K30: 459053.5617 | L30: 459053.5617 | M30: 459053.5617 | N30: Generation | O30: D.24-12-039 | P30: Y
B31: 2023 ERRA Trigger | C31: 0 | D31: 0 | E31: 459077.8602 | F31: 459077.8602 | G31: 459077.8602 | H31: 459077.8602 | I31: 0 | J31: =I31 -> 0 | K31: 0 | L31: 0 | M31: 0 | N31: Generation | O31: D.23-04-012; Advice 5036-E | P31: Y
B32: 2024 ERRA Trigger | J32: -750729.8226 | K32: -750729.8226 | L32: -750729.8226 | M32: -750729.8226 | N32: Generation | O32: D.24-08-015 | P32: Y
B33: DAC-GT/CSGT Clean Energy Programs (BA) | C33: 2938.502779 | D33: 2938.502779 | E33: 2938.502779 | F33: 2938.502779 | G33: 2572.453913 | H33: 2572.453913 | I33: 2572.453913 | J33: 2572.453913 | K33: 2996.690392 | L33: 2996.690392 | M33: 2996.690392 | N33: Public Purpose | O33: D.24-12-039 | P33: N
B34: 2020 ERRA Review | C34: -3742 | D34: -3742 | E34: -3742 | F34: -3742 | G34: 0 | H34: 0 | I34: 0 | J34: 0 | K34: 0 | L34: 0 | M34: 0 | N34: Generation | O34: D.22-10-004; Advice 4902-E | P34: N
B35: 2020 ERRA Review | C35: 22865.94671 | D35: 22865.94671 | E35: 22865.94671 | F35: 22865.94671 | G35: 0 | H35: 0 | I35: 0 | J35: 0 | K35: 0 | L35: 0 | M35: 0 | N35: Distribution | O35: D.22-10-004; Advice 4902-E | P35: N
B36: 2020 ERRA Review | C36: 12456.60375 | D36: 12456.60375 | E36: 12456.60375 | F36: 12456.60375 | G36: 0 | H36: 0 | I36: 0 | J36: 0 | K36: 0 | L36: 0 | M36: 0 | N36: Public Purpose | O36: D.22-10-004; Advice 4902-E | P36: N
A37: BRRBA | B37: BRRBA Balancing Account | C37: 7542.575977 | D37: 7542.575977 | E37: 7542.575977 | F37: 7542.575977 | G37: 4756.555825 | H37: 4756.555825 | I37: 4756.555825 | J37: 4756.555825 | K37: -484.3566812 | L37: -484.3566812 | M37: -484.3566812 | N37: Generation | O37: D.15-10-037 | P37: Y
A38: NDAM Balancing Account | B38: BRRBA (Inc. FRC FF) | C38: -307497.1264 | D38: -307497.1264 | E38: -306980.6966 | F38: -306980.6966 | G38: 695357.185 | H38: 695357.185 | I38: 695357.185 | J38: 695357.185 | K38: 676672.1218 | L38: 676672.1218 | M38: 676672.1218 | N38: Distribution | O38: =O37 -> D.15-10-037 | P38: Y
A39: CARE Balancing Account | B39: NDAM Balancing Account | C39: 2770.566274 | D39: 2770.566274 | E39: 2770.566274 | F39: 2770.566274 | G39: 1927 | H39: 1927 | I39: 1927 | J39: 1927 | K39: -6072.630664 | L39: -6072.630664 | M39: -6072.630664 | N39: Nuclear | O39: D.15-10-037 | P39: Y
A40: PPPAM Balancing Account | B40: CARE Balancing Account | C40: -83502.67593 | D40: -83502.67593 | E40: -83502.67593 | F40: -83502.67593 | G40: 55214.93072 | H40: 55214.93072 | I40: 55214.93072 | J40: 55214.93072 | K40: 107382.1747 | L40: 107382.1747 | M40: 107382.1747 | N40: Public Purpose | O40: D.15-10-037 | P40: Y
B41: PPPAM Balancing Account | C41: 49633.64016 | D41: 49633.64016 | E41: 49633.64016 | F41: 49633.64016 | G41: 57989.27786 | H41: 57989.27786 | I41: 57989.27786 | J41: 57989.27786 | K41: 191863.3206 | L41: 191863.3206 | M41: 191863.3206 | N41: Public Purpose | O41: D.15-10-037 | P41: Y
B42: Emergency Reliability OIR | C42: 1979.89967 | D42: 1979.89967 | E42: 1979.89967 | F42: 1979.89967 | G42: 0 | H42: 0 | I42: 0 | N42: Distribution | O42: D.21-12-015 | P42: N
B43: Emergency Reliability OIR | C43: 10010.72867 | D43: 10010.72867 | E43: 10010.72867 | F43: 10010.72867 | G43: 0 | H43: 0 | I43: 0 | N43: Public Purpose | O43: D.21-12-015 | P43: N
B44: Emergency Reliability UOS | F44: 17991 | G44: 17006 | H44: 17591 | I44: 17591 | J44: 17591 | K44: 29550.51254 | L44: 29550.51254 | M44: 29550.51254 | N44: Generation | O44: Advice 5421-E; Advice 5120-E; Advice 5142-E; Advice 5407-E | P44: N
B45: Emergency Reliability UOS | C45: 86303 | D45: 84963 | E45: 84963 | F45: 66972 | G45: 62428 | H45: 64611 | I45: 64611 | J45: 64611 | K45: 79159.14371 | L45: 79159.14371 | M45: 79159.14371 | N45: Distribution | O45: Advice 5421-E; Advice 5120-E; Advice 5142-E; Advice 5407-E | P45: N
B46: 2021 GRC Track 2 Non-AB 1054 CapEx | C46: 0 | D46: 0 | E46: 0 | F46: 0 | G46: 0 | H46: 0 | I46: 0 | J46: 0 | N46: Distribution | P46: N
B47: 2021 GRC Track 2 O&M (36-Month Amortization) | C47: 135161.6901 | D47: 135161.6901 | E47: 135161.6901 | F47: 135161.6901 | G47: 135161.6901 | H47: 135161.6901 | I47: 135161.6901 | J47: 135161.6901 | K47: 135161.6901 | L47: 0 | M47: 0 | N47: Distribution | O47: D.21-01-012; Advice 4658-E/E-A | P47: N
B48: 2021 GRC Track 3 O&M (36-Month Amortization) | C48: 135415.5795 | D48: 135415.5795 | E48: 135415.5795 | F48: 135415.5795 | G48: 135415.5795 | H48: 135415.5795 | I48: 135415.5795 | J48: 135415.5795 | K48: 135415.5795 | L48: 135415.5795 | M48: 135415.5795 | N48: Distribution | O48: D.22-06-032 | P48: N
B49: VMBA Undercollection Threshold | C49: 26556.1553 | D49: 26556.1553 | E49: 26556.1553 | F49: 29215.51344 | G49: 29215.51344 | H49: 29215.51344 | I49: 29215.51344 | J49: 34738.53028 | K49: 34738.53028 | L49: 34738.53028 | M49: 34738.53028 | N49: Distribution | O49: Advice 5245-E; Advice 5534-E | P49: Y
B50: WRMBA Undercollection | J50: 129014.0578 | K50: 129014.0578 | L50: 129014.0578 | M50: 129014.0578 | N50: Distribution | O50: Advice 5267-E | P50: Y
B51: 2020 Vegetation Management Z-Factor | F51: 37644.69531 | G51: 37644.69531 | H51: 37644.69531 | I51: 37644.69531 | J51: 0 | N51: Distribution | O51: Resolution E-5287 | P51: N
B52: 2021 Wildfire Mitigation/Vegetation Management | I52: 378956.9667 | J52: 378956.9667 | K52: 378956.9667 | L52: 378956.9667 | M52: 0 | N52: Distribution | O52: D.24-03-008 | P52: N
B53: 2022 WMVM (55% Interm Rate Recovery) | J53: 149902.8146 | K53: 149902.8146 | L53: 149902.8146 | M53: 149902.8146 | N53: Distribution | O53: D.24-07-012 | P53: N
B54: Mobilehome Master Meter Balancing Account | C54: 14300.59952 | D54: 14300.59952 | E54: 14300.59952 | F54: 14300.59952 | G54: 18034.35236 | H54: 18034.35236 | I54: 18034.35236 | J54: 18034.35236 | K54: 23332.92938 | L54: 23332.92938 | M54: 23332.92938 | N54: Distribution | O54: D.15-10-037 | P54: Y
B55: WEMA 2 | C55: 0 | D55: 0 | E55: 214140.3257 | F55: 214140.3257 | G55: 214140.3257 | H55: 214140.3257 | I55: 0 | J55: 0 | K55: 0 | L55: 0 | M55: 0 | N55: Distribution | O55: D.23-05-033 | P55: N
B56: 2017 CEMA Fires | C56: 1460.866949 | D56: 1460.866949 | E56: 1460.866949 | F56: 1460.866949 | G56: 0 | H56: 0 | I56: 0 | J56: 0 | K56: 0 | L56: 0 | M56: 0 | N56: Distribution | O56: D.22-06-002 | P56: N
B57: CEMA - 2020 Storms | J57: 288149.1807 | K57: 288149.1807 | L57: 288149.1807 | M57: 288149.1807 | N57: Distribution | O57: D.24-05-037 | P57: N
B58: 2021 CEMA/WEMA | G58: 137221.3298 | H58: 137221.3298 | I58: 137221.3298 | J58: 137221.3298 | K58: 0 | L58: 0 | M58: 0 | N58: Distribution | O58: D.23-11-089 | P58: Y
B59: 2017 Thomas Fire - CEMA | C59: 0 | D59: 0 | E59: 0 | F59: 0 | G59: 0 | H59: 0 | I59: 0 | J59: 0 | K59: 0 | L59: 0 | M59: 34656.77936 | N59: Distribution | O59: D.25-01-042 | P59: N
B60: Wildfire Self-Insurance Credit | I60: -24268.43314 | J60: -24268.43314 | K60: -24268.43314 | L60: -24268.43314 | M60: 0 | N60: Distribution | O60: D.23-05-013 | P60: N
B61: CSRP Track 1 | C61: 201345.1951 | D61: 201345.1951 | E61: 201345.1951 | F61: 201345.1951 | G61: 0 | H61: 0 | I61: 0 | J61: 0 | K61: 0 | L61: 0 | M61: 0 | N61: Distribution | O61: D.22-09-015; Advice 4876-E | P61: N
B62: CSRP Track 2 | E62: 38155.501 | F62: 38155.501 | G62: 38155.501 | H62: 38155.501 | I62: 0 | J62: 0 | K62: 0 | L62: 0 | M62: 0 | N62: Distribution | O62: D.23-03-019 | P62: N
B63: Diablo Canyon Extended Operations NBC | J63: 0 | K63: 282858.6909 | L63: 282858.6909 | M63: 282858.6909 | N63: DCPP | O63: D.24-12-033 | P63: N
A64: SJV DAC Pilots | B64: GSRP Recovery Bonds FRC #1 (AB 1054) | C64: 19256.772 | D64: 19256.772 | E64: 19256.772 | F64: 19256.772 | G64: 19256.772 | H64: 19256.772 | I64: 19256.772 | J64: 19256.772 | K64: 19256.772 | L64: 19256.772 | M64: 19256.772 | N64: Securitization | O64: D.20-11-007; Advice 4416-E | P64: N
A65: SJV DAC Pilots | B65: 2021 GRC Tracks 1 and 2 Recovery Bonds FRC #2 (AB 1054) | C65: 31732.126 | D65: 31732.126 | E65: 31732.126 | F65: 31732.126 | G65: 31732.126 | H65: 31732.126 | I65: 31732.126 | J65: 31732.126 | K65: 31732.126 | L65: 31732.126 | M65: 31732.126 | N65: Securitization | O65: D.21-10-025; Advice 4717-E-A | P65: N
A66: SJV DAC Pilots | B66: 2021 GRC Tracks 1 and 3 Recovery Bonds FRC #3 (AB 1054) | E66: 55255.382 | F66: 55255.382 | G66: 55255.382 | H66: 55255.382 | I66: 55255.382 | J66: 55255.382 | K66: 55255.382 | L66: 55255.382 | M66: 55255.382 | N66: Securitization | O66: D.23-02-023; Advice 5018-E | P66: N
B67: Grid Safety & Resiliency Program | N67: Distribution | O67: D.20-04-013; Advice 4197-E | P67: N
A68: Public Policy Proceedings | B68: Subtotal Safety Affordability Reliability | C68: =SUM(C8:C67) -> 14145181.23 | D68: 14054066.23 | E68: 14751462.73 | F68: 14801845.97 | G68: 15661213.72 | H68: 15864669.4 | I68: 15507984.25 | J68: 15259973.79 | K68: 14918967.61 | L68: =SUM(L8:L67) -> 14783805.92 | M68: 14463774.16
A69: Demand Response | B69: Public Policy Proceedings
A70: Energy Efficiency | B70: Demand Response | C70: 4649.427316 | D70: 4649.427316 | E70: 4649.427316 | F70: 4649.427316 | G70: 10.11184714 | H70: 11.12303186 | I70: 11.12303186 | J70: 11.12303186 | K70: 11.04213708 | L70: 11.04213708 | M70: 11.04213708 | N70: Generation | O70: D.23-12-005; Advice 5421-E | P70: N
B71: Demand Response (Inc. ELPBA 2023-2025) | C71: 23987.96955 | D71: 23987.96955 | E71: 23987.96955 | F71: 23987.96955 | G71: 40702.88087 | H71: 49287.83909 | I71: 49287.83909 | J71: 49287.83909 | K71: 52035.59468 | L71: 52035.59468 | M71: 52035.59468 | N71: Distribution | O71: D.23-12-005; Advice 5421-E | P71: N
B72: Energy Efficiency (Inc. IDSM) | C72: 415373.5539 | D72: 415373.5539 | E72: 415373.5539 | F72: 415373.5539 | G72: 288996.5913 | H72: 288996.5913 | I72: 288996.5913 | J72: 288996.5913 | K72: 482807.0296 | L72: 482807.0296 | M72: 482807.0296 | N72: Public Purpose | O72: D.23-08-005; Advice 5123-E; D.24-09-031 | P72: N
B73: Energy Efficiency Market Access Program | C73: 47007.4494 | D73: 47007.4494 | E73: 47007.4494 | F73: 47007.4494 | G73: 0 | H73: 0 | I73: 0 | J73: 0 | N73: Public Purpose | O73: D.20-08-042; D.21-11-028 | P73: N
B74: Smart Heat Pump Water Heater (SHPWH) Program | C74: 14055.46753 | D74: 14055.46753 | E74: 14055.46753 | F74: 14055.46753 | G74: 0 | H74: 0 | I74: 0 | J74: 0 | N74: Public Purpose | O74: D.22-04-044; Advice 4858-E | P74: N
B75: New Home Energy Storage Pilot (NHESP) | E75: 5055.923571 | F75: 5055.923571 | G75: 5055.923571 | H75: 5055.923571 | I75: 0 | J75: 0 | N75: Public Purpose | O75: D.22-04-044; Advice 4852-E | P75: N
B76: California Hub for EE Financing (CHEEF) | C76: 549.4028246 | D76: 549.4028246 | E76: 549.4028246 | F76: 549.4028246 | G76: 0 | H76: 0 | I76: 0 | J76: 0 | N76: Public Purpose | O76: D.23-08-005; Advice 5123-E | P76: N
B77: Energy Efficiency Market Transformation | C77: 6441 | D77: 6441 | E77: 6441 | F77: 6441 | G77: 6441 | H77: 6441 | I77: 6441 | J77: 6441 | K77: 6441 | L77: 6441 | M77: 6441 | N77: Public Purpose | O77: D.19-12-021 | P77: N
B78: 2020 RUBA Uncollectibles (36-Month Amortization) | C78: 25700.14834 | D78: 25700.14834 | E78: 25700.14834 | F78: 25700.14834 | G78: 25700.14834 | H78: 25700.14834 | I78: 25700.14834 | J78: 25700.14834 | K78: 25700.14834 | L78: 0 | M78: 0 | N78: Public Purpose | O78: Advice 4658-E/E-A | P78: N
A79: Charge Ready Phase 1 Pilot | B79: Schools Energy Efficiency Stimulus Program | C79: 75509.17701 | D79: 75509.17701 | E79: 75509.17701 | F79: 75509.17701 | G79: 0 | H79: 0 | I79: 0 | J79: 0 | N79: Public Purpose | O79: D.21-01-004; Advice 4633-E-A | P79: N
A80: CA Solar Initiatives/MASH/SASH | B80: Charge Ready Programs (Pilot, Bridge and Schools and Parks) | C80: 30457 | D80: 30254 | E80: 30254 | F80: 30254 | G80: 41775 | H80: 42322 | I80: 42322 | J80: 42322 | K80: 76686.14532 | L80: 76686.14532 | M80: 76686.14532 | N80: Distribution | O80: Advice 5120-E; Advice 5141-E; Advice 5407-E | P80: N
B81: Transportation Electrification | C81: 15772 | D81: 15678 | E81: 15678 | F81: 15678 | G81: 15804 | H81: 16033 | I81: 16033 | J81: 16033 | K81: 27307.65104 | L81: 27307.65104 | M81: 27307.65104 | N81: Distribution | O81: Advice 5120-E; Advice 5141-E; Advice 5407-E | P81: N
B82: Low Income Programs (ESAP) | C82: 61811.10058 | D82: 61811.10058 | E82: 61811.10058 | F82: 61811.10058 | G82: 92017.80899 | H82: 92017.80899 | I82: 92017.80899 | J82: 92017.80899 | K82: 92462.20343 | L82: 92462.20343 | M82: 92462.20343 | N82: Public Purpose | O82: D.21-06-015 | P82: N
A83: Statewide ME&O | B83: Low Income Programs (CARE/FERA Admin) | C83: 10644.40881 | D83: 10644.40881 | E83: 10644.40881 | F83: 10644.40881 | G83: 10571.12016 | H83: 10571.12016 | I83: 10571.12016 | J83: 10571.12016 | K83: 10971.64941 | L83: 10971.64941 | M83: 10971.64941 | N83: Public Purpose | O83: D.21-06-015; Advice 4638-E | P83: N
A84: EPIC - RD&D and Renewables | B84: Statewide ME&O | C84: 0 | D84: 0 | E84: 0 | F84: 0 | G84: 0 | H84: 0 | I84: 0 | J84: 0 | K84: 0 | L84: 0 | M84: 0 | N84: Public Purpose | P84: N
A85: Self-Generation Incentive Program (SGIP) | B85: EPIC - RD&D and Renewables | C85: 76885.42974 | D85: 76885.42974 | E85: 76885.42974 | F85: 76885.42974 | G85: 76885.42974 | H85: 76885.42974 | I85: 76885.42974 | J85: 76885.42974 | K85: 76885.42974 | L85: 76885.42974 | M85: 76885.42974 | N85: Public Purpose | O85: D.20-08-042; D.21-11-028 | P85: N
A86: Aliso Canyon Energy Storage | B86: Self-Generation Incentive Program (SGIP) | C86: 56626.34399 | D86: 56626.34399 | E86: 56626.34399 | F86: 56626.34399 | G86: 56626.34399 | H86: 56626.34399 | I86: 56626.34399 | J86: 56626.34399 | K86: 0 | L86: 0 | M86: 0 | N86: Public Purpose | O86: D.20-01-021; Advice 4169-E | P86: N
A87: Non-CPUC Jurisdictional Proceedings | B87: Subtotal Public Policy | C87: =SUM(C70:C86) -> 865469.879 | D87: 865172.879 | E87: 870228.8025 | F87: 870228.8025 | G87: 660586.3588 | H87: 669948.3282 | I87: 664892.4046 | J87: 664892.4046 | K87: 851307.8937 | L87: =SUM(L70:L86) -> 825607.7453 | M87: 825607.7453
A88: DWR Bond/Power | B88: Non-CPUC Jurisdictional Proceedings
A89: Wildfire Fund Charge | B89: DWR Bond/Power | N89: DWR | P89: N
A90: Wildfire Fund Charge | B90: DWR Bond Refund | C90: -145519.4203 | D90: -145519.4203 | E90: 0 | F90: 0 | G90: 0 | H90: 0 | I90: 0 | N90: DWR | O90: D.21-12-001; Advice 4690-E | P90: N
A91: FERC Base Transmission | B91: Wildfire Fund Charge (AB1054) | C91: 402302 | D91: 402302 | E91: 402302 | F91: 402302 | G91: 408912 | H91: 408912 | I91: 408912 | J91: 408912 | K91: 416803 | L91: 416803 | M91: 416803 | N91: DWR | O91: D.22-12-007 | P91: N
A92: TRBAA | B92: FERC Base Transmission | C92: 1414935.849 | D92: 1414935.849 | E92: 1414935.849 | F92: 1414935.849 | G92: 1124500.46 | H92: 1124500.46 | I92: 1124500.46 | J92: 1124500.46 | K92: 1344347 | L92: 1344347 | M92: 1344347 | N92: FERC | O92: ER25-550; Advice 5449-E | P92: N
A93: RSBAA | B93: TRBAA (BA) | C93: -156456 | D93: -156456 | E93: -156456 | F93: -156456 | G93: -283956 | H93: -283956 | I93: -283956 | J93: -283956 | K93: -214482 | L93: -214482 | M93: -214482 | N93: TOTCA | O93: ER25-267; Advice 5449-E | P93: Y
A94: TACBAA | B94: RSBAA (BA) | C94: -2676 | D94: -2676 | E94: -2676 | F94: -2676 | G94: 4738 | H94: 4738 | I94: 4738 | J94: 4738 | K94: 8496 | L94: 8496 | M94: 8496 | N94: TOTCA | O94: ER25-305; Advice 5449-E | P94: Y
A95: Total Approved, Implemented Since Jan 1 or To Be Implemented | B95: TACBAA (BA) | C95: 156958 | D95: 156958 | E95: 98958 | F95: 98958 | G95: 98974 | H95: 98974 | I95: 270811 | J95: 270811 | K95: 270811 | L95: 270811 | M95: 203233.255 | N95: TOTCA | O95: ER25-1770-000 | P95: Y
B96: Subtotal Non-CPUC Jurisdictional | C96: =SUM(C90:C95) -> 1669544.429 | D96: 1669544.429 | E96: 1757063.849 | F96: 1757063.849 | G96: 1353168.46 | H96: =SUM(H90:H95) -> 1353168.46 | I96: 1525005.46 | J96: 1525005.46 | K96: 1825975 | L96: =SUM(L90:L95) -> 1825975 | M96: 1758397.255
B97: PUCRF | C97: =E97 -> 107475 | D97: =E97 -> 107475 | E97: 107475 | F97: 107475 | G97: 80194.53144 | H97: =G97 -> 80194.53144 | I97: =H97 -> 80194.53144 | J97: =I97 -> 80194.53144 | K97: 63307.71418 | L97: 63307.71418 | M97: 63307.71418 | N97: PUCRF | P97: N
B98: Total Authorized Revenue | C98: =C68+C87+C96+C97 -> 16787670.54 | D98: 16696258.54 | E98: 17486230.38 | F98: 17536613.62 | G98: 17755163.07 | H98: 17967980.72 | I98: 17778076.65 | J98: 17530066.19 | K98: 17659558.21 | L98: =L68+L87+L96+L97 -> 17498696.38 | M98: 17111086.88
B99: w/o PUCRF | C99: =C98-C97 -> 16680195.54 | D99: 16588783.54 | E99: 17378755.38 | F99: 17429138.62 | G99: 17674968.54 | H99: 17887786.19 | I99: =I98-I97 -> 17697882.12 | J99: 17449871.66 | K99: 17596250.5 | L99: =L98-L97 -> 17435388.66 | M99: 17047779.16
C100: 0 | D100: 0 | E100: 0 | F100: 0 | G100: 0 | H100: 0 | I100: 0 | J100: 0 | K100: 0 | L100: 0 | M100: 0

Sheet Incremental Rev Req
A2: Annual Period 2025
A3: Reporting Date: Quarter Ended June 30
A5: Current Revenue Requirement ($000): | B5: ='Authorized Rev Req'!M98 -> 17111086.88 | C5: Inc. PUCRF
A6: Current Revenue Requirement Effective: | B6: June 1, 2025
A7: Approved Application(s), Implemented Since Jan 1 or To Be Implemented | F7: Year End, double check,
A8: Filing Description | B8: Proceeding | C8: Authority for Revenue Requirement | D8: Authorized Revenue Requirement ($000) | E8: Revenue Recovery Mechanism | F8: 2025 | G8: =F8+1 -> 2026 | H8: =G8+1 -> 2027 | I8: 2028 | J8: 2029 | K8: Existing or New Item (if existing, use delta from prior for rate impact) | S8: Total Authorized
A9: Safety Affordability Reliability Proceedings | T9: =F8 -> 2025 | U9: =G8 -> 2026 | V9: 2027 | W9: 2028 | X9: 2029
A10: General Rate Case (GRC-G) | C10: =VLOOKUP(A10,'Authorized Rev Req'!B$7:$O$96,14,FALSE) -> D.23-11-096; Advice 5120-E; Advice 5406-E | D10: ='Authorized Rev Req'!$M8 -> 760627.5753 | E10: Generation | F10: ='Authorized Rev Req'!$M8 -> 760627.5753 | G10: =F10 -> 760627.5753 | H10: =G10 -> 760627.5753 | I10: =H10 -> 760627.5753 | J10: =I10 -> 760627.5753 | K10: Existing | S10: Generation | T10: =SUMIF($E$10:$E$78,$S10,F$10:F$78) -> 5342079.691 | U10: =SUMIF($E$10:$E$78,$S10,G$10:G$78) -> 4878249.799 | V10: =SUMIF($E$10:$E$78,$S10,H$10:H$78) -> 4878249.799 | W10: =SUMIF($E$10:$E$78,$S10,I$10:I$78) -> 4878249.799 | X10: =SUMIF($E$10:$E$78,$S10,J$10:J$78) -> 4878249.799
A11: General Rate Case (GRC-N) | C11: =VLOOKUP(A11,'Authorized Rev Req'!B$7:$O$96,14,FALSE) -> D.23-11-096; Advice 5120-E; Advice 5406-E | D11: ='Authorized Rev Req'!$M9 -> 61952.34378 | E11: New System Gen | F11: ='Authorized Rev Req'!$M9 -> 61952.34378 | G11: ='Authorized Rev Req'!K9 -> 61952.34378 | H11: =G11 -> 61952.34378 | I11: 61952.34378 | J11: 61952.34378 | K11: Existing | S11: New System Gen | T11: 597443.0405 | U11: 519419.0828 | V11: 519419.0828 | W11: 519419.0828 | X11: 519419.0828
A12: General Rate Case (GRC-D) | C12: =VLOOKUP(A12,'Authorized Rev Req'!B$7:$O$96,14,FALSE) -> D.23-11-096; Advice 5120-E; Advice 5406-E | D12: ='Authorized Rev Req'!$M10 -> 7655298.489 | E12: Distribution | F12: ='Authorized Rev Req'!$M10 -> 7655298.489 | G12: ='Authorized Rev Req'!K10 -> 7655298.489 | H12: 7655298.489 | I12: 7655298.489 | J12: 7655298.489 | K12: Existing | S12: Distribution | T12: 8807465.995 | U12: 7947738.057 | V12: 7947249.462 | W12: 7947249.462 | X12: 7947249.462
A13: Non-utility Affiliate Credits | C13: =VLOOKUP(A13,'Authorized Rev Req'!B$7:$O$96,14,FALSE) -> D.15-10-037 | D13: ='Authorized Rev Req'!$M14 -> -4572.580314 | E13: Distribution | F13: ='Authorized Rev Req'!$M14 -> -4572.580314 | G13: ='Authorized Rev Req'!K14 -> -4572.580314 | H13: -4572.580314 | I13: -4572.580314 | J13: -4572.580314 | K13: Existing | S13: GHG Revenue | T13: -641623.9439 | U13: -641623.9439 | V13: -641623.9439 | W13: -641623.9439 | X13: -641623.9439
A14: Pole Loading & Deteriorated Pole Programs Balancing Account | C14: =VLOOKUP(A14,'Authorized Rev Req'!B$7:$O$96,14,FALSE) -> D.21-08-036 | D14: ='Authorized Rev Req'!$M15 -> -14072.56849 | E14: Distribution | F14: ='Authorized Rev Req'!$M15 -> -14072.56849 | G14: 0 | H14: 0 | I14: 0 | J14: 0 | K14: Existing | S14: MCAM | T14: 4709.193664 | U14: 1558 | V14: 1558 | W14: 1558 | X14: 1558
A15: 2022/2023 TAMA Balance | C15: =VLOOKUP(A15,'Authorized Rev Req'!B$7:$O$96,14,FALSE) -> Advice 5260-E | D15: ='Authorized Rev Req'!$M17 -> 14976.03009 | E15: Generation | F15: ='Authorized Rev Req'!$M17 -> 14976.03009 | G15: 0 | H15: 0 | I15: =H15 -> 0 | J15: 0 | K15: Existing | S15: Nuclear | T15: -915.4516419 | U15: 5157.179022 | V15: 5157.179022 | W15: 5157.179022 | X15: 5157.179022
A16: 2022/2023 TAMA Balance | C16: =VLOOKUP(A16,'Authorized Rev Req'!B$7:$O$96,14,FALSE) -> Advice 5260-E | D16: ='Authorized Rev Req'!$M18 -> 97197.38039 | E16: Distribution | F16: =D16 -> 97197.38039 | G16: 0 | H16: 0 | I16: 0 | J16: 0 | K16: Existing | S16: Public Purpose | T16: 992554.8866 | U16: 837782.9488 | V16: 666682.9488 | W16: 666682.9488 | X16: 666682.9488
A17: Pension/PBOP/Medical Balancing Accounts | C17: =VLOOKUP(A17,'Authorized Rev Req'!B$7:$O$96,14,FALSE) -> D.21-08-036 | D17: ='Authorized Rev Req'!$M19 -> -10009.34302 | E17: Generation | F17: ='Authorized Rev Req'!$M19 -> -10009.34302 | G17: 0 | H17: 0 | I17: 0 | J17: 0 | K17: Existing | S17: DCPP | T17: 282858.6909 | U17: 282858.6909 | V17: 282858.6909 | W17: 282858.6909 | X17: 282858.6909
A18: Pension/PBOP/Medical Balancing Accounts | C18: =VLOOKUP(A18,'Authorized Rev Req'!B$7:$O$96,14,FALSE) -> D.21-08-036 | D18: ='Authorized Rev Req'!$M20 -> -64990.5188 | E18: Distribution | F18: ='Authorized Rev Req'!$M20 -> -64990.5188 | G18: 0 | H18: 0 | I18: 0 | J18: 0 | K18: Existing | S18: DWR | T18: 416803 | U18: 416803 | V18: 416803 | W18: 416803 | X18: 416803
A19: 2025 ERRA Forecast F&PP | C19: D.24-12-039 | D19: ='Authorized Rev Req'!$M21 -> 4088354.669 | E19: Generation | F19: ='Authorized Rev Req'!$M21 -> 4088354.669 | G19: =F19 -> 4088354.669 | H19: 4088354.669 | I19: 4088354.669 | J19: 4088354.669 | K19: Existing | S19: FERC | T19: 1344347 | U19: 1344347 | V19: 1344347 | W19: 1344347 | X19: 1344347
A20: 2025 ERRA Forecast F&PP | C20: D.24-12-039 | D20: ='Authorized Rev Req'!$M22 -> 457466.7391 | E20: New System Gen | F20: ='Authorized Rev Req'!$M22 -> 457466.7391 | G20: 457466.7391 | H20: 457466.7391 | I20: 457466.7391 | J20: 457466.7391 | K20: Existing | S20: TOTCA | T20: -2752.745 | U20: -2752.745 | V20: -2752.745 | W20: -2752.745 | X20: -2752.745
A21: 2025 ERRA Forecast (BA) | C21: D.24-12-039 | D21: ='Authorized Rev Req'!$M23 -> 78023.95761 | E21: New System Gen | F21: ='Authorized Rev Req'!$M23 -> 78023.95761 | G21: 0 | H21: 0 | I21: 0 | J21: 0 | K21: Existing | S21: Securitization | T21: 106244.28 | U21: 106244.28 | V21: 106244.28 | W21: 106244.28 | X21: 106244.28
A22: 2025 ERRA Forecast | C22: D.24-12-039 | D22: ='Authorized Rev Req'!$M24 -> -641623.9439 | E22: GHG Revenue | F22: ='Authorized Rev Req'!$M24 -> -641623.9439 | G22: =F22 -> -641623.9439 | H22: -641623.9439 | I22: =H22 -> -641623.9439 | J22: -641623.9439 | K22: Existing | S22: PUCRF | T22: 63307.71418 | U22: 63307.71418 | V22: 63307.71418 | W22: 63307.71418 | X22: 63307.71418
A23: 2025 ERRA Forecast | C23: D.24-12-039 | D23: ='Authorized Rev Req'!$M25 -> 5157.179022 | E23: Nuclear | F23: ='Authorized Rev Req'!$M25 -> 5157.179022 | G23: 5157.179022 | H23: 5157.179022 | I23: 5157.179022 | J23: 5157.179022 | K23: Existing | T23: =SUM(T10:T22) -> 17312521.35 | U23: =SUM(U10:U22) -> 15759089.06 | V23: =SUM(V10:V22) -> 15587500.47 | W23: =SUM(W10:W22) -> 15587500.47 | X23: =SUM(X10:X22) -> 15587500.47
A24: 2025 ERRA Forecast | C24: D.24-12-039 | D24: ='Authorized Rev Req'!$M26 -> -19169.38659 | E24: Distribution | F24: ='Authorized Rev Req'!$M26 -> -19169.38659 | G24: -19169.38659 | H24: -19169.38659 | I24: -19169.38659 | J24: -19169.38659 | K24: Existing | S24: Check | T24: =T23=F78 -> TRUE | U24: =U23=G78 -> TRUE | V24: =V23=H78 -> TRUE | W24: =W23=I78 -> TRUE | X24: =X23=J78 -> TRUE
A25: 2025 ERRA Forecast | C25: D.24-12-039 | D25: ='Authorized Rev Req'!$M27 -> 2344.499701 | E25: Public Purpose | F25: ='Authorized Rev Req'!$M27 -> 2344.499701 | G25: 2344.499701 | H25: 2344.499701 | I25: 2344.499701 | J25: 2344.499701 | K25: Existing | T25: =T23-F78 -> 0
A26: 2025 ERRA Forecast | C26: D.24-12-039 | D26: ='Authorized Rev Req'!$M28 -> 4709.193664 | E26: MCAM | F26: ='Authorized Rev Req'!$M28 -> 4709.193664 | G26: 1558 | H26: =G26 -> 1558 | I26: 1558 | J26: 1558 | K26: Existing
A27: 2025 ERRA Forecast (BA) | C27: D.24-12-039 | D27: ='Authorized Rev Req'!$M29 -> 18400.88905 | E27: Public Purpose | F27: ='Authorized Rev Req'!$M29 -> 18400.88905 | G27: 0 | H27: 0 | I27: 0 | J27: 0 | K27: Existing
A28: 2025 ERRA/PABA (BA) | C28: D.24-12-039 | D28: ='Authorized Rev Req'!$M30 -> 459053.5617 | E28: Generation | F28: ='Authorized Rev Req'!$M30 -> 459053.5617 | G28: -294 | H28: -294 | I28: =H28 -> -294 | J28: =I28 -> -294 | K28: Existing
A29: DAC-GT/CSGT Clean Energy Programs (BA) | C29: D.24-12-039 | D29: ='Authorized Rev Req'!$M33 -> 2996.690392 | E29: Public Purpose | F29: ='Authorized Rev Req'!$M33 -> 2996.690392 | G29: =F29 -> 2996.690392 | H29: =G29 -> 2996.690392 | I29: =H29 -> 2996.690392 | J29: =I29 -> 2996.690392 | K29: Existing
A30: 2024 ERRA Trigger | C30: D.24-08-015 | D30: ='Authorized Rev Req'!$M32 -> -750729.8226 | E30: Generation | F30: 0 | G30: 0 | H30: 0 | I30: 0 | J30: 0 | K30: Existing
A31: BRRBA Balancing Account | C31: =VLOOKUP(A31,'Authorized Rev Req'!B$7:$O$96,14,FALSE) -> D.15-10-037 | D31: ='Authorized Rev Req'!$M37 -> -484.3566812 | E31: Generation | F31: ='Authorized Rev Req'!$M37 -> -484.3566812 | G31: 0 | H31: 0 | I31: 0 | J31: 0 | K31: Existing
A32: BRRBA Balancing Account | C32: =VLOOKUP(A32,'Authorized Rev Req'!B$7:$O$96,14,FALSE) -> D.15-10-037 | D32: ='Authorized Rev Req'!$M38 -> 676672.1218 | E32: Distribution | F32: ='Authorized Rev Req'!$M38 -> 676672.1218 | G32: =80000+993 -> 80993 | H32: =G32 -> 80993 | I32: =H32 -> 80993 | J32: =I32 -> 80993 | K32: Existing
A33: NDAM Balancing Account | C33: =VLOOKUP(A33,'Authorized Rev Req'!B$7:$O$96,14,FALSE) -> D.15-10-037 | D33: ='Authorized Rev Req'!$M39 -> -6072.630664 | E33: Nuclear | F33: ='Authorized Rev Req'!$M39 -> -6072.630664 | G33: 0 | H33: 0 | I33: 0 | J33: 0 | K33: Existing
A34: CARE Balancing Account | C34: =VLOOKUP(A34,'Authorized Rev Req'!B$7:$O$96,14,FALSE) -> D.15-10-037 | D34: ='Authorized Rev Req'!$M40 -> 107382.1747 | E34: Public Purpose | F34: ='Authorized Rev Req'!$M40 -> 107382.1747 | G34: 0 | H34: 0 | I34: 0 | J34: 0 | K34: Existing
A35: PPPAM Balancing Account | C35: =VLOOKUP(A35,'Authorized Rev Req'!B$7:$O$96,14,FALSE) -> D.15-10-037 | D35: ='Authorized Rev Req'!$M41 -> 191863.3206 | E35: Public Purpose | F35: ='Authorized Rev Req'!$M41 -> 191863.3206 | G35: 170000 | H35: 0 | I35: 0 | J35: 0 | K35: Existing
A36: Emergency Reliability UOS | C36: =VLOOKUP(A36,'Authorized Rev Req'!B$7:$O$96,14,FALSE) -> Advice 5421-E; Advice 5120-E; Advice 5142-E; Advice 5407-E | D36: ='Authorized Rev Req'!$M44 -> 29550.51254 | E36: Generation | F36: ='Authorized Rev Req'!$M44 -> 29550.51254 | G36: ='Authorized Rev Req'!$K44 -> 29550.51254 | H36: =G36 -> 29550.51254 | I36: 29550.51254 | J36: 29550.51254 | K36: Existing
A37: Emergency Reliability UOS | C37: =VLOOKUP(A37,'Authorized Rev Req'!B$7:$O$96,14,FALSE) -> Advice 5421-E; Advice 5120-E; Advice 5142-E; Advice 5407-E | D37: ='Authorized Rev Req'!$M45 -> 79159.14371 | E37: Distribution | F37: ='Authorized Rev Req'!$M45 -> 79159.14371 | G37: ='Authorized Rev Req'!$K45 -> 79159.14371 | H37: 79159.14371 | I37: 79159.14371 | J37: 79159.14371 | K37: Existing
A38: 2021 GRC Track 2 O&M (36-Month Amortization) | C38: =VLOOKUP(A38,'Authorized Rev Req'!B$7:$O$96,14,FALSE) -> D.21-01-012; Advice 4658-E/E-A | D38: ='Authorized Rev Req'!$M47 -> 0 | E38: Distribution | F38: ='Authorized Rev Req'!$M47 -> 0 | G38: 0 | H38: 0 | I38: 0 | J38: 0 | K38: Existing
A39: 2021 GRC Track 3 O&M (36-Month Amortization) | C39: =VLOOKUP(A39,'Authorized Rev Req'!B$7:$O$96,14,FALSE) -> D.22-06-032 | D39: ='Authorized Rev Req'!$M48 -> 135415.5795 | E39: Distribution | F39: 0 | G39: 0 | H39: 0 | I39: 0 | J39: 0 | K39: Existing
A40: VMBA Undercollection Threshold | C40: =VLOOKUP(A40,'Authorized Rev Req'!B$7:$O$96,14,FALSE) -> Advice 5245-E; Advice 5534-E | D40: ='Authorized Rev Req'!$M49 -> 34738.53028 | E40: Distribution | F40: 38022 | G40: 0 | H40: 0 | I40: 0 | J40: 0 | K40: Existing
A41: 2022 WMVM (55% Interm Rate Recovery) | C41: =VLOOKUP(A41,'Authorized Rev Req'!B$7:$O$96,14,FALSE) -> D.24-07-012 | D41: ='Authorized Rev Req'!$M53 -> 149902.8146 | E41: Distribution | F41: ='Authorized Rev Req'!$M53 -> 149902.8146 | G41: 0 | H41: 0 | I41: 0 | J41: 0 | K41: Existing
A42: 2020 Vegetation Management Z-Factor | C42: =VLOOKUP(A42,'Authorized Rev Req'!B$7:$O$96,14,FALSE) -> Resolution E-5287 | D42: 0 | E42: Distribution | F42: 0 | G42: 0 | H42: 0 | I42: 0 | J42: 0 | K42: Existing
A43: 2021 Wildfire Mitigation/Vegetation Management | C43: =VLOOKUP(A43,'Authorized Rev Req'!B$7:$O$96,14,FALSE) -> D.24-03-008 | D43: ='Authorized Rev Req'!$M52 -> 0 | E43: Distribution | F43: 0 | G43: 0 | H43: 0 | I43: 0 | J43: 0 | K43: Existing
A44: Mobilehome Master Meter Balancing Account | C44: =VLOOKUP(A44,'Authorized Rev Req'!B$7:$O$96,14,FALSE) -> D.15-10-037 | D44: ='Authorized Rev Req'!$M54 -> 23332.92938 | E44: Distribution | F44: ='Authorized Rev Req'!$M54 -> 23332.92938 | G44: 0 | H44: =G44 -> 0 | I44: 0 | J44: 0 | K44: Existing
A45: WRMBA Undercollection | C45: =VLOOKUP(A45,'Authorized Rev Req'!B$7:$O$96,14,FALSE) -> Advice 5267-E | D45: ='Authorized Rev Req'!$M50 -> 129014.0578 | E45: Distribution | F45: 0 | G45: 0 | H45: 0 | I45: 0 | J45: 0 | K45: Existing
A46: CEMA - 2020 Storms | C46: =VLOOKUP(A46,'Authorized Rev Req'!B$7:$O$96,14,FALSE) -> D.24-05-037 | D46: ='Authorized Rev Req'!$M57 -> 288149.1807 | E46: Distribution | F46: 0 | G46: 0 | H46: 0 | I46: 0 | J46: 0 | K46: Existing
A47: 2017 Thomas Fire - CEMA | C47: =VLOOKUP(A47,'Authorized Rev Req'!B$7:$O$96,14,FALSE) -> D.25-01-042 | D47: ='Authorized Rev Req'!M59 -> 34656.77936 | E47: Distribution | F47: ='Authorized Rev Req'!$M59 -> 34656.77936 | G47: ='Authorized Rev Req'!$K58 -> 0 | H47: 0 | I47: 0 | J47: 0 | K47: New
A48: Wildfire Self-Insurance Credit | C48: =VLOOKUP(A48,'Authorized Rev Req'!B$7:$O$96,14,FALSE) -> D.23-05-013 | D48: ='Authorized Rev Req'!$M60 -> 0 | E48: Distribution | F48: 0 | G48: 0 | H48: 0 | I48: 0 | J48: 0 | K48: Existing
A49: CSRP Track 1 | C49: =VLOOKUP(A49,'Authorized Rev Req'!B$7:$O$96,14,FALSE) -> D.22-09-015; Advice 4876-E | D49: ='Authorized Rev Req'!$M61 -> 0 | E49: Distribution | F49: ='Authorized Rev Req'!$M61 -> 0 | G49: ='Authorized Rev Req'!$K61 -> 0 | K49: Existing
A50: ='Authorized Rev Req'!$B$62 -> CSRP Track 2 | C50: =VLOOKUP(A50,'Authorized Rev Req'!B$7:$O$96,14,FALSE) -> D.23-03-019 | D50: 0 | E50: Distribution | F50: 0 | G50: 0 | H50: 0 | I50: 0 | J50: 0 | K50: Existing
A51: Diablo Canyon Extended Operations NBC | C51: =VLOOKUP(A51,'Authorized Rev Req'!B$7:$O$96,14,FALSE) -> D.24-12-033 | D51: ='Authorized Rev Req'!L63 -> 282858.6909 | E51: DCPP | F51: =D51 -> 282858.6909 | G51: =F51 -> 282858.6909 | H51: =G51 -> 282858.6909 | I51: =H51 -> 282858.6909 | J51: =I51 -> 282858.6909 | K51: Existing
A52: GSRP Recovery Bonds FRC #1 (AB 1054) | C52: =VLOOKUP(A52,'Authorized Rev Req'!B$7:$O$96,14,FALSE) -> D.20-11-007; Advice 4416-E | D52: ='Authorized Rev Req'!$M64 -> 19256.772 | E52: Securitization | F52: ='Authorized Rev Req'!$M64 -> 19256.772 | G52: ='Authorized Rev Req'!$K64 -> 19256.772 | H52: =G52 -> 19256.772 | I52: 19256.772 | J52: 19256.772 | K52: Existing
A53: 2021 GRC Tracks 1 and 2 Recovery Bonds FRC #2 (AB 1054) | C53: =VLOOKUP(A53,'Authorized Rev Req'!B$7:$O$96,14,FALSE) -> D.21-10-025; Advice 4717-E-A | D53: ='Authorized Rev Req'!$M65 -> 31732.126 | E53: Securitization | F53: ='Authorized Rev Req'!$M65 -> 31732.126 | G53: ='Authorized Rev Req'!$K65 -> 31732.126 | H53: 31732.126 | I53: 31732.126 | J53: 31732.126 | K53: Existing
A54: ='Authorized Rev Req'!$B$66 -> 2021 GRC Tracks 1 and 3 Recovery Bonds FRC #3 (AB 1054) | C54: =VLOOKUP(A54,'Authorized Rev Req'!B$7:$O$96,14,FALSE) -> D.23-02-023; Advice 5018-E | D54: ='Authorized Rev Req'!$M66 -> 55255.382 | E54: Securitization | F54: ='Authorized Rev Req'!$M66 -> 55255.382 | G54: ='Authorized Rev Req'!$K66 -> 55255.382 | H54: 55255.382 | I54: 55255.382 | J54: 55255.382 | K54: Existing
A56: Public Policy Proceedings
A57: Demand Response | C57: =VLOOKUP(A57,'Authorized Rev Req'!B$7:$O$96,14,FALSE) -> D.23-12-005; Advice 5421-E | D57: ='Authorized Rev Req'!$M70 -> 11.04213708 | E57: Generation | F57: ='Authorized Rev Req'!$M70 -> 11.04213708 | G57: ='Authorized Rev Req'!$K70 -> 11.04213708 | H57: =G57 -> 11.04213708 | I57: =H57 -> 11.04213708 | J57: =I57 -> 11.04213708 | K57: Existing
A58: Demand Response | C58: =VLOOKUP(A58,'Authorized Rev Req'!B$7:$O$96,14,FALSE) -> D.23-12-005; Advice 5421-E | D58: ='Authorized Rev Req'!$M71 -> 52035.59468 | E58: Distribution | F58: ='Authorized Rev Req'!$M71 -> 52035.59468 | G58: ='Authorized Rev Req'!$K71 -> 52035.59468 | H58: 51547 | I58: =H58 -> 51547 | J58: =I58 -> 51547 | K58: Existing
A59: Energy Efficiency (Inc. IDSM) | C59: =VLOOKUP(A59,'Authorized Rev Req'!B$7:$O$96,14,FALSE) -> D.23-08-005; Advice 5123-E; D.24-09-031 | D59: ='Authorized Rev Req'!$M72 -> 482807.0296 | E59: Public Purpose | F59: ='Authorized Rev Req'!$M72 -> 482807.0296 | G59: 483700 | H59: 482600 | I59: 482600 | J59: =I59 -> 482600 | K59: Existing
A60: Energy Efficiency Market Transformation | C60: =VLOOKUP(A60,'Authorized Rev Req'!B$7:$O$96,14,FALSE) -> D.19-12-021 | D60: ='Authorized Rev Req'!$M77 -> 6441 | E60: Public Purpose | F60: ='Authorized Rev Req'!$M77 -> 6441 | G60: 16103 | H60: 16103 | I60: 16103 | J60: 16103 | K60: Existing
A61: 2020 RUBA Uncollectibles (36-Month Amortization) | C61: =VLOOKUP(A61,'Authorized Rev Req'!B$7:$O$96,14,FALSE) -> Advice 4658-E/E-A | D61: ='Authorized Rev Req'!$M78 -> 0 | E61: Public Purpose | F61: ='Authorized Rev Req'!$M78 -> 0 | G61: 0 | H61: 0 | I61: 0 | J61: 0 | K61: Existing | S61: Total w/Authorized and Pending
A62: Charge Ready Programs (Pilot, Bridge and Schools and Parks) | C62: =VLOOKUP(A62,'Authorized Rev Req'!B$7:$O$96,14,FALSE) -> Advice 5120-E; Advice 5141-E; Advice 5407-E | D62: ='Authorized Rev Req'!$M80 -> 76686.14532 | E62: Distribution | F62: ='Authorized Rev Req'!$M80 -> 76686.14532 | G62: ='Authorized Rev Req'!$K80 -> 76686.14532 | H62: =G62 -> 76686.14532 | I62: 76686.14532 | J62: 76686.14532 | K62: Existing | T62: =T9 -> 2025 | U62: =U9 -> 2026 | V62: =V9 -> 2027 | W62: =W9 -> 2028 | X62: =X9 -> 2029
A63: Transportation Electrification | C63: =VLOOKUP(A63,'Authorized Rev Req'!B$7:$O$96,14,FALSE) -> Advice 5120-E; Advice 5141-E; Advice 5407-E | D63: ='Authorized Rev Req'!$M81 -> 27307.65104 | E63: Distribution | F63: ='Authorized Rev Req'!$M81 -> 27307.65104 | G63: ='Authorized Rev Req'!$K81 -> 27307.65104 | H63: 27307.65104 | I63: 27307.65104 | J63: 27307.65104 | K63: Existing | S63: Generation | T63: =T10+SUMIFS(L$86:L$142,$Q$86:$Q$142,"Y",$E$86:$E$142,$S63) -> 5617383.115 | U63: =U10+SUMIFS(M$86:M$142,$Q$86:$Q$142,"Y",$E$86:$E$142,$S63) -> 5515892.142 | V63: =V10+SUMIFS(N$86:N$142,$Q$86:$Q$142,"Y",$E$86:$E$142,$S63) -> 5394077.142 | W63: =W10+SUMIFS(O$86:O$142,$Q$86:$Q$142,"Y",$E$86:$E$142,$S63) -> 5428194.142 | X63: =X10+SUMIFS(P$86:P$142,$Q$86:$Q$142,"Y",$E$86:$E$142,$S63) -> 5428194.142
A64: TE Funding Cycle 1 | C64: D.22-11-040; Advice 4954-E | D64: 0 | E64: Distribution | F64: 0 | G64: 0 | H64: 0 | I64: 0 | J64: 0 | K64: On hold | S64: New System Gen | T64: 603154.6967 | U64: 523827.6281 | V64: 547102.7165 | W64: 549170.7165 | X64: 549170.7165
A65: Low Income Programs (ESAP) | C65: D.22-11-040; Advice 4954-E | D65: ='Authorized Rev Req'!$M82 -> 92462.20343 | E65: Public Purpose | F65: ='Authorized Rev Req'!$M82 -> 92462.20343 | G65: 74799.329 | H65: 74799.329 | I65: 74799.329 | J65: 74799.329 | K65: Existing | S65: Distribution | T65: 11011831.42 | U65: 10588154.13 | V65: 11384431.18 | W65: 12166497.3 | X65: 12274228.3
A66: Low Income Programs (CARE/FERA Admin) | C66: D.22-11-040; Advice 4954-E | D66: ='Authorized Rev Req'!$M83 -> 10971.64941 | E66: Public Purpose | F66: ='Authorized Rev Req'!$M83 -> 10971.64941 | G66: =9276+1678 -> 10954 | H66: =9276+1678 -> 10954 | I66: 10954 | J66: 10954 | K66: Existing | S66: GHG Revenue | T66: -641623.9439 | U66: -528071.3443 | V66: -528071.3443 | W66: -528071.3443 | X66: -528071.3443
A67: EPIC - RD&D and Renewables | C67: D.22-11-040; Advice 4954-E | D67: ='Authorized Rev Req'!$M85 -> 76885.42974 | E67: Public Purpose | F67: ='Authorized Rev Req'!$M85 -> 76885.42974 | G67: ='Authorized Rev Req'!$K85 -> 76885.42974 | H67: =G67 -> 76885.42974 | I67: 76885.42974 | J67: 76885.42974 | K67: Existing | S67: MCAM | T67: 4709.193664 | U67: 2924.014651 | V67: 1322.460405 | W67: 1322.460405 | X67: 1322.460405
A68: Self-Generation Incentive Program (SGIP) | C68: D.22-11-040; Advice 4954-E | D68: ='Authorized Rev Req'!$M86 -> 0 | E68: Public Purpose | F68: ='Authorized Rev Req'!$M86 -> 0 | G68: ='Authorized Rev Req'!$K86 -> 0 | H68: 0 | I68: 0 | J68: 0 | K68: Existing | S68: Nuclear | T68: -915.4516419 | U68: 7.425020148 | V68: 7.425020148 | W68: 7.425020148 | X68: 7.425020148
S69: Public Purpose | T69: 992554.8866 | U69: 883346.2015 | V69: 695595.0711 | W69: 695396.0711 | X69: 695396.0711
A70: Non-CPUC Jurisdictional Proceedings | S70: DCPP | T70: 282858.6909 | U70: 125000 | V70: 125000 | W70: 125000 | X70: 125000
A71: Wildfire Fund Charge (AB1054) | C71: =VLOOKUP(A71,'Authorized Rev Req'!B$7:$O$96,14,FALSE) -> D.22-12-007 | D71: ='Authorized Rev Req'!$M91 -> 416803 | E71: DWR | F71: ='Authorized Rev Req'!$M91 -> 416803 | G71: ='Authorized Rev Req'!$M91 -> 416803 | H71: =G71 -> 416803 | I71: 416803 | J71: 416803 | K71: Existing | S71: DWR | T71: 416803 | U71: 416803 | V71: 416803 | W71: 416803 | X71: 416803
A72: FERC Base Transmission | C72: =VLOOKUP(A72,'Authorized Rev Req'!B$7:$O$96,14,FALSE) -> ER25-550; Advice 5449-E | D72: ='Authorized Rev Req'!$M92 -> 1344347 | E72: FERC | F72: ='Authorized Rev Req'!$M92 -> 1344347 | G72: ='Authorized Rev Req'!$M92 -> 1344347 | H72: 1344347 | I72: 1344347 | J72: 1344347 | K72: Existing | S72: FERC | T72: 1344347 | U72: 1344347 | V72: 1344347 | W72: 1344347 | X72: 1344347
A73: TRBAA (BA) | C73: =VLOOKUP(A73,'Authorized Rev Req'!B$7:$O$96,14,FALSE) -> ER25-267; Advice 5449-E | D73: ='Authorized Rev Req'!$M93 -> -214482 | E73: TOTCA | F73: ='Authorized Rev Req'!$M93 -> -214482 | G73: ='Authorized Rev Req'!$M93 -> -214482 | H73: -214482 | I73: -214482 | J73: -214482 | K73: Existing | S73: TOTCA | T73: -2752.745 | U73: -2752.745 | V73: -2752.745 | W73: -2752.745 | X73: -2752.745
A74: RSBAA (BA) | C74: =VLOOKUP(A74,'Authorized Rev Req'!B$7:$O$96,14,FALSE) -> ER25-305; Advice 5449-E | D74: ='Authorized Rev Req'!$M94 -> 8496 | E74: TOTCA | F74: ='Authorized Rev Req'!$M94 -> 8496 | G74: ='Authorized Rev Req'!$M94 -> 8496 | H74: 8496 | I74: 8496 | J74: 8496 | K74: Existing | S74: Securitization | T74: 106244.28 | U74: 250910.28 | V74: 617910.28 | W74: 617910.28 | X74: 617910.28
A75: TACBAA (BA) | C75: =VLOOKUP(A75,'Authorized Rev Req'!B$7:$O$96,14,FALSE) -> ER25-1770-000 | D75: ='Authorized Rev Req'!$M95 -> 203233.255 | E75: TOTCA | F75: ='Authorized Rev Req'!$M95 -> 203233.255 | G75: ='Authorized Rev Req'!$M95 -> 203233.255 | H75: 203233.255 | I75: 203233.255 | J75: 203233.255 | K75: Existing | S75: PUCRF | T75: 63307.71418 | U75: 63307.71418 | V75: 63307.71418 | W75: 63307.71418 | X75: 63307.71418
A76: Total Approved, Implemented Since Jan 1 or To Be Implemented | D76: =SUM(D10:D75) -> 17047779.16 | F76: =SUM(F10:F75) -> 17249213.64 | G76: =SUM(G10:G75) -> 15695781.35 | H76: =SUM(H10:H75) -> 15524192.75 | I76: =SUM(I10:I75) -> 15524192.75 | J76: =SUM(J10:J75) -> 15524192.75 | S76: Total | T76: =SUM(T63:T75) -> 19797901.86 | U76: 19183695.44 | V76: 20059079.9 | W76: 20877132.02 | X76: 20984863.02
A77: PUCRF | D77: ='Authorized Rev Req'!L97 -> 63307.71418 | E77: PUCRF | F77: =D77 -> 63307.71418 | G77: ='Authorized Rev Req'!K97 -> 63307.71418 | H77: =G77 -> 63307.71418 | I77: =H77 -> 63307.71418 | J77: =I77 -> 63307.71418 | S77: Increase over current | T77: =T76-T23 -> 2485380.506 | U77: =U76-U23 -> 3424606.381 | V77: =V76-V23 -> 4471579.43 | W77: =W76-W23 -> 5289631.557 | X77: =X76-X23 -> 5397362.557
D78: =SUM(D76:D77) -> 17111086.88 | E78: w/PUCRF | F78: =SUM(F76:F77) -> 17312521.35 | G78: =SUM(G76:G77) -> 15759089.06 | H78: =SUM(H76:H77) -> 15587500.47 | I78: =SUM(I76:I77) -> 15587500.47 | J78: =SUM(J76:J77) -> 15587500.47
D79: =-'Authorized Rev Req'!M98+D78 -> 0 | S79: Check | T79: =T77-L130 -> -5.12227416e-09 | U79: =U77-M130 -> -4.190951586e-09 | V79: =V77-N130 -> 0 | W79: =W77-O130 -> 0 | X79: =X77-P130 -> 0
A83: Pending Application(s), Not Yet Approved
A84: Filing Description | B84: Proceeding | C84: Basis for Revenue Requirement | D84: Proposed Revenue Requirement ($000) | E84: Proposed Revenue Recovery Mechanism | F84: =F8 -> 2025 | G84: =F84+1 -> 2026 | H84: =G84+1 -> 2027 | I84: 2028 | J84: 2029 | K84: Existing or New Item (if existing, use delta from prior for rate impact) | L84: =F84 -> 2025 | M84: =G84 -> 2026 | N84: 2027 | O84: 2028 | P84: 2029
A85: Safety Affordability Reliability Proceedings | Q85: Include in Impact
A86: 2025 GRC | B86: A.23-05-010 | C86: Filed Application | D86: =F86 -> 966131 | E86: Generation | F86: 966131 | G86: 1001811 | H86: 1036622 | I86: 1070739 | J86: =I86 -> 1070739 | K86: Existing | L86: =F86-F10 -> 205503.4247 | M86: 241183.4247 | N86: =H86-H10 -> 275994.4247 | O86: 310111.4247 | P86: 310111.4247 | Q86: =VLOOKUP('Incremental Rev Req'!A86,Summary!$B$8:$D$28,3,FALSE) -> Y
A87: 2025 GRC | B87: A.23-05-010 | C87: Filed Application | D87: =F87 -> 67664 | E87: New System Gen | F87: 67664 | G87: 68932 | H87: 71348 | I87: 73416 | J87: =I87 -> 73416 | K87: Existing | L87: 5711.656224 | M87: 6979.656224 | N87: 9395.656224 | O87: 11463.65622 | P87: 11463.65622 | Q87: =Q86 -> Y
A88: 2025 GRC (Inc. One Time Recoveries) | B88: A.23-05-010 | C88: Filed Application | D88: =F88 -> 9450811.294 | E88: Distribution | F88: 9450811.294 | G88: 9957503.701 | H88: 10657832.35 | I88: 11343355.47 | J88: 11343355.47 | K88: Existing | L88: 1795512.805 | M88: 2302205.212 | N88: 3002533.857 | O88: 3688056.984 | P88: 3688056.984 | Q88: =Q87 -> Y
A89: 2026 ERRA Forecast F&PP | B89: A.25-05-008 | C89: Filed Application | D89: =G89 -> 4305705.588 | E89: Generation | F89: 0 | G89: 4305705.588 | H89: =G89 -> 4305705.588 | I89: =H89 -> 4305705.588 | J89: =H89 -> 4305705.588 | K89: Existing | L89: 0 | M89: =G89-G19 -> 217350.9189 | N89: =H89-H19 -> 217350.9189 | O89: 217350.9189 | P89: 217350.9189 | Q89: =Q92 -> Y
A90: 2026 ERRA Forecast F&PP | B90: A.25-05-008 | C90: Filed Application | D90: =G90 -> 473357.7165 | E90: New System Gen | F90: 0 | G90: 473357.7165 | H90: =G90 -> 473357.7165 | I90: =H90 -> 473357.7165 | J90: =H90 -> 473357.7165 | K90: Existing | L90: 0 | M90: =G90-G20 -> 15890.97745 | N90: 15890.97745 | O90: 15890.97745 | P90: 15890.97745 | Q90: =Q89 -> Y
A91: 2026 ERRA Forecast (BA) | B91: A.25-05-008 | C91: Filed Application | D91: -20859.08845 | E91: New System Gen | F91: 0 | G91: -20859.08845 | H91: 0 | I91: 0 | J91: 0 | K91: Existing | L91: 0 | M91: -20859.08845 | N91: 0 | O91: 0 | P91: 0 | Q91: Y
A92: 2026 ERRA Forecast | B92: A.25-05-008 | C92: Filed Application | D92: -528071.3443 | E92: GHG Revenue | F92: 0 | G92: -528071.3443 | H92: =G92 -> -528071.3443 | I92: -528071.3443 | J92: -528071.3443 | K92: Existing | L92: 0 | M92: 113552.5996 | N92: 113552.5996 | O92: 113552.5996 | P92: 113552.5996 | Q92: =VLOOKUP('Incremental Rev Req'!A92,Summary!$B$8:$D$28,3,FALSE) -> Y
A93: 2026 ERRA Forecast | B93: A.25-05-008 | C93: Filed Application | D93: 7.425020148 | E93: Nuclear | F93: 0 | G93: 7.425020148 | H93: =G93 -> 7.425020148 | I93: 7.425020148 | J93: 7.425020148 | K93: Existing | L93: 0 | M93: -5149.754002 | N93: -5149.754002 | O93: -5149.754002 | P93: -5149.754002 | Q93: Y
A94: 2026 ERRA Forecast | B94: A.25-05-008 | C94: Filed Application | D94: -18970.52844 | E94: Distribution | F94: 0 | G94: -18970.52844 | H94: =G94 -> -18970.52844 | I94: -18970.52844 | J94: -18970.52844 | K94: Existing | L94: 0 | M94: 198.85815 | N94: 198.85815 | O94: 198.85815 | P94: 198.85815 | Q94: Y
A95: 2026 ERRA Forecast | B95: A.25-05-008 | C95: Filed Application | D95: 27912.17725 | E95: Public Purpose | F95: 0 | G95: 27912.17725 | H95: =G95 -> 27912.17725 | I95: 27912.17725 | J95: 27912.17725 | K95: Existing | L95: 0 | M95: 25567.67755 | N95: 25567.67755 | O95: 25567.67755 | P95: 25567.67755 | Q95: Y
A96: 2026 ERRA Forecast | B96: A.25-05-008 | C96: Filed Application | D96: 1322.460405 | E96: MCAM | F96: 0 | G96: 1322.460405 | H96: =G96 -> 1322.460405 | I96: 1322.460405 | J96: 1322.460405 | K96: Existing | L96: 0 | M96: =G96-G26 -> -235.5395952 | N96: =H96-H26 -> -235.5395952 | O96: -235.5395952 | P96: -235.5395952 | Q96: Y
A97: 2026 ERRA Forecast | B97: A.25-05-008 | C97: Filed Application | D97: 1601.554246 | E97: MCAM | F97: 0 | G97: 1601.554246 | H97: 0 | I97: 0 | J97: 0 | K97: Existing | L97: 0 | M97: =G97 -> 1601.554246 | N97: =H97 -> 0 | O97: 0 | P97: 0 | Q97: Y
A98: 2026 ERRA Forecast (BA) | B98: A.25-05-008 | C98: Filed Application | D98: 5952.130378 | E98: Public Purpose | F98: 0 | G98: 5952.130378 | H98: 0 | I98: 0 | J98: 0 | K98: Existing | L98: 0 | M98: =G98-G27 -> 5952.130378 | N98: =H98-H27 -> 0 | O98: 0 | P98: 0 | Q98: Y
A99: 2026 ERRA/PABA (BA) | B99: A.25-05-008 | C99: Filed Application | D99: 131026 | E99: Generation | F99: 0 | G99: 131026 | H99: 0 | I99: 0 | J99: 0 | K99: Existing | L99: 0 | M99: =G99-G28 -> 131320 | N99: 294 | O99: 294 | P99: 294 | Q99: Y
A100: DAC-GT/CSGT Clean Energy Programs | B100: A.25-05-008 | C100: Filed Application | D100: 6142.135157 | E100: Public Purpose | F100: 0 | G100: 6142.135157 | H100: =G100 -> 6142.135157 | I100: 6142.135157 | J100: 6142.135157 | K100: Existing | L100: 0 | M100: 3145.444765 | N100: 3145.444765 | O100: 3145.444765 | P100: 3145.444765 | Q100: Y
A101: WMCE | B101: A.24-04-005 | C101: Filed Application | D101: =F101 -> 326337 | E101: Distribution | F101: 326337 | G101: 0 | H101: 0 | I101: 0 | J101: 0 | K101: New | L101: =F101 -> 326337 | M101: =G101 -> 0 | N101: =H101 -> 0 | O101: =I101 -> 0 | P101: =J101 -> 0 | Q101: =VLOOKUP('Incremental Rev Req'!A101,Summary!$B$8:$D$28,3,FALSE) -> Y
A102: 2021 ERRA Review | B102: A.22-04-001 | C102: Filed Application | D102: =F102 -> 25706 | E102: Distribution | F102: 25706 | G102: 0 | H102: 0 | I102: 0 | J102: 0 | K102: New | L102: 25706 | M102: 0 | N102: 0 | O102: 0 | P102: 0 | Q102: =VLOOKUP('Incremental Rev Req'!A102,Summary!$B$8:$D$28,3,FALSE) -> Y
A103: 2022 ERRA Review | B103: A.23-04-003 | C103: Filed Application | D103: =G103 -> 50640 | E103: Distribution | F103: 0 | G103: 50640 | H103: 0 | I103: 0 | J103: 0 | K103: New | L103: 0 | M103: 50640 | N103: 0 | O103: 0 | P103: 0 | Q103: =VLOOKUP('Incremental Rev Req'!A103,Summary!$B$8:$D$28,3,FALSE) -> Y
A104: 2022 ERRA Review | B104: A.23-04-003 | C104: Filed Application | D104: =G104 -> 234 | E104: Public Purpose | F104: 0 | G104: 234 | H104: 0 | I104: 0 | J104: 0 | K104: New | L104: 0 | M104: 234 | N104: 0 | O104: 0 | P104: 0 | Q104: =VLOOKUP('Incremental Rev Req'!A104,Summary!$B$8:$D$28,3,FALSE) -> Y
A105: 2023 ERRA Review | B105: A.24-04-001 | C105: Filed Application | D105: -73859 | E105: Distribution | F105: 0 | G105: -73859 | H105: 0 | I105: 0 | J105: 0 | K105: New | L105: 0 | M105: -73859 | N105: 0 | O105: 0 | P105: 0 | Q105: =VLOOKUP('Incremental Rev Req'!A105,Summary!$B$8:$D$28,3,FALSE) -> Y
A106: 2023 ERRA Review | B106: A.24-04-001 | C106: Filed Application | D106: 10664 | E106: Public Purpose | F106: 0 | G106: 10664 | H106: 0 | I106: 0 | J106: 0 | K106: New | L106: 0 | M106: 10664 | N106: 0 | O106: 0 | P106: 0 | Q106: =VLOOKUP('Incremental Rev Req'!A106,Summary!$B$8:$D$28,3,FALSE) -> Y
A107: 2024 ERRA Review | B107: A.25-04-004 | C107: Filed Application | D107: =H107 -> 3793 | E107: Distribution | F107: 0 | G107: 0 | H107: 3793 | K107: New | L107: 0 | M107: 0 | N107: =H107 -> 3793 | O107: 0 | P107: 0 | Q107: =VLOOKUP('Incremental Rev Req'!A107,Summary!$B$8:$D$28,3,FALSE) -> Y
A108: 2024 ERRA Review | B108: A.25-04-004 | C108: Filed Application | D108: =H108 -> 199 | E108: Public Purpose | F108: 0 | G108: 0 | H108: 199 | K108: New | L108: 0 | M108: 0 | N108: =H108 -> 199 | O108: 0 | P108: 0 | Q108: =VLOOKUP('Incremental Rev Req'!A108,Summary!$B$8:$D$28,3,FALSE) -> Y
A109: 2022 WM/VM (Non-IRR Portion) | B109: A.23-10-001 | C109: Filed Application | D109: 173752 | E109: Distribution | F109: 173752 | G109: 0 | H109: 0 | I109: 0 | J109: 0 | K109: New | L109: 173752 | M109: 0 | N109: 0 | O109: 0 | P109: 0 | Q109: =VLOOKUP('Incremental Rev Req'!A109,Summary!$B$8:$D$28,3,FALSE) -> Y
A110: Section 851 - Sale of GO 5 Property | B110: A.24-08-003 | C110: Filed Application | D110: 29400 | E110: Distribution | F110: 29400 | G110: 0 | H110: 0 | I110: 0 | J110: 0 | K110: New | L110: 29400 | M110: 0 | N110: 0 | O110: 0 | P110: 0 | Q110: =VLOOKUP('Incremental Rev Req'!A110,Summary!$B$8:$D$28,3,FALSE) -> Y
A111: Section 851 - Sale of Hydroelectric San Bernardino | B111: A.24-08-012 | C111: Filed Application | D111: 60300 | E111: Generation | F111: 60300 | G111: 0 | H111: 0 | I111: 0 | J111: 0 | K111: New | L111: 60300 | M111: 0 | N111: 0 | O111: 0 | P111: 0 | Q111: =VLOOKUP('Incremental Rev Req'!A111,Summary!$B$8:$D$28,3,FALSE) -> Y
A112: Section 851 - Sale of Hydroelectric Fontana Union Water | B112: A.24-09-008 | C112: Filed Application | D112: 9500 | E112: Generation | F112: 9500 | G112: 0 | H112: 0 | I112: 0 | J112: 0 | K112: New | L112: 9500 | M112: 0 | N112: 0 | O112: 0 | P112: 0 | Q112: =VLOOKUP('Incremental Rev Req'!A112,Summary!$B$8:$D$28,3,FALSE) -> Y
A113: Thomas Fire WEMA FRC | B113: A.25-04-021 | C113: Filed Application | D113: =G113 -> 144666 | E113: Securitization | F113: 0 | G113: 144666 | H113: =G113 -> 144666 | I113: =H113 -> 144666 | J113: =I113 -> 144666 | K113: New | L113: =F113 -> 0 | M113: 144666 | N113: =H113 -> 144666 | O113: =H113 -> 144666 | P113: =I113 -> 144666 | Q113: =VLOOKUP('Incremental Rev Req'!A113,Summary!$B$8:$D$28,3,FALSE) -> Y
A114: Woolsey CEMA | B114: A.24-10-002 | C114: Filed Application | D114: =H114 -> 52967 | E114: Distribution | F114: 0 | G114: 0 | H114: 52967 | I114: 0 | J114: 0 | K114: New | L114: =F114 -> 0 | M114: =G114 -> 0 | N114: =H114 -> 52967 | O114: =I114 -> 0 | P114: =J114 -> 0 | Q114: =VLOOKUP('Incremental Rev Req'!A114,Summary!$B$8:$D$28,3,FALSE) -> Y
A115: Woolsey WEMA FRC | B115: A.24-10-002 | C115: Filed Application | D115: =I115 -> 367000 | E115: Securitization | F115: 0 | G115: 0 | H115: 367000 | I115: 367000 | J115: =I115 -> 367000 | K115: New | L115: 0 | M115: =G115 -> 0 | N115: =H115 -> 367000 | O115: =I115 -> 367000 | P115: =J115 -> 367000 | Q115: =VLOOKUP('Incremental Rev Req'!A115,Summary!$B$8:$D$28,3,FALSE) -> Y
A116: Section 851 - Sale of Irwindale Business Center | B116: A.24-12-010 | C116: Filed Application | D116: =F116 -> 2500 | E116: Distribution | F116: 2500 | G116: 0 | H116: 0 | I116: 0 | J116: 0 | K116: New | L116: 2500 | M116: =G116 -> 0 | N116: =H116 -> 0 | O116: =I116 -> 0 | P116: =J116 -> 0 | Q116: =VLOOKUP('Incremental Rev Req'!A116,Summary!$B$8:$D$28,3,FALSE) -> Y
A117: Section 851 - Sale of Hydroelectric TULE | B117: A.25-03-001 | C117: Filed Application | D117: =G117 -> 31100 | E117: Generation | F117: 0 | G117: 31100 | H117: 0 | I117: 0 | J117: 0 | K117: New | L117: 0 | M117: =G117 -> 31100 | N117: =H117 -> 0 | O117: =I117 -> 0 | P117: =J117 -> 0 | Q117: =VLOOKUP('Incremental Rev Req'!A117,Summary!$B$8:$D$28,3,FALSE) -> Y
A118: CEMA Insurance Reimbursement | B118: Advice 5495-E | C118: Filed Advice Letter | D118: =F118 -> -16245 | E118: Distribution | F118: -16245 | G118: 0 | H118: 0 | I118: 0 | J118: 0 | K118: New | L118: -16245 | M118: 0 | N118: 0 | O118: 0 | P118: 0 | Q118: =VLOOKUP('Incremental Rev Req'!A118,Summary!$B$8:$D$28,3,FALSE) -> Y
A119: 2026 Cost of Capital | B119: A.25-03-012 | C119: Filed Application | D119: =G119 -> 22188 | E119: Generation | F119: 0 | G119: 22188 | H119: =G119 -> 22188 | I119: =H119 -> 22188 | J119: =I119 -> 22188 | K119: New | L119: =F119 -> 0 | M119: 22188 | N119: 22188 | O119: 22188 | P119: 22188 | Q119: =VLOOKUP('Incremental Rev Req'!A119,Summary!$B$8:$D$28,3,FALSE) -> Y
A120: 2026 Cost of Capital | B120: A.25-03-012 | C120: Filed Application | D120: 2397 | E120: New System Gen | F120: 0 | G120: 2397 | H120: =G120 -> 2397 | I120: =H120 -> 2397 | J120: =I120 -> 2397 | K120: New | L120: 0 | M120: 2397 | N120: 2397 | O120: 2397 | P120: 2397 | Q120: =VLOOKUP('Incremental Rev Req'!A120,Summary!$B$8:$D$28,3,FALSE) -> Y
A121: 2026 Cost of Capital | B121: A.25-03-012 | C121: Filed Application | D121: 356994 | E121: Distribution | F121: 0 | G121: 356994 | H121: =G121 -> 356994 | I121: =H121 -> 356994 | J121: 356994 | K121: New | L121: 0 | M121: 356994 | N121: 356994 | O121: 356994 | P121: 356994 | Q121: =VLOOKUP('Incremental Rev Req'!A121,Summary!$B$8:$D$28,3,FALSE) -> Y
A122: NextGen | B122: A.25-03-009 | C122: Filed Application | D122: 4237 | E122: Distribution | F122: 0 | G122: 4237 | H122: 20695 | I122: 173998 | J122: 281729 | K122: New | L122: 0 | M122: 4237 | N122: 20695 | O122: 173998 | P122: 281729 | Q122: =VLOOKUP('Incremental Rev Req'!A122,Summary!$B$8:$D$28,3,FALSE) -> Y
A123: Diablo Canyon Extended Operations NBC | B123: A.25-03-015 | C123: Filed Application | D123: =G123 -> 125000 | E123: DCPP | F123: 0 | G123: 125000 | H123: =G123 -> 125000 | I123: =H123 -> 125000 | J123: =I123 -> 125000 | K123: Existing | L123: 0 | M123: =G123-G51 -> -157858.6909 | N123: =H123-H51 -> -157858.6909 | O123: -157858.6909 | P123: -157858.6909 | Q123: =VLOOKUP('Incremental Rev Req'!A123,Summary!$B$8:$D$28,3,FALSE) -> Y
A124: 2023/2024 TAMA Balance | B124: Advice 5515-E | C124: Filed Advice Letter | D124: =G124 -> -5500 | E124: Generation | F124: 0 | G124: -5500 | H124: 0 | I124: =H124 -> 0 | J124: =I124 -> 0 | K124: New | L124: 0 | M124: =G124-G15 -> -5500 | N124: 0 | O124: 0 | P124: 0 | Q124: =VLOOKUP('Incremental Rev Req'!A124,Summary!$B$8:$D$28,3,FALSE) -> Y
A125: 2023/2024 TAMA Balance | B125: Advice 5515-E | C125: Filed Advice Letter | D125: =F125 -> -35400 | E125: Distribution | F125: -35400 | G125: 0 | H125: 0 | I125: 0 | J125: 0 | K125: New | L125: =F125-F16 -> -132597.3804 | M125: 0 | N125: 0 | O125: 0 | P125: 0 | Q125: =VLOOKUP('Incremental Rev Req'!A125,Summary!$B$8:$D$28,3,FALSE) -> Y
A126: Public Policy Proceedings
A128: Non-CPUC Jurisdictional Proceedings
A130: Total Pending, Filed but not Approved | D130: =SUM(D86:D129) -> 16538302.52 | F130: =SUM(F86:F129) -> 11060456.29 | G130: =SUM(G86:G129) -> 16082133.93 | H130: =SUM(H86:H129) -> 17129106.98 | I130: =SUM(I86:I129) -> 17947159.1 | J130: =SUM(J86:J129) -> 18054890.1 | L130: =SUM(L86:L129) -> 2485380.506 | M130: =SUM(M86:M129) -> 3424606.381 | N130: =SUM(N86:N129) -> 4471579.43 | O130: =SUM(O86:O129) -> 5289631.557 | P130: =SUM(P86:P129) -> 5397362.557
L131: =L130+F78 -> 19797901.86 | M131: =M130+G78 -> 19183695.44 | N131: =N130+H78 -> 20059079.9 | O131: =O130+I78 -> 20877132.02 | P131: =P130+J78 -> 20984863.02
A134: Applications Projected to be Filed, Next 12 Months*
A135: Filing Description | B135: Estimated Filing Date | C135: Filing Basis | D135: Proposed Revenue Requirement ($000) | E135: Proposed Revenue Recovery Mechanism | F135: =F84 -> 2025 | G135: =F135+1 -> 2026 | H135: =G135+1 -> 2027 | I135: =H135+1 -> 2028 | J135: =I135+1 -> 2029 | K135: Existing or New Item (if existing, use delta from prior for rate impact)
A136: Safety Affordability Reliability Proceedings
A138: Public Policy Proceedings
A141: Non-CPUC Jurisdictional Proceedings | F141: =SUM(F136:F140) -> 0 | G141: =SUM(G136:G140) -> 0 | H141: =SUM(H136:H140) -> 0 | I141: =SUM(I136:I140) -> 0 | J141: =SUM(J136:J140) -> 0 | L141: =SUM(L136:L140) -> 0 | M141: 0 | N141: =SUM(N136:N140) -> 0 | O141: 0 | P141: 0
A143: * All amounts in this Projected section are estimates and subject to change. SCE provides this data in an effort to be as helpful and transparent as possible to further the Commission's efforts to understand the impact all pending rate increases.
A146: *Did not include 2024 VMWM

Sheet SAR and AR (GS1) (hidden)
B1: CONFIDENTIAL This Excel Sheet Is Marked Confidential In Accordance With Applicable Law and Regulation. Basis for Confidentiality In Accompanying Confidentiality Declaration. Public Disclosure Restricted.
C2: Total Revenue ($000)
C3: Authorized | D3: w/ Pending
B4: Generation | C4: =INDEX('Incremental Rev Req'!$S$9:$X$22,MATCH(B4,'Incremental Rev Req'!$S$9:$S$22,0),MATCH(Summary!$D$3,'Incremental Rev Req'!$S$9:$X$9,0)) -> 5342079.691 | D4: =INDEX('Incremental Rev Req'!$S$62:$X$75,MATCH(B4,'Incremental Rev Req'!$S$62:$S$75,0),MATCH(Summary!$D$3,'Incremental Rev Req'!$S$62:$X$62,0)) -> 5617383.115 | G4: Allocation
B5: Distribution | C5: =INDEX('Incremental Rev Req'!$S$9:$X$22,MATCH(B5,'Incremental Rev Req'!$S$9:$S$22,0),MATCH(Summary!$D$3,'Incremental Rev Req'!$S$9:$X$9,0)) -> 8807465.995 | D5: =INDEX('Incremental Rev Req'!$S$62:$X$75,MATCH(B5,'Incremental Rev Req'!$S$62:$S$75,0),MATCH(Summary!$D$3,'Incremental Rev Req'!$S$62:$X$62,0)) -> 11011831.42 | G5: Generation | H5: Distribution | I5: NDC | J5: PPPC | K5: DCPP | L5: NSGC | M5: Transmission | N5: TOTCA | O5: GHG Rev | P5: DWRBC | Q5: PUCRF | R5: SECURITIZATION
B6: Nuclear | C6: =INDEX('Incremental Rev Req'!$S$9:$X$22,MATCH(B6,'Incremental Rev Req'!$S$9:$S$22,0),MATCH(Summary!$D$3,'Incremental Rev Req'!$S$9:$X$9,0)) -> -915.4516419 | D6: =INDEX('Incremental Rev Req'!$S$62:$X$75,MATCH(B6,'Incremental Rev Req'!$S$62:$S$75,0),MATCH(Summary!$D$3,'Incremental Rev Req'!$S$62:$X$62,0)) -> -915.4516419 | F6: GS-1 | G6: =VLOOKUP(Summary!$D$3,'SAR and AR (GS1)'!$F$37:$R$42,'SAR and AR (GS1)'!G$35,FALSE) -> 0.08563404308 | H6: =VLOOKUP(Summary!$D$3,'SAR and AR (GS1)'!$F$37:$R$42,'SAR and AR (GS1)'!H$35,FALSE) -> 0.06795318426 | I6: =VLOOKUP(Summary!$D$3,'SAR and AR (GS1)'!$F$37:$R$42,'SAR and AR (GS1)'!I$35,FALSE) -> 0.06977236109 | J6: =VLOOKUP(Summary!$D$3,'SAR and AR (GS1)'!$F$37:$R$42,'SAR and AR (GS1)'!J$35,FALSE) -> 0.07080918219 | K6: =VLOOKUP(Summary!$D$3,'SAR and AR (GS1)'!$F$37:$R$42,'SAR and AR (GS1)'!K$35,FALSE) -> 0.07045250454 | L6: =VLOOKUP(Summary!$D$3,'SAR and AR (GS1)'!$F$37:$R$42,'SAR and AR (GS1)'!L$35,FALSE) -> 0.07024021054 | M6: =VLOOKUP(Summary!$D$3,'SAR and AR (GS1)'!$F$37:$R$42,'SAR and AR (GS1)'!M$35,FALSE) -> 0.06906624045 | N6: =VLOOKUP(Summary!$D$3,'SAR and AR (GS1)'!$F$37:$R$42,'SAR and AR (GS1)'!N$35,FALSE) -> 0.07029066199 | O6: =VLOOKUP(Summary!$D$3,'SAR and AR (GS1)'!$F$37:$R$42,'SAR and AR (GS1)'!O$35,FALSE) -> 0.08033362562 | P6: =VLOOKUP(Summary!$D$3,'SAR and AR (GS1)'!$F$37:$R$42,'SAR and AR (GS1)'!P$35,FALSE) -> 0.07801292567 | Q6: =VLOOKUP(Summary!$D$3,'SAR and AR (GS1)'!$F$37:$R$42,'SAR and AR (GS1)'!Q$35,FALSE) -> 0.06977236027 | R6: =VLOOKUP(Summary!$D$3,'SAR and AR (GS1)'!$F$37:$R$42,'SAR and AR (GS1)'!R$35,FALSE) -> 0.08148651689
B7: Public Purpose | C7: =INDEX('Incremental Rev Req'!$S$9:$X$22,MATCH(B7,'Incremental Rev Req'!$S$9:$S$22,0),MATCH(Summary!$D$3,'Incremental Rev Req'!$S$9:$X$9,0)) -> 992554.8866 | D7: =INDEX('Incremental Rev Req'!$S$62:$X$75,MATCH(B7,'Incremental Rev Req'!$S$62:$S$75,0),MATCH(Summary!$D$3,'Incremental Rev Req'!$S$62:$X$62,0)) -> 992554.8866
B8: DCPP | C8: =INDEX('Incremental Rev Req'!$S$9:$X$22,MATCH(B8,'Incremental Rev Req'!$S$9:$S$22,0),MATCH(Summary!$D$3,'Incremental Rev Req'!$S$9:$X$9,0)) -> 282858.6909 | D8: =INDEX('Incremental Rev Req'!$S$62:$X$75,MATCH(B8,'Incremental Rev Req'!$S$62:$S$75,0),MATCH(Summary!$D$3,'Incremental Rev Req'!$S$62:$X$62,0)) -> 282858.6909 | G8: Revenue ($000) - System | X8: Authorized | Y8: w/Pending
B9: New System Gen | C9: =INDEX('Incremental Rev Req'!$S$9:$X$22,MATCH(B9,'Incremental Rev Req'!$S$9:$S$22,0),MATCH(Summary!$D$3,'Incremental Rev Req'!$S$9:$X$9,0)) -> 597443.0405 | D9: =INDEX('Incremental Rev Req'!$S$62:$X$75,MATCH(B9,'Incremental Rev Req'!$S$62:$S$75,0),MATCH(Summary!$D$3,'Incremental Rev Req'!$S$62:$X$62,0)) -> 603154.6967 | F9: Authorized | G9: Generation | H9: Distribution | I9: NDC | J9: PPPC | K9: DCPP | L9: NSGC | M9: Transmission | N9: TOTCA | O9: GHG Rev | P9: DWRBC | Q9: PUCRF | R9: SECURITIZATION | S9: Total | T9: CARE Adj. | W9: % of CARE Sales | X9: =VLOOKUP(Summary!$D$3,$F$58:$Q$63,$Q$35,FALSE) -> 0 | Y9: =X9 -> 0
B10: FERC | C10: =INDEX('Incremental Rev Req'!$S$9:$X$22,MATCH(B10,'Incremental Rev Req'!$S$9:$S$22,0),MATCH(Summary!$D$3,'Incremental Rev Req'!$S$9:$X$9,0)) -> 1344347 | D10: =INDEX('Incremental Rev Req'!$S$62:$X$75,MATCH(B10,'Incremental Rev Req'!$S$62:$S$75,0),MATCH(Summary!$D$3,'Incremental Rev Req'!$S$62:$X$62,0)) -> 1344347 | F10: GS-1 | G10: =G6*G11 -> 457463.8824 | H10: =H6*H11 -> 598495.3597 | I10: =I6*I11 -> -63.87322251 | J10: =J6*J11 -> 70281.9998 | K10: =K6*K11 -> 19928.1032 | L10: 41964.52495 | M10: 92848.99315 | N10: -193.4922683 | O10: -51543.9777 | P10: 32516.02146 | Q10: 4417.128642 | R10: =R6*R11 -> 8657.476316 | S10: =SUM(G10:R10) -> 1274772.146 | T10: =X14 -> 73919.35726 | W10: CARE Effective Discount | X10: ='SAR and RAR'!X10 -> 0.325 | Y10: =X10 -> 0.325
B11: TOTCA | C11: =INDEX('Incremental Rev Req'!$S$9:$X$22,MATCH(B11,'Incremental Rev Req'!$S$9:$S$22,0),MATCH(Summary!$D$3,'Incremental Rev Req'!$S$9:$X$9,0)) -> -2752.745 | D11: =INDEX('Incremental Rev Req'!$S$62:$X$75,MATCH(B11,'Incremental Rev Req'!$S$62:$S$75,0),MATCH(Summary!$D$3,'Incremental Rev Req'!$S$62:$X$62,0)) -> -2752.745 | F11: Total System | G11: =C4 -> 5342079.691 | H11: =C5 -> 8807465.995 | I11: =C6 -> -915.4516419 | J11: =C7 -> 992554.8866 | K11: =C8 -> 282858.6909 | L11: =C9 -> 597443.0405 | M11: =C10 -> 1344347 | N11: =C11 -> -2752.745 | O11: =C12 -> -641623.9439 | P11: =C14 -> 416803 | Q11: =C15 -> 63307.71418 | R11: =C16 -> 106244.28 | S11: =SUM(G11:R11) -> 17307812.16 | T11: 0 | W11: CARE Discounst | X11: ='SAR and RAR'!X11 -> 941762.0897 | Y11: ='SAR and RAR'!Y11 -> 1070103.204
B12: GHG Revenue | C12: =INDEX('Incremental Rev Req'!$S$9:$X$22,MATCH(B12,'Incremental Rev Req'!$S$9:$S$22,0),MATCH(Summary!$D$3,'Incremental Rev Req'!$S$9:$X$9,0)) -> -641623.9439 | D12: =INDEX('Incremental Rev Req'!$S$62:$X$75,MATCH(B12,'Incremental Rev Req'!$S$62:$S$75,0),MATCH(Summary!$D$3,'Incremental Rev Req'!$S$62:$X$62,0)) -> -641623.9439 | F12: w/Pending | W12: GS-1 Sales | X12: =VLOOKUP(Summary!$D$3,'SAR and AR (GS1)'!$F$58:$O$63,10,FALSE) -> 5521410.798 | Y12: =X12 -> 5521410.798
B13: MCAM | C13: =INDEX('Incremental Rev Req'!$S$9:$X$22,MATCH(B13,'Incremental Rev Req'!$S$9:$S$22,0),MATCH(Summary!$D$3,'Incremental Rev Req'!$S$9:$X$9,0)) -> 4709.193664 | D13: =INDEX('Incremental Rev Req'!$S$62:$X$75,MATCH(B13,'Incremental Rev Req'!$S$62:$S$75,0),MATCH(Summary!$D$3,'Incremental Rev Req'!$S$62:$X$62,0)) -> 4709.193664 | F13: GS-1 | G13: =G6*G14 -> 481039.2277 | H13: =H6*H14 -> 748289.0095 | I13: =I6*I14 -> -63.87322251 | J13: =J6*J14 -> 70281.9998 | K13: =K6*K14 -> 19928.1032 | L13: 42365.71288 | M13: 92848.99315 | N13: -193.4922683 | O13: -51543.9777 | P13: 32516.02146 | Q13: 4417.128642 | R13: =R6*R14 -> 8657.476316 | S13: =SUM(G13:R13) -> 1448542.33 | T13: =Y14 -> 83992.91275 | W13: Total Sales (excl. CARE&SL) | X13: =VLOOKUP(Summary!$D$3,'SAR and AR (GS1)'!$F$64:$O$69,2,FALSE) -> 70344975.44 | Y13: =X13 -> 70344975.44
B14: DWR | C14: =INDEX('Incremental Rev Req'!$S$9:$X$22,MATCH(B14,'Incremental Rev Req'!$S$9:$S$22,0),MATCH(Summary!$D$3,'Incremental Rev Req'!$S$9:$X$9,0)) -> 416803 | D14: =INDEX('Incremental Rev Req'!$S$62:$X$75,MATCH(B14,'Incremental Rev Req'!$S$62:$S$75,0),MATCH(Summary!$D$3,'Incremental Rev Req'!$S$62:$X$62,0)) -> 416803 | F14: Total System | G14: =D4 -> 5617383.115 | H14: =D5 -> 11011831.42 | I14: =D6 -> -915.4516419 | J14: =D7 -> 992554.8866 | K14: =D8 -> 282858.6909 | L14: =D9 -> 603154.6967 | M14: =D10 -> 1344347 | N14: =D11 -> -2752.745 | O14: =D12 -> -641623.9439 | P14: =D14 -> 416803 | Q14: =D15 -> 63307.71418 | R14: =D16 -> 106244.28 | S14: =SUM(G14:R14) -> 19793192.66 | T14: 0 | W14: GS-1 CARE Surcharge | X14: =X11*X12/X13 -> 73919.35726 | Y14: =Y11*Y12/Y13 -> 83992.91275
B15: PUCRF | C15: =INDEX('Incremental Rev Req'!$S$9:$X$22,MATCH(B15,'Incremental Rev Req'!$S$9:$S$22,0),MATCH(Summary!$D$3,'Incremental Rev Req'!$S$9:$X$9,0)) -> 63307.71418 | D15: =INDEX('Incremental Rev Req'!$S$62:$X$75,MATCH(B15,'Incremental Rev Req'!$S$62:$S$75,0),MATCH(Summary!$D$3,'Incremental Rev Req'!$S$62:$X$62,0)) -> 63307.71418 | W15: RES CARE Discount Specific Split | X15: ='SAR and RAR'!X15 -> 0.7501024974 | Y15: ='SAR and RAR'!Y15 -> 0.7501024974
B16: SECURITIZATION | C16: =INDEX('Incremental Rev Req'!$S$9:$X$22,MATCH(B16,'Incremental Rev Req'!$S$9:$S$22,0),MATCH(Summary!$D$3,'Incremental Rev Req'!$S$9:$X$9,0)) -> 106244.28 | D16: =INDEX('Incremental Rev Req'!$S$62:$X$75,MATCH(B16,'Incremental Rev Req'!$S$62:$S$75,0),MATCH(Summary!$D$3,'Incremental Rev Req'!$S$62:$X$62,0)) -> 106244.28 | S16: Authorized | T16: w/Pending | W16: CARE Surcharge Allocator | X16: ='SAR and RAR'!X16 -> 0.5892972907 | Y16: ='SAR and RAR'!Y16 -> 0.5892972907
B17: Total | C17: =SUM(C4:C16) -> 17312521.35 | D17: =SUM(D4:D16) -> 19797901.86 | G17: Revenue Split - Bundled | S17: Bundled Revenue | W17: System CARE Discount | X17: =SUM(-X11*X15)+SUM(X11*X16) -> -151440.2475 | Y17: =SUM(-Y11*Y15)+SUM(Y11*Y16) -> -172078.1669
G18: Generation | H18: Distribution | I18: NDC | J18: PPPC | K18: DCPP | L18: NSGC | M18: Transmission | N18: TOTCA | O18: GHG Rev | P18: DWRBC | Q18: PUCRF | R18: SECURITIZATION | S18: Total | T18: Total
F19: GS-1 | G19: =VLOOKUP(Summary!$D$3,'SAR and AR (GS1)'!$F$44:$R$49,'SAR and AR (GS1)'!G$35,FALSE) -> 1.036507134 | H19: =VLOOKUP(Summary!$D$3,'SAR and AR (GS1)'!$F$44:$R$49,'SAR and AR (GS1)'!H$35,FALSE) -> 0.7003502276 | I19: =VLOOKUP(Summary!$D$3,'SAR and AR (GS1)'!$F$44:$R$49,'SAR and AR (GS1)'!I$35,FALSE) -> 0.7021955024 | J19: =VLOOKUP(Summary!$D$3,'SAR and AR (GS1)'!$F$44:$R$49,'SAR and AR (GS1)'!J$35,FALSE) -> 0.7021955159 | K19: =VLOOKUP(Summary!$D$3,'SAR and AR (GS1)'!$F$44:$R$49,'SAR and AR (GS1)'!K$35,FALSE) -> 0.7021955158 | L19: =VLOOKUP(Summary!$D$3,'SAR and AR (GS1)'!$F$44:$R$49,'SAR and AR (GS1)'!L$35,FALSE) -> 0.7021955158 | M19: =VLOOKUP(Summary!$D$3,'SAR and AR (GS1)'!$F$44:$R$49,'SAR and AR (GS1)'!M$35,FALSE) -> 0.7021955158 | N19: =VLOOKUP(Summary!$D$3,'SAR and AR (GS1)'!$F$44:$R$49,'SAR and AR (GS1)'!N$35,FALSE) -> 0.7021955236 | O19: =VLOOKUP(Summary!$D$3,'SAR and AR (GS1)'!$F$44:$R$49,'SAR and AR (GS1)'!O$35,FALSE) -> 0.69314594 | P19: =VLOOKUP(Summary!$D$3,'SAR and AR (GS1)'!$F$44:$R$49,'SAR and AR (GS1)'!P$35,FALSE) -> 0.7021955159 | Q19: =VLOOKUP(Summary!$D$3,'SAR and AR (GS1)'!$F$44:$R$49,'SAR and AR (GS1)'!Q$35,FALSE) -> 0.7021955151 | R19: =VLOOKUP(Summary!$D$3,'SAR and AR (GS1)'!$F$44:$R$49,'SAR and AR (GS1)'!R$35,FALSE) -> 0.7021955155 | S19: =SUMPRODUCT(G10:R10,G19:R19)+T10*H19 -> 1099206.269 | T19: =SUMPRODUCT(G13:R13,G19:R19)+T13*H19 -> 1235887.029
F20: Total System | G20: =VLOOKUP(Summary!$D$3,'SAR and AR (GS1)'!$F$50:$R$55,'SAR and AR (GS1)'!G$35,FALSE) -> 1.048411398 | H20: =VLOOKUP(Summary!$D$3,'SAR and AR (GS1)'!$F$50:$R$55,'SAR and AR (GS1)'!H$35,FALSE) -> 0.6497133295 | I20: =VLOOKUP(Summary!$D$3,'SAR and AR (GS1)'!$F$50:$R$55,'SAR and AR (GS1)'!I$35,FALSE) -> 0.6283028798 | J20: =VLOOKUP(Summary!$D$3,'SAR and AR (GS1)'!$F$50:$R$55,'SAR and AR (GS1)'!J$35,FALSE) -> 0.6429155899 | K20: =VLOOKUP(Summary!$D$3,'SAR and AR (GS1)'!$F$50:$R$55,'SAR and AR (GS1)'!K$35,FALSE) -> 0.6409526177 | L20: =VLOOKUP(Summary!$D$3,'SAR and AR (GS1)'!$F$50:$R$55,'SAR and AR (GS1)'!L$35,FALSE) -> 0.6386900347 | M20: =VLOOKUP(Summary!$D$3,'SAR and AR (GS1)'!$F$50:$R$55,'SAR and AR (GS1)'!M$35,FALSE) -> 0.6641776383 | N20: =VLOOKUP(Summary!$D$3,'SAR and AR (GS1)'!$F$50:$R$55,'SAR and AR (GS1)'!N$35,FALSE) -> 0.6532230564 | O20: =VLOOKUP(Summary!$D$3,'SAR and AR (GS1)'!$F$50:$R$55,'SAR and AR (GS1)'!O$35,FALSE) -> 0.6916053708 | P20: =VLOOKUP(Summary!$D$3,'SAR and AR (GS1)'!$F$50:$R$55,'SAR and AR (GS1)'!P$35,FALSE) -> 0.6118326262 | Q20: =VLOOKUP(Summary!$D$3,'SAR and AR (GS1)'!$F$50:$R$55,'SAR and AR (GS1)'!Q$35,FALSE) -> 0.6283028839 | R20: =VLOOKUP(Summary!$D$3,'SAR and AR (GS1)'!$F$50:$R$55,'SAR and AR (GS1)'!R$35,FALSE) -> 0.6226235037 | S20: =SUMPRODUCT(G11:R11,G20:R20)+X17 -> 13180295.58 | T20: =SUMPRODUCT(G14:R14,G20:R20)+Y17 -> 14884142.49
R22: GS-1 GHG | S22: =O10*O19 -> -35727.49887 | T22: =O13*O19 -> -35727.49887
R23: GS-1 GHG System | S23: =O11*O20 -> -443750.5656 | T23: =O14*O20 -> -443750.5656
F26: Bundled | N26: System (Bundled and Unbundled)
F27: =Summary!N4&" Sales" -> 2025 Sales | G27: =MONTH(Summary!$N$3)&"/"&DAY(Summary!$N$3)&"/"&YEAR(Summary!$N$3)&" Avg Rates" -> 6/1/2025 Avg Rates | H27: Proposed Avg Rates (Authorized) | I27: Proposed Avg Rates (w/Pending) | J27: % Change (Authorized) | K27: % Change (w/Pending) | N27: =Summary!N4&" Sales" -> 2025 Sales | O27: =G27 -> 6/1/2025 Avg Rates | P27: Proposed Avg Rates (Authorized) | Q27: Proposed Avg Rates (w/Pending) | R27: % Change (Authorized) | S27: % Change (w/Pending) | W27: 1/1/25 Bundled w/Credit | X27: 1/1/25 Bundled w/out Credit | Z27: 1/1/25 System w/Credit | AA27: 1/1/25 System w/out Credit
E28: GS-1 | F28: =VLOOKUP(Summary!$D$3,'SAR and AR (GS1)'!$J$58:$K$63,2,FALSE) -> 3877109.903 | G28: =IF(Summary!$J$3="Y",W31,X31) -> 28.4109163 | H28: =IF(Summary!$J$3="Y",S19/$F$28*100,SUM(S19-S22)/$F$28*100) -> 29.27267465 | I28: =IF(Summary!$J$3="Y",T19/$F$28*100,SUM(T19-T22)/$F$28*100) -> 32.79800055 | J28: =H28/G28-1 -> 0.03033194499 | K28: =I28/G28-1 -> 0.1544154439 | M28: GS-1 | N28: =VLOOKUP(Summary!$D$3,'SAR and AR (GS1)'!$N$58:$O$63,2,FALSE) -> 5521410.798 | O28: =IF(Summary!$J$3="Y",Z31,AA31) -> 25.01610122 | P28: =IF(Summary!$J$3="Y",SUM(S10:T10)/N28*100,SUM(S10:T10,-O10)/N28*100) -> 25.36010329 | Q28: =IF(Summary!$J$3="Y",SUM(S13:T13)/N28*100,SUM(S13:T13,-O13)/N28*100) -> 28.68975481 | R28: =P28/O28-1 -> 0.01375122655 | S28: =Q28/O28-1 -> 0.1468515643 | V28: GS-1 Bundled | W28: 28.24977561 | X28: 29.17406766 | Y28: GS-1 System | Z28: 24.84314154 | AA28: 25.77950096
E29: Total Bundled | F29: =VLOOKUP(Summary!$D$3,'SAR and AR (GS1)'!$J$64:$K$69,2,FALSE) -> 49720524.25 | G29: ='SAR and RAR'!G29 -> 26.64700642 | H29: =IF(Summary!$J$3="Y",S20/$F$29*100,SUM(S20-S23)/$F$29*100) -> 27.40125201 | I29: =IF(Summary!$J$3="Y",T20/$F$29*100,SUM(T20-T23)/$F$29*100) -> 30.82810024 | J29: =H29/G29-1 -> 0.02830507759 | K29: =I29/G29-1 -> 0.156906699 | M29: Total System | N29: =VLOOKUP(Summary!$D$3,'SAR and AR (GS1)'!$N$64:$O$69,2,FALSE) -> 79134642.73 | O29: ='SAR and RAR'!O29 -> 22.25245758 | P29: =IF(Summary!$J$3="Y",SUM(S11:T11)/N29*100,SUM(S11:T11,-O11)/N29*100) -> 22.68214714 | Q29: =IF(Summary!$J$3="Y",SUM(S14:T14)/N29*100,SUM(S14:T14,-O14)/N29*100) -> 25.8228456 | R29: =P29/O29-1 -> 0.0193097575 | S29: =Q29/O29-1 -> 0.1604491552
E30: =M29 -> Total System | F30: =N29 -> 79134642.73 | W30: 6/1/25 Bundled w/Credit | X30: 6/1/25 Bundled w/out Credit | Z30: 6/1/25 System w/Credit | AA30: 6/1/25 System w/out Credit
V31: GS-1 Bundled | W31: 27.48662425 | X31: 28.4109163 | Y31: GS-1 System | Z31: 24.07974179 | AA31: 25.01610122
G35: 2 | H35: =G35+1 -> 3 | I35: =H35+1 -> 4 | J35: 5 | K35: 6 | L35: 7 | M35: 8 | N35: 9 | O35: 10 | P35: 11 | Q35: 12 | R35: 13
F36: GS-1 Allocator | G36: Generation | H36: Distribution | I36: NDC | J36: PPPC | K36: DCPP | L36: NSGC | M36: Transmission | N36: TOTCA | O36: GHG Rev | P36: DWRBC | Q36: PUCRF | R36: SECURITIZATION
F37: 2025 | G37: 0.08563404308 | H37: 0.06795318426 | I37: 0.06977236109 | J37: 0.07080918219 | K37: 0.07045250454 | L37: 0.07024021054 | M37: 0.06906624045 | N37: 0.07029066199 | O37: 0.08033362562 | P37: 0.07801292567 | Q37: 0.06977236027 | R37: 0.08148651689
F38: 2026 | G38: 0.08591213448 | H38: 0.06861779793 | I38: 0.07041479906 | J38: 0.0714794503 | K38: 0.07108863538 | L38: 0.07093396218 | M38: 0.07031123312 | N38: 0.07044668909 | O38: 0.07744277145 | P38: 0.07953558169 | Q38: 0.07041479869 | R38: 0.08351408908
F39: 2027 | G39: 0.08581914909 | H39: 0.07074782338 | I39: 0.0725464065 | J39: 0.07367403472 | K39: 0.07326877508 | L39: 0.07310387216 | M39: 0.07251647192 | N39: 0.07258286306 | O39: 0.07986197661 | P39: 0.0819053892 | Q39: 0.07254640613 | R39: 0.08603027554
F40: 2028 | G40: 0.08623513102 | H40: 0.0701324339 | I40: 0.08199601714 | J40: 0.07310860617 | K40: 0.07267113526 | L40: 0.07083965405 | M40: 0.07190838009 | N40: 0.07205129771 | O40: 0.07864983894 | P40: 0.08142844407 | Q40: 0.0720259321 | R40: 0.08552356895
F41: 2029 | G41: 0.08623513102 | H41: 0.0701324339 | I41: 0.08199601714 | J41: 0.07310860617 | K41: 0.07267113526 | L41: 0.07083965405 | M41: 0.07190838009 | N41: 0.07205129771 | O41: 0.07864983894 | P41: 0.08142844407 | Q41: 0.0720259321 | R41: 0.08552356895
F43: Revenue Split - Bundled
E44: GS-1 | F44: 2025 | G44: 1.036507134 | H44: 0.7003502276 | I44: 0.7021955024 | J44: 0.7021955159 | K44: 0.7021955158 | L44: 0.7021955158 | M44: 0.7021955158 | N44: 0.7021955236 | O44: 0.69314594 | P44: 0.7021955159 | Q44: 0.7021955151 | R44: 0.7021955155 | U44: =G44 -> 1.036507134
E45: GS-1 | F45: 2026 | G45: 1.037694013 | H45: 0.7035656625 | I45: 0.7068647046 | J45: 0.7068647095 | K45: 0.7068647093 | L45: 0.7068647094 | M45: 0.7068647094 | N45: 0.706864709 | O45: 0.6805510836 | P45: 0.7068647095 | Q45: 0.7068647093 | R45: 0.7068647093 | T45: =K59/K58-1 -> 0.03274445143 | U45: =G45 -> 1.037694013
E46: GS-1 | F46: 2027 | G46: 1.037089629 | H46: 0.706804969 | I46: 0.7100828159 | J46: 0.7100828207 | K46: 0.7100828206 | L46: 0.7100828207 | M46: 0.7100828207 | N46: 0.7100828203 | O46: 0.6839289022 | P46: 0.7100828207 | Q46: 0.7100828205 | R46: 0.7100828205 | T46: =K60/K59-1 -> 0.04617692768 | U46: 1.037089629
E47: GS-1 | F47: 2028 | G47: 1.036929754 | H47: 0.7076674831 | I47: 0.7109396308 | J47: 0.7109396356 | K47: 0.7109396355 | L47: 0.7109396356 | M47: 0.7109396356 | N47: 0.7109396352 | O47: 0.6848287045 | P47: 0.7109396356 | Q47: 0.7109396354 | R47: 0.7109396355 | T47: =K61/K60-1 -> 0.02226113612 | U47: 1.036929754
E48: GS-1 | F48: 2029 | G48: 1.036929754 | H48: 0.7076674831 | I48: 0.7109396308 | J48: 0.7109396356 | K48: 0.7109396355 | L48: 0.7109396356 | M48: 0.7109396356 | N48: 0.7109396352 | O48: 0.6848287045 | P48: 0.7109396356 | Q48: 0.7109396354 | R48: 0.7109396355 | T48: =K62/K61-1 -> 0 | U48: 1.036929754
E49: GS-1 | T49: =K63/K62-1 -> -1 | U49: 0
E50: Total System | F50: 2025 | G50: 1.048411398 | H50: 0.6497133295 | I50: 0.6283028798 | J50: 0.6429155899 | K50: 0.6409526177 | L50: 0.6386900347 | M50: 0.6641776383 | N50: 0.6532230564 | O50: 0.6916053708 | P50: 0.6118326262 | Q50: 0.6283028839 | R50: 0.6226235037 | U50: 1.048411398
E51: Total System | F51: 2026 | G51: 1.048911533 | H51: 0.6592929074 | I51: 0.6388478166 | J51: 0.6529089711 | K51: 0.6517847762 | L51: 0.6492572883 | M51: 0.6742723722 | N51: 0.6405194042 | O51: 0.6841793971 | P51: 0.6232553568 | Q51: 0.6388478175 | R51: 0.6341621376 | T51: =K65/K64-1 -> 0.03362369559 | U51: 1.048911533
E52: Total System | F52: 2027 | G52: 1.048064364 | H52: 0.6603819419 | I52: 0.5896210369 | J52: 0.6539836176 | K52: 0.6530372504 | L52: 0.6586178472 | M52: 0.675436885 | N52: 0.6415577188 | O52: 0.6874004682 | P52: 0.6238492509 | Q52: 0.6398436554 | R52: 0.63471617 | T52: =K66/K65-1 -> 0.04617692768 | U52: 1.048064364
E53: Total System | F53: 2028 | G53: 1.048098118 | H53: 0.660057117 | I53: 0.5904506491 | J53: 0.6538815691 | K53: 0.6530164509 | L53: 0.6584095896 | M53: 0.6753821455 | N53: 0.6414373936 | O53: 0.6882773304 | P53: 0.6235275451 | Q53: 0.6397040368 | R53: 0.6343836857 | T53: 0.02226113612 | U53: 1.048098118
E54: Total System | F54: 2029 | G54: 1.048098118 | H54: 0.660057117 | I54: 0.5904506491 | J54: 0.6538815691 | K54: 0.6530164509 | L54: 0.6584095896 | M54: 0.6753821455 | N54: 0.6414373936 | O54: 0.6882773304 | P54: 0.6235275451 | Q54: 0.6397040368 | R54: 0.6343836857 | T54: 0 | U54: 1.048098118
E55: Total System | T55: -1 | U55: 0
F57: System Sales | J57: Bundled Sales | L57: % of Bdl | N57: System Sales
E58: GS-1 | F58: =$F$37 -> 2025 | I58: GS-1 | J58: =$F$37 -> 2025 | K58: 3877109.903 | L58: =K58/O58 -> 0.7021955159 | M58: GS-1 | N58: =$F$37 -> 2025 | O58: 5521410.798
E59: GS-1 | F59: =$F$38 -> 2026 | I59: GS-1 | J59: =$F$38 -> 2026 | K59: 4004063.74 | L59: 0.7068647094 | M59: GS-1 | N59: =$F$38 -> 2026 | O59: 5664540.451
E60: GS-1 | F60: =$F$39 -> 2027 | I60: GS-1 | J60: =$F$39 -> 2027 | K60: 4188959.102 | L60: 0.7100828207 | M60: GS-1 | N60: =$F$39 -> 2027 | O60: 5899254.256
E61: GS-1 | F61: =$F$40 -> 2028 | I61: GS-1 | J61: =$F$40 -> 2028 | K61: 4282210.091 | L61: 0.7109396356 | M61: GS-1 | N61: =$F$40 -> 2028 | O61: 6023310.386
E62: GS-1 | F62: =$F$41 -> 2029 | I62: GS-1 | J62: =$F$41 -> 2029 | K62: 4282210.091 | L62: 0.7109396356 | M62: GS-1 | N62: =$F$41 -> 2029 | O62: 6023310.386
E63: GS-1 | I63: GS-1 | M63: GS-1
E64: Non-Exempt Sales | F64: =$F$37 -> 2025 | G64: ='SAR and RAR'!G64 -> 70344975.44 | I64: Total System | J64: =$F$37 -> 2025 | K64: ='SAR and RAR'!K64 -> 49720524.25 | L64: 0.628302884 | M64: Total System | N64: =$F$37 -> 2025 | O64: ='SAR and RAR'!O64 -> 79134642.73
E65: Non-Exempt Sales | F65: =$F$38 -> 2026 | G65: ='SAR and RAR'!G65 -> 70795908.28 | I65: Total System | J65: =$F$38 -> 2026 | K65: ='SAR and RAR'!K65 -> 51392312.02 | L65: 0.6388478176 | M65: Total System | N65: =$F$38 -> 2026 | O65: ='SAR and RAR'!O65 -> 80445312.02
E66: Non-Exempt Sales | F66: =$F$39 -> 2027 | G66: ='SAR and RAR'!G66 -> 73970645.71 | I66: Total System | J66: =$F$39 -> 2027 | K66: ='SAR and RAR'!K66 -> 53765451.1 | L66: 0.6424349163 | M66: Total System | N66: =$F$39 -> 2027 | O66: ='SAR and RAR'!O66 -> 83690113.56
E67: Non-Exempt Sales | F67: =$F$40 -> 2028 | G67: ='SAR and RAR'!G67 -> 75325448.63 | I67: Total System | J67: =$F$40 -> 2028 | K67: ='SAR and RAR'!K67 -> 54962331.12 | L67: 0.6433912525 | M67: Total System | N67: =$F$40 -> 2028 | O67: ='SAR and RAR'!O67 -> 85425984.44
E68: Non-Exempt Sales | F68: =$F$41 -> 2029 | G68: 75325448.63 | I68: Total System | J68: =$F$41 -> 2029 | K68: 54962331.12 | L68: 0.6433912525 | M68: Total System | N68: =$F$41 -> 2029 | O68: 85425984.44
E69: Non-Exempt Sales | I69: Total System | M69: Total System
J71: =Summary!D3 -> 2025 | K71: =VLOOKUP(Summary!D3,'SAR and AR (GS1)'!J58:K63,2,FALSE) -> 3877109.903 | N71: =Summary!D3 -> 2025 | O71: =VLOOKUP(Summary!D3,'SAR and AR (GS1)'!N58:O63,2,FALSE) -> 5521410.798
J72: % of GS-1 Sales (Bdl) | N72: % of GS-1 Sales (Sys)
J73: =$F$37 -> 2025 | K73: =K58/K64 -> 0.07797805759 | N73: =$F$37 -> 2025 | O73: =O58/O64 -> 0.06977236021
J74: =$F$38 -> 2026 | K74: 0.07791172614 | N74: =$F$38 -> 2026 | O74: 0.07041479869
J75: =$F$39 -> 2027 | K75: 0.07791172614 | N75: =$F$39 -> 2027 | O75: 0.07048926098
J76: =$F$40 -> 2028 | K76: 0.07791172614 | N76: =$F$40 -> 2028 | O76: 0.07050911295
J77: =$F$41 -> 2029 | K77: 0.07791172614 | N77: =$F$41 -> 2029 | O77: 0.07050911295

Sheet Bill Impact (GS1) (hidden)
B1: CONFIDENTIAL This Excel Sheet Is Marked Confidential In Accordance With Applicable Law and Regulation. Basis for Confidentiality In Accompanying Confidentiality Declaration. Public Disclosure Restricted.
E3: Schedule TOU-GS-1-E
E4: =Summary!N4 -> 2025 | F4: =Summary!N3 -> 2025-06-01 | G4: Proposed | H4: Proposed | I4: Proposed | J4: Proposed
E5: Sales Forecast | F5: Rates | G5: Authorized Rates | H5: Authorized Revenue | I5: w/Pending Rates | J5: w/Pending Revenue
D7: On Peak | E7: =HLOOKUP(E$4,$F$42:$K$52,$A44,FALSE) -> 242.7589229 | F7: 0.604 | G7: =F7/$F$12*$G$12 -> 0.6240477676 | H7: =E7*G7 -> 151.4931639 | I7: =F7/$F$12*$I$12 -> 0.703461848 | J7: =E7*I7 -> 170.7716405 | N7: Bundled GS-1 Rev Req
D8: Mid Peak | E8: 86.27099511 | F8: 0.30915 | G8: =F8/$F$12*$G$12 -> 0.3194112042 | H8: 27.55592244 | I8: =F8/$F$12*$I$12 -> 0.3600583283 | J8: 31.06259028 | N8: Proposed (Authorized) | O8: ='SAR and AR (GS1)'!S19/1000-'SAR and AR (GS1)'!S22/1000 -> 1134.933768
D9: Off Peak | E9: 1077.846035 | F9: 0.23296 | G9: 0.240692331 | H9: 259.4292748 | I9: 0.2713219737 | J9: 292.4433137 | N9: Proposed (w/Pending) | O9: ='SAR and AR (GS1)'!T19/1000-'SAR and AR (GS1)'!T22/1000 -> 1271.614528
D10: Mid Peak | E10: 566.1260181 | F10: 0.36453 | G10: 0.3766293588 | H10: 213.2196792 | I10: 0.42455786 | J10: 240.3532507
D11: Off Peak | E11: 955.884942 | F11: 0.24667 | G11: =F11/$F$12*$G$12 -> 0.2548573888 | H11: 243.6143403 | I11: 0.2872896259 | J11: 274.6158274
D12: SuperOff Peak | E12: 948.2229897 | F12: 0.18245 | G12: =(O8-G14*E14*365/12/10^6)/SUM(E12,F11/F12*E11,F10/F12*E10,F9/F12*E9,F8/F12*E8,F7/F12*E7) -> 0.1885058199 | H12: 178.7455521 | I12: =(O9-I14*E14*365/12/10^6)/SUM(E12,F11/F12*E11,F10/F12*E10,F9/F12*E9,F8/F12*E8,F7/F12*E7) -> 0.2124943943 | J12: 201.4920699
D14: Customers | E14: =HLOOKUP(E$4,$F$42:$K$53,$A51,FALSE) -> 4276490 | F14: 0.468 | G14: =F14 -> 0.468 | H14: =G14*E14*365/12/10^6 -> 60.87583515 | I14: =G14 -> 0.468 | J14: =I14*E14*365/12/10^6 -> 60.87583515
N19: 2024 Recorded Data
B20: SCHEDULE TOU-GS-1-E ($/kWh) | E20: Proposed | F20: Proposed | N20: NAICS | O20: Summer | R20: Winter
B21: Rates | C21: Jan 2025 | D21: =Summary!N3 -> 2025-06-01 | E21: Authorized | F21: w/Pending | O21: On Peak kWh | P21: Mid Peak kWh | Q21: Off Peak kWh | R21: Mid Peak kWh | S21: Off Peak kWh | T21: Super Off Peak kWh | U21: Total kWh
B22: On Peak | C22: 0.61368 | D22: =F7 -> 0.604 | E22: =G7 -> 0.6240477676 | F22: =I7 -> 0.703461848 | N22: NAICS 531 | O22: 424.4000556 | P22: 171.0418541 | Q22: 2142.043749 | R22: 1242.293732 | S22: 2623.098488 | T22: 1422.305185 | U22: =SUM(O22:T22) -> 8025.183064
B23: Mid Peak | C23: 0.31883 | D23: =F8 -> 0.30915 | E23: 0.3194112042 | F23: =I8 -> 0.3600583283 | N23: NAICS 621 | O23: 797.5715959 | P23: 197.8653305 | Q23: 3613.515045 | R23: 1413.274642 | S23: 2031.583162 | T23: 3587.690722 | U23: =SUM(O23:T23) -> 11641.5005
B24: Off Peak | C24: 0.24032 | D24: 0.23296 | E24: 0.240692331 | F24: 0.2713219737 | N24: NAICS 722 | O24: 2427.208974 | P24: 1047.857092 | Q24: 9631.294795 | R24: 5240.828945 | S24: 6947.090523 | T24: 8200.931162 | U24: 33495.21149
B25: Mid Peak | C25: 0.37421 | D25: 0.36453 | E25: 0.3766293588 | F25: 0.42455786
B26: Off Peak | C26: 0.25403 | D26: 0.24667 | E26: 0.2548573888 | F26: 0.2872896259
B27: Super Off Peak | C27: 0.18873 | D27: 0.18245 | E27: 0.1885058199 | F27: 0.2124943943
K31: *
C32: Daily to Monthly Conversion Factor | D32: 30.417
C34: TOU-GS-1-E
C35: =C21 -> Jan 2025 | E35: =D21 -> 2025-06-01 | G35: =E21 -> Authorized | I35: =F21 -> w/Pending
C36: Summer | D36: Winter | E36: Summer | F36: Winter | G36: Summer | H36: Winter | I36: Summer | J36: Winter
B37: NAICS 531 | C37: =SUM(SUM($O$22*$C$22,$P$22*$C$23,$Q$22*$C$24)+SUM($F$14*365/12*4))/4 -> 221.6737636 | D37: =SUM(SUM($R$22*$C$25,$S$22*$C$26,$T$22*$C$27)+SUM($F$14*365/12*8))/8 -> 189.192013 | E37: =SUM(SUM($O$22*$D$22,$P$22*$D$23,$Q$22*$D$24)+SUM($F$14*365/12*4))/4 -> 216.2914337 | F37: =SUM(SUM($R$22*$D$25,$S$22*$D$26,$T$22*$D$27)+SUM($F$14*365/12*8))/8 -> 184.1590774 | G37: =SUM(SUM($O$22*$E$22,$P$22*$E$23,$Q$22*$E$24)+SUM($G$14*365/12*4))/4 -> 222.9980238 | H37: =SUM(SUM($R$22*$E$25,$S$22*$E$26,$T$22*$E$27)+SUM($G$14*365/12*8))/8 -> 189.799141 | I37: =SUM(SUM($O$22*$F$22,$P$22*$F$23,$Q$22*$F$24)+SUM($I$14*365/12*4))/4 -> 249.5644573 | J37: =SUM(SUM($R$22*$F$25,$S$22*$F$26,$T$22*$F$27)+SUM($G$14*365/12*8))/8 -> 212.1408038
B38: NAICS 621 | C38: =SUM(SUM($O$23*$C$22,$P$23*$C$23,$Q$23*$C$24)+SUM($F$14*365/12*4))/4 -> 369.469769 | D38: =SUM(SUM($R$23*$C$25,$S$23*$C$26,$T$23*$C$27)+SUM($F$14*365/12*8))/8 -> 229.4911805 | E38: =SUM(SUM($O$23*$D$22,$P$23*$D$23,$Q$23*$D$24)+SUM($F$14*365/12*4))/4 -> 360.411944 | F38: =SUM(SUM($R$23*$D$25,$S$23*$D$26,$T$23*$D$27)+SUM($F$14*365/12*8))/8 -> 223.0957245 | G38: =SUM(SUM($O$23*$E$22,$P$23*$E$23,$Q$23*$E$24)+SUM($F$14*365/12*4))/4 -> 371.9021342 | H38: =SUM(SUM($R$23*$E$25,$S$23*$E$26,$T$23*$E$27)+SUM($F$14*365/12*8))/8 -> 230.0281603 | I38: =SUM(SUM($O$23*$F$22,$P$23*$F$23,$Q$23*$F$24)+SUM($I$14*365/12*4))/4 -> 417.4175707 | J38: =SUM(SUM($R$23*$F$25,$S$23*$F$26,$T$23*$F$27)+SUM($G$14*365/12*8))/8 -> 257.4892238
B39: NAICS 722 | C39: =SUM(SUM($O$24*$C$22,$P$24*$C$23,$Q$24*$C$24)+SUM($F$14*365/12*4))/4 -> 1048.787661 | D39: =SUM(SUM($R$24*$C$25,$S$24*$C$26,$T$24*$C$27)+SUM($F$14*365/12*8))/8 -> 673.4477179 | E39: =SUM(SUM($O$24*$D$22,$P$24*$D$23,$Q$24*$D$24)+SUM($F$14*365/12*4))/4 -> 1022.656419 | F39: =SUM(SUM($R$24*$D$25,$S$24*$D$26,$T$24*$D$27)+SUM($F$14*365/12*8))/8 -> 654.2772607 | G39: =SUM(SUM($O$24*$E$22,$P$24*$E$23,$Q$24*$E$24)+SUM($F$14*365/12*4))/4 -> 1056.127608 | H39: =SUM(SUM($R$24*$E$25,$S$24*$E$26,$T$24*$E$27)+SUM($F$14*365/12*8))/8 -> 675.521331 | I39: =SUM(SUM($O$24*$F$22,$P$24*$F$23,$Q$24*$F$24)+SUM($I$14*365/12*4))/4 -> 1188.715124 | J39: =SUM(SUM($R$24*$F$25,$S$24*$F$26,$T$24*$F$27)+SUM($G$14*365/12*8))/8 -> 759.6742574
F42: 2025 | G42: =F42+1 -> 2026 | H42: =G42+1 -> 2027 | I42: 2028 | J42: 2029
F43: Non-CARE | G43: Non-CARE | H43: Non-CARE | I43: Non-CARE | J43: Non-CARE
A44: 3 | D44: On Peak | F44: 242.7589229 | G44: 253.0607198 | H44: 264.7462864 | I44: 270.6398395 | J44: 270.6398395
A45: =A44+1 -> 4 | D45: Mid Peak | F45: 86.27099511 | G45: 89.84985516 | H45: 93.99884542 | I45: 96.09136651 | J45: 96.09136651
A46: =A45+1 -> 5 | D46: Off Peak | F46: 1077.846035 | G46: 1123.408087 | H46: 1175.283621 | I46: 1201.44677 | J46: 1201.44677
A47: 6 | D47: Mid Peak | F47: 566.1260181 | G47: 577.3765515 | H47: 604.0380268 | I47: 617.4845995 | J47: 617.4845995
A48: 7 | D48: Off Peak | F48: 955.884942 | G48: 975.3019076 | H48: 1020.338353 | I48: 1043.052244 | J48: 1043.052244
A49: 8 | D49: SuperOff Peak | F49: 948.2229897 | G49: 967.0162181 | H49: 1011.670056 | I49: 1034.190981 | J49: 1034.190981
A50: 9
A51: 10 | D51: Customers | F51: 4276490 | G51: 4154722 | H51: 4177916.847 | I51: 4201220.423 | J51: 4201220.423
A52: 11
D54: Total Sales | F54: =SUM(F44:F49) -> 3877.109903 | G54: ='SAR and AR (GS1)'!K59/1000 -> 4004.06374 | H54: 4188.959102 | I54: 4282.210091 | J54: 4282.210091
E55: Customers | F55: =F51/SUM(F$51:F$52) -> 1 | G55: =G51 -> 4154722 | H55: 4177916.847 | I55: 4201220.423 | J55: 4201220.423

Sheet SAR and RAR (hidden)
B1: CONFIDENTIAL This Excel Sheet Is Marked Confidential In Accordance With Applicable Law and Regulation. Basis for Confidentiality In Accompanying Confidentiality Declaration. Public Disclosure Restricted.
C2: Total Revenue ($000)
C3: Authorized | D3: w/ Pending
B4: Generation | C4: =INDEX('Incremental Rev Req'!$S$9:$X$22,MATCH(B4,'Incremental Rev Req'!$S$9:$S$22,0),MATCH(Summary!$D$3,'Incremental Rev Req'!$S$9:$X$9,0)) -> 5342079.691 | D4: =INDEX('Incremental Rev Req'!$S$62:$X$75,MATCH(B4,'Incremental Rev Req'!$S$62:$S$75,0),MATCH(Summary!$D$3,'Incremental Rev Req'!$S$62:$X$62,0)) -> 5617383.115 | G4: Allocation
B5: Distribution | C5: =INDEX('Incremental Rev Req'!$S$9:$X$22,MATCH(B5,'Incremental Rev Req'!$S$9:$S$22,0),MATCH(Summary!$D$3,'Incremental Rev Req'!$S$9:$X$9,0)) -> 8807465.995 | D5: =INDEX('Incremental Rev Req'!$S$62:$X$75,MATCH(B5,'Incremental Rev Req'!$S$62:$S$75,0),MATCH(Summary!$D$3,'Incremental Rev Req'!$S$62:$X$62,0)) -> 11011831.42 | G5: Generation | H5: Distribution | I5: NDC | J5: PPPC | K5: DCPP | L5: NSGC | M5: Transmission | N5: TOTCA | O5: GHG Rev | P5: DWRBC | Q5: PUCRF | R5: SECURITIZATION
B6: Nuclear | C6: =INDEX('Incremental Rev Req'!$S$9:$X$22,MATCH(B6,'Incremental Rev Req'!$S$9:$S$22,0),MATCH(Summary!$D$3,'Incremental Rev Req'!$S$9:$X$9,0)) -> -915.4516419 | D6: =INDEX('Incremental Rev Req'!$S$62:$X$75,MATCH(B6,'Incremental Rev Req'!$S$62:$S$75,0),MATCH(Summary!$D$3,'Incremental Rev Req'!$S$62:$X$62,0)) -> -915.4516419 | F6: Residential | G6: =VLOOKUP(Summary!$D$3,'SAR and RAR'!$F$37:$R$42,'SAR and RAR'!G$35,FALSE) -> 0.4334328031 | H6: =VLOOKUP(Summary!$D$3,'SAR and RAR'!$F$37:$R$42,'SAR and RAR'!H$35,FALSE) -> 0.4901729914 | I6: =VLOOKUP(Summary!$D$3,'SAR and RAR'!$F$37:$R$42,'SAR and RAR'!I$35,FALSE) -> 0.3376537252 | J6: =VLOOKUP(Summary!$D$3,'SAR and RAR'!$F$37:$R$42,'SAR and RAR'!J$35,FALSE) -> 0.4376932486 | K6: =VLOOKUP(Summary!$D$3,'SAR and RAR'!$F$37:$R$42,'SAR and RAR'!K$35,FALSE) -> 0.4505009853 | L6: =VLOOKUP(Summary!$D$3,'SAR and RAR'!$F$37:$R$42,'SAR and RAR'!L$35,FALSE) -> 0.438315087 | M6: =VLOOKUP(Summary!$D$3,'SAR and RAR'!$F$37:$R$42,'SAR and RAR'!M$35,FALSE) -> 0.4638101825 | N6: =VLOOKUP(Summary!$D$3,'SAR and RAR'!$F$37:$R$42,'SAR and RAR'!N$35,FALSE) -> 0.5669366334 | O6: =VLOOKUP(Summary!$D$3,'SAR and RAR'!$F$37:$R$42,'SAR and RAR'!O$35,FALSE) -> 0.8264249736 | P6: =VLOOKUP(Summary!$D$3,'SAR and RAR'!$F$37:$R$42,'SAR and RAR'!P$35,FALSE) -> 0.2594263611 | Q6: =VLOOKUP(Summary!$D$3,'SAR and RAR'!$F$37:$R$42,'SAR and RAR'!Q$35,FALSE) -> 0.3376537254 | R6: =VLOOKUP(Summary!$D$3,'SAR and RAR'!$F$37:$R$42,'SAR and RAR'!R$35,FALSE) -> 0.3674900861
B7: Public Purpose | C7: =INDEX('Incremental Rev Req'!$S$9:$X$22,MATCH(B7,'Incremental Rev Req'!$S$9:$S$22,0),MATCH(Summary!$D$3,'Incremental Rev Req'!$S$9:$X$9,0)) -> 992554.8866 | D7: =INDEX('Incremental Rev Req'!$S$62:$X$75,MATCH(B7,'Incremental Rev Req'!$S$62:$S$75,0),MATCH(Summary!$D$3,'Incremental Rev Req'!$S$62:$X$62,0)) -> 992554.8866
B8: DCPP | C8: =INDEX('Incremental Rev Req'!$S$9:$X$22,MATCH(B8,'Incremental Rev Req'!$S$9:$S$22,0),MATCH(Summary!$D$3,'Incremental Rev Req'!$S$9:$X$9,0)) -> 282858.6909 | D8: =INDEX('Incremental Rev Req'!$S$62:$X$75,MATCH(B8,'Incremental Rev Req'!$S$62:$S$75,0),MATCH(Summary!$D$3,'Incremental Rev Req'!$S$62:$X$62,0)) -> 282858.6909 | G8: Revenue ($000) - System | X8: Authorized | Y8: w/Pending
B9: New System Gen | C9: =INDEX('Incremental Rev Req'!$S$9:$X$22,MATCH(B9,'Incremental Rev Req'!$S$9:$S$22,0),MATCH(Summary!$D$3,'Incremental Rev Req'!$S$9:$X$9,0)) -> 597443.0405 | D9: =INDEX('Incremental Rev Req'!$S$62:$X$75,MATCH(B9,'Incremental Rev Req'!$S$62:$S$75,0),MATCH(Summary!$D$3,'Incremental Rev Req'!$S$62:$X$62,0)) -> 603154.6967 | F9: Authorized | G9: Generation | H9: Distribution | I9: NDC | J9: PPPC | K9: DCPP | L9: NSGC | M9: Transmission | N9: TOTCA | O9: GHG Rev | P9: DWRBC | Q9: PUCRF | R9: SECURITIZATION | S9: Total | T9: CARE Adj. | W9: % of CARE Sales | X9: =VLOOKUP(Summary!$D$3,$F$58:$Q$63,$Q$35,FALSE) -> 0.3128375693 | Y9: =X9 -> 0.3128375693
B10: FERC | C10: =INDEX('Incremental Rev Req'!$S$9:$X$22,MATCH(B10,'Incremental Rev Req'!$S$9:$S$22,0),MATCH(Summary!$D$3,'Incremental Rev Req'!$S$9:$X$9,0)) -> 1344347 | D10: =INDEX('Incremental Rev Req'!$S$62:$X$75,MATCH(B10,'Incremental Rev Req'!$S$62:$S$75,0),MATCH(Summary!$D$3,'Incremental Rev Req'!$S$62:$X$62,0)) -> 1344347 | F10: Residential | G10: =G6*G11 -> 2315432.575 | H10: =H6*H11 -> 4317181.953 | I10: =I6*I11 -> -309.1056571 | J10: =J6*J11 -> 434434.5727 | K10: =K6*K11 -> 127428.119 | L10: 261868.2983 | M10: 623521.8274 | N10: -1560.631983 | O10: -530254.0509 | P10: 108129.6856 | Q10: 21376.08554 | R10: =R6*R11 -> 39043.7196 | S10: =SUM(G10:R10) -> 7716293.048 | T10: =-X11+X14 -> -695948.5953 | W10: CARE Line Item Discount % | X10: 0.325 | Y10: =X10 -> 0.325
B11: TOTCA | C11: =INDEX('Incremental Rev Req'!$S$9:$X$22,MATCH(B11,'Incremental Rev Req'!$S$9:$S$22,0),MATCH(Summary!$D$3,'Incremental Rev Req'!$S$9:$X$9,0)) -> -2752.745 | D11: =INDEX('Incremental Rev Req'!$S$62:$X$75,MATCH(B11,'Incremental Rev Req'!$S$62:$S$75,0),MATCH(Summary!$D$3,'Incremental Rev Req'!$S$62:$X$62,0)) -> -2752.745 | F11: Total System | G11: =C4 -> 5342079.691 | H11: =C5 -> 8807465.995 | I11: =C6 -> -915.4516419 | J11: =C7 -> 992554.8866 | K11: =C8 -> 282858.6909 | L11: =C9 -> 597443.0405 | M11: =C10 -> 1344347 | N11: =C11 -> -2752.745 | O11: =C12 -> -641623.9439 | P11: =C14 -> 416803 | Q11: =C15 -> 63307.71418 | R11: =C16 -> 106244.28 | S11: =SUM(G11:R11) -> 17307812.16 | T11: 0 | W11: CARE Discounst | X11: =SUM(G10*G19/K71*O71,H10:N10,Q10)*X9*X10 -> 941762.0897 | Y11: =SUM(G13*G19/K71*O71,H13:N13,Q13)*Y9*Y10 -> 1070103.204
B12: GHG Revenue | C12: =INDEX('Incremental Rev Req'!$S$9:$X$22,MATCH(B12,'Incremental Rev Req'!$S$9:$S$22,0),MATCH(Summary!$D$3,'Incremental Rev Req'!$S$9:$X$9,0)) -> -641623.9439 | D12: =INDEX('Incremental Rev Req'!$S$62:$X$75,MATCH(B12,'Incremental Rev Req'!$S$62:$S$75,0),MATCH(Summary!$D$3,'Incremental Rev Req'!$S$62:$X$62,0)) -> -641623.9439 | F12: w/Pending | W12: non-CARE Residential Sales | X12: =VLOOKUP(Summary!$D$3,'SAR and RAR'!$F$58:$G$63,2,FALSE) -> 18361053.62 | Y12: =X12 -> 18361053.62
B13: MCAM | C13: =INDEX('Incremental Rev Req'!$S$9:$X$22,MATCH(B13,'Incremental Rev Req'!$S$9:$S$22,0),MATCH(Summary!$D$3,'Incremental Rev Req'!$S$9:$X$9,0)) -> 4709.193664 | D13: =INDEX('Incremental Rev Req'!$S$62:$X$75,MATCH(B13,'Incremental Rev Req'!$S$62:$S$75,0),MATCH(Summary!$D$3,'Incremental Rev Req'!$S$62:$X$62,0)) -> 4709.193664 | F13: Residential | G13: =G6*G14 -> 2434758.11 | H13: =H6*H14 -> 5397702.348 | I13: =I6*I14 -> -309.1056571 | J13: =J6*J14 -> 434434.5727 | K13: =K6*K14 -> 127428.119 | L13: 264371.8034 | M13: 623521.8274 | N13: -1560.631983 | O13: -530254.0509 | P13: 108129.6856 | Q13: =Q6*Q14 -> 21376.08554 | R13: =R6*R14 -> 39043.7196 | S13: =SUM(G13:R13) -> 8918642.482 | T13: =-Y11+Y14 -> -790790.8268 | W13: Total Sales (excl. CARE&SL) | X13: =VLOOKUP(Summary!$D$3,'SAR and RAR'!$F$64:$G$69,2,FALSE) -> 70344975.44 | Y13: =X13 -> 70344975.44
B14: DWR | C14: =INDEX('Incremental Rev Req'!$S$9:$X$22,MATCH(B14,'Incremental Rev Req'!$S$9:$S$22,0),MATCH(Summary!$D$3,'Incremental Rev Req'!$S$9:$X$9,0)) -> 416803 | D14: =INDEX('Incremental Rev Req'!$S$62:$X$75,MATCH(B14,'Incremental Rev Req'!$S$62:$S$75,0),MATCH(Summary!$D$3,'Incremental Rev Req'!$S$62:$X$62,0)) -> 416803 | F14: Total System | G14: =D4 -> 5617383.115 | H14: =D5 -> 11011831.42 | I14: =D6 -> -915.4516419 | J14: =D7 -> 992554.8866 | K14: =D8 -> 282858.6909 | L14: =D9 -> 603154.6967 | M14: =D10 -> 1344347 | N14: =D11 -> -2752.745 | O14: =D12 -> -641623.9439 | P14: =D14 -> 416803 | Q14: =D15 -> 63307.71418 | R14: =D16 -> 106244.28 | S14: =SUM(G14:R14) -> 19793192.66 | T14: 0 | W14: Res CARE Surcharge | X14: =X11*X12/X13 -> 245813.4945 | Y14: =Y11*Y12/Y13 -> 279312.3771
B15: PUCRF | C15: =INDEX('Incremental Rev Req'!$S$9:$X$22,MATCH(B15,'Incremental Rev Req'!$S$9:$S$22,0),MATCH(Summary!$D$3,'Incremental Rev Req'!$S$9:$X$9,0)) -> 63307.71418 | D15: =INDEX('Incremental Rev Req'!$S$62:$X$75,MATCH(B15,'Incremental Rev Req'!$S$62:$S$75,0),MATCH(Summary!$D$3,'Incremental Rev Req'!$S$62:$X$62,0)) -> 63307.71418 | W15: RES CARE Discount Specific Split | X15: 0.7501024974 | Y15: =X15 -> 0.7501024974
B16: SECURITIZATION | C16: =INDEX('Incremental Rev Req'!$S$9:$X$22,MATCH(B16,'Incremental Rev Req'!$S$9:$S$22,0),MATCH(Summary!$D$3,'Incremental Rev Req'!$S$9:$X$9,0)) -> 106244.28 | D16: =INDEX('Incremental Rev Req'!$S$62:$X$75,MATCH(B16,'Incremental Rev Req'!$S$62:$S$75,0),MATCH(Summary!$D$3,'Incremental Rev Req'!$S$62:$X$62,0)) -> 106244.28 | S16: Authorized | T16: w/Pending | W16: CARE Surcharge Allocator | X16: 0.5892972907 | Y16: =X16 -> 0.5892972907
B17: Total | C17: =SUM(C4:C16) -> 17312521.35 | D17: =SUM(D4:D16) -> 19797901.86 | G17: Revenue Split - Bundled | S17: Bundled Revenue | W17: System CARE Discount | X17: =SUM(-X11*X15)+SUM(X11*X16) -> -151440.2475 | Y17: =SUM(-Y11*Y15)+SUM(Y11*Y16) -> -172078.1669
G18: Generation | H18: Distribution | I18: NDC | J18: PPPC | K18: DCPP | L18: NSGC | M18: Transmission | N18: TOTCA | O18: GHG Rev | P18: DWRBC | Q18: PUCRF | R18: SECURITIZATION | S18: Total | T18: Total
F19: Residential | G19: =VLOOKUP(Summary!$D$3,'SAR and RAR'!$F$44:$R$49,'SAR and RAR'!G$35,FALSE) -> 1.053496072 | H19: =VLOOKUP(Summary!$D$3,'SAR and RAR'!$F$44:$R$49,'SAR and RAR'!H$35,FALSE) -> 0.6825473013 | I19: =VLOOKUP(Summary!$D$3,'SAR and RAR'!$F$44:$R$49,'SAR and RAR'!I$35,FALSE) -> 0.7011923278 | J19: =VLOOKUP(Summary!$D$3,'SAR and RAR'!$F$44:$R$49,'SAR and RAR'!J$35,FALSE) -> 0.7011923321 | K19: =VLOOKUP(Summary!$D$3,'SAR and RAR'!$F$44:$R$49,'SAR and RAR'!K$35,FALSE) -> 0.7011923321 | L19: =VLOOKUP(Summary!$D$3,'SAR and RAR'!$F$44:$R$49,'SAR and RAR'!L$35,FALSE) -> 0.7011923321 | M19: =VLOOKUP(Summary!$D$3,'SAR and RAR'!$F$44:$R$49,'SAR and RAR'!M$35,FALSE) -> 0.7011923321 | N19: =VLOOKUP(Summary!$D$3,'SAR and RAR'!$F$44:$R$49,'SAR and RAR'!N$35,FALSE) -> 0.7011923304 | O19: =VLOOKUP(Summary!$D$3,'SAR and RAR'!$F$44:$R$49,'SAR and RAR'!O$35,FALSE) -> 0.7065757 | P19: =VLOOKUP(Summary!$D$3,'SAR and RAR'!$F$44:$R$49,'SAR and RAR'!P$35,FALSE) -> 0.6708887653 | Q19: =VLOOKUP(Summary!$D$3,'SAR and RAR'!$F$44:$R$49,'SAR and RAR'!Q$35,FALSE) -> 0.7011923321 | R19: =VLOOKUP(Summary!$D$3,'SAR and RAR'!$F$44:$R$49,'SAR and RAR'!R$35,FALSE) -> 0.6708887652 | S19: =SUMPRODUCT(G10:R10,G19:R19)+T10*X15 -> 5616499.871 | T19: =SUMPRODUCT(G13:R13,G19:R19)+T13*Y15 -> 6410329.176
F20: Total System | G20: =VLOOKUP(Summary!$D$3,'SAR and RAR'!$F$50:$R$55,'SAR and RAR'!G$35,FALSE) -> 1.048411398 | H20: =VLOOKUP(Summary!$D$3,'SAR and RAR'!$F$50:$R$55,'SAR and RAR'!H$35,FALSE) -> 0.6497133295 | I20: =VLOOKUP(Summary!$D$3,'SAR and RAR'!$F$50:$R$55,'SAR and RAR'!I$35,FALSE) -> 0.6283028798 | J20: =VLOOKUP(Summary!$D$3,'SAR and RAR'!$F$50:$R$55,'SAR and RAR'!J$35,FALSE) -> 0.6429155899 | K20: =VLOOKUP(Summary!$D$3,'SAR and RAR'!$F$50:$R$55,'SAR and RAR'!K$35,FALSE) -> 0.6409526177 | L20: =VLOOKUP(Summary!$D$3,'SAR and RAR'!$F$50:$R$55,'SAR and RAR'!L$35,FALSE) -> 0.6386900347 | M20: =VLOOKUP(Summary!$D$3,'SAR and RAR'!$F$50:$R$55,'SAR and RAR'!M$35,FALSE) -> 0.6641776383 | N20: =VLOOKUP(Summary!$D$3,'SAR and RAR'!$F$50:$R$55,'SAR and RAR'!N$35,FALSE) -> 0.6532230564 | O20: =VLOOKUP(Summary!$D$3,'SAR and RAR'!$F$50:$R$55,'SAR and RAR'!O$35,FALSE) -> 0.6916053708 | P20: =VLOOKUP(Summary!$D$3,'SAR and RAR'!$F$50:$R$55,'SAR and RAR'!P$35,FALSE) -> 0.6118326262 | Q20: =VLOOKUP(Summary!$D$3,'SAR and RAR'!$F$50:$R$55,'SAR and RAR'!Q$35,FALSE) -> 0.6283028839 | R20: =VLOOKUP(Summary!$D$3,'SAR and RAR'!$F$50:$R$55,'SAR and RAR'!R$35,FALSE) -> 0.6226235037 | S20: =SUMPRODUCT(G11:R11,G20:R20)+X17 -> 13180295.58 | T20: =SUMPRODUCT(G14:R14,G20:R20)+Y17 -> 14884142.49
Q22: Res GHG | S22: =O10*O19 -> -374664.6272 | T22: =O13*O19 -> -374664.6272
Q23: Res GHG System | S23: =O11*O20 -> -443750.5656 | T23: =O14*O20 -> -443750.5656
F26: Bundled | N26: System (Bundled and Unbundled)
F27: =Summary!N4&" Sales" -> 2025 Sales | G27: ='SAR and AR (GS1)'!$G$27 -> 6/1/2025 Avg Rates | H27: Proposed Avg Rates (Authorized) | I27: Proposed Avg Rates (w/Pending) | J27: % Change (Authorized) | K27: % Change (w/Pending) | N27: =Summary!N4&" Sales" -> 2025 Sales | O27: =G27 -> 6/1/2025 Avg Rates | P27: Proposed Avg Rates (Authorized) | Q27: Proposed Avg Rates (w/Pending) | R27: % Change (Authorized) | S27: % Change (w/Pending) | W27: 1/1/25 Bundled w/Credit | X27: 1/1/25 Bundled w/out Credit | Z27: 1/1/25 System w/Credit | AA27: 1/1/25 System w/out Credit
E28: Residential | F28: =VLOOKUP(Summary!$D$3,'SAR and RAR'!$J$58:$K$63,2,FALSE) -> 18735934.09 | G28: =IF(Summary!$J$3="Y",W32,X32) -> 31.17865091 | H28: =IF(Summary!$J$3="Y",S19/$F$28*100,SUM(S19-'SAR and RAR'!S22)/$F$28*100) -> 31.97686579 | I28: =IF(Summary!$J$3="Y",T19/$F$28*100,SUM(T19-'SAR and RAR'!T22)/$F$28*100) -> 36.21380056 | J28: =H28/G28-1 -> 0.02560132854 | K28: =I28/G28-1 -> 0.1614935062 | M28: Residential | N28: =VLOOKUP(Summary!$D$3,'SAR and RAR'!$N$58:$O$63,2,FALSE) -> 26720106.92 | O28: =IF(Summary!$J$3="Y",Z32,AA32) -> 27.86095985 | P28: =IF(Summary!$J$3="Y",SUM(S10:T10)/N28*100,SUM(S10,T10,-O10)/N28*100) -> 28.25811485 | Q28: =IF(Summary!$J$3="Y",SUM(S13:T13)/N28*100,SUM(S13,T13,-O13)/N28*100) -> 32.40296055 | R28: =P28/O28-1 -> 0.01425489295 | S28: =Q28/O28-1 -> 0.1630238414 | V28: Residential | W28: 29.63216556 | X28: 31.62973815 | Y28: Residential System | Z28: 26.37809199 | AA28: 28.36130718
E29: Total Bundled | F29: =VLOOKUP(Summary!$D$3,'SAR and RAR'!$J$64:$K$69,2,FALSE) -> 49720524.25 | G29: =IF(Summary!$J$3="Y",W33,X33) -> 26.64700642 | H29: =IF(Summary!$J$3="Y",S20/$F$29*100,SUM(S20-S23)/$F$29*100) -> 27.40125201 | I29: =IF(Summary!$J$3="Y",T20/$F$29*100,SUM(T20-T23)/$F$29*100) -> 30.82810024 | J29: =H29/G29-1 -> 0.02830507759 | K29: =I29/G29-1 -> 0.156906699 | M29: Total System | N29: =VLOOKUP(Summary!$D$3,'SAR and RAR'!$N$64:$O$69,2,FALSE) -> 79134642.73 | O29: =IF(Summary!$J$3="Y",Z33,AA33) -> 22.25245758 | P29: =IF(Summary!$J$3="Y",SUM(S11:T11)/N29*100,SUM(S11,T11,-O11)/N29*100) -> 22.68214714 | Q29: =IF(Summary!$J$3="Y",SUM(S14:T14)/N29*100,SUM(S14,T14,-O14)/N29*100) -> 25.8228456 | R29: =P29/O29-1 -> 0.0193097575 | S29: =Q29/O29-1 -> 0.1604491552 | V29: Bundled | W29: 26.41450186 | X29: 27.30660685 | Y29: Total System | Z29: 22.10831567 | AA29: 22.91911704
E30: =M29 -> Total System | F30: =N29 -> 79134642.73
W31: 6/1/25 Bundled w/Credit | X31: 6/1/25 Bundled w/out Credit | Z31: 6/1/25 System w/Credit | AA31: 6/1/25 System w/out Credit
V32: Residential | W32: 29.17287662 | X32: 31.17865091 | Y32: Residential System | Z32: 25.87046746 | AA32: 27.86095985
V33: Bundled | W33: 25.75181082 | X33: 26.64700642 | Y33: Total System | Z33: 21.43919904 | AA33: 22.25245758
G35: 2 | H35: =G35+1 -> 3 | I35: =H35+1 -> 4 | J35: 5 | K35: 6 | L35: 7 | M35: 8 | N35: 9 | O35: 10 | P35: 11 | Q35: 12 | R35: 13
F36: Residential Allocator | G36: Generation | H36: Distribution | I36: NDC | J36: PPPC | K36: DCPP | L36: NSGC | M36: Transmission | N36: TOTCA | O36: GHG Rev | P36: DWRBC | Q36: PUCRF | R36: SECURITIZATION
F37: 2025 | G37: 0.4334328031 | H37: 0.4901729914 | I37: 0.3376537252 | J37: 0.4376932486 | K37: 0.4505009853 | L37: 0.438315087 | M37: 0.4638101825 | N37: 0.5669366334 | O37: 0.8264249736 | P37: 0.2594263611 | Q37: 0.3376537254 | R37: 0.3674900861
F38: 2026 | G38: 0.4386034166 | H38: 0.4940306582 | I38: 0.3398582127 | J38: 0.440934602 | K38: 0.4533620698 | L38: 0.4412454822 | M38: 0.4709175474 | N38: 0.3549577209 | O38: 0.8087197621 | P38: 0.2543504775 | Q38: 0.3398582131 | R38: 0.362195607
F39: 2027 | G39: 0.4381287024 | H39: 0.5094551268 | I39: 0.3501930394 | J39: 0.454532782 | K39: 0.4673279061 | L39: 0.454803935 | M39: 0.4857520085 | N39: 0.3657698593 | O39: 0.8342916256 | P39: 0.2618731176 | Q39: 0.3501930397 | R39: 0.373028564
F40: 2028 | G40: 0.4402523965 | H40: 0.505047153 | I40: 0.395821832 | J40: 0.4510603401 | K40: 0.4635324167 | L40: 0.4407330779 | M40: 0.4816957629 | N40: 0.3631039805 | O40: 0.8217097772 | P40: 0.2603334081 | Q40: 0.3476929436 | R40: 0.3708104099
F41: 2029 | G41: 0.4402523965 | H41: 0.505047153 | I41: 0.395821832 | J41: 0.4510603401 | K41: 0.4635324167 | L41: 0.4407330779 | M41: 0.4816957629 | N41: 0.3631039805 | O41: 0.8217097772 | P41: 0.2603334081 | Q41: 0.3476929436 | R41: 0.3708104099
F43: Revenue Split - Bundled
E44: Residential | F44: 2025 | G44: 1.053496072 | H44: 0.6825473013 | I44: 0.7011923278 | J44: 0.7011923321 | K44: 0.7011923321 | L44: 0.7011923321 | M44: 0.7011923321 | N44: 0.7011923304 | O44: 0.7065757 | P44: 0.6708887653 | Q44: 0.7011923321 | R44: 0.6708887652 | U44: =G44 -> 1.053496072
E45: Residential | F45: 2026 | G45: 1.052743733 | H45: 0.7019840025 | I45: 0.7154315839 | J45: 0.7154315841 | K45: 0.7154315841 | L45: 0.7154315841 | M45: 0.7154315841 | N45: 0.715431584 | O45: 0.7043649742 | P45: 0.6931292262 | Q45: 0.7154315842 | R45: 0.6931292261 | T45: =K59/K58-1 -> 0.04397781381 | U45: =G45 -> 1.052743733
E46: Residential | F46: 2027 | G46: 1.051885977 | H46: 0.7052333516 | I46: 0.7185930874 | J46: 0.7185930877 | K46: 0.7185930877 | L46: 0.7185930877 | M46: 0.7185930877 | N46: 0.7185930876 | O46: 0.7075991762 | P46: 0.6964333708 | Q46: 0.7185930878 | R46: 0.6964333707 | T46: =K60/K59-1 -> 0.04617692768 | U46: 1.051885977
E47: Residential | F47: 2028 | G47: 1.051659145 | H47: 0.7060985665 | I47: 0.7194346889 | J47: 0.7194346891 | K47: 0.7194346891 | L47: 0.7194346891 | M47: 0.7194346891 | N47: 0.719434689 | O47: 0.7084603176 | P47: 0.6973133296 | Q47: 0.7194346892 | R47: 0.6973133295 | T47: 0.02226113612 | U47: 1.051659145
E48: Residential | F48: 2029 | G48: 1.051659145 | H48: 0.7060985665 | I48: 0.7194346889 | J48: 0.7194346891 | K48: 0.7194346891 | L48: 0.7194346891 | M48: 0.7194346891 | N48: 0.719434689 | O48: 0.7084603176 | P48: 0.6973133296 | Q48: 0.7194346892 | R48: 0.6973133295 | T48: 0 | U48: 1.051659145
E49: Residential | T49: -1 | U49: 0
E50: Total System | F50: 2025 | G50: 1.048411398 | H50: 0.6497133295 | I50: 0.6283028798 | J50: 0.6429155899 | K50: 0.6409526177 | L50: 0.6386900347 | M50: 0.6641776383 | N50: 0.6532230564 | O50: 0.6916053708 | P50: 0.6118326262 | Q50: 0.6283028839 | R50: 0.6226235037 | U50: 1.048411398
E51: Total System | F51: 2026 | G51: 1.048911533 | H51: 0.6592929074 | I51: 0.6388478166 | J51: 0.6529089711 | K51: 0.6517847762 | L51: 0.6492572883 | M51: 0.6742723722 | N51: 0.6405194042 | O51: 0.6841793971 | P51: 0.6232553568 | Q51: 0.6388478175 | R51: 0.6341621376 | T51: =K65/K64-1 -> 0.03362369559 | U51: 1.048911533
E52: Total System | F52: 2027 | G52: 1.048064364 | H52: 0.6603819419 | I52: 0.5896210369 | J52: 0.6539836176 | K52: 0.6530372504 | L52: 0.6586178472 | M52: 0.675436885 | N52: 0.6415577188 | O52: 0.6874004682 | P52: 0.6238492509 | Q52: 0.6398436554 | R52: 0.63471617 | T52: =K66/K65-1 -> 0.04617692768 | U52: 1.048064364
E53: Total System | F53: 2028 | G53: 1.048098118 | H53: 0.660057117 | I53: 0.5904506491 | J53: 0.6538815691 | K53: 0.6530164509 | L53: 0.6584095896 | M53: 0.6753821455 | N53: 0.6414373936 | O53: 0.6882773304 | P53: 0.6235275451 | Q53: 0.6397040368 | R53: 0.6343836857 | T53: 0.02226113612 | U53: 1.048098118
E54: Total System | F54: 2029 | G54: 1.048098118 | H54: 0.660057117 | I54: 0.5904506491 | J54: 0.6538815691 | K54: 0.6530164509 | L54: 0.6584095896 | M54: 0.6753821455 | N54: 0.6414373936 | O54: 0.6882773304 | P54: 0.6235275451 | Q54: 0.6397040368 | R54: 0.6343836857 | T54: 0 | U54: 1.048098118
E55: Total System | T55: -1 | U55: 0
F57: System Sales | J57: Bundled Sales | L57: % of Bdl | N57: System Sales | Q57: CARE%
E58: Non-CARE Residential | F58: =$F$37 -> 2025 | G58: 18361053.62 | I58: Residential | J58: =$F$37 -> 2025 | K58: 18735934.09 | L58: =K58/O58 -> 0.7011923321 | M58: Residential | N58: =$F$37 -> 2025 | O58: 26720106.92 | Q58: =1-G58/O58 -> 0.3128375693
E59: Non-CARE Residential | F59: =$F$38 -> 2026 | G59: 18114893.21 | I59: Residential | J59: =$F$38 -> 2026 | K59: 19559899.51 | L59: 0.7154315841 | M59: Residential | N59: =$F$38 -> 2026 | O59: 27340000 | Q59: 0.337421609
E60: Non-CARE Residential | F60: =$F$39 -> 2027 | G60: 19184891.08 | I60: Residential | J60: =$F$39 -> 2027 | K60: 20463115.57 | L60: 0.7185930877 | M60: Residential | N60: =$F$39 -> 2027 | O60: 28476638.48 | Q60: 0.3262936884
E61: Non-CARE Residential | F61: =$F$40 -> 2028 | G61: 19420132.18 | I61: Residential | J61: =$F$40 -> 2028 | K61: 20918647.78 | L61: 0.7194346891 | M61: Residential | N61: =$F$40 -> 2028 | O61: 29076507 | Q61: =1-G61/O61 -> 0.3321022991
E62: Non-CARE Residential | F62: =$F$41 -> 2029 | G62: 19420132.18 | I62: Residential | J62: =$F$41 -> 2029 | K62: 20918647.78 | L62: =K62/O62 -> 0.7194346891 | M62: Residential | N62: =$F$41 -> 2029 | O62: 29076507 | Q62: =1-G62/O62 -> 0.3321022991
E63: Non-CARE Residential
E64: Non-Exempt Sales | F64: =$F$37 -> 2025 | G64: 70344975.44 | I64: Total System | J64: 2025 | K64: 49720524.25 | L64: 0.628302884 | M64: Total System | N64: 2025 | O64: 79134642.73
E65: Non-Exempt Sales | F65: =$F$38 -> 2026 | G65: 70795908.28 | I65: Total System | J65: =$F$38 -> 2026 | K65: 51392312.02 | L65: 0.6388478176 | M65: Total System | N65: =$F$38 -> 2026 | O65: 80445312.02 | P65: =O65/O64-1 -> 0.01656252239
E66: Non-Exempt Sales | F66: =$F$39 -> 2027 | G66: 73970645.71 | I66: Total System | J66: =$F$39 -> 2027 | K66: 53765451.1 | L66: 0.6424349163 | M66: Total System | N66: =$F$39 -> 2027 | O66: 83690113.56 | P66: 0.04033549568
E67: Non-Exempt Sales | F67: =$F$40 -> 2028 | G67: 75325448.63 | I67: Total System | J67: =$F$40 -> 2028 | K67: 54962331.12 | L67: 0.6433912525 | M67: Total System | N67: =$F$40 -> 2028 | O67: 85425984.44 | P67: 0.02074164806
E68: Non-Exempt Sales | F68: =$F$41 -> 2029 | G68: 75325448.63 | I68: Total System | J68: =$F$41 -> 2029 | K68: 54962331.12 | L68: =K68/O68 -> 0.6433912525 | M68: Total System | N68: =$F$41 -> 2029 | O68: 85425984.44 | P68: =O68/O67-1 -> 0
J71: =Summary!D3 -> 2025 | K71: =VLOOKUP(Summary!D3,'SAR and RAR'!J58:K63,2,FALSE) -> 18735934.09 | N71: =Summary!D3 -> 2025 | O71: =VLOOKUP(Summary!D3,'SAR and RAR'!N58:O63,2,FALSE) -> 26720106.92
J72: % of Resl Sales (Bdl) | N72: % of Resl Sales (Sys)
J73: =$F$37 -> 2025 | K73: =K58/K64 -> 0.3768249505 | N73: =$F$37 -> 2025 | O73: =O58/O64 -> 0.3376537254
J74: =$F$38 -> 2026 | K74: 0.3805997189 | N74: =$F$38 -> 2026 | O74: 0.3398582131
J75: =$F$39 -> 2027 | K75: 0.3805997189 | N75: =$F$39 -> 2027 | O75: 0.340262873
J76: =$F$40 -> 2028 | K76: 0.3805997189 | N76: =$F$40 -> 2028 | O76: 0.3403707571
J77: =$F$41 -> 2029 | K77: 0.3805997189 | N77: =$F$41 -> 2029 | O77: 0.3403707571

Sheet Res Bill Impact (hidden)
A1: CONFIDENTIAL The Attachment(s) Are Marked Confidential In Accordance With D. 16-08-024 and D. 17-09-023. Basis for Confidentiality In Accompanying Confidentiality Declaration.
E3: Schedule D | O3: Schedule D-CARE
E4: =Summary!N4 -> 2025 | F4: =Summary!N3 -> 2025-06-01 | G4: Proposed | H4: Proposed | I4: Proposed | J4: Proposed | O4: =Summary!N4 -> 2025 | P4: =Summary!N3 -> 2025-06-01 | Q4: Proposed | R4: Proposed | S4: Proposed | T4: Proposed
E5: Sales Forecast | F5: Rates | G5: Authorized Rates | H5: Authorized Revenue | I5: w/Pending Rates | J5: w/Pending Revenue | O5: Sales Forecast | P5: Rates | Q5: Authorized Rates | R5: Authorized Revenue | S5: w/Pending Rates | T5: w/Pending Revenue
D7: Baseline - Summer | E7: =HLOOKUP(E$4,$F$95:$K$105,$A97,FALSE) -> 3085.670937 | F7: 0.32381 | G7: =(W8-SUM(R14:R15,H14:H15))/SUM(SUM(E7:E8),F9/F7*SUM(E9:E10),F11/F7*SUM(E11:E12),SUM(O7:O8)*(1+(P7/F7-1)),SUM(O9:O10)*(1+(P9/F9-1))*F9/F7,SUM(O11:O12)*(1+(P11/F11-1))*F11/F7) -> 0.3288187057 | H7: =E7*G7 -> 1014.626324 | I7: =(W9-SUM(T14:T15,J14:J15))/SUM(SUM(E7:E8),F9/F7*SUM(E9:E10),F11/F7*SUM(E11:E12),SUM(O7:O8)*(1+(P7/F7-1)),SUM(O9:O10)*(1+(P9/F9-1))*F9/F7,SUM(O11:O12)*(1+(P11/F11-1))*F11/F7) -> 0.3726123983 | J7: =E7*I7 -> 1149.759248 | N7: Baseline - Summer | O7: =HLOOKUP(O$4,$M$95:$R$105,$A97,FALSE) -> 1783.360129 | P7: 0.20347 | Q7: =G7*(1+(P7/F7-1)) -> 0.2066172819 | R7: =O7*Q7 -> 368.4730225 | S7: =I7*(1+(P7/F7-1)) -> 0.2341355878 | T7: =O7*S7 -> 417.548072 | V7: Bundled Residential Rev Req
D8: - Winter | E8: 4290.291273 | F8: 0.32381 | G8: =G7 -> 0.3288187057 | H8: 1410.728023 | I8: =I7 -> 0.3726123983 | J8: 1598.61572 | N8: - Winter | O8: 2747.277654 | P8: 0.20347 | Q8: =G8*(1+(P8/F8-1)) -> 0.2066172819 | R8: 567.6350415 | S8: 0.2341355878 | T8: 643.2354683 | V8: Proposed (Authorized) | W8: ='SAR and RAR'!S19/1000-'SAR and RAR'!S22/1000+$W$6 -> 5991.164498
D9: 101% - 400% of Baseline - Summer | E9: 1911.92882 | F9: 0.41631 | G9: =F9/F$7*G$7 -> 0.4227494993 | H9: 808.2669515 | I9: =F9/F$7*I$7 -> 0.479053357 | J9: 915.9159197 | N9: 101% - 400% of Baseline - Summer | O9: 745.4907551 | P9: 0.26591 | Q9: 0.2700231063 | R9: 201.2997294 | S9: 0.3059861117 | T9: 228.1098174 | V9: Proposed (w/Pending) | W9: ='SAR and RAR'!T19/1000-'SAR and RAR'!T22/1000+$W$6 -> 6784.993804
D10: - Winter | E10: 2615.804258 | F10: 0.41631 | G10: =G9 -> 0.4227494993 | H10: 1105.82994 | I10: =I9 -> 0.479053357 | J10: 1253.109811 | N10: - Winter | O10: 1112.023766 | P10: 0.26591 | Q10: 0.2700231063 | R10: 300.2721116 | S10: 0.3059861117 | T10: 340.2638283
D11: 401% of Baseline - Summer | E11: 151.6325582 | F11: 0.41631 | G11: =F11/F$7*G$7 -> 0.4227494993 | H11: 64.10258807 | I11: =F11/F$7*I$7 -> 0.479053357 | J11: 72.64008604 | N11: 401% of Baseline - Summer | O11: 8.477005966 | P11: 0.26591 | Q11: 0.2700231063 | R11: 2.288987483 | S11: 0.3059861117 | T11: 2.593846094
D12: - Winter | E12: 262.8967474 | F12: 0.41631 | G12: =G11 -> 0.4227494993 | H12: 111.1394683 | I12: =I11 -> 0.479053357 | J12: 125.9415694 | N12: - Winter | O12: 21.08018443 | P12: 0.26591 | Q12: 0.2700231063 | R12: 5.692136881 | S12: 0.3059861117 | T12: 6.450243668
D14: Basic Charge - Single-Family Residence | E14: =HLOOKUP(E$4,$F$95:$K$106,$A104,FALSE) -> 18879671.95 | F14: 0.031 | G14: =F14 -> 0.031 | H14: =G14*E14*365/12/10^6 -> 17.80195734 | I14: =G14 -> 0.031 | J14: =I14*E14*365/12/10^6 -> 17.80195734 | N14: Basic Charge - Single-Family Residence | O14: =HLOOKUP(O$4,$M$95:$R$105,$A104,FALSE) -> 6433922.126 | P14: 0.021 | Q14: =P14 -> 0.021 | R14: =Q14*O14*365/12/10^6 -> 4.109667758 | S14: =Q14 -> 0.021 | T14: =S14*O14*365/12/10^6 -> 4.109667758
D15: Basic Charge - Multi-Family Residence | E15: =HLOOKUP(E$4,$F$95:$K$106,$A105,FALSE) -> 8588406.524 | F15: 0.024 | G15: =F15 -> 0.024 | H15: =G15*E15*365/12/10^6 -> 6.269536763 | I15: =G15 -> 0.024 | J15: =I15*E15*365/12/10^6 -> 6.269536763 | N15: Basic Charge - Multi-Family Residence | O15: =HLOOKUP(O$4,$M$95:$R$105,$A105,FALSE) -> 5402078.398 | P15: 0.016 | Q15: =P15 -> 0.016 | R15: =Q15*O15*365/12/10^6 -> 2.629011487 | S15: =Q15 -> 0.016 | T15: =S15*O15*365/12/10^6 -> 2.629011487
O19: 2024 Recorded Data - Average Monthly Usage - kWh (Bundled / Basic Service Only) | W19: 2024 Recorded Data - Average Monthly Usage - kWh (Bundled / All Electric Only)
B20: SCHEDULE D RATES ($/kWh) | E20: Proposed | F20: Proposed | H20: MONTHLY BASELINE QUANTITIES | I20: BASIC | K20: ALL-ELECTRIC | O20: Climate Zone | P20: Summer | Q20: Winter | R20: Summer | S20: Winter | T20: Sample Population Weight | W20: Climate Zone | X20: Summer | Y20: Winter | Z20: Summer | AA20: Winter | AB20: Sample Population Weight
B21: Rates | C21: Jan 2025 | D21: =Summary!N3 -> 2025-06-01 | E21: Authorized | F21: w/Pending | H21: Climate Zone | I21: Summer | J21: Winter | K21: Summer | L21: Winter | P21: Non-CARE | R21: CARE | T21: Non-CARE | U21: CARE | X21: Non-CARE | Z21: CARE | AB21: Non-CARE | AC21: CARE
B22: Tier 1 | C22: 0.33308 | D22: =F7 -> 0.32381 | E22: =G7 -> 0.3288187057 | F22: =I7 -> 0.3726123983 | H22: 5 warm | I22: =17*$O$32 -> 517.089 | J22: =18.4*$O$32 -> 559.6728 | K22: =16.8*$O$32 -> 511.0056 | L22: =27*$O$32 -> 821.259 | O22: 5 warm | P22: 395.5552996 | Q22: 410.4255495 | R22: 370.5382517 | S22: 352.8129705 | T22: 0.000391559287 | U22: 5.780756421e-05 | W22: 5 warm | X22: 395.0513658 | Y22: 472.3532524 | Z22: 354.0301735 | AA22: 430.0455986 | AB22: 0.0003215327132 | AC22: 0.0001643349365
B23: Tier 2 | C23: 0.42821 | D23: =F9 -> 0.41631 | E23: =G9 -> 0.4227494993 | F23: =I9 -> 0.479053357 | H23: 6 cool | I23: =11.4*$O$32 -> 346.7538 | J23: =11*$O$32 -> 334.587 | K23: =8.7*$O$32 -> 264.6279 | L23: =12.6*$O$32 -> 383.2542 | O23: 6 cool | P23: 441.3631683 | Q23: 378.5967426 | R23: 403.4336933 | S23: 346.7408462 | T23: 0.175728545 | U23: 0.06241911603 | W23: 6 cool | X23: 333.6664732 | Y23: 330.2803509 | Z23: 364.4793275 | AA23: 373.6317841 | AB23: 0.2756588649 | AC23: 0.1336590817
B24: Tier 2 | C24: 0.42821 | D24: =F11 -> 0.41631 | E24: =G11 -> 0.4227494993 | F24: =I11 -> 0.479053357 | H24: 8 cool | I24: =12.8*$O$32 -> 389.3376 | J24: =10.3*$O$32 -> 313.2951 | K24: =9.9*$O$32 -> 301.1283 | L24: =12.3*$O$32 -> 374.1291 | O24: 8 cool | P24: 568.4975767 | Q24: 397.6071315 | R24: 503.0842528 | S24: 372.8283632 | T24: 0.2213136597 | U24: 0.1553419784 | W24: 8 cool | X24: 395.5847708 | Y24: 347.0862508 | Z24: 414.4144944 | AA24: 370.2534605 | AB24: 0.2319803089 | AC24: 0.1999079724
H25: 9 warm | I25: =16.9*$O$32 -> 514.0473 | J25: =12*$O$32 -> 365.004 | K25: =12.5*$O$32 -> 380.2125 | L25: =13.9*$O$32 -> 422.7963 | O25: 9 warm | P25: 736.1896342 | Q25: 454.0542708 | R25: 685.496621 | S25: 424.2446352 | T25: 0.1275808923 | U25: 0.0946365769 | W25: 9 warm | X25: 530.8275233 | Y25: 380.1763947 | Z25: 510.0101939 | AA25: 375.6663006 | AB25: 0.08053285732 | AC25: 0.08292340896
B26: SCHEDULE D-CARE RATES ($/kWh) | E26: Proposed | F26: Proposed | H26: 10 hot (Sec 745) | I26: =19.3*$O$32 -> 587.0481 | J26: =12.1*$O$32 -> 368.0457 | K26: =15.9*$O$32 -> 483.6303 | L26: =16.4*$O$32 -> 498.8388 | O26: 10 hot (Sec 745) | P26: 857.9526651 | Q26: 482.0306437 | R26: 918.4083871 | S26: 499.6563415 | T26: 0.3013940598 | U26: 0.4075638401 | W26: 10 hot (Sec 745) | X26: 627.4953074 | Y26: 427.1016506 | Z26: 660.3259927 | AA26: 426.1138274 | AB26: 0.2614116395 | AC26: 0.3672447605
B27: Rates | C27: =C21 -> Jan 2025 | D27: =D21 -> 2025-06-01 | E27: Authorized | F27: w/Pending | H27: 13 hot | I27: =22.2*$O$32 -> 675.2574 | J27: =12.2*$O$32 -> 371.0874 | K27: =24.2*$O$32 -> 736.0914 | L27: =23*$O$32 -> 699.591 | O27: 13 hot | P27: 995.7412826 | Q27: 488.3574385 | R27: 1027.53491 | S27: 485.942318 | T27: 0.04959424669 | U27: 0.1129503862 | W27: 13 hot | X27: 965.9846505 | Y27: 574.7150255 | Z27: 962.9031858 | AA27: 549.7168372 | AB27: 0.03106116883 | AC27: 0.06378386669
B28: Tier 1 | C28: 0.20878 | D28: =P7 -> 0.20347 | E28: =Q7 -> 0.2066172819 | F28: =S7 -> 0.2341355878 | H28: 14 hot | I28: =19.2*$O$32 -> 584.0064 | J28: =11.9*$O$32 -> 361.9623 | K28: =18.5*$O$32 -> 562.7145 | L28: =21.1*$O$32 -> 641.7987 | O28: 14 hot | P28: 835.9220396 | Q28: 473.45593 | R28: 933.1504328 | S28: 527.5764602 | T28: 0.06232862483 | U28: 0.1067631121 | W28: 14 hot | X28: 756.0211147 | Y28: 556.7004427 | Z28: 880.8399974 | AA28: 657.7029793 | AB28: 0.04437151442 | AC28: 0.07098173691
B29: Tier 2 | C29: 0.27299 | D29: =P9 -> 0.26591 | E29: =Q9 -> 0.2700231063 | F29: =S9 -> 0.3059861117 | H29: 15 hot | I29: =45*$O$32 -> 1368.765 | J29: =9.7*$O$32 -> 295.0449 | K29: =24*$O$32 -> 730.008 | L29: =17.4*$O$32 -> 529.2558 | O29: 15 hot | P29: 1219.397003 | Q29: 540.766029 | R29: 1360.59217 | S29: 535.5743293 | T29: 0.03219052405 | U29: 0.03515632284 | W29: 15 hot | X29: 924.9686507 | Y29: 451.6365116 | Z29: 1114.196822 | AA29: 520.3020094 | AB29: 0.03508032774 | AC29: 0.05084522936
B30: Tier 2 | C30: 0.27299 | D30: =P11 -> 0.26591 | E30: =Q12 -> 0.2700231063 | F30: =S12 -> 0.3059861117 | H30: 16 cool | I30: =14.7*$O$32 -> 447.1299 | J30: =12.4*$O$32 -> 377.1708 | K30: =13.5*$O$32 -> 410.6295 | L30: =23.2*$O$32 -> 705.6744 | O30: 16 cool | P30: 565.1396542 | Q30: 416.659723 | R30: 776.7883471 | S30: 493.603768 | T30: 0.02947788832 | U30: 0.02511085999 | W30: 16 cool | X30: 449.8471198 | Y30: 538.6630052 | Z30: 698.918731 | AA30: 570.1108274 | AB30: 0.03958178573 | AC30: 0.03048960855
N32: Daily to Monthly Conversion Factor | O32: 30.417
C34: NON-CARE | M34: Essential Use (Basic) - Non-CARE | W34: Essential Use (Basic) - CARE
C35: =C27 -> Jan 2025 | E35: =D27 -> 2025-06-01 | G35: =E21 -> Authorized | I35: =F21 -> w/Pending | M35: =C35 -> Jan 2025 | O35: =E35 -> 2025-06-01 | Q35: =G35 -> Authorized | S35: =I35 -> w/Pending | W35: =M35 -> Jan 2025 | Y35: =O35 -> 2025-06-01 | AA35: =Q35 -> Authorized | AC35: =S35 -> w/Pending
C36: Summer | D36: Winter | E36: Summer | F36: Winter | G36: Summer | H36: Winter | I36: Summer | J36: Winter | M36: Summer | N36: Winter | O36: Summer | P36: Winter | Q36: Summer | R36: Winter | S36: Summer | T36: Winter | W36: Summer | X36: Winter | Y36: Summer | Z36: Winter | AA36: Summer | AB36: Winter | AC36: Summer | AD36: Winter
B37: 5 warm | C37: =C$22*MIN(I22,P22)+IF(P22-I22>0,C$23*(P22-I22))+ROUND($F$14*365/12,2)+(Summary!N19/12)*2 -> 123.3582259 | D37: =C$22*MIN(J22,Q22)+IF(Q22-J22>0,C$23*(Q22-J22))+ROUND($F$14*365/12,2)+(Summary!N19/12)*2 -> 128.3112087 | E37: =D$22*MIN(I22,P22)+IF(P22-I22>0,D$23*(P22-I22))+ROUND($F$14*365/12,2)+(Summary!N19/12)*2 -> 119.6914282 | F37: =D$22*MIN(J22,Q22)+IF(Q22-J22>0,D$23*(Q22-J22))+ROUND($F$14*365/12,2)+(Summary!N19/12)*2 -> 124.5065638 | G37: =E$22*MIN(I22,P22)+IF(P22-I22>0,E$23*(P22-I22))+ROUND($F$14*365/12,2)+(Summary!N19/12)*2 -> 121.6726483 | H37: =E$22*MIN(J22,Q22)+IF(Q22-J22>0,E$23*(Q22-J22))+ROUND($F$14*365/12,2)+(Summary!N19/12)*2 -> 126.5622646 | I37: =F$22*MIN(I22,P22)+IF(P22-I22>0,F$23*(P22-I22))+ROUND($F$14*365/12,2)+(Summary!N19/12)*2 -> 138.9954755 | J37: =F$22*MIN(J22,Q22)+IF(Q22-J22>0,F$23*(Q22-J22))+ROUND($F$14*365/12,2)+(Summary!N19/12)*2 -> 144.536315 | L37: 5 warm | M37: =C$22*I22+ROUND($F$14*365/12,2)+(Summary!N19/12)*2 -> 163.8386708 | N37: =C$22*J22+ROUND($F$14*365/12,2)+(Summary!N19/12)*2 -> 178.0224829 | O37: =D$22*I22+ROUND($F$14*365/12,2)+(Summary!N19/12)*2 -> 159.0452558 | P37: =D$22*J22+ROUND($F$14*365/12,2)+(Summary!N19/12)*2 -> 172.834316 | Q37: =E$22*I22+ROUND($F$14*365/12,2)+(Summary!N19/12)*2 -> 161.6352024 | R37: =E$22*J22+ROUND($F$14*365/12,2)+(Summary!N19/12)*2 -> 175.6375524 | S37: =F$22*I22+ROUND($F$14*365/12,2)+(Summary!N19/12)*2 -> 184.2804391 | T37: =F$22*J22+ROUND($F$14*365/12,2)+(Summary!N19/12)*2 -> 200.1476909 | V37: 5 warm | W37: =C$28*I22+ROUND($P$14*365/12,2)+(Summary!N19/12)*2 -> 99.26450809 | X37: =C$28*J22+ROUND($P$14*365/12,2)+(Summary!N19/12)*2 -> 108.1551539 | Y37: =D$28*I22+ROUND($P$14*365/12,2)+(Summary!N19/12)*2 -> 96.5187655 | Z37: =D$28*J22+ROUND($P$14*365/12,2)+(Summary!N19/12)*2 -> 105.1832913 | AA37: =E$28*I22+ROUND($P$14*365/12,2)+(Summary!N19/12)*2 -> 98.14619035 | AB37: =E$28*J22+ROUND($P$14*365/12,2)+(Summary!N19/12)*2 -> 106.9447394 | AC37: =F$28*I22+ROUND($P$14*365/12,2)+(Summary!N19/12)*2 -> 112.3756036 | AD37: =F$28*J22+ROUND($P$14*365/12,2)+(Summary!N19/12)*2 -> 122.3459867
B38: 6 cool | C38: =C$22*MIN(I23,P23)+IF(P23-I23>0,C$23*(P23-I23))+ROUND($F$14*365/12,2)+(Summary!N19/12)*2 -> 147.6161 | D38: =C$22*MIN(J23,Q23)+IF(Q23-J23>0,C$23*(Q23-J23))+ROUND($F$14*365/12,2)+(Summary!N19/12)*2 -> 121.8963165 | E38: =D$22*MIN(I23,P23)+IF(P23-I23>0,D$23*(P23-I23))+ROUND($F$14*365/12,2)+(Summary!N19/12)*2 -> 143.2758408 | F38: =D$22*MIN(J23,Q23)+IF(Q23-J23>0,D$23*(Q23-J23))+ROUND($F$14*365/12,2)+(Summary!N19/12)*2 -> 118.2709791 | G38: =E$22*MIN(I23,P23)+IF(P23-I23>0,E$23*(P23-I23))+ROUND($F$14*365/12,2)+(Summary!N19/12)*2 -> 145.6218655 | H38: =E$22*MIN(J23,Q23)+IF(Q23-J23>0,E$23*(Q23-J23))+ROUND($F$14*365/12,2)+(Summary!N19/12)*2 -> 120.2302276 | I38: =F$22*MIN(I23,P23)+IF(P23-I23>0,F$23*(P23-I23))+ROUND($F$14*365/12,2)+(Summary!N19/12)*2 -> 166.1343672 | J38: =F$22*MIN(J23,Q23)+IF(Q23-J23>0,F$23*(Q23-J23))+ROUND($F$14*365/12,2)+(Summary!N19/12)*2 -> 137.3609461 | L38: 6 cool | M38: =C$22*I23+ROUND($F$14*365/12,2)+(Summary!N19/12)*2 -> 107.1034224 | N38: =C$22*J23+ROUND($F$14*365/12,2)+(Summary!N19/12)*2 -> 103.0509046 | O38: =D$22*I23+ROUND($F$14*365/12,2)+(Summary!N19/12)*2 -> 103.8890146 | P38: =D$22*J23+ROUND($F$14*365/12,2)+(Summary!N19/12)*2 -> 99.94928314 | Q38: =E$22*I23+ROUND($F$14*365/12,2)+(Summary!N19/12)*2 -> 105.6258024 | R38: =E$22*J23+ROUND($F$14*365/12,2)+(Summary!N19/12)*2 -> 101.625131 | S38: =F$22*I23+ROUND($F$14*365/12,2)+(Summary!N19/12)*2 -> 120.8114317 | T38: =F$22*J23+ROUND($F$14*365/12,2)+(Summary!N19/12)*2 -> 116.2779312 | V38: 6 cool | W38: =C$28*I23+ROUND($P$14*365/12,2)+(Summary!N19/12)*2 -> 63.70192503 | X38: =C$28*J23+ROUND($P$14*365/12,2)+(Summary!N19/12)*2 -> 61.16174053 | Y38: =D$28*I23+ROUND($P$14*365/12,2)+(Summary!N19/12)*2 -> 61.86066235 | Z38: =D$28*J23+ROUND($P$14*365/12,2)+(Summary!N19/12)*2 -> 59.38508356 | AA38: =E$28*I23+ROUND($P$14*365/12,2)+(Summary!N19/12)*2 -> 62.95199431 | AB38: =E$28*J23+ROUND($P$14*365/12,2)+(Summary!N19/12)*2 -> 60.43812316 | AC38: =F$28*I23+ROUND($P$14*365/12,2)+(Summary!N19/12)*2 -> 72.49407144 | AD38: =F$28*J23+ROUND($P$14*365/12,2)+(Summary!N19/12)*2 -> 69.64539057
B39: 8 cool | C39: =C$22*MIN(I24,P24)+IF(P24-I24>0,C$23*(P24-I24))+ROUND($F$14*365/12,2)+(Summary!N19/12)*2 -> 198.0053281 | D39: =C$22*MIN(J24,Q24)+IF(Q24-J24>0,C$23*(Q24-J24))+ROUND($F$14*365/12,2)+(Summary!N19/12)*2 -> 132.0622536 | E39: =D$22*MIN(I24,P24)+IF(P24-I24>0,D$23*(P24-I24))+ROUND($F$14*365/12,2)+(Summary!N19/12)*2 -> 192.2641648 | F39: =D$22*MIN(J24,Q24)+IF(Q24-J24>0,D$23*(Q24-J24))+ROUND($F$14*365/12,2)+(Summary!N19/12)*2 -> 128.1546948 | G39: =E$22*MIN(I24,P24)+IF(P24-I24>0,E$23*(P24-I24))+ROUND($F$14*365/12,2)+(Summary!N19/12)*2 -> 195.3679428 | H39: =E$22*MIN(J24,Q24)+IF(Q24-J24>0,E$23*(Q24-J24))+ROUND($F$14*365/12,2)+(Summary!N19/12)*2 -> 130.266825 | I39: =F$22*MIN(I24,P24)+IF(P24-I24>0,F$23*(P24-I24))+ROUND($F$14*365/12,2)+(Summary!N19/12)*2 -> 222.5058718 | J39: =F$22*MIN(J24,Q24)+IF(Q24-J24>0,F$23*(Q24-J24))+ROUND($F$14*365/12,2)+(Summary!N19/12)*2 -> 148.7342669 | L39: 8 cool | M39: =C$22*I24+ROUND($F$14*365/12,2)+(Summary!N19/12)*2 -> 121.2872345 | N39: =C$22*J24+ROUND($F$14*365/12,2)+(Summary!N19/12)*2 -> 95.95899857 | O39: =D$22*I24+ROUND($F$14*365/12,2)+(Summary!N19/12)*2 -> 117.6780749 | P39: =D$22*J24+ROUND($F$14*365/12,2)+(Summary!N19/12)*2 -> 93.054753 | Q39: =E$22*I24+ROUND($F$14*365/12,2)+(Summary!N19/12)*2 -> 119.6281524 | R39: =E$22*J24+ROUND($F$14*365/12,2)+(Summary!N19/12)*2 -> 94.62395595 | S39: =F$22*I24+ROUND($F$14*365/12,2)+(Summary!N19/12)*2 -> 136.6786835 | T39: =F$22*J24+ROUND($F$14*365/12,2)+(Summary!N19/12)*2 -> 108.3443052 | V39: 8 cool | W39: =C$28*I24+ROUND($P$14*365/12,2)+(Summary!N19/12)*2 -> 72.59257079 | X39: =C$28*J24+ROUND($P$14*365/12,2)+(Summary!N19/12)*2 -> 56.71641764 | Y39: =D$28*I24+ROUND($P$14*365/12,2)+(Summary!N19/12)*2 -> 70.52518814 | Z39: =D$28*J24+ROUND($P$14*365/12,2)+(Summary!N19/12)*2 -> 55.05282066 | AA39: =E$28*I24+ROUND($P$14*365/12,2)+(Summary!N19/12)*2 -> 71.75054332 | AB39: =E$28*J24+ROUND($P$14*365/12,2)+(Summary!N19/12)*2 -> 56.03884866 | AC39: =F$28*I24+ROUND($P$14*365/12,2)+(Summary!N19/12)*2 -> 82.46445448 | AD39: =F$28*J24+ROUND($P$14*365/12,2)+(Summary!N19/12)*2 -> 64.66019905
B40: 9 warm | C40: =C$22*MIN(I25,P25)+IF(P25-I25>0,C$23*(P25-I25))+ROUND($F$14*365/12,2)+(Summary!N19/12)*2 -> 257.9491103 | D40: =C$22*MIN(J25,Q25)+IF(Q25-J25>0,C$23*(Q25-J25))+ROUND($F$14*365/12,2)+(Summary!N19/12)*2 -> 151.3144154 | E40: =D$22*MIN(I25,P25)+IF(P25-I25>0,D$23*(P25-I25))+ROUND($F$14*365/12,2)+(Summary!N19/12)*2 -> 250.540398 | F40: =D$22*MIN(J25,Q25)+IF(Q25-J25>0,D$23*(Q25-J25))+ROUND($F$14*365/12,2)+(Summary!N19/12)*2 -> 146.8711301 | G40: =E$22*MIN(I25,P25)+IF(P25-I25>0,E$23*(P25-I25))+ROUND($F$14*365/12,2)+(Summary!N19/12)*2 -> 254.5455951 | H40: =E$22*MIN(J25,Q25)+IF(Q25-J25>0,E$23*(Q25-J25))+ROUND($F$14*365/12,2)+(Summary!N19/12)*2 -> 149.2727669 | I40: =F$22*MIN(I25,P25)+IF(P25-I25>0,F$23*(P25-I25))+ROUND($F$14*365/12,2)+(Summary!N19/12)*2 -> 289.5650948 | J40: =F$22*MIN(J25,Q25)+IF(Q25-J25>0,F$23*(Q25-J25))+ROUND($F$14*365/12,2)+(Summary!N19/12)*2 -> 170.2715136 | L40: 9 warm | M40: =C$22*I25+ROUND($F$14*365/12,2)+(Summary!N19/12)*2 -> 162.8255414 | N40: =C$22*J25+ROUND($F$14*365/12,2)+(Summary!N19/12)*2 -> 113.182199 | O40: =D$22*I25+ROUND($F$14*365/12,2)+(Summary!N19/12)*2 -> 158.0603229 | P40: =D$22*J25+ROUND($F$14*365/12,2)+(Summary!N19/12)*2 -> 109.7986119 | Q40: =E$22*I25+ROUND($F$14*365/12,2)+(Summary!N19/12)*2 -> 160.6350345 | R40: =E$22*J25+ROUND($F$14*365/12,2)+(Summary!N19/12)*2 -> 111.6268095 | S40: =F$22*I25+ROUND($F$14*365/12,2)+(Summary!N19/12)*2 -> 183.1470639 | T40: =F$22*J25+ROUND($F$14*365/12,2)+(Summary!N19/12)*2 -> 127.6116825 | V40: 9 warm | W40: =C$28*I25+ROUND($P$14*365/12,2)+(Summary!N19/12)*2 -> 98.62946196 | X40: =C$28*J25+ROUND($P$14*365/12,2)+(Summary!N19/12)*2 -> 67.51220179 | Y40: =D$28*I25+ROUND($P$14*365/12,2)+(Summary!N19/12)*2 -> 95.8998708 | Z40: =D$28*J25+ROUND($P$14*365/12,2)+(Summary!N19/12)*2 -> 65.57403055 | AA40: =E$28*I25+ROUND($P$14*365/12,2)+(Summary!N19/12)*2 -> 97.51772256 | AB40: =E$28*J25+ROUND($P$14*365/12,2)+(Summary!N19/12)*2 -> 66.72280103 | AC40: =F$28*I25+ROUND($P$14*365/12,2)+(Summary!N19/12)*2 -> 111.6634334 | AD40: =F$28*J25+ROUND($P$14*365/12,2)+(Summary!N19/12)*2 -> 76.76709274
B41: 10 hot (Sec 745) | C41: =C$22*MIN(I26,P26)+IF(P26-I26>0,C$23*(P26-I26))+ROUND($F$14*365/12,2)+(Summary!N19/12)*2 -> 303.1446916 | D41: =C$22*MIN(J26,Q26)+IF(Q26-J26>0,C$23*(Q26-J26))+ROUND($F$14*365/12,2)+(Summary!N19/12)*2 -> 163.0048212 | E41: =D$22*MIN(I26,P26)+IF(P26-I26>0,D$23*(P26-I26))+ROUND($F$14*365/12,2)+(Summary!N19/12)*2 -> 294.4789914 | F41: =D$22*MIN(J26,Q26)+IF(Q26-J26>0,D$23*(Q26-J26))+ROUND($F$14*365/12,2)+(Summary!N19/12)*2 -> 158.2366167 | G41: =E$22*MIN(I26,P26)+IF(P26-I26>0,E$23*(P26-I26))+ROUND($F$14*365/12,2)+(Summary!N19/12)*2 -> 299.1638324 | H41: =E$22*MIN(J26,Q26)+IF(Q26-J26>0,E$23*(Q26-J26))+ROUND($F$14*365/12,2)+(Summary!N19/12)*2 -> 160.8140552 | I41: =F$22*MIN(I26,P26)+IF(P26-I26>0,F$23*(P26-I26))+ROUND($F$14*365/12,2)+(Summary!N19/12)*2 -> 340.1258084 | J41: =F$22*MIN(J26,Q26)+IF(Q26-J26>0,F$23*(Q26-J26))+ROUND($F$14*365/12,2)+(Summary!N19/12)*2 -> 183.3499275 | L41: 10 hot (Sec 745) | M41: =C$22*I26+ROUND($F$14*365/12,2)+(Summary!N19/12)*2 -> 187.1406478 | N41: =C$22*J26+ROUND($F$14*365/12,2)+(Summary!N19/12)*2 -> 114.1953284 | O41: =D$22*I26+ROUND($F$14*365/12,2)+(Summary!N19/12)*2 -> 181.6987119 | P41: =D$22*J26+ROUND($F$14*365/12,2)+(Summary!N19/12)*2 -> 110.7835448 | Q41: =E$22*I26+ROUND($F$14*365/12,2)+(Summary!N19/12)*2 -> 184.6390631 | R41: =E$22*J26+ROUND($F$14*365/12,2)+(Summary!N19/12)*2 -> 112.6269774 | S41: =F$22*I26+ROUND($F$14*365/12,2)+(Summary!N19/12)*2 -> 210.3480671 | T41: =F$22*J26+ROUND($F$14*365/12,2)+(Summary!N19/12)*2 -> 128.7450576 | V41: 10 hot (Sec 745) | W41: =C$28*I26+ROUND($P$14*365/12,2)+(Summary!N19/12)*2 -> 113.870569 | X41: =C$28*J26+ROUND($P$14*365/12,2)+(Summary!N19/12)*2 -> 68.14724791 | Y41: =D$28*I26+ROUND($P$14*365/12,2)+(Summary!N19/12)*2 -> 110.7533436 | Z41: =D$28*J26+ROUND($P$14*365/12,2)+(Summary!N19/12)*2 -> 66.19292525 | AA41: =E$28*I26+ROUND($P$14*365/12,2)+(Summary!N19/12)*2 -> 112.6009494 | AB41: =E$28*J26+ROUND($P$14*365/12,2)+(Summary!N19/12)*2 -> 67.35126881 | AC41: =F$28*I26+ROUND($P$14*365/12,2)+(Summary!N19/12)*2 -> 128.7555186 | AD41: =F$28*J26+ROUND($P$14*365/12,2)+(Summary!N19/12)*2 -> 77.47926296
B42: 13 hot | C42: =C$22*MIN(I27,P27)+IF(P27-I27>0,C$23*(P27-I27))+ROUND($F$14*365/12,2)+(Summary!N19/12)*2 -> 353.7558048 | D42: =C$22*MIN(J27,Q27)+IF(Q27-J27>0,C$23*(Q27-J27))+ROUND($F$14*365/12,2)+(Summary!N19/12)*2 -> 165.4246611 | E42: =D$22*MIN(I27,P27)+IF(P27-I27>0,D$23*(P27-I27))+ROUND($F$14*365/12,2)+(Summary!N19/12)*2 -> 343.6824105 | F42: =D$22*MIN(J27,Q27)+IF(Q27-J27>0,D$23*(Q27-J27))+ROUND($F$14*365/12,2)+(Summary!N19/12)*2 -> 160.5891674 | G42: =E$22*MIN(I27,P27)+IF(P27-I27>0,E$23*(P27-I27))+ROUND($F$14*365/12,2)+(Summary!N19/12)*2 -> 349.1283319 | H42: =E$22*MIN(J27,Q27)+IF(Q27-J27>0,E$23*(Q27-J27))+ROUND($F$14*365/12,2)+(Summary!N19/12)*2 -> 163.2029953 | I42: =F$22*MIN(I27,P27)+IF(P27-I27>0,F$23*(P27-I27))+ROUND($F$14*365/12,2)+(Summary!N19/12)*2 -> 396.7448258 | J42: =F$22*MIN(J27,Q27)+IF(Q27-J27>0,F$23*(Q27-J27))+ROUND($F$14*365/12,2)+(Summary!N19/12)*2 -> 186.0570384 | L42: 13 hot | M42: =C$22*I27+ROUND($F$14*365/12,2)+(Summary!N19/12)*2 -> 216.5214015 | N42: =C$22*J27+ROUND($F$14*365/12,2)+(Summary!N19/12)*2 -> 115.2084579 | O42: =D$22*I27+ROUND($F$14*365/12,2)+(Summary!N19/12)*2 -> 210.2617654 | P42: =D$22*J27+ROUND($F$14*365/12,2)+(Summary!N19/12)*2 -> 111.7684777 | Q42: =E$22*I27+ROUND($F$14*365/12,2)+(Summary!N19/12)*2 -> 213.643931 | R42: =E$22*J27+ROUND($F$14*365/12,2)+(Summary!N19/12)*2 -> 113.6271452 | S42: =F$22*I27+ROUND($F$14*365/12,2)+(Summary!N19/12)*2 -> 243.2159459 | T42: =F$22*J27+ROUND($F$14*365/12,2)+(Summary!N19/12)*2 -> 129.8784327 | V42: 13 hot | W42: =C$28*I27+ROUND($P$14*365/12,2)+(Summary!N19/12)*2 -> 132.2869066 | X42: =C$28*J27+ROUND($P$14*365/12,2)+(Summary!N19/12)*2 -> 68.78229404 | Y42: =D$28*I27+ROUND($P$14*365/12,2)+(Summary!N19/12)*2 -> 128.7012898 | Z42: =D$28*J27+ROUND($P$14*365/12,2)+(Summary!N19/12)*2 -> 66.81181994 | AA42: =E$28*I27+ROUND($P$14*365/12,2)+(Summary!N19/12)*2 -> 130.8265152 | AB42: =E$28*J27+ROUND($P$14*365/12,2)+(Summary!N19/12)*2 -> 67.9797366 | AC42: =F$28*I27+ROUND($P$14*365/12,2)+(Summary!N19/12)*2 -> 149.4084549 | AD42: =F$28*J27+ROUND($P$14*365/12,2)+(Summary!N19/12)*2 -> 78.19143318
B43: 14 hot | C43: =C$22*MIN(I28,P28)+IF(P28-I28>0,C$23*(P28-I28))+ROUND($F$14*365/12,2)+(Summary!N19/12)*2 -> 294.0003144 | D43: =C$22*MIN(J28,Q28)+IF(Q28-J28>0,C$23*(Q28-J28))+ROUND($F$14*365/12,2)+(Summary!N19/12)*2 -> 159.9117568 | E43: =D$22*MIN(I28,P28)+IF(P28-I28>0,D$23*(P28-I28))+ROUND($F$14*365/12,2)+(Summary!N19/12)*2 -> 285.588779 | F43: =D$22*MIN(J28,Q28)+IF(Q28-J28>0,D$23*(Q28-J28))+ROUND($F$14*365/12,2)+(Summary!N19/12)*2 -> 155.2295921 | G43: =E$22*MIN(I28,P28)+IF(P28-I28>0,E$23*(P28-I28))+ROUND($F$14*365/12,2)+(Summary!N19/12)*2 -> 290.1361058 | H43: =E$22*MIN(J28,Q28)+IF(Q28-J28>0,E$23*(Q28-J28))+ROUND($F$14*365/12,2)+(Summary!N19/12)*2 -> 157.7605179 | I43: =F$22*MIN(I28,P28)+IF(P28-I28>0,F$23*(P28-I28))+ROUND($F$14*365/12,2)+(Summary!N19/12)*2 -> 329.8957248 | J43: =F$22*MIN(J28,Q28)+IF(Q28-J28>0,F$23*(Q28-J28))+ROUND($F$14*365/12,2)+(Summary!N19/12)*2 -> 179.8897051 | L43: 14 hot | M43: =C$22*I28+ROUND($F$14*365/12,2)+(Summary!N19/12)*2 -> 186.1275184 | N43: =C$22*J28+ROUND($F$14*365/12,2)+(Summary!N19/12)*2 -> 112.1690696 | O43: =D$22*I28+ROUND($F$14*365/12,2)+(Summary!N19/12)*2 -> 180.7137791 | P43: =D$22*J28+ROUND($F$14*365/12,2)+(Summary!N19/12)*2 -> 108.813679 | Q43: =E$22*I28+ROUND($F$14*365/12,2)+(Summary!N19/12)*2 -> 183.6388952 | R43: =E$22*J28+ROUND($F$14*365/12,2)+(Summary!N19/12)*2 -> 110.6266417 | S43: =F$22*I28+ROUND($F$14*365/12,2)+(Summary!N19/12)*2 -> 209.214692 | T43: =F$22*J28+ROUND($F$14*365/12,2)+(Summary!N19/12)*2 -> 126.4783073 | V43: 14 hot | W43: =C$28*I28+ROUND($P$14*365/12,2)+(Summary!N19/12)*2 -> 113.2355229 | X43: =C$28*J28+ROUND($P$14*365/12,2)+(Summary!N19/12)*2 -> 66.87715566 | Y43: =D$28*I28+ROUND($P$14*365/12,2)+(Summary!N19/12)*2 -> 110.1344489 | Z43: =D$28*J28+ROUND($P$14*365/12,2)+(Summary!N19/12)*2 -> 64.95513585 | AA43: =E$28*I28+ROUND($P$14*365/12,2)+(Summary!N19/12)*2 -> 111.9724816 | AB43: =E$28*J28+ROUND($P$14*365/12,2)+(Summary!N19/12)*2 -> 66.09433324 | AC43: =F$28*I28+ROUND($P$14*365/12,2)+(Summary!N19/12)*2 -> 128.0433484 | AD43: =F$28*J28+ROUND($P$14*365/12,2)+(Summary!N19/12)*2 -> 76.05492253
B44: 15 hot | C44: =C$22*MIN(I29,P29)+IF(P29-I29>0,C$23*(P29-I29))+ROUND($F$14*365/12,2)+(Summary!N19/12)*2 -> 397.7634205 | D44: =C$22*MIN(J29,Q29)+IF(Q29-J29>0,C$23*(Q29-J29))+ROUND($F$14*365/12,2)+(Summary!N19/12)*2 -> 195.1004666 | E44: =D$22*MIN(I29,P29)+IF(P29-I29>0,D$23*(P29-I29))+ROUND($F$14*365/12,2)+(Summary!N19/12)*2 -> 386.4596103 | F44: =D$22*MIN(J29,Q29)+IF(Q29-J29>0,D$23*(Q29-J29))+ROUND($F$14*365/12,2)+(Summary!N19/12)*2 -> 189.4413189 | G44: =E$22*MIN(I29,P29)+IF(P29-I29>0,E$23*(P29-I29))+ROUND($F$14*365/12,2)+(Summary!N19/12)*2 -> 392.567211 | H44: =E$22*MIN(J29,Q29)+IF(Q29-J29>0,E$23*(Q29-J29))+ROUND($F$14*365/12,2)+(Summary!N19/12)*2 -> 192.5014331 | I44: =F$22*MIN(I29,P29)+IF(P29-I29>0,F$23*(P29-I29))+ROUND($F$14*365/12,2)+(Summary!N19/12)*2 -> 445.9691085 | J44: =F$22*MIN(J29,Q29)+IF(Q29-J29>0,F$23*(Q29-J29))+ROUND($F$14*365/12,2)+(Summary!N19/12)*2 -> 219.2575862 | L44: 15 hot | M44: =C$22*I29+ROUND($F$14*365/12,2)+(Summary!N19/12)*2 -> 447.5149129 | N44: =C$22*J29+ROUND($F$14*365/12,2)+(Summary!N19/12)*2 -> 89.88022196 | O44: =D$22*I29+ROUND($F$14*365/12,2)+(Summary!N19/12)*2 -> 434.8264613 | P44: =D$22*J29+ROUND($F$14*365/12,2)+(Summary!N19/12)*2 -> 87.14515574 | Q44: =E$22*I29+ROUND($F$14*365/12,2)+(Summary!N19/12)*2 -> 441.6822024 | R44: =E$22*J29+ROUND($F$14*365/12,2)+(Summary!N19/12)*2 -> 88.62294881 | S44: =F$22*I29+ROUND($F$14*365/12,2)+(Summary!N19/12)*2 -> 501.625476 | T44: =F$22*J29+ROUND($F$14*365/12,2)+(Summary!N19/12)*2 -> 101.5440545 | V44: 15 hot | W44: =C$28*I29+ROUND($P$14*365/12,2)+(Summary!N19/12)*2 -> 277.0774234 | X44: =C$28*J29+ROUND($P$14*365/12,2)+(Summary!N19/12)*2 -> 52.90614089 | Y44: =D$28*I29+ROUND($P$14*365/12,2)+(Summary!N19/12)*2 -> 269.8092812 | Z44: =D$28*J29+ROUND($P$14*365/12,2)+(Summary!N19/12)*2 -> 51.33945247 | AA44: =E$28*I29+ROUND($P$14*365/12,2)+(Summary!N19/12)*2 -> 274.1171705 | AB44: =E$28*J29+ROUND($P$14*365/12,2)+(Summary!N19/12)*2 -> 52.26804194 | AC44: =F$28*I29+ROUND($P$14*365/12,2)+(Summary!N19/12)*2 -> 311.7832645 | AD44: =F$28*J29+ROUND($P$14*365/12,2)+(Summary!N19/12)*2 -> 60.38717775
B45: 16 cool | C45: =C$22*MIN(I30,P30)+IF(P30-I30>0,C$23*(P30-I30))+ROUND($F$14*365/12,2)+(Summary!N19/12)*2 -> 191.0696506 | D45: =C$22*MIN(J30,Q30)+IF(Q30-J30>0,C$23*(Q30-J30))+ROUND($F$14*365/12,2)+(Summary!N19/12)*2 -> 134.1442685 | E45: =D$22*MIN(I30,P30)+IF(P30-I30>0,D$23*(P30-I30))+ROUND($F$14*365/12,2)+(Summary!N19/12)*2 -> 185.5204404 | F45: =D$22*MIN(J30,Q30)+IF(Q30-J30>0,D$23*(Q30-J30))+ROUND($F$14*365/12,2)+(Summary!N19/12)*2 -> 130.177977 | G45: =E$22*MIN(I30,P30)+IF(P30-I30>0,E$23*(P30-I30))+ROUND($F$14*365/12,2)+(Summary!N19/12)*2 -> 188.5199062 | H45: =E$22*MIN(J30,Q30)+IF(Q30-J30>0,E$23*(Q30-J30))+ROUND($F$14*365/12,2)+(Summary!N19/12)*2 -> 132.3214034 | I45: =F$22*MIN(I30,P30)+IF(P30-I30>0,F$23*(P30-I30))+ROUND($F$14*365/12,2)+(Summary!N19/12)*2 -> 214.7457799 | J45: =F$22*MIN(J30,Q30)+IF(Q30-J30>0,F$23*(Q30-J30))+ROUND($F$14*365/12,2)+(Summary!N19/12)*2 -> 151.0624842 | L45: 16 cool | M45: =C$22*I30+ROUND($F$14*365/12,2)+(Summary!N19/12)*2 -> 140.5366938 | N45: =C$22*J30+ROUND($F$14*365/12,2)+(Summary!N19/12)*2 -> 117.2347167 | O45: =D$22*I30+ROUND($F$14*365/12,2)+(Summary!N19/12)*2 -> 136.3917996 | P45: =D$22*J30+ROUND($F$14*365/12,2)+(Summary!N19/12)*2 -> 113.7383434 | Q45: =E$22*I30+ROUND($F$14*365/12,2)+(Summary!N19/12)*2 -> 138.6313417 | R45: =E$22*J30+ROUND($F$14*365/12,2)+(Summary!N19/12)*2 -> 115.627481 | S45: =F$22*I30+ROUND($F$14*365/12,2)+(Summary!N19/12)*2 -> 158.212811 | T45: =F$22*J30+ROUND($F$14*365/12,2)+(Summary!N19/12)*2 -> 132.145183 | V45: 16 cool | W45: =C$28*I30+ROUND($P$14*365/12,2)+(Summary!N19/12)*2 -> 84.65844719 | X45: =C$28*J30+ROUND($P$14*365/12,2)+(Summary!N19/12)*2 -> 70.05238629 | Y45: =D$28*I30+ROUND($P$14*365/12,2)+(Summary!N19/12)*2 -> 82.28418742 | Z45: =D$28*J30+ROUND($P$14*365/12,2)+(Summary!N19/12)*2 -> 68.04960934 | AA45: =E$28*I30+ROUND($P$14*365/12,2)+(Summary!N19/12)*2 -> 83.69143126 | AB45: =E$28*J30+ROUND($P$14*365/12,2)+(Summary!N19/12)*2 -> 69.23667217 | AC45: =F$28*I30+ROUND($P$14*365/12,2)+(Summary!N19/12)*2 -> 95.99568861 | AD45: =F$28*J30+ROUND($P$14*365/12,2)+(Summary!N19/12)*2 -> 79.61577361
B46: ALL | C46: =SUMPRODUCT(C37:C45,$T$22:$T$30) -> 248.390766 | D46: 147.5374648 | E46: 241.2477079 | F46: 143.1993824 | G46: 245.1091652 | H46: 145.5442245 | I46: 278.8718749 | J46: 166.0463856 | L46: ALL | M46: =SUMPRODUCT(M37:M45,$T$22:$T$30) -> 163.7920629 | N46: 107.3275525 | O46: 158.999945 | P46: 104.106907 | Q46: 161.5891908 | R46: 105.8470651 | S46: 184.2282994 | T46: 121.0621632 | V46: ALL | W46: =SUMPRODUCT(W37:W45,$U$22:$U$30) -> 109.9002144 | X46: =SUMPRODUCT(X37:X45,$U$22:$U$30) -> 65.32589318 | Y46: 106.8839689 | Z46: 63.44332736 | AA46: 108.6717232 | AB46: 64.55914004 | AC46: 124.3029786 | AD46: 74.31526474
C49: CARE | M49: Essential Use (All-Electric) - Non-CARE | W49: Essential Use (All-Electric) - CARE
C50: =C27 -> Jan 2025 | E50: =D27 -> 2025-06-01 | G50: =E27 -> Authorized | I50: =F27 -> w/Pending | M50: =C50 -> Jan 2025 | O50: =E50 -> 2025-06-01 | Q50: =G50 -> Authorized | S50: =I50 -> w/Pending | W50: =M50 -> Jan 2025 | Y50: =O50 -> 2025-06-01 | AA50: =Q50 -> Authorized | AC50: =S50 -> w/Pending
C51: Summer | D51: Winter | E51: Summer | F51: Winter | G51: Summer | H51: Winter | I51: Summer | J51: Winter | M51: Summer | N51: Winter | O51: Summer | P51: Winter | Q51: Summer | R51: Winter | S51: Summer | T51: Winter | W51: Summer | X51: Winter | Y51: Summer | Z51: Winter | AA51: Summer | AB51: Winter | AC51: Summer | AD51: Winter
B52: 5 warm | C52: =C$28*MIN(I22,R22)+IF(R22-I22>0,C$29*(R22-I22))+ROUND($P$14*365/12,2)+(Summary!N19/12)*2 -> 68.66764285 | D52: =C$28*MIN(J22,S22)+IF(S22-J22>0,C$29*(S22-J22))+ROUND($P$14*365/12,2)+(Summary!N19/12)*2 -> 64.96695865 | E52: =D$28*MIN(I22,R22)+IF(R22-I22>0,D$29*(R22-I22))+ROUND($P$14*365/12,2)+(Summary!N19/12)*2 -> 66.70008474 | F52: =D$28*MIN(J22,S22)+IF(S22-J22>0,D$29*(S22-J22))+ROUND($P$14*365/12,2)+(Summary!N19/12)*2 -> 63.09352177 | G52: =E$28*MIN(I22,R22)+IF(R22-I22>0,E$29*(R22-I22))+ROUND($P$14*365/12,2)+(Summary!N19/12)*2 -> 67.86627307 | H52: =E$28*MIN(J22,S22)+IF(S22-J22>0,E$29*(S22-J22))+ROUND($P$14*365/12,2)+(Summary!N19/12)*2 -> 64.20392365 | I52: =F$28*MIN(I22,R22)+IF(R22-I22>0,F$29*(R22-I22))+ROUND($P$14*365/12,2)+(Summary!N19/12)*2 -> 78.06285801 | J52: =F$28*MIN(J22,S22)+IF(S22-J22>0,F$29*(S22-J22))+ROUND($P$14*365/12,2)+(Summary!N19/12)*2 -> 73.91273889 | L52: 5 warm | M52: =C$22*K22+ROUND($F$14*365/12,2)+(Summary!N19/12)*2 -> 161.8124119 | N52: =C$22*L22+ROUND($F$14*365/12,2)+(Summary!N19/12)*2 -> 265.1516144 | O52: =D$22*K22+ROUND($F$14*365/12,2)+(Summary!N19/12)*2 -> 157.07539 | P52: =D$22*L22+ROUND($F$14*365/12,2)+(Summary!N19/12)*2 -> 257.5385435 | Q52: =E$22*K22+ROUND($F$14*365/12,2)+(Summary!N19/12)*2 -> 159.6348667 | R52: =E$22*L22+ROUND($F$14*365/12,2)+(Summary!N19/12)*2 -> 261.6519881 | S52: =F$22*K22+ROUND($F$14*365/12,2)+(Summary!N19/12)*2 -> 182.0136888 | T52: =F$22*L22+ROUND($F$14*365/12,2)+(Summary!N19/12)*2 -> 297.6179523 | V52: 5 warm | W52: =C$28*K22+ROUND($P$14*365/12,2)+(Summary!N19/12)*2 -> 97.99441583 | X52: =C$28*L22+ROUND($P$14*365/12,2)+(Summary!N19/12)*2 -> 162.7691207 | Y52: =D$28*K22+ROUND($P$14*365/12,2)+(Summary!N19/12)*2 -> 95.2809761 | Z52: =D$28*L22+ROUND($P$14*365/12,2)+(Summary!N19/12)*2 -> 158.4082354 | AA52: =E$28*K22+ROUND($P$14*365/12,2)+(Summary!N19/12)*2 -> 96.88925477 | AB52: =E$28*L22+ROUND($P$14*365/12,2)+(Summary!N19/12)*2 -> 160.992969 | AC52: =F$28*K22+ROUND($P$14*365/12,2)+(Summary!N19/12)*2 -> 110.9512632 | AD52: =F$28*L22+ROUND($P$14*365/12,2)+(Summary!N19/12)*2 -> 183.5926253
B53: 6 cool | C53: =C$28*MIN(I23,R23)+IF(R23-I23>0,C$29*(R23-I23))+ROUND($P$14*365/12,2)+(Summary!N19/12)*2 -> 79.17496909 | D53: =C$28*MIN(J23,S23)+IF(S23-J23>0,C$29*(S23-J23))+ROUND($P$14*365/12,2)+(Summary!N19/12)*2 -> 64.47961901 | E53: =D$28*MIN(I23,R23)+IF(R23-I23>0,D$29*(R23-I23))+ROUND($P$14*365/12,2)+(Summary!N19/12)*2 -> 76.93241277 | F53: =D$28*MIN(J23,S23)+IF(S23-J23>0,D$29*(S23-J23))+ROUND($P$14*365/12,2)+(Summary!N19/12)*2 -> 62.61691281 | G53: =E$28*MIN(I23,R23)+IF(R23-I23>0,E$29*(R23-I23))+ROUND($P$14*365/12,2)+(Summary!N19/12)*2 -> 78.25687515 | H53: =E$28*MIN(J23,S23)+IF(S23-J23>0,E$29*(S23-J23))+ROUND($P$14*365/12,2)+(Summary!N19/12)*2 -> 63.71994248 | I53: =F$28*MIN(I23,R23)+IF(R23-I23>0,F$29*(R23-I23))+ROUND($P$14*365/12,2)+(Summary!N19/12)*2 -> 89.83733159 | J53: =F$28*MIN(J23,S23)+IF(S23-J23>0,F$29*(S23-J23))+ROUND($P$14*365/12,2)+(Summary!N19/12)*2 -> 73.36429872 | L53: 6 cool | M53: =C$22*K23+ROUND($F$14*365/12,2)+(Summary!N19/12)*2 -> 79.7489276 | N53: =C$22*L23+ROUND($F$14*365/12,2)+(Summary!N19/12)*2 -> 119.2609756 | O53: =D$22*K23+ROUND($F$14*365/12,2)+(Summary!N19/12)*2 -> 77.29582697 | P53: =D$22*L23+ROUND($F$14*365/12,2)+(Summary!N19/12)*2 -> 115.7082092 | Q53: =E$22*K23+ROUND($F$14*365/12,2)+(Summary!N19/12)*2 -> 78.62127024 | R53: =E$22*L23+ROUND($F$14*365/12,2)+(Summary!N19/12)*2 -> 117.6278167 | S53: =F$22*K23+ROUND($F$14*365/12,2)+(Summary!N19/12)*2 -> 90.21030313 | T53: =F$22*L23+ROUND($F$14*365/12,2)+(Summary!N19/12)*2 -> 134.4119333 | V53: 6 cool | W53: =C$28*K23+ROUND($P$14*365/12,2)+(Summary!N19/12)*2 -> 46.55567963 | X53: =C$28*L23+ROUND($P$14*365/12,2)+(Summary!N19/12)*2 -> 71.32247854 | Y53: =D$28*K23+ROUND($P$14*365/12,2)+(Summary!N19/12)*2 -> 45.15050548 | Z53: =D$28*L23+ROUND($P$14*365/12,2)+(Summary!N19/12)*2 -> 69.28739874 | AA53: =E$28*K23+ROUND($P$14*365/12,2)+(Summary!N19/12)*2 -> 45.98336408 | AB53: =E$28*L23+ROUND($P$14*365/12,2)+(Summary!N19/12)*2 -> 70.49360775 | AC53: =F$28*K23+ROUND($P$14*365/12,2)+(Summary!N19/12)*2 -> 53.26547557 | AD53: =F$28*L23+ROUND($P$14*365/12,2)+(Summary!N19/12)*2 -> 81.04011405
B54: 8 cool | C54: =C$28*MIN(I24,R24)+IF(R24-I24>0,C$29*(R24-I24))+ROUND($P$14*365/12,2)+(Summary!N19/12)*2 -> 103.6442695 | D54: =C$28*MIN(J24,S24)+IF(S24-J24>0,C$29*(S24-J24))+ROUND($P$14*365/12,2)+(Summary!N19/12)*2 -> 72.96840317 | E54: =D$28*MIN(I24,R24)+IF(R24-I24>0,D$29*(R24-I24))+ROUND($P$14*365/12,2)+(Summary!N19/12)*2 -> 100.7715606 | F54: =D$28*MIN(J24,S24)+IF(S24-J24>0,D$29*(S24-J24))+ROUND($P$14*365/12,2)+(Summary!N19/12)*2 -> 70.88331069 | G54: =E$28*MIN(I24,R24)+IF(R24-I24>0,E$29*(R24-I24))+ROUND($P$14*365/12,2)+(Summary!N19/12)*2 -> 102.4647678 | H54: =E$28*MIN(J24,S24)+IF(S24-J24>0,E$29*(S24-J24))+ROUND($P$14*365/12,2)+(Summary!N19/12)*2 -> 72.11420532 | I54: =F$28*MIN(I24,R24)+IF(R24-I24>0,F$29*(R24-I24))+ROUND($P$14*365/12,2)+(Summary!N19/12)*2 -> 117.2693505 | J54: =F$28*MIN(J24,S24)+IF(S24-J24>0,F$29*(S24-J24))+ROUND($P$14*365/12,2)+(Summary!N19/12)*2 -> 82.87655078 | L54: 8 cool | M54: =C$22*K24+ROUND($F$14*365/12,2)+(Summary!N19/12)*2 -> 91.90648083 | N54: =C$22*L24+ROUND($F$14*365/12,2)+(Summary!N19/12)*2 -> 116.2215873 | O54: =D$22*K24+ROUND($F$14*365/12,2)+(Summary!N19/12)*2 -> 89.11502149 | P54: =D$22*L24+ROUND($F$14*365/12,2)+(Summary!N19/12)*2 -> 112.7534105 | Q54: =E$22*K24+ROUND($F$14*365/12,2)+(Summary!N19/12)*2 -> 90.62328453 | R54: =E$22*L24+ROUND($F$14*365/12,2)+(Summary!N19/12)*2 -> 114.6273131 | S54: =F$22*K24+ROUND($F$14*365/12,2)+(Summary!N19/12)*2 -> 103.8108047 | T54: =F$22*L24+ROUND($F$14*365/12,2)+(Summary!N19/12)*2 -> 131.0118079 | V54: 8 cool | W54: =C$28*K24+ROUND($P$14*365/12,2)+(Summary!N19/12)*2 -> 54.17623314 | X54: =C$28*L24+ROUND($P$14*365/12,2)+(Summary!N19/12)*2 -> 69.41734016 | Y54: =D$28*K24+ROUND($P$14*365/12,2)+(Summary!N19/12)*2 -> 52.57724187 | Z54: =D$28*L24+ROUND($P$14*365/12,2)+(Summary!N19/12)*2 -> 67.43071464 | AA54: =E$28*K24+ROUND($P$14*365/12,2)+(Summary!N19/12)*2 -> 53.52497751 | AB54: =E$28*L24+ROUND($P$14*365/12,2)+(Summary!N19/12)*2 -> 68.60820439 | AC54: =F$28*K24+ROUND($P$14*365/12,2)+(Summary!N19/12)*2 -> 61.81151818 | AD54: =F$28*L24+ROUND($P$14*365/12,2)+(Summary!N19/12)*2 -> 78.9036034
B55: 9 warm | C55: =C$28*MIN(I25,R25)+IF(R25-I25>0,C$29*(R25-I25))+ROUND($P$14*365/12,2)+(Summary!N19/12)*2 -> 145.4334121 | D55: =C$28*MIN(J25,S25)+IF(S25-J25>0,C$29*(S25-J25))+ROUND($P$14*365/12,2)+(Summary!N19/12)*2 -> 83.68430279 | E55: =D$28*MIN(I25,R25)+IF(R25-I25>0,D$29*(R25-I25))+ROUND($P$14*365/12,2)+(Summary!N19/12)*2 -> 141.4899597 | F55: =D$28*MIN(J25,S25)+IF(S25-J25>0,D$29*(S25-J25))+ROUND($P$14*365/12,2)+(Summary!N19/12)*2 -> 81.32670786 | G55: =E$28*MIN(I25,R25)+IF(R25-I25>0,E$29*(R25-I25))+ROUND($P$14*365/12,2)+(Summary!N19/12)*2 -> 143.8130008 | H55: =E$28*MIN(J25,S25)+IF(S25-J25>0,E$29*(S25-J25))+ROUND($P$14*365/12,2)+(Summary!N19/12)*2 -> 82.71914136 | I55: =F$28*MIN(I25,R25)+IF(R25-I25>0,F$29*(R25-I25))+ROUND($P$14*365/12,2)+(Summary!N19/12)*2 -> 164.1245445 | J55: =F$28*MIN(J25,S25)+IF(S25-J25>0,F$29*(S25-J25))+ROUND($P$14*365/12,2)+(Summary!N19/12)*2 -> 94.89390437 | L55: 9 warm | M55: =C$22*K25+ROUND($F$14*365/12,2)+(Summary!N19/12)*2 -> 118.2478462 | N55: =C$22*L25+ROUND($F$14*365/12,2)+(Summary!N19/12)*2 -> 132.4316583 | O55: =D$22*K25+ROUND($F$14*365/12,2)+(Summary!N19/12)*2 -> 114.7232763 | P55: =D$22*L25+ROUND($F$14*365/12,2)+(Summary!N19/12)*2 -> 128.5123366 | Q55: =E$22*K25+ROUND($F$14*365/12,2)+(Summary!N19/12)*2 -> 116.6276488 | R55: =E$22*L25+ROUND($F$14*365/12,2)+(Summary!N19/12)*2 -> 130.6299988 | S55: =F$22*K25+ROUND($F$14*365/12,2)+(Summary!N19/12)*2 -> 133.2785581 | T55: =F$22*L25+ROUND($F$14*365/12,2)+(Summary!N19/12)*2 -> 149.14581 | V55: 9 warm | W55: =C$28*K25+ROUND($P$14*365/12,2)+(Summary!N19/12)*2 -> 70.68743242 | X55: =C$28*L25+ROUND($P$14*365/12,2)+(Summary!N19/12)*2 -> 79.57807818 | Y55: =D$28*K25+ROUND($P$14*365/12,2)+(Summary!N19/12)*2 -> 68.66850404 | Z55: =D$28*L25+ROUND($P$14*365/12,2)+(Summary!N19/12)*2 -> 77.33302983 | AA55: =E$28*K25+ROUND($P$14*365/12,2)+(Summary!N19/12)*2 -> 69.86513996 | AB55: =E$28*L25+ROUND($P$14*365/12,2)+(Summary!N19/12)*2 -> 78.66368897 | AC55: =F$28*K25+ROUND($P$14*365/12,2)+(Summary!N19/12)*2 -> 80.32794383 | AD55: =F$28*L25+ROUND($P$14*365/12,2)+(Summary!N19/12)*2 -> 90.29832687
B56: 10 hot (Sec 745) | C56: =C$28*MIN(I26,R26)+IF(R26-I26>0,C$29*(R26-I26))+ROUND($P$14*365/12,2)+(Summary!N19/12)*2 -> 204.3286138 | D56: =C$28*MIN(J26,S26)+IF(S26-J26>0,C$29*(S26-J26))+ROUND($P$14*365/12,2)+(Summary!N19/12)*2 -> 104.0756369 | E56: =D$28*MIN(I26,R26)+IF(R26-I26>0,D$29*(R26-I26))+ROUND($P$14*365/12,2)+(Summary!N19/12)*2 -> 198.8653575 | F56: =D$28*MIN(J26,S26)+IF(S26-J26>0,D$29*(S26-J26))+ROUND($P$14*365/12,2)+(Summary!N19/12)*2 -> 101.1895109 | G56: =E$28*MIN(I26,R26)+IF(R26-I26>0,E$29*(R26-I26))+ROUND($P$14*365/12,2)+(Summary!N19/12)*2 -> 202.0758835 | H56: =E$28*MIN(J26,S26)+IF(S26-J26>0,E$29*(S26-J26))+ROUND($P$14*365/12,2)+(Summary!N19/12)*2 -> 102.889183 | I56: =F$28*MIN(I26,R26)+IF(R26-I26>0,F$29*(R26-I26))+ROUND($P$14*365/12,2)+(Summary!N19/12)*2 -> 230.1471644 | J56: =F$28*MIN(J26,S26)+IF(S26-J26>0,F$29*(S26-J26))+ROUND($P$14*365/12,2)+(Summary!N19/12)*2 -> 117.7502914 | L56: 10 hot (Sec 745) | M56: =C$22*K26+ROUND($F$14*365/12,2)+(Summary!N19/12)*2 -> 152.694247 | N56: =C$22*L26+ROUND($F$14*365/12,2)+(Summary!N19/12)*2 -> 157.7598942 | O56: =D$22*K26+ROUND($F$14*365/12,2)+(Summary!N19/12)*2 -> 148.2109941 | P56: =D$22*L26+ROUND($F$14*365/12,2)+(Summary!N19/12)*2 -> 153.1356585 | Q56: =E$22*K26+ROUND($F$14*365/12,2)+(Summary!N19/12)*2 -> 150.633356 | R56: =E$22*L26+ROUND($F$14*365/12,2)+(Summary!N19/12)*2 -> 155.6341952 | S56: =F$22*K26+ROUND($F$14*365/12,2)+(Summary!N19/12)*2 -> 171.8133126 | T56: =F$22*L26+ROUND($F$14*365/12,2)+(Summary!N19/12)*2 -> 177.4801883 | V56: 10 hot (Sec 745) | W56: =C$28*K26+ROUND($P$14*365/12,2)+(Summary!N19/12)*2 -> 92.2790007 | X56: =C$28*L26+ROUND($P$14*365/12,2)+(Summary!N19/12)*2 -> 95.45423133 | Y56: =D$28*K26+ROUND($P$14*365/12,2)+(Summary!N19/12)*2 -> 89.71092381 | Z56: =D$28*L26+ROUND($P$14*365/12,2)+(Summary!N19/12)*2 -> 92.8053973 | AA56: =E$28*K26+ROUND($P$14*365/12,2)+(Summary!N19/12)*2 -> 91.2330447 | AB56: =E$28*L26+ROUND($P$14*365/12,2)+(Summary!N19/12)*2 -> 94.37538363 | AC56: =F$28*K26+ROUND($P$14*365/12,2)+(Summary!N19/12)*2 -> 104.5417312 | AD56: =F$28*L26+ROUND($P$14*365/12,2)+(Summary!N19/12)*2 -> 108.1025823
B57: 13 hot | C57: =C$28*MIN(I27,R27)+IF(R27-I27>0,C$29*(R27-I27))+ROUND($P$14*365/12,2)+(Summary!N19/12)*2 -> 228.4551441 | D57: =C$28*MIN(J27,S27)+IF(S27-J27>0,C$29*(S27-J27))+ROUND($P$14*365/12,2)+(Summary!N19/12)*2 -> 100.1365381 | E57: =D$28*MIN(I27,R27)+IF(R27-I27>0,D$29*(R27-I27))+ROUND($P$14*365/12,2)+(Summary!N19/12)*2 -> 222.3754025 | F57: =D$28*MIN(J27,S27)+IF(S27-J27>0,D$29*(S27-J27))+ROUND($P$14*365/12,2)+(Summary!N19/12)*2 -> 97.35289118 | G57: =E$28*MIN(I27,R27)+IF(R27-I27>0,E$29*(R27-I27))+ROUND($P$14*365/12,2)+(Summary!N19/12)*2 -> 225.9495827 | H57: =E$28*MIN(J27,S27)+IF(S27-J27>0,E$29*(S27-J27))+ROUND($P$14*365/12,2)+(Summary!N19/12)*2 -> 98.99321832 | I57: =F$28*MIN(I27,R27)+IF(R27-I27>0,F$29*(R27-I27))+ROUND($P$14*365/12,2)+(Summary!N19/12)*2 -> 257.2004804 | J57: =F$28*MIN(J27,S27)+IF(S27-J27>0,F$29*(S27-J27))+ROUND($P$14*365/12,2)+(Summary!N19/12)*2 -> 113.3354429 | L57: 13 hot | M57: =C$22*K27+ROUND($F$14*365/12,2)+(Summary!N19/12)*2 -> 236.7839902 | N57: =C$22*L27+ROUND($F$14*365/12,2)+(Summary!N19/12)*2 -> 224.6264369 | O57: =D$22*K27+ROUND($F$14*365/12,2)+(Summary!N19/12)*2 -> 229.9604229 | P57: =D$22*L27+ROUND($F$14*365/12,2)+(Summary!N19/12)*2 -> 218.1412284 | Q57: =E$22*K27+ROUND($F$14*365/12,2)+(Summary!N19/12)*2 -> 233.6472881 | R57: =E$22*L27+ROUND($F$14*365/12,2)+(Summary!N19/12)*2 -> 221.6452738 | S57: =F$22*K27+ROUND($F$14*365/12,2)+(Summary!N19/12)*2 -> 265.8834486 | T57: =F$22*L27+ROUND($F$14*365/12,2)+(Summary!N19/12)*2 -> 252.282947 | V57: 13 hot | W57: =C$28*K27+ROUND($P$14*365/12,2)+(Summary!N19/12)*2 -> 144.9878292 | X57: =C$28*L27+ROUND($P$14*365/12,2)+(Summary!N19/12)*2 -> 137.3672756 | Y57: =D$28*K27+ROUND($P$14*365/12,2)+(Summary!N19/12)*2 -> 141.0791838 | Z57: =D$28*L27+ROUND($P$14*365/12,2)+(Summary!N19/12)*2 -> 133.6524474 | AA57: =E$28*K27+ROUND($P$14*365/12,2)+(Summary!N19/12)*2 -> 143.395871 | AB57: =E$28*L27+ROUND($P$14*365/12,2)+(Summary!N19/12)*2 -> 135.8542575 | AC57: =F$28*K27+ROUND($P$14*365/12,2)+(Summary!N19/12)*2 -> 163.6518593 | AD57: =F$28*L27+ROUND($P$14*365/12,2)+(Summary!N19/12)*2 -> 155.1058166
B58: 14 hot | C58: =C$28*MIN(I28,R28)+IF(R28-I28>0,C$29*(R28-I28))+ROUND($P$14*365/12,2)+(Summary!N19/12)*2 -> 208.5483524 | D58: =C$28*MIN(J28,S28)+IF(S28-J28>0,C$29*(S28-J28))+ROUND($P$14*365/12,2)+(Summary!N19/12)*2 -> 112.0881652 | E58: =D$28*MIN(I28,R28)+IF(R28-I28>0,D$29*(R28-I28))+ROUND($P$14*365/12,2)+(Summary!N19/12)*2 -> 202.9753386 | F58: =D$28*MIN(J28,S28)+IF(S28-J28>0,D$29*(S28-J28))+ROUND($P$14*365/12,2)+(Summary!N19/12)*2 -> 108.9935972 | G58: =E$28*MIN(I28,R28)+IF(R28-I28>0,E$29*(R28-I28))+ROUND($P$14*365/12,2)+(Summary!N19/12)*2 -> 206.2494379 | H58: =E$28*MIN(J28,S28)+IF(S28-J28>0,E$29*(S28-J28))+ROUND($P$14*365/12,2)+(Summary!N19/12)*2 -> 110.8139832 | I58: =F$28*MIN(I28,R28)+IF(R28-I28>0,F$29*(R28-I28))+ROUND($P$14*365/12,2)+(Summary!N19/12)*2 -> 234.8765734 | J58: =F$28*MIN(J28,S28)+IF(S28-J28>0,F$29*(S28-J28))+ROUND($P$14*365/12,2)+(Summary!N19/12)*2 -> 126.7305554 | L58: 14 hot | M58: =C$22*K28+ROUND($F$14*365/12,2)+(Summary!N19/12)*2 -> 179.0356123 | N58: =C$22*L28+ROUND($F$14*365/12,2)+(Summary!N19/12)*2 -> 205.3769777 | O58: =D$22*K28+ROUND($F$14*365/12,2)+(Summary!N19/12)*2 -> 173.8192489 | P58: =D$22*L28+ROUND($F$14*365/12,2)+(Summary!N19/12)*2 -> 199.4275037 | Q58: =E$22*K28+ROUND($F$14*365/12,2)+(Summary!N19/12)*2 -> 176.6377202 | R58: =E$22*L28+ROUND($F$14*365/12,2)+(Summary!N19/12)*2 -> 202.6420845 | S58: =F$22*K28+ROUND($F$14*365/12,2)+(Summary!N19/12)*2 -> 201.281066 | T58: =F$22*L28+ROUND($F$14*365/12,2)+(Summary!N19/12)*2 -> 230.7488195 | V58: 14 hot | W58: =C$28*K28+ROUND($P$14*365/12,2)+(Summary!N19/12)*2 -> 108.7902 | X58: =C$28*L28+ROUND($P$14*365/12,2)+(Summary!N19/12)*2 -> 125.3013993 | Y58: =D$28*K28+ROUND($P$14*365/12,2)+(Summary!N19/12)*2 -> 105.802186 | Z58: =D$28*L28+ROUND($P$14*365/12,2)+(Summary!N19/12)*2 -> 121.8934482 | AA58: =E$28*K28+ROUND($P$14*365/12,2)+(Summary!N19/12)*2 -> 107.5732071 | AB58: =E$28*L28+ROUND($P$14*365/12,2)+(Summary!N19/12)*2 -> 123.9133696 | AC58: =F$28*K28+ROUND($P$14*365/12,2)+(Summary!N19/12)*2 -> 123.0581569 | AD58: =F$28*L28+ROUND($P$14*365/12,2)+(Summary!N19/12)*2 -> 141.5745825
B59: 15 hot | C59: =C$28*MIN(I29,R29)+IF(R29-I29>0,C$29*(R29-I29))+ROUND($P$14*365/12,2)+(Summary!N19/12)*2 -> 275.3710999 | D59: =C$28*MIN(J29,S29)+IF(S29-J29>0,C$29*(S29-J29))+ROUND($P$14*365/12,2)+(Summary!N19/12)*2 -> 118.5682698 | E59: =D$28*MIN(I29,R29)+IF(R29-I29>0,D$29*(R29-I29))+ROUND($P$14*365/12,2)+(Summary!N19/12)*2 -> 268.1463555 | F59: =D$28*MIN(J29,S29)+IF(S29-J29>0,D$29*(S29-J29))+ROUND($P$14*365/12,2)+(Summary!N19/12)*2 -> 115.298633 | G59: =E$28*MIN(I29,R29)+IF(R29-I29>0,E$29*(R29-I29))+ROUND($P$14*365/12,2)+(Summary!N19/12)*2 -> 272.4285226 | H59: =E$28*MIN(J29,S29)+IF(S29-J29>0,E$29*(S29-J29))+ROUND($P$14*365/12,2)+(Summary!N19/12)*2 -> 117.2165456 | I59: =F$28*MIN(I29,R29)+IF(R29-I29>0,F$29*(R29-I29))+ROUND($P$14*365/12,2)+(Summary!N19/12)*2 -> 309.8697141 | J59: =F$28*MIN(J29,S29)+IF(S29-J29>0,F$29*(S29-J29))+ROUND($P$14*365/12,2)+(Summary!N19/12)*2 -> 133.9858426 | L59: 15 hot | M59: =C$22*K29+ROUND($F$14*365/12,2)+(Summary!N19/12)*2 -> 234.7577313 | N59: =C$22*L29+ROUND($F$14*365/12,2)+(Summary!N19/12)*2 -> 167.8911885 | O59: =D$22*K29+ROUND($F$14*365/12,2)+(Summary!N19/12)*2 -> 227.9905571 | P59: =D$22*L29+ROUND($F$14*365/12,2)+(Summary!N19/12)*2 -> 162.9849873 | Q59: =E$22*K29+ROUND($F$14*365/12,2)+(Summary!N19/12)*2 -> 231.6469524 | R59: =E$22*L29+ROUND($F$14*365/12,2)+(Summary!N19/12)*2 -> 165.6358738 | S59: =F$22*K29+ROUND($F$14*365/12,2)+(Summary!N19/12)*2 -> 263.6166983 | T59: =F$22*L29+ROUND($F$14*365/12,2)+(Summary!N19/12)*2 -> 188.8139396 | V59: 15 hot | W59: =C$28*K29+ROUND($P$14*365/12,2)+(Summary!N19/12)*2 -> 143.7177369 | X59: =C$28*L29+ROUND($P$14*365/12,2)+(Summary!N19/12)*2 -> 101.8046926 | Y59: =D$28*K29+ROUND($P$14*365/12,2)+(Summary!N19/12)*2 -> 139.8413944 | Z59: =D$28*L29+ROUND($P$14*365/12,2)+(Summary!N19/12)*2 -> 98.99434429 | AA59: =E$28*K29+ROUND($P$14*365/12,2)+(Summary!N19/12)*2 -> 142.1389354 | AB59: =E$28*L29+ROUND($P$14*365/12,2)+(Summary!N19/12)*2 -> 100.6600615 | AC59: =F$28*K29+ROUND($P$14*365/12,2)+(Summary!N19/12)*2 -> 162.2275188 | AD59: =F$28*L29+ROUND($P$14*365/12,2)+(Summary!N19/12)*2 -> 115.2242845
B60: 16 cool | C60: =C$28*MIN(I30,R30)+IF(R30-I30>0,C$29*(R30-I30))+ROUND($P$14*365/12,2)+(Summary!N19/12)*2 -> 174.6519067 | D60: =C$28*MIN(J30,S30)+IF(S30-J30>0,C$29*(S30-J30))+ROUND($P$14*365/12,2)+(Summary!N19/12)*2 -> 101.8374222 | E60: =D$28*MIN(I30,R30)+IF(R30-I30>0,D$29*(R30-I30))+ROUND($P$14*365/12,2)+(Summary!N19/12)*2 -> 169.9436651 | F60: =D$28*MIN(J30,S30)+IF(S30-J30>0,D$29*(S30-J30))+ROUND($P$14*365/12,2)+(Summary!N19/12)*2 -> 99.01029986 | G60: =E$28*MIN(I30,R30)+IF(R30-I30>0,E$29*(R30-I30))+ROUND($P$14*365/12,2)+(Summary!N19/12)*2 -> 172.7068291 | H60: =E$28*MIN(J30,S30)+IF(S30-J30>0,E$29*(S30-J30))+ROUND($P$14*365/12,2)+(Summary!N19/12)*2 -> 100.6762639 | I60: =F$28*MIN(I30,R30)+IF(R30-I30>0,F$29*(R30-I30))+ROUND($P$14*365/12,2)+(Summary!N19/12)*2 -> 196.866595 | J60: =F$28*MIN(J30,S30)+IF(S30-J30>0,F$29*(S30-J30))+ROUND($P$14*365/12,2)+(Summary!N19/12)*2 -> 115.2426448 | L60: 16 cool | M60: =C$22*K30+ROUND($F$14*365/12,2)+(Summary!N19/12)*2 -> 128.3791405 | N60: =C$22*L30+ROUND($F$14*365/12,2)+(Summary!N19/12)*2 -> 226.6526958 | O60: =D$22*K30+ROUND($F$14*365/12,2)+(Summary!N19/12)*2 -> 124.5726051 | P60: =D$22*L30+ROUND($F$14*365/12,2)+(Summary!N19/12)*2 -> 220.1110941 | Q60: =E$22*K30+ROUND($F$14*365/12,2)+(Summary!N19/12)*2 -> 126.6293274 | R60: =E$22*L30+ROUND($F$14*365/12,2)+(Summary!N19/12)*2 -> 223.6456095 | S60: =F$22*K30+ROUND($F$14*365/12,2)+(Summary!N19/12)*2 -> 144.6123095 | T60: =F$22*L30+ROUND($F$14*365/12,2)+(Summary!N19/12)*2 -> 254.5496972 | V60: 16 cool | W60: =C$28*K30+ROUND($P$14*365/12,2)+(Summary!N19/12)*2 -> 77.03789368 | X60: =C$28*L30+ROUND($P$14*365/12,2)+(Summary!N19/12)*2 -> 138.6373679 | Y60: =D$28*K30+ROUND($P$14*365/12,2)+(Summary!N19/12)*2 -> 74.85745103 | Z60: =D$28*L30+ROUND($P$14*365/12,2)+(Summary!N19/12)*2 -> 134.8902368 | AA60: =E$28*K30+ROUND($P$14*365/12,2)+(Summary!N19/12)*2 -> 76.14981782 | AB60: =E$28*L30+ROUND($P$14*365/12,2)+(Summary!N19/12)*2 -> 137.1111931 | AC60: =F$28*K30+ROUND($P$14*365/12,2)+(Summary!N19/12)*2 -> 87.449646 | AD60: =F$28*L30+ROUND($P$14*365/12,2)+(Summary!N19/12)*2 -> 156.5301571
B61: ALL | C61: =SUMPRODUCT(C52:C60,$U$22:$U$30) -> 180.2226444 | D61: 95.70362633 | E61: 175.3825546 | F61: 93.03321226 | G61: 178.2298476 | H61: 94.60672243 | I61: 203.1251963 | J61: 108.364732 | L61: ALL | M61: =SUMPRODUCT(M52:M60,$T$22:$T$30) -> 129.768474 | N61: =SUMPRODUCT(N52:N60,$T$22:$T$30) -> 147.2532409 | O61: 125.9232718 | P61: 142.9214175 | Q61: 128.0008863 | R61: 145.26196 | S61: 146.1665393 | T61: 165.7265277 | V61: ALL | W61: =SUMPRODUCT(W52:W60,$U$22:$U$30) -> 90.60495947 | X61: =SUMPRODUCT(X52:X60,$U$22:$U$30) -> 97.63304863 | Y61: 88.07945925 | Z61: 94.92879971 | AA61: 89.57634458 | AB61: 96.53163091 | AC61: 102.6643836 | AD61: 110.5460092
C64: All-Electric - Non-CARE | L64: =Summary!J4 -> 500 | M64: =L64&" kWh Monthly - Non-CARE" -> 500 kWh Monthly - Non-CARE | W64: =L64&" kWh Monthly - CARE" -> 500 kWh Monthly - CARE
C65: =C35 -> Jan 2025 | E65: 2025-06-01 | G65: Authorized | I65: w/Pending | M65: =M50 -> Jan 2025 | O65: =O50 -> 2025-06-01 | Q65: =Q50 -> Authorized | S65: =S50 -> w/Pending | W65: =M65 -> Jan 2025 | Y65: =O65 -> 2025-06-01 | AA65: =Q65 -> Authorized | AC65: =S65 -> w/Pending
C66: Summer | D66: Winter | E66: Summer | F66: Winter | G66: Summer | H66: Winter | I66: Summer | J66: Winter | M66: Summer | N66: Winter | O66: Summer | P66: Winter | Q66: Summer | R66: Winter | S66: Summer | T66: Winter | W66: Summer | X66: Winter | Y66: Summer | Z66: Winter | AA66: Summer | AB66: Winter | AC66: Summer | AD66: Winter
B67: =B37 -> 5 warm | C67: =C$22*MIN(K22,X22)+IF(X22-K22>0,C$23*(X22-K22))+ROUND($F$14*365/12,2)+(Summary!N19/12)*2 -> 123.1903756 | D67: =C$22*MIN(L22,Y22)+IF(Y22-L22>0,C$23*(Y22-L22))+ROUND($F$14*365/12,2)+(Summary!N19/12)*2 -> 148.938088 | E67: =D$22*MIN(K22,X22)+IF(X22-K22>0,D$23*(X22-K22))+ROUND($F$14*365/12,2)+(Summary!N19/12)*2 -> 119.5282494 | F67: =D$22*MIN(L22,Y22)+IF(Y22-L22>0,D$23*(Y22-L22))+ROUND($F$14*365/12,2)+(Summary!N19/12)*2 -> 144.5593733 | G67: =E$22*MIN(K22,X22)+IF(X22-K22>0,E$23*(X22-K22))+ROUND($F$14*365/12,2)+(Summary!N19/12)*2 -> 121.5069455 | H67: =E$22*MIN(L22,Y22)+IF(Y22-L22>0,E$23*(Y22-L22))+ROUND($F$14*365/12,2)+(Summary!N19/12)*2 -> 146.9252518 | I67: =F$22*MIN(K22,X22)+IF(X22-K22>0,F$23*(X22-K22))+ROUND($F$14*365/12,2)+(Summary!N19/12)*2 -> 138.8077035 | J67: =F$22*MIN(L22,Y22)+IF(Y22-L22>0,F$23*(Y22-L22))+ROUND($F$14*365/12,2)+(Summary!N19/12)*2 -> 167.6113449 | L67: 5 warm | M67: =C$22*MIN(I22,$L$64)+IF($L$64-I22>0,C$23*($L$64-I22))+ROUND($F$14*365/12,2)+(Summary!N19/12)*2 -> 158.1466667 | N67: =C$22*MIN(J22,$L$64)+IF($L$64-J22>0,C$23*($L$64-J22))+ROUND($F$14*365/12,2)+(Summary!N19/12)*2 -> 158.1466667 | O67: =D$22*MIN(I22,$L$64)+IF($L$64-I22>0,D$23*($L$64-I22))+ROUND($F$14*365/12,2)+(Summary!N19/12)*2 -> 153.5116667 | P67: =D$22*MIN(J22,$L$64)+IF($L$64-J22>0,D$23*($L$64-J22))+ROUND($F$14*365/12,2)+(Summary!N19/12)*2 -> 153.5116667 | Q67: =E$22*MIN(I22,$L$64)+IF($L$64-I22>0,E$23*($L$64-I22))+ROUND($F$14*365/12,2)+(Summary!N19/12)*2 -> 156.0160195 | R67: =E$22*MIN(J22,$L$64)+IF($L$64-J22>0,E$23*($L$64-J22))+ROUND($F$14*365/12,2)+(Summary!N19/12)*2 -> 156.0160195 | S67: =F$22*MIN(I22,$L$64)+IF($L$64-I22>0,F$23*($L$64-I22))+ROUND($F$14*365/12,2)+(Summary!N19/12)*2 -> 177.9128658 | T67: =F$22*MIN(J22,$L$64)+IF($L$64-J22>0,F$23*($L$64-J22))+ROUND($F$14*365/12,2)+(Summary!N19/12)*2 -> 177.9128658 | V67: 5 warm | W67: =C$28*MIN(I22,$L$64)+IF($L$64-I22>0,C$29*($L$64-I22))+ROUND($P$14*365/12,2)+(Summary!N19/12)*2 -> 95.69666667 | X67: =C$28*MIN(J22,$L$64)+IF($L$64-J22>0,C$29*($L$64-J22))+ROUND($P$14*365/12,2)+(Summary!N19/12)*2 -> 95.69666667 | Y67: =D$28*MIN(I22,$L$64)+IF($L$64-I22>0,D$29*($L$64-I22))+ROUND($P$14*365/12,2)+(Summary!N19/12)*2 -> 93.04166667 | Z67: =D$28*MIN(J22,$L$64)+IF($L$64-J22>0,D$29*($L$64-J22))+ROUND($P$14*365/12,2)+(Summary!N19/12)*2 -> 93.04166667 | AA67: =E$28*MIN(I22,$L$64)+IF($L$64-I22>0,E$29*($L$64-I22))+ROUND($P$14*365/12,2)+(Summary!N19/12)*2 -> 94.61530762 | AB67: =E$28*MIN(J22,$L$64)+IF($L$64-J22>0,E$29*($L$64-J22))+ROUND($P$14*365/12,2)+(Summary!N19/12)*2 -> 94.61530762 | AC67: =F$28*MIN(I22,$L$64)+IF($L$64-I22>0,F$29*($L$64-I22))+ROUND($P$14*365/12,2)+(Summary!N19/12)*2 -> 108.3744605 | AD67: =F$28*MIN(J22,$L$64)+IF($L$64-J22>0,F$29*($L$64-J22))+ROUND($P$14*365/12,2)+(Summary!N19/12)*2 -> 108.3744605
B68: 6 cool | C68: =C$22*MIN(K23,X23)+IF(X23-K23>0,C$23*(X23-K23))+ROUND($F$14*365/12,2)+(Summary!N19/12)*2 -> 109.311935 | D68: =C$22*MIN(L23,Y23)+IF(Y23-L23>0,C$23*(Y23-L23))+ROUND($F$14*365/12,2)+(Summary!N19/12)*2 -> 101.616446 | E68: =D$22*MIN(K23,X23)+IF(X23-K23>0,D$23*(X23-K23))+ROUND($F$14*365/12,2)+(Summary!N19/12)*2 -> 106.0372754 | F68: =D$22*MIN(L23,Y23)+IF(Y23-L23>0,D$23*(Y23-L23))+ROUND($F$14*365/12,2)+(Summary!N19/12)*2 -> 98.5547471 | G68: =E$22*MIN(K23,X23)+IF(X23-K23>0,E$23*(X23-K23))+ROUND($F$14*365/12,2)+(Summary!N19/12)*2 -> 107.8072925 | H68: =E$22*MIN(L23,Y23)+IF(Y23-L23>0,E$23*(Y23-L23))+ROUND($F$14*365/12,2)+(Summary!N19/12)*2 -> 100.2090242 | I68: =F$22*MIN(K23,X23)+IF(X23-K23>0,F$23*(X23-K23))+ROUND($F$14*365/12,2)+(Summary!N19/12)*2 -> 123.2834634 | J68: =F$22*MIN(L23,Y23)+IF(Y23-L23>0,F$23*(Y23-L23))+ROUND($F$14*365/12,2)+(Summary!N19/12)*2 -> 114.6732203 | L68: 6 cool | M68: =C$22*MIN(I23,$L$64)+IF($L$64-I23>0,C$23*($L$64-I23))+ROUND($F$14*365/12,2)+(Summary!N19/12)*2 -> 172.7249777 | N68: =C$22*MIN(J23,$L$64)+IF($L$64-J23>0,C$23*($L$64-J23))+ROUND($F$14*365/12,2)+(Summary!N19/12)*2 -> 173.8824054 | O68: =D$22*MIN(I23,$L$64)+IF($L$64-I23>0,D$23*($L$64-I23))+ROUND($F$14*365/12,2)+(Summary!N19/12)*2 -> 167.6869402 | P68: =D$22*MIN(J23,$L$64)+IF($L$64-J23>0,D$23*($L$64-J23))+ROUND($F$14*365/12,2)+(Summary!N19/12)*2 -> 168.8123692 | Q68: =E$22*MIN(I23,$L$64)+IF($L$64-I23>0,E$23*($L$64-I23))+ROUND($F$14*365/12,2)+(Summary!N19/12)*2 -> 170.4105567 | R68: =E$22*MIN(J23,$L$64)+IF($L$64-J23>0,E$23*($L$64-J23))+ROUND($F$14*365/12,2)+(Summary!N19/12)*2 -> 171.5533939 | S68: =F$22*MIN(I23,$L$64)+IF($L$64-I23>0,F$23*($L$64-I23))+ROUND($F$14*365/12,2)+(Summary!N19/12)*2 -> 194.2245382 | T68: =F$22*MIN(J23,$L$64)+IF($L$64-J23>0,F$23*($L$64-J23))+ROUND($F$14*365/12,2)+(Summary!N19/12)*2 -> 195.5195841 | V68: 6 cool | W68: =C$28*MIN(I23,$L$64)+IF($L$64-I23>0,C$29*($L$64-I23))+ROUND($P$14*365/12,2)+(Summary!N19/12)*2 -> 105.5366052 | X68: =C$28*MIN(J23,$L$64)+IF($L$64-J23>0,C$29*($L$64-J23))+ROUND($P$14*365/12,2)+(Summary!N19/12)*2 -> 106.3178354 | Y68: =D$28*MIN(I23,$L$64)+IF($L$64-I23>0,D$29*($L$64-I23))+ROUND($P$14*365/12,2)+(Summary!N19/12)*2 -> 102.6103594 | Z68: =D$28*MIN(J23,$L$64)+IF($L$64-J23>0,D$29*($L$64-J23))+ROUND($P$14*365/12,2)+(Summary!N19/12)*2 -> 103.3700544 | AA68: =E$28*MIN(I23,$L$64)+IF($L$64-I23>0,E$29*($L$64-I23))+ROUND($P$14*365/12,2)+(Summary!N19/12)*2 -> 104.3320093 | AB68: =E$28*MIN(J23,$L$64)+IF($L$64-J23>0,E$29*($L$64-J23))+ROUND($P$14*365/12,2)+(Summary!N19/12)*2 -> 105.1034552 | AC68: =F$28*MIN(I23,$L$64)+IF($L$64-I23>0,F$29*($L$64-I23))+ROUND($P$14*365/12,2)+(Summary!N19/12)*2 -> 119.3852803 | AD68: =F$28*MIN(J23,$L$64)+IF($L$64-J23>0,F$29*($L$64-J23))+ROUND($P$14*365/12,2)+(Summary!N19/12)*2 -> 120.2594713
B69: 8 cool | C69: =C$22*MIN(K24,X24)+IF(X24-K24>0,C$23*(X24-K24))+ROUND($F$14*365/12,2)+(Summary!N19/12)*2 -> 132.3536862 | D69: =C$22*MIN(L24,Y24)+IF(Y24-L24>0,C$23*(Y24-L24))+ROUND($F$14*365/12,2)+(Summary!N19/12)*2 -> 107.2141551 | E69: =D$22*MIN(K24,X24)+IF(X24-K24>0,D$23*(X24-K24))+ROUND($F$14*365/12,2)+(Summary!N19/12)*2 -> 128.4381949 | F69: =D$22*MIN(L24,Y24)+IF(Y24-L24>0,D$23*(Y24-L24))+ROUND($F$14*365/12,2)+(Summary!N19/12)*2 -> 103.9966656 | G69: =E$22*MIN(K24,X24)+IF(X24-K24>0,E$23*(X24-K24))+ROUND($F$14*365/12,2)+(Summary!N19/12)*2 -> 130.5547103 | H69: =E$22*MIN(L24,Y24)+IF(Y24-L24>0,E$23*(Y24-L24))+ROUND($F$14*365/12,2)+(Summary!N19/12)*2 -> 105.7351184 | I69: =F$22*MIN(K24,X24)+IF(X24-K24>0,F$23*(X24-K24))+ROUND($F$14*365/12,2)+(Summary!N19/12)*2 -> 149.0604941 | J69: =F$22*MIN(L24,Y24)+IF(Y24-L24>0,F$23*(Y24-L24))+ROUND($F$14*365/12,2)+(Summary!N19/12)*2 -> 120.935307 | L69: 8 cool | M69: =C$22*MIN(I24,$L$64)+IF($L$64-I24>0,C$23*($L$64-I24))+ROUND($F$14*365/12,2)+(Summary!N19/12)*2 -> 168.6739808 | N69: =C$22*MIN(J24,$L$64)+IF($L$64-J24>0,C$23*($L$64-J24))+ROUND($F$14*365/12,2)+(Summary!N19/12)*2 -> 175.9079038 | O69: =D$22*MIN(I24,$L$64)+IF($L$64-I24>0,D$23*($L$64-I24))+ROUND($F$14*365/12,2)+(Summary!N19/12)*2 -> 163.7479387 | P69: =D$22*MIN(J24,$L$64)+IF($L$64-J24>0,D$23*($L$64-J24))+ROUND($F$14*365/12,2)+(Summary!N19/12)*2 -> 170.7818699 | Q69: =E$22*MIN(I24,$L$64)+IF($L$64-I24>0,E$23*($L$64-I24))+ROUND($F$14*365/12,2)+(Summary!N19/12)*2 -> 166.4106266 | R69: =E$22*MIN(J24,$L$64)+IF($L$64-J24>0,E$23*($L$64-J24))+ROUND($F$14*365/12,2)+(Summary!N19/12)*2 -> 173.5533589 | S69: =F$22*MIN(I24,$L$64)+IF($L$64-I24>0,F$23*($L$64-I24))+ROUND($F$14*365/12,2)+(Summary!N19/12)*2 -> 189.6918777 | T69: =F$22*MIN(J24,$L$64)+IF($L$64-J24>0,F$23*($L$64-J24))+ROUND($F$14*365/12,2)+(Summary!N19/12)*2 -> 197.7859143 | V69: 8 cool | W69: =C$28*MIN(I24,$L$64)+IF($L$64-I24>0,C$29*($L$64-I24))+ROUND($P$14*365/12,2)+(Summary!N19/12)*2 -> 102.8022994 | X69: =C$28*MIN(J24,$L$64)+IF($L$64-J24>0,C$29*($L$64-J24))+ROUND($P$14*365/12,2)+(Summary!N19/12)*2 -> 107.6849883 | Y69: =D$28*MIN(I24,$L$64)+IF($L$64-I24>0,D$29*($L$64-I24))+ROUND($P$14*365/12,2)+(Summary!N19/12)*2 -> 99.95142692 | Z69: =D$28*MIN(J24,$L$64)+IF($L$64-J24>0,D$29*($L$64-J24))+ROUND($P$14*365/12,2)+(Summary!N19/12)*2 -> 104.6995206 | AA69: =E$28*MIN(I24,$L$64)+IF($L$64-I24>0,E$29*($L$64-I24))+ROUND($P$14*365/12,2)+(Summary!N19/12)*2 -> 101.6319483 | AB69: =E$28*MIN(J24,$L$64)+IF($L$64-J24>0,E$29*($L$64-J24))+ROUND($P$14*365/12,2)+(Summary!N19/12)*2 -> 106.4534857 | AC69: =F$28*MIN(I24,$L$64)+IF($L$64-I24>0,F$29*($L$64-I24))+ROUND($P$14*365/12,2)+(Summary!N19/12)*2 -> 116.325612 | AD69: =F$28*MIN(J24,$L$64)+IF($L$64-J24>0,F$29*($L$64-J24))+ROUND($P$14*365/12,2)+(Summary!N19/12)*2 -> 121.7893054
B70: 9 warm | C70: =C$22*MIN(K25,X25)+IF(X25-K25>0,C$23*(X25-K25))+ROUND($F$14*365/12,2)+(Summary!N19/12)*2 -> 182.7427053 | D70: =C$22*MIN(L25,Y25)+IF(Y25-L25>0,C$23*(Y25-L25))+ROUND($F$14*365/12,2)+(Summary!N19/12)*2 -> 118.2358202 | E70: =D$22*MIN(K25,X25)+IF(X25-K25>0,D$23*(X25-K25))+ROUND($F$14*365/12,2)+(Summary!N19/12)*2 -> 177.4258166 | F70: =D$22*MIN(L25,Y25)+IF(Y25-L25>0,D$23*(Y25-L25))+ROUND($F$14*365/12,2)+(Summary!N19/12)*2 -> 114.711585 | G70: =E$22*MIN(K25,X25)+IF(X25-K25>0,E$23*(X25-K25))+ROUND($F$14*365/12,2)+(Summary!N19/12)*2 -> 180.3000745 | H70: =E$22*MIN(L25,Y25)+IF(Y25-L25>0,E$23*(Y25-L25))+ROUND($F$14*365/12,2)+(Summary!N19/12)*2 -> 116.6157767 | I70: =F$22*MIN(K25,X25)+IF(X25-K25>0,F$23*(X25-K25))+ROUND($F$14*365/12,2)+(Summary!N19/12)*2 -> 205.4311906 | J70: =F$22*MIN(L25,Y25)+IF(Y25-L25>0,F$23*(Y25-L25))+ROUND($F$14*365/12,2)+(Summary!N19/12)*2 -> 133.2651049 | L70: 9 warm | M70: =C$22*MIN(I25,$L$64)+IF($L$64-I25>0,C$23*($L$64-I25))+ROUND($F$14*365/12,2)+(Summary!N19/12)*2 -> 158.1466667 | N70: =C$22*MIN(J25,$L$64)+IF($L$64-J25>0,C$23*($L$64-J25))+ROUND($F$14*365/12,2)+(Summary!N19/12)*2 -> 170.9888361 | O70: =D$22*MIN(I25,$L$64)+IF($L$64-I25>0,D$23*($L$64-I25))+ROUND($F$14*365/12,2)+(Summary!N19/12)*2 -> 153.5116667 | P70: =D$22*MIN(J25,$L$64)+IF($L$64-J25>0,D$23*($L$64-J25))+ROUND($F$14*365/12,2)+(Summary!N19/12)*2 -> 165.9987967 | Q70: =E$22*MIN(I25,$L$64)+IF($L$64-I25>0,E$23*($L$64-I25))+ROUND($F$14*365/12,2)+(Summary!N19/12)*2 -> 156.0160195 | R70: =E$22*MIN(J25,$L$64)+IF($L$64-J25>0,E$23*($L$64-J25))+ROUND($F$14*365/12,2)+(Summary!N19/12)*2 -> 168.6963009 | S70: =F$22*MIN(I25,$L$64)+IF($L$64-I25>0,F$23*($L$64-I25))+ROUND($F$14*365/12,2)+(Summary!N19/12)*2 -> 177.9128658 | T70: =F$22*MIN(J25,$L$64)+IF($L$64-J25>0,F$23*($L$64-J25))+ROUND($F$14*365/12,2)+(Summary!N19/12)*2 -> 192.2819695 | V70: 9 warm | W70: =C$28*MIN(I25,$L$64)+IF($L$64-I25>0,C$29*($L$64-I25))+ROUND($P$14*365/12,2)+(Summary!N19/12)*2 -> 95.69666667 | X70: =C$28*MIN(J25,$L$64)+IF($L$64-J25>0,C$29*($L$64-J25))+ROUND($P$14*365/12,2)+(Summary!N19/12)*2 -> 104.3647598 | Y70: =D$28*MIN(I25,$L$64)+IF($L$64-I25>0,D$29*($L$64-I25))+ROUND($P$14*365/12,2)+(Summary!N19/12)*2 -> 93.04166667 | Z70: =D$28*MIN(J25,$L$64)+IF($L$64-J25>0,D$29*($L$64-J25))+ROUND($P$14*365/12,2)+(Summary!N19/12)*2 -> 101.4708169 | AA70: =E$28*MIN(I25,$L$64)+IF($L$64-I25>0,E$29*($L$64-I25))+ROUND($P$14*365/12,2)+(Summary!N19/12)*2 -> 94.61530762 | AB70: =E$28*MIN(J25,$L$64)+IF($L$64-J25>0,E$29*($L$64-J25))+ROUND($P$14*365/12,2)+(Summary!N19/12)*2 -> 103.1748403 | AC70: =F$28*MIN(I25,$L$64)+IF($L$64-I25>0,F$29*($L$64-I25))+ROUND($P$14*365/12,2)+(Summary!N19/12)*2 -> 108.3744605 | AD70: =F$28*MIN(J25,$L$64)+IF($L$64-J25>0,F$29*($L$64-J25))+ROUND($P$14*365/12,2)+(Summary!N19/12)*2 -> 118.0739939
B71: 10 hot (Sec 745) | C71: =C$22*MIN(K26,X26)+IF(X26-K26>0,C$23*(X26-K26))+ROUND($F$14*365/12,2)+(Summary!N19/12)*2 -> 214.2986818 | D71: =C$22*MIN(L26,Y26)+IF(Y26-L26>0,C$23*(Y26-L26))+ROUND($F$14*365/12,2)+(Summary!N19/12)*2 -> 133.8656844 | E71: =D$22*MIN(K26,X26)+IF(X26-K26>0,D$23*(X26-K26))+ROUND($F$14*365/12,2)+(Summary!N19/12)*2 -> 208.1034353 | F71: =D$22*MIN(L26,Y26)+IF(Y26-L26>0,D$23*(Y26-L26))+ROUND($F$14*365/12,2)+(Summary!N19/12)*2 -> 129.9064521 | G71: =E$22*MIN(K26,X26)+IF(X26-K26>0,E$23*(X26-K26))+ROUND($F$14*365/12,2)+(Summary!N19/12)*2 -> 211.4522158 | H71: =E$22*MIN(L26,Y26)+IF(Y26-L26>0,E$23*(Y26-L26))+ROUND($F$14*365/12,2)+(Summary!N19/12)*2 -> 132.0456786 | I71: =F$22*MIN(K26,X26)+IF(X26-K26>0,F$23*(X26-K26))+ROUND($F$14*365/12,2)+(Summary!N19/12)*2 -> 240.7323274 | J71: =F$22*MIN(L26,Y26)+IF(Y26-L26>0,F$23*(Y26-L26))+ROUND($F$14*365/12,2)+(Summary!N19/12)*2 -> 150.750037 | L71: 10 hot (Sec 745) | M71: =C$22*MIN(I26,$L$64)+IF($L$64-I26>0,C$23*($L$64-I26))+ROUND($F$14*365/12,2)+(Summary!N19/12)*2 -> 158.1466667 | N71: =C$22*MIN(J26,$L$64)+IF($L$64-J26>0,C$23*($L$64-J26))+ROUND($F$14*365/12,2)+(Summary!N19/12)*2 -> 170.6994792 | O71: =D$22*MIN(I26,$L$64)+IF($L$64-I26>0,D$23*($L$64-I26))+ROUND($F$14*365/12,2)+(Summary!N19/12)*2 -> 153.5116667 | P71: =D$22*MIN(J26,$L$64)+IF($L$64-J26>0,D$23*($L$64-J26))+ROUND($F$14*365/12,2)+(Summary!N19/12)*2 -> 165.7174394 | Q71: =E$22*MIN(I26,$L$64)+IF($L$64-I26>0,E$23*($L$64-I26))+ROUND($F$14*365/12,2)+(Summary!N19/12)*2 -> 156.0160195 | R71: =E$22*MIN(J26,$L$64)+IF($L$64-J26>0,E$23*($L$64-J26))+ROUND($F$14*365/12,2)+(Summary!N19/12)*2 -> 168.4105916 | S71: =F$22*MIN(I26,$L$64)+IF($L$64-I26>0,F$23*($L$64-I26))+ROUND($F$14*365/12,2)+(Summary!N19/12)*2 -> 177.9128658 | T71: =F$22*MIN(J26,$L$64)+IF($L$64-J26>0,F$23*($L$64-J26))+ROUND($F$14*365/12,2)+(Summary!N19/12)*2 -> 191.958208 | V71: 10 hot (Sec 745) | W71: =C$28*MIN(I26,$L$64)+IF($L$64-I26>0,C$29*($L$64-I26))+ROUND($P$14*365/12,2)+(Summary!N19/12)*2 -> 95.69666667 | X71: =C$28*MIN(J26,$L$64)+IF($L$64-J26>0,C$29*($L$64-J26))+ROUND($P$14*365/12,2)+(Summary!N19/12)*2 -> 104.1694523 | Y71: =D$28*MIN(I26,$L$64)+IF($L$64-I26>0,D$29*($L$64-I26))+ROUND($P$14*365/12,2)+(Summary!N19/12)*2 -> 93.04166667 | Z71: =D$28*MIN(J26,$L$64)+IF($L$64-J26>0,D$29*($L$64-J26))+ROUND($P$14*365/12,2)+(Summary!N19/12)*2 -> 101.2808932 | AA71: =E$28*MIN(I26,$L$64)+IF($L$64-I26>0,E$29*($L$64-I26))+ROUND($P$14*365/12,2)+(Summary!N19/12)*2 -> 94.61530762 | AB71: =E$28*MIN(J26,$L$64)+IF($L$64-J26>0,E$29*($L$64-J26))+ROUND($P$14*365/12,2)+(Summary!N19/12)*2 -> 102.9819788 | AC71: =F$28*MIN(I26,$L$64)+IF($L$64-I26>0,F$29*($L$64-I26))+ROUND($P$14*365/12,2)+(Summary!N19/12)*2 -> 108.3744605 | AD71: =F$28*MIN(J26,$L$64)+IF($L$64-J26>0,F$29*($L$64-J26))+ROUND($P$14*365/12,2)+(Summary!N19/12)*2 -> 117.8554461
B72: 13 hot | C72: =C$22*MIN(K27,X27)+IF(X27-K27>0,C$23*(X27-K27))+ROUND($F$14*365/12,2)+(Summary!N19/12)*2 -> 335.226579 | D72: =C$22*MIN(L27,Y27)+IF(Y27-L27>0,C$23*(Y27-L27))+ROUND($F$14*365/12,2)+(Summary!N19/12)*2 -> 183.0327474 | E72: =D$22*MIN(K27,X27)+IF(X27-K27>0,D$23*(X27-K27))+ROUND($F$14*365/12,2)+(Summary!N19/12)*2 -> 325.667282 | F72: =D$22*MIN(L27,Y27)+IF(Y27-L27>0,D$23*(Y27-L27))+ROUND($F$14*365/12,2)+(Summary!N19/12)*2 -> 177.7051391 | G72: =E$22*MIN(K27,X27)+IF(X27-K27>0,E$23*(X27-K27))+ROUND($F$14*365/12,2)+(Summary!N19/12)*2 -> 330.8345446 | H72: =E$22*MIN(L27,Y27)+IF(Y27-L27>0,E$23*(Y27-L27))+ROUND($F$14*365/12,2)+(Summary!N19/12)*2 -> 180.5837175 | I72: =F$22*MIN(K27,X27)+IF(X27-K27>0,F$23*(X27-K27))+ROUND($F$14*365/12,2)+(Summary!N19/12)*2 -> 376.014582 | J72: =F$22*MIN(L27,Y27)+IF(Y27-L27>0,F$23*(Y27-L27))+ROUND($F$14*365/12,2)+(Summary!N19/12)*2 -> 205.7526106 | L72: 13 hot | M72: =C$22*MIN(I27,$L$64)+IF($L$64-I27>0,C$23*($L$64-I27))+ROUND($F$14*365/12,2)+(Summary!N19/12)*2 -> 158.1466667 | N72: =C$22*MIN(J27,$L$64)+IF($L$64-J27>0,C$23*($L$64-J27))+ROUND($F$14*365/12,2)+(Summary!N19/12)*2 -> 170.4101223 | O72: =D$22*MIN(I27,$L$64)+IF($L$64-I27>0,D$23*($L$64-I27))+ROUND($F$14*365/12,2)+(Summary!N19/12)*2 -> 153.5116667 | P72: =D$22*MIN(J27,$L$64)+IF($L$64-J27>0,D$23*($L$64-J27))+ROUND($F$14*365/12,2)+(Summary!N19/12)*2 -> 165.4360822 | Q72: =E$22*MIN(I27,$L$64)+IF($L$64-I27>0,E$23*($L$64-I27))+ROUND($F$14*365/12,2)+(Summary!N19/12)*2 -> 156.0160195 | R72: =E$22*MIN(J27,$L$64)+IF($L$64-J27>0,E$23*($L$64-J27))+ROUND($F$14*365/12,2)+(Summary!N19/12)*2 -> 168.1248823 | S72: =F$22*MIN(I27,$L$64)+IF($L$64-I27>0,F$23*($L$64-I27))+ROUND($F$14*365/12,2)+(Summary!N19/12)*2 -> 177.9128658 | T72: =F$22*MIN(J27,$L$64)+IF($L$64-J27>0,F$23*($L$64-J27))+ROUND($F$14*365/12,2)+(Summary!N19/12)*2 -> 191.6344465 | V72: 13 hot | W72: =C$28*MIN(I27,$L$64)+IF($L$64-I27>0,C$29*($L$64-I27))+ROUND($P$14*365/12,2)+(Summary!N19/12)*2 -> 95.69666667 | X72: =C$28*MIN(J27,$L$64)+IF($L$64-J27>0,C$29*($L$64-J27))+ROUND($P$14*365/12,2)+(Summary!N19/12)*2 -> 103.9741447 | Y72: =D$28*MIN(I27,$L$64)+IF($L$64-I27>0,D$29*($L$64-I27))+ROUND($P$14*365/12,2)+(Summary!N19/12)*2 -> 93.04166667 | Z72: =D$28*MIN(J27,$L$64)+IF($L$64-J27>0,D$29*($L$64-J27))+ROUND($P$14*365/12,2)+(Summary!N19/12)*2 -> 101.0909694 | AA72: =E$28*MIN(I27,$L$64)+IF($L$64-I27>0,E$29*($L$64-I27))+ROUND($P$14*365/12,2)+(Summary!N19/12)*2 -> 94.61530762 | AB72: =E$28*MIN(J27,$L$64)+IF($L$64-J27>0,E$29*($L$64-J27))+ROUND($P$14*365/12,2)+(Summary!N19/12)*2 -> 102.7891173 | AC72: =F$28*MIN(I27,$L$64)+IF($L$64-I27>0,F$29*($L$64-I27))+ROUND($P$14*365/12,2)+(Summary!N19/12)*2 -> 108.3744605 | AD72: =F$28*MIN(J27,$L$64)+IF($L$64-J27>0,F$29*($L$64-J27))+ROUND($P$14*365/12,2)+(Summary!N19/12)*2 -> 117.6368984
B73: 14 hot | C73: =C$22*MIN(K28,X28)+IF(X28-K28>0,C$23*(X28-K28))+ROUND($F$14*365/12,2)+(Summary!N19/12)*2 -> 261.8114378 | D73: =C$22*MIN(L28,Y28)+IF(Y28-L28>0,C$23*(Y28-L28))+ROUND($F$14*365/12,2)+(Summary!N19/12)*2 -> 177.0324501 | E73: =D$22*MIN(K28,X28)+IF(X28-K28>0,D$23*(X28-K28))+ROUND($F$14*365/12,2)+(Summary!N19/12)*2 -> 254.2947257 | F73: =D$22*MIN(L28,Y28)+IF(Y28-L28>0,D$23*(Y28-L28))+ROUND($F$14*365/12,2)+(Summary!N19/12)*2 -> 171.871837 | G73: =E$22*MIN(K28,X28)+IF(X28-K28>0,E$23*(X28-K28))+ROUND($F$14*365/12,2)+(Summary!N19/12)*2 -> 258.3579948 | H73: =E$22*MIN(L28,Y28)+IF(Y28-L28>0,E$23*(Y28-L28))+ROUND($F$14*365/12,2)+(Summary!N19/12)*2 -> 174.6601857 | I73: =F$22*MIN(K28,X28)+IF(X28-K28>0,F$23*(X28-K28))+ROUND($F$14*365/12,2)+(Summary!N19/12)*2 -> 293.8852487 | J73: =F$22*MIN(L28,Y28)+IF(Y28-L28>0,F$23*(Y28-L28))+ROUND($F$14*365/12,2)+(Summary!N19/12)*2 -> 199.0401537 | L73: 14 hot | M73: =C$22*MIN(I28,$L$64)+IF($L$64-I28>0,C$23*($L$64-I28))+ROUND($F$14*365/12,2)+(Summary!N19/12)*2 -> 158.1466667 | N73: =C$22*MIN(J28,$L$64)+IF($L$64-J28>0,C$23*($L$64-J28))+ROUND($F$14*365/12,2)+(Summary!N19/12)*2 -> 171.2781931 | O73: =D$22*MIN(I28,$L$64)+IF($L$64-I28>0,D$23*($L$64-I28))+ROUND($F$14*365/12,2)+(Summary!N19/12)*2 -> 153.5116667 | P73: =D$22*MIN(J28,$L$64)+IF($L$64-J28>0,D$23*($L$64-J28))+ROUND($F$14*365/12,2)+(Summary!N19/12)*2 -> 166.2801539 | Q73: =E$22*MIN(I28,$L$64)+IF($L$64-I28>0,E$23*($L$64-I28))+ROUND($F$14*365/12,2)+(Summary!N19/12)*2 -> 156.0160195 | R73: =E$22*MIN(J28,$L$64)+IF($L$64-J28>0,E$23*($L$64-J28))+ROUND($F$14*365/12,2)+(Summary!N19/12)*2 -> 168.9820102 | S73: =F$22*MIN(I28,$L$64)+IF($L$64-I28>0,F$23*($L$64-I28))+ROUND($F$14*365/12,2)+(Summary!N19/12)*2 -> 177.9128658 | T73: =F$22*MIN(J28,$L$64)+IF($L$64-J28>0,F$23*($L$64-J28))+ROUND($F$14*365/12,2)+(Summary!N19/12)*2 -> 192.6057309 | V73: 14 hot | W73: =C$28*MIN(I28,$L$64)+IF($L$64-I28>0,C$29*($L$64-I28))+ROUND($P$14*365/12,2)+(Summary!N19/12)*2 -> 95.69666667 | X73: =C$28*MIN(J28,$L$64)+IF($L$64-J28>0,C$29*($L$64-J28))+ROUND($P$14*365/12,2)+(Summary!N19/12)*2 -> 104.5600674 | Y73: =D$28*MIN(I28,$L$64)+IF($L$64-I28>0,D$29*($L$64-I28))+ROUND($P$14*365/12,2)+(Summary!N19/12)*2 -> 93.04166667 | Z73: =D$28*MIN(J28,$L$64)+IF($L$64-J28>0,D$29*($L$64-J28))+ROUND($P$14*365/12,2)+(Summary!N19/12)*2 -> 101.6607407 | AA73: =E$28*MIN(I28,$L$64)+IF($L$64-I28>0,E$29*($L$64-I28))+ROUND($P$14*365/12,2)+(Summary!N19/12)*2 -> 94.61530762 | AB73: =E$28*MIN(J28,$L$64)+IF($L$64-J28>0,E$29*($L$64-J28))+ROUND($P$14*365/12,2)+(Summary!N19/12)*2 -> 103.3677018 | AC73: =F$28*MIN(I28,$L$64)+IF($L$64-I28>0,F$29*($L$64-I28))+ROUND($P$14*365/12,2)+(Summary!N19/12)*2 -> 108.3744605 | AD73: =F$28*MIN(J28,$L$64)+IF($L$64-J28>0,F$29*($L$64-J28))+ROUND($P$14*365/12,2)+(Summary!N19/12)*2 -> 118.2925416
B74: 15 hot | C74: =C$22*MIN(K29,X29)+IF(X29-K29>0,C$23*(X29-K29))+ROUND($F$14*365/12,2)+(Summary!N19/12)*2 -> 318.2418316 | D74: =C$22*MIN(L29,Y29)+IF(Y29-L29>0,C$23*(Y29-L29))+ROUND($F$14*365/12,2)+(Summary!N19/12)*2 -> 142.037756 | E74: =D$22*MIN(K29,X29)+IF(X29-K29>0,D$23*(X29-K29))+ROUND($F$14*365/12,2)+(Summary!N19/12)*2 -> 309.1546257 | F74: =D$22*MIN(L29,Y29)+IF(Y29-L29>0,D$23*(Y29-L29))+ROUND($F$14*365/12,2)+(Summary!N19/12)*2 -> 137.8510855 | G74: =E$22*MIN(K29,X29)+IF(X29-K29>0,E$23*(X29-K29))+ROUND($F$14*365/12,2)+(Summary!N19/12)*2 -> 314.0664699 | H74: =E$22*MIN(L29,Y29)+IF(Y29-L29>0,E$23*(Y29-L29))+ROUND($F$14*365/12,2)+(Summary!N19/12)*2 -> 140.1131999 | I74: =F$22*MIN(K29,X29)+IF(X29-K29>0,F$23*(X29-K29))+ROUND($F$14*365/12,2)+(Summary!N19/12)*2 -> 357.0132525 | J74: =F$22*MIN(L29,Y29)+IF(Y29-L29>0,F$23*(Y29-L29))+ROUND($F$14*365/12,2)+(Summary!N19/12)*2 -> 159.8920304 | L74: 15 hot | M74: =C$22*MIN(I29,$L$64)+IF($L$64-I29>0,C$23*($L$64-I29))+ROUND($F$14*365/12,2)+(Summary!N19/12)*2 -> 158.1466667 | N74: =C$22*MIN(J29,$L$64)+IF($L$64-J29>0,C$23*($L$64-J29))+ROUND($F$14*365/12,2)+(Summary!N19/12)*2 -> 177.6440453 | O74: =D$22*MIN(I29,$L$64)+IF($L$64-I29>0,D$23*($L$64-I29))+ROUND($F$14*365/12,2)+(Summary!N19/12)*2 -> 153.5116667 | P74: =D$22*MIN(J29,$L$64)+IF($L$64-J29>0,D$23*($L$64-J29))+ROUND($F$14*365/12,2)+(Summary!N19/12)*2 -> 172.4700134 | Q74: =E$22*MIN(I29,$L$64)+IF($L$64-I29>0,E$23*($L$64-I29))+ROUND($F$14*365/12,2)+(Summary!N19/12)*2 -> 156.0160195 | R74: =E$22*MIN(J29,$L$64)+IF($L$64-J29>0,E$23*($L$64-J29))+ROUND($F$14*365/12,2)+(Summary!N19/12)*2 -> 175.2676147 | S74: =F$22*MIN(I29,$L$64)+IF($L$64-I29>0,F$23*($L$64-I29))+ROUND($F$14*365/12,2)+(Summary!N19/12)*2 -> 177.9128658 | T74: =F$22*MIN(J29,$L$64)+IF($L$64-J29>0,F$23*($L$64-J29))+ROUND($F$14*365/12,2)+(Summary!N19/12)*2 -> 199.7284831 | V74: 15 hot | W74: =C$28*MIN(I29,$L$64)+IF($L$64-I29>0,C$29*($L$64-I29))+ROUND($P$14*365/12,2)+(Summary!N19/12)*2 -> 95.69666667 | X74: =C$28*MIN(J29,$L$64)+IF($L$64-J29>0,C$29*($L$64-J29))+ROUND($P$14*365/12,2)+(Summary!N19/12)*2 -> 108.8568336 | Y74: =D$28*MIN(I29,$L$64)+IF($L$64-I29>0,D$29*($L$64-I29))+ROUND($P$14*365/12,2)+(Summary!N19/12)*2 -> 93.04166667 | Z74: =D$28*MIN(J29,$L$64)+IF($L$64-J29>0,D$29*($L$64-J29))+ROUND($P$14*365/12,2)+(Summary!N19/12)*2 -> 105.8390631 | AA74: =E$28*MIN(I29,$L$64)+IF($L$64-I29>0,E$29*($L$64-I29))+ROUND($P$14*365/12,2)+(Summary!N19/12)*2 -> 94.61530762 | AB74: =E$28*MIN(J29,$L$64)+IF($L$64-J29>0,E$29*($L$64-J29))+ROUND($P$14*365/12,2)+(Summary!N19/12)*2 -> 107.6106547 | AC74: =F$28*MIN(I29,$L$64)+IF($L$64-I29>0,F$29*($L$64-I29))+ROUND($P$14*365/12,2)+(Summary!N19/12)*2 -> 108.3744605 | AD74: =F$28*MIN(J29,$L$64)+IF($L$64-J29>0,F$29*($L$64-J29))+ROUND($P$14*365/12,2)+(Summary!N19/12)*2 -> 123.1005919
B75: 16 cool | C75: =C$22*MIN(K30,X30)+IF(X30-K30>0,C$23*(X30-K30))+ROUND($F$14*365/12,2)+(Summary!N19/12)*2 -> 145.1725175 | D75: =C$22*MIN(L30,Y30)+IF(Y30-L30>0,C$23*(Y30-L30))+ROUND($F$14*365/12,2)+(Summary!N19/12)*2 -> 171.0245404 | E75: =D$22*MIN(K30,X30)+IF(X30-K30>0,D$23*(X30-K30))+ROUND($F$14*365/12,2)+(Summary!N19/12)*2 -> 140.8992923 | F75: =D$22*MIN(L30,Y30)+IF(Y30-L30>0,D$23*(Y30-L30))+ROUND($F$14*365/12,2)+(Summary!N19/12)*2 -> 166.0311344 | G75: =E$22*MIN(K30,X30)+IF(X30-K30>0,E$23*(X30-K30))+ROUND($F$14*365/12,2)+(Summary!N19/12)*2 -> 143.2085565 | H75: =E$22*MIN(L30,Y30)+IF(Y30-L30>0,E$23*(Y30-L30))+ROUND($F$14*365/12,2)+(Summary!N19/12)*2 -> 168.7291389 | I75: =F$22*MIN(K30,X30)+IF(X30-K30>0,F$23*(X30-K30))+ROUND($F$14*365/12,2)+(Summary!N19/12)*2 -> 163.3996419 | J75: =F$22*MIN(L30,Y30)+IF(Y30-L30>0,F$23*(Y30-L30))+ROUND($F$14*365/12,2)+(Summary!N19/12)*2 -> 192.3191809 | L75: 16 cool | M75: =C$22*MIN(I30,$L$64)+IF($L$64-I30>0,C$23*($L$64-I30))+ROUND($F$14*365/12,2)+(Summary!N19/12)*2 -> 163.1761993 | N75: =C$22*MIN(J30,$L$64)+IF($L$64-J30>0,C$23*($L$64-J30))+ROUND($F$14*365/12,2)+(Summary!N19/12)*2 -> 169.8314085 | O75: =D$22*MIN(I30,$L$64)+IF($L$64-I30>0,D$23*($L$64-I30))+ROUND($F$14*365/12,2)+(Summary!N19/12)*2 -> 158.4021509 | P75: =D$22*MIN(J30,$L$64)+IF($L$64-J30>0,D$23*($L$64-J30))+ROUND($F$14*365/12,2)+(Summary!N19/12)*2 -> 164.8733677 | Q75: =E$22*MIN(I30,$L$64)+IF($L$64-I30>0,E$23*($L$64-I30))+ROUND($F$14*365/12,2)+(Summary!N19/12)*2 -> 160.98215 | R75: =E$22*MIN(J30,$L$64)+IF($L$64-J30>0,E$23*($L$64-J30))+ROUND($F$14*365/12,2)+(Summary!N19/12)*2 -> 167.5534638 | S75: =F$22*MIN(I30,$L$64)+IF($L$64-I30>0,F$23*($L$64-I30))+ROUND($F$14*365/12,2)+(Summary!N19/12)*2 -> 183.5404099 | T75: =F$22*MIN(J30,$L$64)+IF($L$64-J30>0,F$23*($L$64-J30))+ROUND($F$14*365/12,2)+(Summary!N19/12)*2 -> 190.9869236 | V75: 16 cool | W75: =C$28*MIN(I30,$L$64)+IF($L$64-I30>0,C$29*($L$64-I30))+ROUND($P$14*365/12,2)+(Summary!N19/12)*2 -> 99.09145579 | X75: =C$28*MIN(J30,$L$64)+IF($L$64-J30>0,C$29*($L$64-J30))+ROUND($P$14*365/12,2)+(Summary!N19/12)*2 -> 103.5835296 | Y75: =D$28*MIN(I30,$L$64)+IF($L$64-I30>0,D$29*($L$64-I30))+ROUND($P$14*365/12,2)+(Summary!N19/12)*2 -> 96.34287571 | Z75: =D$28*MIN(J30,$L$64)+IF($L$64-J30>0,D$29*($L$64-J30))+ROUND($P$14*365/12,2)+(Summary!N19/12)*2 -> 100.7111219 | AA75: =E$28*MIN(I30,$L$64)+IF($L$64-I30>0,E$29*($L$64-I30))+ROUND($P$14*365/12,2)+(Summary!N19/12)*2 -> 97.96757989 | AB75: =E$28*MIN(J30,$L$64)+IF($L$64-J30>0,E$29*($L$64-J30))+ROUND($P$14*365/12,2)+(Summary!N19/12)*2 -> 102.4033943 | AC75: =F$28*MIN(I30,$L$64)+IF($L$64-I30>0,F$29*($L$64-I30))+ROUND($P$14*365/12,2)+(Summary!N19/12)*2 -> 112.1732049 | AD75: =F$28*MIN(J30,$L$64)+IF($L$64-J30>0,F$29*($L$64-J30))+ROUND($P$14*365/12,2)+(Summary!N19/12)*2 -> 117.1998029
B76: ALL | C76: =SUMPRODUCT(C67:C75,$AB$22:$AB$30) -> 170.5525392 | D76: =SUMPRODUCT(D67:D75,$AB$22:$AB$30) -> 122.7394486 | E76: =SUMPRODUCT(E67:E75,$AB$22:$AB$30) -> 165.5742872 | F76: 119.0898723 | G76: =SUMPRODUCT(G67:G75,$AB$22:$AB$30) -> 168.2652252 | H76: 121.0617875 | I76: =SUMPRODUCT(I67:I75,$AB$22:$AB$30) -> 191.7934809 | J76: 138.3032572 | L76: ALL | M76: =SUMPRODUCT(M67:M75,$T$22:$T$30) -> 163.1865905 | N76: 172.6631873 | O76: 158.4122548 | P76: 167.6268581 | Q76: 160.9924102 | R76: 170.3495452 | S76: 183.5520366 | T76: 194.155401 | V76: ALL | W76: =SUMPRODUCT(W67:W75,$U$22:$U$30) -> 97.49991605 | X76: =SUMPRODUCT(X67:X75,$U$22:$U$30) -> 105.0373775 | Y76: 94.79520803 | Z76: 102.1248933 | AA76: 96.39597283 | AB76: 103.839034 | AC76: 110.3922835 | AD76: 118.8266482
C79: All-Electric - CARE
C80: =C50 -> Jan 2025 | E80: 2025-06-01 | G80: Authorized | I80: w/Pending
C81: Summer | D81: Winter | E81: Summer | F81: Winter | G81: Summer | H81: Winter | I81: Summer | J81: Winter
B82: =B52 -> 5 warm | C82: =C$28*MIN(K22,Z22)+IF(Z22-K22>0,C$29*(Z22-K22))+ROUND($P$14*365/12,2)+(Summary!N19/12)*2 -> 65.22108628 | D82: =C$28*MIN(L22,AA22)+IF(AA22-L22>0,C$29*(AA22-L22))+ROUND($P$14*365/12,2)+(Summary!N19/12)*2 -> 81.09158675 | E82: =D$28*MIN(K22,Z22)+IF(Z22-K22>0,D$29*(Z22-K22))+ROUND($P$14*365/12,2)+(Summary!N19/12)*2 -> 63.34118606 | F82: =D$28*MIN(L22,AA22)+IF(AA22-L22>0,D$29*(AA22-L22))+ROUND($P$14*365/12,2)+(Summary!N19/12)*2 -> 78.80804462 | G82: =E$28*MIN(K22,Z22)+IF(Z22-K22>0,E$29*(Z22-K22))+ROUND($P$14*365/12,2)+(Summary!N19/12)*2 -> 64.45541882 | H82: =E$28*MIN(L22,AA22)+IF(AA22-L22>0,E$29*(AA22-L22))+ROUND($P$14*365/12,2)+(Summary!N19/12)*2 -> 80.16151935 | I82: =F$28*MIN(K22,Z22)+IF(Z22-K22>0,F$29*(Z22-K22))+ROUND($P$14*365/12,2)+(Summary!N19/12)*2 -> 74.19772942 | J82: =F$28*MIN(L22,AA22)+IF(AA22-L22>0,F$29*(AA22-L22))+ROUND($P$14*365/12,2)+(Summary!N19/12)*2 -> 91.99564567
B83: 6 cool | C83: =C$28*MIN(K23,Z23)+IF(Z23-K23>0,C$29*(Z23-K23))+ROUND($P$14*365/12,2)+(Summary!N19/12)*2 -> 73.81412083 | D83: =C$28*MIN(L23,AA23)+IF(AA23-L23>0,C$29*(AA23-L23))+ROUND($P$14*365/12,2)+(Summary!N19/12)*2 -> 69.31351055 | E83: =D$28*MIN(K23,Z23)+IF(Z23-K23>0,D$29*(Z23-K23))+ROUND($P$14*365/12,2)+(Summary!N19/12)*2 -> 71.70199857 | F83: =D$28*MIN(L23,AA23)+IF(AA23-L23>0,D$29*(AA23-L23))+ROUND($P$14*365/12,2)+(Summary!N19/12)*2 -> 67.32952578 | G83: =E$28*MIN(K23,Z23)+IF(Z23-K23>0,E$29*(Z23-K23))+ROUND($P$14*365/12,2)+(Summary!N19/12)*2 -> 72.9455567 | H83: =E$28*MIN(L23,AA23)+IF(AA23-L23>0,E$29*(AA23-L23))+ROUND($P$14*365/12,2)+(Summary!N19/12)*2 -> 68.50545033 | I83: =F$28*MIN(K23,Z23)+IF(Z23-K23>0,F$29*(Z23-K23))+ROUND($P$14*365/12,2)+(Summary!N19/12)*2 -> 83.81862563 | J83: =F$28*MIN(L23,AA23)+IF(AA23-L23>0,F$29*(AA23-L23))+ROUND($P$14*365/12,2)+(Summary!N19/12)*2 -> 78.78716405
B84: 8 cool | C84: =C$28*MIN(K24,Z24)+IF(Z24-K24>0,C$29*(Z24-K24))+ROUND($P$14*365/12,2)+(Summary!N19/12)*2 -> 85.10223134 | D84: =C$28*MIN(L24,AA24)+IF(AA24-L24>0,C$29*(AA24-L24))+ROUND($P$14*365/12,2)+(Summary!N19/12)*2 -> 68.60818415 | E84: =D$28*MIN(K24,Z24)+IF(Z24-K24>0,D$29*(Z24-K24))+ROUND($P$14*365/12,2)+(Summary!N19/12)*2 -> 82.70117381 | F84: =D$28*MIN(L24,AA24)+IF(AA24-L24>0,D$29*(AA24-L24))+ROUND($P$14*365/12,2)+(Summary!N19/12)*2 -> 66.64213827 | G84: =E$28*MIN(K24,Z24)+IF(Z24-K24>0,E$29*(Z24-K24))+ROUND($P$14*365/12,2)+(Summary!N19/12)*2 -> 84.11486761 | H84: =E$28*MIN(L24,AA24)+IF(AA24-L24>0,E$29*(AA24-L24))+ROUND($P$14*365/12,2)+(Summary!N19/12)*2 -> 67.80743029 | I84: =F$28*MIN(K24,Z24)+IF(Z24-K24>0,F$29*(Z24-K24))+ROUND($P$14*365/12,2)+(Summary!N19/12)*2 -> 96.4755203 | J84: =F$28*MIN(L24,AA24)+IF(AA24-L24>0,F$29*(AA24-L24))+ROUND($P$14*365/12,2)+(Summary!N19/12)*2 -> 77.99617826
B85: 9 warm | C85: =C$28*MIN(K25,Z25)+IF(Z25-K25>0,C$29*(Z25-K25))+ROUND($P$14*365/12,2)+(Summary!N19/12)*2 -> 106.1209049 | D85: =C$28*MIN(L25,AA25)+IF(AA25-L25>0,C$29*(AA25-L25))+ROUND($P$14*365/12,2)+(Summary!N19/12)*2 -> 69.73827691 | E85: =D$28*MIN(K25,Z25)+IF(Z25-K25>0,D$29*(Z25-K25))+ROUND($P$14*365/12,2)+(Summary!N19/12)*2 -> 103.1830088 | F85: =D$28*MIN(L25,AA25)+IF(AA25-L25>0,D$29*(AA25-L25))+ROUND($P$14*365/12,2)+(Summary!N19/12)*2 -> 67.74348886 | G85: =E$28*MIN(K25,Z25)+IF(Z25-K25>0,E$29*(Z25-K25))+ROUND($P$14*365/12,2)+(Summary!N19/12)*2 -> 104.9135165 | H85: =E$28*MIN(L25,AA25)+IF(AA25-L25>0,E$29*(AA25-L25))+ROUND($P$14*365/12,2)+(Summary!N19/12)*2 -> 68.9258166 | I85: =F$28*MIN(K25,Z25)+IF(Z25-K25>0,F$29*(Z25-K25))+ROUND($P$14*365/12,2)+(Summary!N19/12)*2 -> 120.0442355 | J85: =F$28*MIN(L25,AA25)+IF(AA25-L25>0,F$29*(AA25-L25))+ROUND($P$14*365/12,2)+(Summary!N19/12)*2 -> 79.26351677
B86: 10 hot (Sec 745) | C86: =C$28*MIN(K26,Z26)+IF(Z26-K26>0,C$29*(Z26-K26))+ROUND($P$14*365/12,2)+(Summary!N19/12)*2 -> 140.5151579 | D86: =C$28*MIN(L26,AA26)+IF(AA26-L26>0,C$29*(AA26-L26))+ROUND($P$14*365/12,2)+(Summary!N19/12)*2 -> 80.27071156 | E86: =D$28*MIN(K26,Z26)+IF(Z26-K26>0,D$29*(Z26-K26))+ROUND($P$14*365/12,2)+(Summary!N19/12)*2 -> 136.6960755 | F86: =D$28*MIN(L26,AA26)+IF(AA26-L26>0,D$29*(AA26-L26))+ROUND($P$14*365/12,2)+(Summary!N19/12)*2 -> 78.00804713 | G86: =E$28*MIN(K26,Z26)+IF(Z26-K26>0,E$29*(Z26-K26))+ROUND($P$14*365/12,2)+(Summary!N19/12)*2 -> 138.9449645 | H86: =E$28*MIN(L26,AA26)+IF(AA26-L26>0,E$29*(AA26-L26))+ROUND($P$14*365/12,2)+(Summary!N19/12)*2 -> 79.34914747 | I86: =F$28*MIN(K26,Z26)+IF(Z26-K26>0,F$29*(Z26-K26))+ROUND($P$14*365/12,2)+(Summary!N19/12)*2 -> 158.6081592 | J86: =F$28*MIN(L26,AA26)+IF(AA26-L26>0,F$29*(AA26-L26))+ROUND($P$14*365/12,2)+(Summary!N19/12)*2 -> 91.07507811
B87: 13 hot | C87: =C$28*MIN(K27,Z27)+IF(Z27-K27>0,C$29*(Z27-K27))+ROUND($P$14*365/12,2)+(Summary!N19/12)*2 -> 206.9051786 | D87: =C$28*MIN(L27,AA27)+IF(AA27-L27>0,C$29*(AA27-L27))+ROUND($P$14*365/12,2)+(Summary!N19/12)*2 -> 106.0765479 | E87: =D$28*MIN(K27,Z27)+IF(Z27-K27>0,D$29*(Z27-K27))+ROUND($P$14*365/12,2)+(Summary!N19/12)*2 -> 201.3907058 | F87: =D$28*MIN(L27,AA27)+IF(AA27-L27>0,D$29*(AA27-L27))+ROUND($P$14*365/12,2)+(Summary!N19/12)*2 -> 103.1575515 | G87: =E$28*MIN(K27,Z27)+IF(Z27-K27>0,E$29*(Z27-K27))+ROUND($P$14*365/12,2)+(Summary!N19/12)*2 -> 204.6402939 | H87: =E$28*MIN(L27,AA27)+IF(AA27-L27>0,E$29*(AA27-L27))+ROUND($P$14*365/12,2)+(Summary!N19/12)*2 -> 104.8876654 | I87: =F$28*MIN(K27,Z27)+IF(Z27-K27>0,F$29*(Z27-K27))+ROUND($P$14*365/12,2)+(Summary!N19/12)*2 -> 233.0531157 | J87: =F$28*MIN(L27,AA27)+IF(AA27-L27>0,F$29*(AA27-L27))+ROUND($P$14*365/12,2)+(Summary!N19/12)*2 -> 120.0149415
B88: 14 hot | C88: =C$28*MIN(K28,Z28)+IF(Z28-K28>0,C$29*(Z28-K28))+ROUND($P$14*365/12,2)+(Summary!N19/12)*2 -> 195.6352795 | D88: =C$28*MIN(L28,AA28)+IF(AA28-L28>0,C$29*(AA28-L28))+ROUND($P$14*365/12,2)+(Summary!N19/12)*2 -> 129.6431085 | E88: =D$28*MIN(K28,Z28)+IF(Z28-K28>0,D$29*(Z28-K28))+ROUND($P$14*365/12,2)+(Summary!N19/12)*2 -> 190.394937 | F88: =D$28*MIN(L28,AA28)+IF(AA28-L28>0,D$29*(AA28-L28))+ROUND($P$14*365/12,2)+(Summary!N19/12)*2 -> 126.1225551 | G88: =E$28*MIN(K28,Z28)+IF(Z28-K28>0,E$29*(Z28-K28))+ROUND($P$14*365/12,2)+(Summary!N19/12)*2 -> 193.4744421 | H88: =E$28*MIN(L28,AA28)+IF(AA28-L28>0,E$29*(AA28-L28))+ROUND($P$14*365/12,2)+(Summary!N19/12)*2 -> 128.2078925 | I88: =F$28*MIN(K28,Z28)+IF(Z28-K28>0,F$29*(Z28-K28))+ROUND($P$14*365/12,2)+(Summary!N19/12)*2 -> 220.4001409 | J88: =F$28*MIN(L28,AA28)+IF(AA28-L28>0,F$29*(AA28-L28))+ROUND($P$14*365/12,2)+(Summary!N19/12)*2 -> 146.4410711
B89: 15 hot | C89: =C$28*MIN(K29,Z29)+IF(Z29-K29>0,C$29*(Z29-K29))+ROUND($P$14*365/12,2)+(Summary!N19/12)*2 -> 248.5974433 | D89: =C$28*MIN(L29,AA29)+IF(AA29-L29>0,C$29*(AA29-L29))+ROUND($P$14*365/12,2)+(Summary!N19/12)*2 -> 99.9353202 | E89: =D$28*MIN(K29,Z29)+IF(Z29-K29>0,D$29*(Z29-K29))+ROUND($P$14*365/12,2)+(Summary!N19/12)*2 -> 242.001044 | F89: =D$28*MIN(L29,AA29)+IF(AA29-L29>0,D$29*(AA29-L29))+ROUND($P$14*365/12,2)+(Summary!N19/12)*2 -> 97.17251653 | G89: =E$28*MIN(K29,Z29)+IF(Z29-K29>0,E$29*(Z29-K29))+ROUND($P$14*365/12,2)+(Summary!N19/12)*2 -> 245.8787944 | H89: =E$28*MIN(L29,AA29)+IF(AA29-L29>0,E$29*(AA29-L29))+ROUND($P$14*365/12,2)+(Summary!N19/12)*2 -> 98.81005362 | I89: =F$28*MIN(K29,Z29)+IF(Z29-K29>0,F$29*(Z29-K29))+ROUND($P$14*365/12,2)+(Summary!N19/12)*2 -> 279.7839625 | J89: =F$28*MIN(L29,AA29)+IF(AA29-L29>0,F$29*(AA29-L29))+ROUND($P$14*365/12,2)+(Summary!N19/12)*2 -> 113.1278835
B90: 16 cool | C90: =C$28*MIN(K30,Z30)+IF(Z30-K30>0,C$29*(Z30-K30))+ROUND($P$14*365/12,2)+(Summary!N19/12)*2 -> 155.7379709 | D90: =C$28*MIN(L30,AA30)+IF(AA30-L30>0,C$29*(AA30-L30))+ROUND($P$14*365/12,2)+(Summary!N19/12)*2 -> 110.3344052 | E90: =D$28*MIN(K30,Z30)+IF(Z30-K30>0,D$29*(Z30-K30))+ROUND($P$14*365/12,2)+(Summary!N19/12)*2 -> 151.5164405 | F90: =D$28*MIN(L30,AA30)+IF(AA30-L30>0,D$29*(AA30-L30))+ROUND($P$14*365/12,2)+(Summary!N19/12)*2 -> 107.3071167 | G90: =E$28*MIN(K30,Z30)+IF(Z30-K30>0,E$29*(Z30-K30))+ROUND($P$14*365/12,2)+(Summary!N19/12)*2 -> 153.9945715 | H90: =E$28*MIN(L30,AA30)+IF(AA30-L30>0,E$29*(AA30-L30))+ROUND($P$14*365/12,2)+(Summary!N19/12)*2 -> 109.1014162 | I90: =F$28*MIN(K30,Z30)+IF(Z30-K30>0,F$29*(Z30-K30))+ROUND($P$14*365/12,2)+(Summary!N19/12)*2 -> 175.6621468 | J90: =F$28*MIN(L30,AA30)+IF(AA30-L30>0,F$29*(AA30-L30))+ROUND($P$14*365/12,2)+(Summary!N19/12)*2 -> 124.7899003
B91: ALL | C91: =SUMPRODUCT(C82:C90,$AC$22:$AC$30) -> 131.764751 | D91: =SUMPRODUCT(D82:D90,$AC$22:$AC$30) -> 82.66851574 | E91: 128.1681776 | F91: 80.34471227 | G91: 130.2851567 | H91: 81.72195623 | I91: 148.7949956 | J91: =SUMPRODUCT(J82:J90,$AC$22:$AC$30) -> 93.76390921
F95: 2025 | G95: 2026 | H95: 2027 | I95: 2028 | J95: 2029 | M95: =F95 -> 2025 | N95: =G95 -> 2026 | O95: 2027 | P95: 2028 | Q95: 2029
F96: Non-CARE | G96: Non-CARE | H96: Non-CARE | I96: Non-CARE | J96: Non-CARE | M96: CARE | N96: CARE | O96: CARE | P96: CARE | Q96: CARE
A97: 3 | D97: Baseline - Summer | F97: 3085.670937 | G97: 3212.955678 | H97: 3361.3201 | I97: 3436.146904 | J97: 3436.146904 | M97: 1783.360129 | N97: 1958.821051 | O97: 2049.273389 | P97: 2094.892543 | Q97: 2094.892543
A98: =A97+1 -> 4 | D98: - Winter | F98: 4290.291273 | G98: 4322.223791 | H98: 4521.810807 | I98: 4622.471452 | J98: 4622.471452 | M98: 2747.277654 | N98: 2998.647213 | O98: 3137.115528 | P98: 3206.951284 | Q98: 3206.951284
A99: =A98+1 -> 5 | D99: 101% - 400% of Baseline - Summer | F99: 1911.92882 | G99: 1978.159448 | H99: 2069.504773 | I99: 2115.574301 | J99: 2115.574301 | M99: 745.4907551 | N99: 810.8851861 | O99: 848.3293727 | P99: 867.2141484 | Q99: 867.2141484
A100: 6 | D100: - Winter | F100: 2615.804258 | G100: 2623.419373 | H100: 2744.56082 | I100: 2805.657861 | J100: 2805.657861 | M100: 1112.023766 | N100: 1203.876214 | O100: 1259.467519 | P100: 1287.504697 | Q100: 1287.504697
A101: 7 | D101: 401% of Baseline - Summer | F101: 151.6325582 | G101: 156.8173859 | H101: 164.058731 | I101: 167.7108647 | J101: 167.7108647 | M101: 8.477005966 | N101: 9.198530109 | O101: 9.623289969 | P101: 9.837515337 | Q101: 9.837515337
A102: 8 | D102: - Winter | F102: 262.8967474 | G102: 262.3862375 | H102: 274.5024278 | I102: 280.6131637 | J102: 280.6131637 | M102: 21.08018443 | N102: 22.5094031 | O102: 23.54881817 | P102: 24.07304162 | Q102: 24.07304162
A103: 9
A104: 10 | D104: Basic Charge - Single-Family Residence | F104: 18879671.95 | G104: 18148534.57 | H104: 18276398.03 | I104: 18404148.57 | J104: 18404148.57 | M104: 6433922.126 | N104: 7169673.093 | O104: 7220186.22 | P104: 7270654.734 | Q104: 7270654.734
A105: 11 | D105: Basic Charge - Multi-Family Residence | F105: 8588406.524 | G105: 8255810.434 | H105: 8313975.82 | I105: 8372089.834 | J105: 8372089.834 | M105: 5402078.398 | N105: 6019832.907 | O105: 6062244.964 | P105: 6104619.564 | Q105: 6104619.564
F107: =1-F108 -> 0.6873313679 | G107: =SUM(G97:G102) -> 12555.96191 | H107: 13135.75766 | I107: 13428.17455 | J107: 13428.17455 | M107: =1-M108 -> 0.5435892059 | N107: =SUM(N97:N102) -> 7003.937598 | O107: 7327.357917 | P107: 7490.473229 | Q107: 7490.473229
E108: Customers | F108: 0.3126686321 | G108: =SUM(G104:G105) -> 26404345 | H108: 26590373.85 | I108: 26776238.4 | J108: 26776238.4 | M108: 0.4564107941 | N108: =SUM(N104:N105) -> 13189506 | O108: 13282431.18 | P108: 13375274.3 | Q108: 13375274.3

Sheet Simple Bill Insert Calc (2)
B2: Inputs: | K2: Assumptions:
K3: Current Effective Rates | M3: =Summary!N3 -> 2025-06-01
C4: Baseline Region - (Residential bill) | D4: 9 warm | K4: Sales Forecast | M4: 2025
C5: Typical residential average usage kWh/month | D5: 500 | K5: Residential bill calculated using | M5: Schedule D, Basic, Single Family
C6: Include CA Climate Credit in Rates | D6: N | K6: Non-CARE bill impact calculated with average summer usage of | O6: =IF($D$4="All",SUMPRODUCT('Res Bill Impact (2)'!P$22:P$30,'Res Bill Impact (2)'!$T$22:$T$30),VLOOKUP(D$4,'Res Bill Impact (2)'!$O$22:$S$30,2,FALSE)) -> 736.1896342 | P6: kWh per month
D7: Revenue Change | K7: Non-CARE bill impact calculated with average winter usage of | O7: =IF($D$4="All",SUMPRODUCT('Res Bill Impact (2)'!Q$22:Q$30,'Res Bill Impact (2)'!$T$22:$T$30),VLOOKUP(D$4,'Res Bill Impact (2)'!$O$22:$S$30,3,FALSE)) -> 454.0542708 | P7: kWh per month
C8: Generation | K8: CARE bill impact calculated with average summer usage of | O8: =IF($D$4="All",SUMPRODUCT('Res Bill Impact (2)'!R$22:R$30,'Res Bill Impact (2)'!$U$22:$U$30),VLOOKUP(D$4,'Res Bill Impact (2)'!$O$22:$S$30,4,FALSE)) -> 685.496621 | P8: kWh per month
C9: Distribution | K9: CARE bill impact calculated with average winter usage of | O9: =IF($D$4="All",SUMPRODUCT('Res Bill Impact (2)'!S$22:S$30,'Res Bill Impact (2)'!$U$22:$U$30),VLOOKUP(D$4,'Res Bill Impact (2)'!$O$22:$S$30,5,FALSE)) -> 424.2446352 | P9: kWh per month
C10: Nuclear | K10: Essential Use (Basic) bill impact calculated with average summer usage of | O10: =IF($D$4="All",SUMPRODUCT('Res Bill Impact (2)'!I$22:I$30,'Res Bill Impact (2)'!$T$22:$T$30),VLOOKUP($D$4,'Res Bill Impact (2)'!$H$22:$L$30,2,FALSE)) -> 514.0473 | P10: kWh per month
C11: Public Purpose | K11: Essential Use (Basic) bill impact calculated with average winter usage of | O11: =IF($D$4="All",SUMPRODUCT('Res Bill Impact (2)'!J$22:J$30,'Res Bill Impact (2)'!$T$22:$T$30),VLOOKUP($D$4,'Res Bill Impact (2)'!$H$22:$L$30,3,FALSE)) -> 365.004 | P11: kWh per month
C12: DCPP | K12: Essential Use (All-Electric) bill impact calculated with average summer usage of | O12: =IF($D$4="All",SUMPRODUCT('Res Bill Impact (2)'!K$22:K$30,'Res Bill Impact (2)'!$T$22:$T$30),VLOOKUP($D$4,'Res Bill Impact (2)'!$H$22:$L$30,4,FALSE)) -> 380.2125 | P12: kWh per month
C13: New System Gen | K13: Essential Use (All-Electric) bill impact calculated with average winter usage of | O13: =IF($D$4="All",SUMPRODUCT('Res Bill Impact (2)'!L$22:L$30,'Res Bill Impact (2)'!$T$22:$T$30),VLOOKUP($D$4,'Res Bill Impact (2)'!$H$22:$L$30,5,FALSE)) -> 422.7963 | P13: kWh per month
C14: FERC | K14: Average monthly usage is for all customers (Non-CARE and CARE) based on seasonal usage in | Q14: 2024
C15: TOTCA | K15: Summer season | M15: 4 | N15: months
C16: GHG Revenue | K16: Winter Season | M16: 8 | N16: months
C17: DWR | K17: Residential Bi-Annual Climate Credit | M17: =Summary!N19 -> -56
C18: PUCRF
C19: SECURITIZATION
C20: Total | D20: =SUM(D8:D19) -> 0
B21: Outputs:
D22: (A) | E22: (B) | F22: (C) | G22: (C)/(A) | H22: (C)/(B) | L22: (A) | M22: (B) | N22: (C) | O22: (C)/(A) | P22: (C)/(B)
B23: Bundled Average Rates - ¢/kWh | J23: Total System (Bundled and Unbundled) Average Rates - ¢/kWh
B24: Customer Group | D24: =Summary!D32 -> 2025-01-01 | E24: =M3 -> 2025-06-01 | F24: Proposed | G24: % Change over 1/1/2025 | H24: % Change over Current | J24: Customer Group | L24: =$D$24 -> 2025-01-01 | M24: =$E$24 -> 2025-06-01 | N24: Proposed | O24: =$G$24 -> % Change over 1/1/2025 | P24: % Change over Current
B25: Residential | D25: =IF(D6="Y",'SAR and RAR'!W28,'SAR and RAR'!X28) -> 31.62973815 | E25: ='SAR and RAR (2)'!F24 -> 31.17865091 | F25: ='SAR and RAR (2)'!G24 -> 31.17865091 | G25: =$F25/D25-1 -> -0.0142614915 | H25: 0 | J25: Total Residential (RAR) | L25: =IF(D6="Y",'SAR and RAR'!Z28,'SAR and RAR'!AA28) -> 28.36130718 | M25: ='SAR and RAR (2)'!N24 -> 27.86095985 | N25: ='SAR and RAR (2)'!O24 -> 27.86095985 | O25: =$N25/L25-1 -> -0.01764189933 | P25: 0
C26: Small Commercial | D26: =IF(D6="Y",'SAR and AR (GS1)'!W28,'SAR and AR (GS1)'!X28) -> 29.17406766 | E26: ='SAR and AR (GS1) (2)'!G24 -> 28.4109163 | F26: ='SAR and AR (GS1) (2)'!H24 -> 28.4109163 | G26: -0.02615855181 | H26: 0 | K26: Small Commercial (AR) | L26: =IF(D6="Y",'SAR and AR (GS1)'!Z28,'SAR and AR (GS1)'!AA28) -> 25.77950096 | M26: ='SAR and AR (GS1) (2)'!O24 -> 25.01610122 | N26: ='SAR and AR (GS1) (2)'!P24 -> 25.01610122 | O26: -0.0296126659 | P26: 0
B27: System | D27: =IF(D6="Y",'SAR and RAR'!W29,'SAR and RAR'!X29) -> 27.30660685 | E27: ='SAR and RAR (2)'!F25 -> 26.64700642 | F27: ='SAR and RAR (2)'!G25 -> 26.64700642 | G27: -0.02415534197 | H27: 0 | J27: Total System (SAR) | L27: =IF(D6="Y",'SAR and RAR'!Z29,'SAR and RAR'!AA29) -> 22.91911704 | M27: ='SAR and RAR (2)'!N25 -> 22.25245758 | N27: ='SAR and RAR (2)'!O25 -> 22.25245758 | O27: -0.0290874846 | P27: 0
B30: Bundled Residential Monthly Average Bills
D31: =$D$24 -> 2025-01-01 | E31: =$E$24 -> 2025-06-01 | F31: Proposed | G31: =$G$24 -> % Change over 1/1/2025 | H31: % Change over Current
B32: Non-CARE | D32: =((D39*4)+(D45*8))/12 -> 186.8593137 | E32: 181.4275528 | F32: 181.4275528 | G32: =$F32/D32-1 -> -0.02906871936 | H32: 0
B33: CARE | D33: 104.2673392 | E33: 101.3811251 | F33: 101.3811251 | G33: -0.02768090275 | H33: 0
B34: Total | D34: 157.9521226 | E34: 153.4113031 | F34: 153.4113031 | G34: -0.02874807549 | H34: 0
B36: Seasonality:
B37: Bundled Residential Monthly Average Bills - Summer
D38: =$D$24 -> 2025-01-01 | E38: =$E$24 -> 2025-06-01 | F38: Proposed | G38: =$G$24 -> % Change over 1/1/2025 | H38: % Change over Current
B39: Non-CARE | D39: =VLOOKUP($D$4,'Res Bill Impact (2)'!$B$37:$H$46,2,FALSE) -> 257.9491103 | E39: =VLOOKUP($D$4,'Res Bill Impact (2)'!$B$37:$H$46,4,FALSE) -> 250.540398 | F39: =VLOOKUP($D$4,'Res Bill Impact (2)'!$B$37:$H$46,6,FALSE) -> 250.540398 | G39: =$F39/D39-1 -> -0.0287216042 | H39: 0
B40: CARE | D40: =VLOOKUP($D$4,'Res Bill Impact (2)'!$B$52:$H$61,2,FALSE) -> 145.4334121 | E40: =VLOOKUP($D$4,'Res Bill Impact (2)'!$B$52:$H$61,4,FALSE) -> 141.4899597 | F40: =VLOOKUP($D$4,'Res Bill Impact (2)'!$B$52:$H$61,6,FALSE) -> 141.4899597 | G40: -0.02711517456 | H40: 0
B41: Total | D41: =D39*0.65+D40*0.35 -> 218.5686159 | E41: =E39*0.65+E40*0.35 -> 212.3727446 | F41: =F39*0.65+F40*0.35 -> 212.3727446 | G41: -0.02834748831 | H41: 0
B43: Bundled Residential Monthly Average Bills - Winter
D44: =$D$24 -> 2025-01-01 | E44: =$E$24 -> 2025-06-01 | F44: Proposed | G44: =$G$24 -> % Change over 1/1/2025 | H44: % Change over Current
B45: Non-CARE | D45: =VLOOKUP($D$4,'Res Bill Impact (2)'!$B$37:$H$46,3,FALSE) -> 151.3144154 | E45: =VLOOKUP($D$4,'Res Bill Impact (2)'!$B$37:$H$46,5,FALSE) -> 146.8711301 | F45: =VLOOKUP($D$4,'Res Bill Impact (2)'!$B$37:$H$46,7,FALSE) -> 146.8711301 | G45: =$F45/D45-1 -> -0.02936458691 | H45: 0
B46: CARE | D46: =VLOOKUP($D$4,'Res Bill Impact (2)'!$B$52:$H$61,3,FALSE) -> 83.68430279 | E46: =VLOOKUP($D$4,'Res Bill Impact (2)'!$B$52:$H$61,5,FALSE) -> 81.32670786 | F46: =VLOOKUP($D$4,'Res Bill Impact (2)'!$B$52:$H$61,7,FALSE) -> 81.32670786 | G46: -0.02817248706 | H46: 0
B47: Total | D47: =D45*0.65+D46*0.35 -> 127.643876 | E47: =E45*0.65+E46*0.35 -> 123.9305823 | F47: =F45*0.65+F46*0.35 -> 123.9305823 | G47: -0.02909104448 | H47: 0
B50: Bundled Residential Monthly Average Bills
D51: =$D$24 -> 2025-01-01 | E51: =$E$24 -> 2025-06-01 | F51: =$F$24 -> Proposed | G51: =$G$24 -> % Change over 1/1/2025 | H51: % Change over Current
B52: Essential Use (Basic) - Non-CARE | D52: =((D59*4)+(D66*8))/12 -> 129.7299798 | E52: 125.8858489 | F52: 125.8858489 | G52: =$F52/D52-1 -> -0.02963178506 | H52: 0
B53: Essential Use (Basic) - CARE | D53: 77.88462184 | E53: 75.68264396 | F53: 75.68264396 | G53: -0.02827230625 | H53: 0
B54: Essential Use (All-Electric) - Non-CARE | D54: 127.7037209 | E54: 123.9159831 | F54: 123.9159831 | G54: -0.02966035549 | H54: 0
B55: Essential Use (All-Electric) - CARE | D55: =((D62*4)+(D69*8))/12 -> 76.61452959 | E55: =((E62*4)+(E69*8))/12 -> 74.44485457 | F55: =((F62*4)+(F69*8))/12 -> 74.44485457 | G55: -0.0283193676 | H55: 0
B57: Bundled Residential Monthly Average Bills - Summer
D58: =$D$24 -> 2025-01-01 | E58: =$E$24 -> 2025-06-01 | F58: =$F$24 -> Proposed | G58: =$G$24 -> % Change over 1/1/2025 | H58: % Change over Current
B59: Essential Use (Basic) - Non-CARE | D59: =VLOOKUP($D$4,'Res Bill Impact (2)'!$J$37:$P$46,2,FALSE) -> 162.8255414 | E59: =VLOOKUP($D$4,'Res Bill Impact (2)'!$J$37:$P$46,4,FALSE) -> 158.0603229 | F59: =VLOOKUP($D$4,'Res Bill Impact (2)'!$J$37:$P$46,6,FALSE) -> 158.0603229 | G59: =$F59/D59-1 -> -0.02926579228 | H59: 0
B60: Essential Use (Basic) - CARE | D60: =VLOOKUP($D$4,'Res Bill Impact (2)'!$R$37:$X$46,2,FALSE) -> 98.62946196 | E60: =VLOOKUP($D$4,'Res Bill Impact (2)'!$R$37:$X$46,4,FALSE) -> 95.8998708 | F60: =VLOOKUP($D$4,'Res Bill Impact (2)'!$R$37:$X$46,6,FALSE) -> 95.8998708 | G60: -0.02767521092 | H60: 0
B61: Essential Use (All-Electric) - Non-CARE | D61: =VLOOKUP($D$4,'Res Bill Impact (2)'!$J$52:$P$61,2,FALSE) -> 118.2478462 | E61: =VLOOKUP($D$4,'Res Bill Impact (2)'!$J$52:$P$61,4,FALSE) -> 114.7232763 | F61: =VLOOKUP($D$4,'Res Bill Impact (2)'!$J$52:$P$61,6,FALSE) -> 114.7232763 | G61: -0.02980663064 | H61: 0
B62: Essential Use (All-Electric) - CARE | D62: =VLOOKUP($D$4,'Res Bill Impact (2)'!$R$52:$X$61,2,FALSE) -> 70.68743242 | E62: =VLOOKUP($D$4,'Res Bill Impact (2)'!$R$52:$X$61,4,FALSE) -> 68.66850404 | F62: =VLOOKUP($D$4,'Res Bill Impact (2)'!$R$52:$X$61,6,FALSE) -> 68.66850404 | G62: -0.02856134826 | H62: 0
B64: Bundled Residential Monthly Average Bills - Winter
D65: =$D$24 -> 2025-01-01 | E65: =$E$24 -> 2025-06-01 | F65: =$F$24 -> Proposed | G65: =$G$24 -> % Change over 1/1/2025 | H65: % Change over Current
B66: Essential Use (Basic) - Non-CARE | D66: =VLOOKUP($D$4,'Res Bill Impact (2)'!$J$37:$P$46,3,FALSE) -> 113.182199 | E66: =VLOOKUP($D$4,'Res Bill Impact (2)'!$J$37:$P$46,5,FALSE) -> 109.7986119 | F66: =VLOOKUP($D$4,'Res Bill Impact (2)'!$J$37:$P$46,7,FALSE) -> 109.7986119 | G66: =$F66/D66-1 -> -0.02989504631 | H66: 0
B67: Essential Use (Basic) - CARE | D67: =VLOOKUP($D$4,'Res Bill Impact (2)'!$R$37:$X$46,3,FALSE) -> 67.51220179 | E67: =VLOOKUP($D$4,'Res Bill Impact (2)'!$R$37:$X$46,5,FALSE) -> 65.57403055 | F67: =VLOOKUP($D$4,'Res Bill Impact (2)'!$R$37:$X$46,7,FALSE) -> 65.57403055 | G67: -0.02870845845 | H67: 0
B68: Essential Use (All-Electric) - Non-CARE | D68: =VLOOKUP($D$4,'Res Bill Impact (2)'!$J$52:$P$61,3,FALSE) -> 132.4316583 | E68: =VLOOKUP($D$4,'Res Bill Impact (2)'!$J$52:$P$61,5,FALSE) -> 128.5123366 | F68: =VLOOKUP($D$4,'Res Bill Impact (2)'!$J$52:$P$61,7,FALSE) -> 128.5123366 | G68: -0.02959505115 | H68: 0
B69: Essential Use (All-Electric) - CARE | D69: =VLOOKUP($D$4,'Res Bill Impact (2)'!$R$52:$X$61,3,FALSE) -> 79.57807818 | E69: =VLOOKUP($D$4,'Res Bill Impact (2)'!$R$52:$X$61,5,FALSE) -> 77.33302983 | F69: =VLOOKUP($D$4,'Res Bill Impact (2)'!$R$52:$X$61,7,FALSE) -> 77.33302983 | G69: -0.02821189459 | H69: 0
B72: Bundled Residential Monthly Average Bills
D73: =$D$24 -> 2025-01-01 | E73: =$E$24 -> 2025-06-01 | F73: =$F$24 -> Proposed | G73: =$G$24 -> % Change over 1/1/2025 | H73: % Change over Current
B74: =D5&"kWh Monthly Usage - Non-CARE" -> 500kWh Monthly Usage - Non-CARE | D74: =((D79*4)+(D84*8))/12 -> 166.708113 | E74: 161.83642 | F74: 161.83642 | G74: =$F74/D74-1 -> -0.02922289083 | H74: 0
B75: =D5&"kWh Monthly Usage - CARE" -> 500kWh Monthly Usage - CARE | D75: 101.4753954 | E75: 98.66110016 | F75: 98.66110016 | G75: -0.02773377002 | H75: 0
B77: Bundled Residential Monthly Average Bills - Summer
D78: =$D$24 -> 2025-01-01 | E78: =$E$24 -> 2025-06-01 | F78: =$F$24 -> Proposed | G78: =$G$24 -> % Change over 1/1/2025 | H78: % Change over Current
B79: =D5&"kWh Monthly Usage - Non-CARE" -> 500kWh Monthly Usage - Non-CARE | D79: =VLOOKUP($D$4,'Res Bill Impact (2)'!$J$67:$P$76,2,FALSE) -> 158.1466667 | E79: =VLOOKUP($D$4,'Res Bill Impact (2)'!$J$67:$P$76,4,FALSE) -> 153.5116667 | F79: =VLOOKUP($D$4,'Res Bill Impact (2)'!$J$67:$P$76,6,FALSE) -> 153.5116667 | G79: =$F79/D79-1 -> -0.02930823708 | H79: 0
B80: =D5&"kWh Monthly Usage - CARE" -> 500kWh Monthly Usage - CARE | D80: =VLOOKUP($D$4,'Res Bill Impact (2)'!$R$67:$X$76,2,FALSE) -> 95.69666667 | E80: =VLOOKUP($D$4,'Res Bill Impact (2)'!$R$67:$X$76,4,FALSE) -> 93.04166667 | F80: =VLOOKUP($D$4,'Res Bill Impact (2)'!$R$67:$X$76,6,FALSE) -> 93.04166667 | G80: -0.02774391306 | H80: 0
B82: Bundled Residential Monthly Average Bills - Winter
D83: =$D$24 -> 2025-01-01 | E83: =$E$24 -> 2025-06-01 | F83: =$F$24 -> Proposed | G83: =$G$24 -> % Change over 1/1/2025 | H83: % Change over Current
B84: =D5&"kWh Monthly Usage - Non-CARE" -> 500kWh Monthly Usage - Non-CARE | D84: =VLOOKUP($D$4,'Res Bill Impact (2)'!$J$67:$P$76,3,FALSE) -> 170.9888361 | E84: =VLOOKUP($D$4,'Res Bill Impact (2)'!$J$67:$P$76,5,FALSE) -> 165.9987967 | F84: =VLOOKUP($D$4,'Res Bill Impact (2)'!$J$67:$P$76,7,FALSE) -> 165.9987967 | G84: =$F84/D84-1 -> -0.02918342269 | H84: 0
B85: =D5&"kWh Monthly Usage - CARE" -> 500kWh Monthly Usage - CARE | D85: =VLOOKUP($D$4,'Res Bill Impact (2)'!$R$67:$X$76,3,FALSE) -> 104.3647598 | E85: =VLOOKUP($D$4,'Res Bill Impact (2)'!$R$67:$X$76,5,FALSE) -> 101.4708169 | F85: =VLOOKUP($D$4,'Res Bill Impact (2)'!$R$67:$X$76,7,FALSE) -> 101.4708169 | G85: -0.02772911972 | H85: 0
B88: Bundled Residential Monthly Average Bills
D89: =$D$24 -> 2025-01-01 | E89: =$E$24 -> 2025-06-01 | F89: Proposed | G89: =$G$24 -> % Change over 1/1/2025 | H89: % Change over Current
B90: All-Electric - Non-CARE | D90: =((D96*4)+(D102*8))/12 -> 139.7381152 | E90: 135.6163289 | F90: 135.6163289 | G90: =$F90/D90-1 -> -0.0294965073 | H90: 0
B91: All-Electric - CARE | D91: 81.86581957 | E91: 79.55666218 | F91: 79.55666218 | G91: -0.02820661173 | H91: 0
B92: All-Electric - Total | D92: 119.4828118 | E92: 115.9954456 | F92: 115.9954456 | G92: -0.02918717892 | H92: 0
B94: Bundled Residential Monthly Average Bills - Summer
D95: =$D$24 -> 2025-01-01 | E95: =$E$24 -> 2025-06-01 | F95: Proposed | G95: =$G$24 -> % Change over 1/1/2025 | H95: % Change over Current
B96: All-Electric - Non-CARE | D96: =VLOOKUP($D$4,'Res Bill Impact (2)'!$B$67:$H$76,2,FALSE) -> 182.7427053 | E96: =VLOOKUP($D$4,'Res Bill Impact (2)'!$B$67:$H$76,4,FALSE) -> 177.4258166 | F96: =VLOOKUP($D$4,'Res Bill Impact (2)'!$B$67:$H$76,6,FALSE) -> 177.4258166 | G96: =$F96/D96-1 -> -0.02909494332 | H96: 0
B97: All-Electric - CARE | D97: =VLOOKUP($D$4,'Res Bill Impact (2)'!$B$82:$H$91,2,FALSE) -> 106.1209049 | E97: =VLOOKUP($D$4,'Res Bill Impact (2)'!$B$82:$H$91,4,FALSE) -> 103.1830088 | F97: =VLOOKUP($D$4,'Res Bill Impact (2)'!$B$82:$H$91,6,FALSE) -> 103.1830088 | G97: -0.02768442326 | H97: 0
B98: All-Electric - Total | D98: =D96*0.65+D97*0.35 -> 155.9250751 | E98: =E96*0.65+E97*0.35 -> 151.4408339 | F98: =F96*0.65+F97*0.35 -> 151.4408339 | G98: -0.02875894872 | H98: 0
B100: Bundled Residential Monthly Average Bills - Winter
D101: =$D$24 -> 2025-01-01 | E101: =$E$24 -> 2025-06-01 | F101: Proposed | G101: =$G$24 -> % Change over 1/1/2025 | H101: % Change over Current
B102: All-Electric - Non-CARE | D102: =VLOOKUP($D$4,'Res Bill Impact (2)'!$B$67:$H$76,3,FALSE) -> 118.2358202 | E102: =VLOOKUP($D$4,'Res Bill Impact (2)'!$B$67:$H$76,5,FALSE) -> 114.711585 | F102: =VLOOKUP($D$4,'Res Bill Impact (2)'!$B$67:$H$76,7,FALSE) -> 114.711585 | G102: =$F102/D102-1 -> -0.02980683157 | H102: 0
B103: All-Electric - CARE | D103: =VLOOKUP($D$4,'Res Bill Impact (2)'!$B$82:$H$91,3,FALSE) -> 69.73827691 | E103: =VLOOKUP($D$4,'Res Bill Impact (2)'!$B$82:$H$91,5,FALSE) -> 67.74348886 | F103: =VLOOKUP($D$4,'Res Bill Impact (2)'!$B$82:$H$91,7,FALSE) -> 67.74348886 | G103: -0.02860391946 | H103: 0
B104: All-Electric - Total | D104: =D102*0.65+D103*0.35 -> 101.2616801 | E104: =E102*0.65+E103*0.35 -> 98.27275138 | F104: =F102*0.65+F103*0.35 -> 98.27275138 | G104: -0.02951687829 | H104: 0
B106: Small Commercial Monthly Average Bills
D107: =$D$24 -> 2025-01-01 | E107: =$E$24 -> 2025-06-01 | F107: Proposed | G107: =$G$24 -> % Change over 1/1/2025 | H107: % Change over Current
B108: NAICS 531 | D108: =((D114*4)+(D120*8))/12 -> 200.0192632 | E108: 194.8698628 | F108: 194.8698628 | G108: =$F108/D108-1 -> -0.02574452224 | H108: =$F108/E108-1 -> 0
B109: NAICS 621 | D109: 276.15071 | E109: 268.8677976 | F109: 268.8677976 | G109: -0.02637296271 | H109: 0
B110: NAICS 722 | D110: 798.5610323 | E110: 777.0703134 | F110: 777.0703134 | G110: -0.0269118052 | H110: 0
B112: Small Commercial Monthly Average Bills - Summer
D113: =$D$24 -> 2025-01-01 | E113: =$E$24 -> 2025-06-01 | F113: Proposed | G113: =$G$24 -> % Change over 1/1/2025 | H113: % Change over Current
B114: NAICS 531 | D114: ='Bill Impact (GS1) (2)'!C37 -> 221.6737636 | E114: ='Bill Impact (GS1) (2)'!E37 -> 216.2914337 | F114: ='Bill Impact (GS1) (2)'!G37 -> 216.2914337 | G114: =$F114/D114-1 -> -0.02428041025 | H114: =$F114/E114-1 -> 0
B115: NAICS 621 | D115: ='Bill Impact (GS1) (2)'!C38 -> 369.469769 | E115: ='Bill Impact (GS1) (2)'!E38 -> 360.411944 | F115: ='Bill Impact (GS1) (2)'!G38 -> 360.411944 | G115: -0.02451574068 | H115: 0
B116: NAICS 722 | D116: ='Bill Impact (GS1) (2)'!C39 -> 1048.787661 | E116: ='Bill Impact (GS1) (2)'!E39 -> 1022.656419 | F116: ='Bill Impact (GS1) (2)'!G39 -> 1022.656419 | G116: -0.02491566527 | H116: 0
B118: Small Commercial Monthly Average Bills - Winter
D119: =$D$24 -> 2025-01-01 | E119: =$E$24 -> 2025-06-01 | F119: Proposed | G119: =$G$24 -> % Change over 1/1/2025 | H119: % Change over Current
B120: NAICS 531 | D120: ='Bill Impact (GS1) (2)'!D37 -> 189.192013 | E120: ='Bill Impact (GS1) (2)'!F37 -> 184.1590774 | F120: ='Bill Impact (GS1) (2)'!H37 -> 184.1590774 | G120: =$F120/D120-1 -> -0.02660226251 | H120: =$F120/E120-1 -> 0
B121: NAICS 621 | D121: ='Bill Impact (GS1) (2)'!D38 -> 229.4911805 | E121: ='Bill Impact (GS1) (2)'!F38 -> 223.0957245 | F121: ='Bill Impact (GS1) (2)'!H38 -> 223.0957245 | G121: -0.0278679818 | H121: 0
B122: NAICS 722 | D122: ='Bill Impact (GS1) (2)'!D39 -> 673.4477179 | E122: ='Bill Impact (GS1) (2)'!F39 -> 654.2772607 | F122: ='Bill Impact (GS1) (2)'!H39 -> 654.2772607 | G122: -0.02846614037 | H122: 0

Sheet SAR and RAR (2) (hidden)
B1: CONFIDENTIAL This Excel Sheet Is Marked Confidential In Accordance With Applicable Law and Regulation. Basis for Confidentiality In Accompanying Confidentiality Declaration. Public Disclosure Restricted.
C2: Revenue Change ($000)
B4: Generation | C4: ='Simple Bill Insert Calc (2)'!D8 -> 0 | F4: Allocation
B5: Distribution | C5: ='Simple Bill Insert Calc (2)'!D9 -> 0 | F5: Generation | G5: Distribution | H5: NDC | I5: PPPC | J5: DCPP | K5: NSGC | L5: Transmission | M5: TOTCA | N5: GHG Rev | O5: DWRBC | P5: PUCRF | Q5: SECURITIZATION
B6: Nuclear | C6: ='Simple Bill Insert Calc (2)'!D10 -> 0 | E6: Residential | F6: ='SAR and RAR'!G37 -> 0.4334328031 | G6: 0.4941200348 | H6: ='SAR and RAR'!I37 -> 0.3376537252 | I6: 0.4504171944 | J6: ='SAR and RAR'!K37 -> 0.4505009853 | K6: ='SAR and RAR'!L37 -> 0.438315087 | L6: ='SAR and RAR'!M37 -> 0.4638101825 | M6: ='SAR and RAR'!N37 -> 0.5669366334 | N6: ='SAR and RAR'!O37 -> 0.8264249736 | O6: ='SAR and RAR'!P37 -> 0.2594263611 | P6: ='SAR and RAR'!Q37 -> 0.3376537254 | Q6: ='SAR and RAR'!R37 -> 0.3674900861
B7: Public Purpose | C7: ='Simple Bill Insert Calc (2)'!D11 -> 0
B8: DCPP | C8: ='Simple Bill Insert Calc (2)'!D12 -> 0 | F8: Revenue Change ($000) - System
B9: New System Gen | C9: ='Simple Bill Insert Calc (2)'!D13 -> 0 | F9: Generation | G9: Distribution | H9: NDC | I9: PPPC | J9: DCPP | K9: NSGC | L9: Transmission | M9: TOTCA | N9: GHG Rev | O9: DWRBC | P9: PUCRF | Q9: SECURITIZATION | R9: Total | S9: CARE Adj. | V9: % of CARE Sales (Bundled) | W9: ='SAR and RAR'!Q58 -> 0.3128375693
B10: FERC | C10: ='Simple Bill Insert Calc (2)'!D14 -> 0 | E10: Residential | F10: =F6*F11 -> 0 | G10: 0 | H10: 0 | I10: 0 | J10: 0 | K10: 0 | L10: 0 | M10: 0 | N10: 0 | O10: 0 | P10: 0 | Q10: =Q6*Q11 -> 0 | R10: =SUM(F10:Q10) -> 0 | S10: =(-W11+W14) -> 0 | V10: CARE Effective Discount | W10: ='SAR and RAR'!X10 -> 0.325
B11: TOTCA | C11: ='Simple Bill Insert Calc (2)'!D15 -> 0 | E11: Total System | F11: =C4 -> 0 | G11: =C5 -> 0 | H11: =C6 -> 0 | I11: =C7 -> 0 | J11: =C8 -> 0 | K11: =C9 -> 0 | L11: =C10 -> 0 | M11: =C11 -> 0 | N11: =C12 -> 0 | O11: =C13 -> 0 | P11: =C14 -> 0 | Q11: =C15 -> 0 | R11: =SUM(F11:Q11) -> 0 | S11: 0 | V11: CARE Discounst | W11: =SUM(F10*F16/'SAR and RAR'!K58*'SAR and RAR'!O58,G10:M10,P10)*W9*W10 -> 0
B12: GHG Revenue | C12: ='Simple Bill Insert Calc (2)'!D16 -> 0 | V12: non-CARE Sales | W12: ='SAR and RAR'!G58 -> 18361053.62
B13: DWR | C13: ='Simple Bill Insert Calc (2)'!D17 -> 0 | V13: Total Sales (excl. CARE&SL) | W13: ='SAR and RAR'!G64 -> 70344975.44
B14: PUCRF | C14: ='Simple Bill Insert Calc (2)'!D18 -> 0 | F14: Revenue Split - Bundled | R14: Bundled Revenue Change | V14: Res CARE Surcharge | W14: =W11*W12/W13 -> 0
B15: SECURITIZATION | C15: ='Simple Bill Insert Calc (2)'!D19 -> 0 | F15: Generation | G15: Distribution | H15: NDC | I15: PPPC | J15: DCPP | K15: NSGC | L15: Transmission | M15: TOTCA | N15: GHG Rev | O15: DWRBC | P15: PUCRF | Q15: SECURITIZATION | R15: Total
B16: Total | C16: =SUM(C4:C15) -> 0 | E16: Residential | F16: ='SAR and RAR'!G44 -> 1.053496072 | G16: ='SAR and RAR'!H44 -> 0.6825473013 | H16: ='SAR and RAR'!I44 -> 0.7011923278 | I16: ='SAR and RAR'!J44 -> 0.7011923321 | J16: ='SAR and RAR'!K44 -> 0.7011923321 | K16: ='SAR and RAR'!L44 -> 0.7011923321 | L16: ='SAR and RAR'!M44 -> 0.7011923321 | M16: ='SAR and RAR'!N44 -> 0.7011923304 | N16: ='SAR and RAR'!O44 -> 0.7065757 | O16: ='SAR and RAR'!P44 -> 0.6708887653 | P16: ='SAR and RAR'!Q44 -> 0.7011923321 | Q16: ='SAR and RAR'!R44 -> 0.6708887652 | R16: =SUMPRODUCT(F10:Q10,F16:Q16)+S10*'SAR and RAR'!X15 -> 0
E17: Total System | F17: ='SAR and RAR'!G50 -> 1.048411398 | G17: ='SAR and RAR'!H50 -> 0.6497133295 | H17: ='SAR and RAR'!I50 -> 0.6283028798 | I17: ='SAR and RAR'!J50 -> 0.6429155899 | J17: ='SAR and RAR'!K50 -> 0.6409526177 | K17: ='SAR and RAR'!L50 -> 0.6386900347 | L17: ='SAR and RAR'!M50 -> 0.6641776383 | M17: ='SAR and RAR'!N50 -> 0.6532230564 | N17: ='SAR and RAR'!O50 -> 0.6916053708 | O17: ='SAR and RAR'!P50 -> 0.6118326262 | P17: ='SAR and RAR'!Q50 -> 0.6283028839 | Q17: ='SAR and RAR'!R50 -> 0.6226235037 | R17: =SUMPRODUCT(F11:Q11,F17:Q17) -> 0
R19: =N10*N16 -> 0
E22: Bundled | M22: System (Bundled and Unbundled)
E23: ='Simple Bill Insert Calc (2)'!M4&" Sales" -> 2025 Sales | F23: ='SAR and RAR'!G27 -> 6/1/2025 Avg Rates | G23: Proposed Avg Rates | H23: % Change | M23: ='Simple Bill Insert Calc (2)'!M4&" Sales" -> 2025 Sales | N23: ='SAR and RAR'!O27 -> 6/1/2025 Avg Rates | O23: Proposed Avg Rates | P23: % Change
D24: Residential | E24: ='SAR and RAR'!K58 -> 18735934.09 | F24: =IF('Simple Bill Insert Calc (2)'!$D$6="Y",'SAR and RAR'!W32,'SAR and RAR'!X32) -> 31.17865091 | G24: =R16/E24*100+F24 -> 31.17865091 | H24: =G24/F24-1 -> 0 | L24: Residential | M24: ='SAR and RAR'!O58 -> 26720106.92 | N24: =IF('Simple Bill Insert Calc (2)'!$D$6="Y",'SAR and RAR'!Z32,'SAR and RAR'!AA32) -> 27.86095985 | O24: =SUM(R10:S10)/M24*100+N24 -> 27.86095985 | P24: =O24/N24-1 -> 0
D25: Total System | E25: ='SAR and RAR'!K64 -> 49720524.25 | F25: =IF('Simple Bill Insert Calc (2)'!$D$6="Y",'SAR and RAR'!W33,'SAR and RAR'!X33) -> 26.64700642 | G25: =R17/E25*100+F25 -> 26.64700642 | H25: =G25/F25-1 -> 0 | L25: Total System | M25: ='SAR and RAR'!O64 -> 79134642.73 | N25: =IF('Simple Bill Insert Calc (2)'!$D$6="Y",'SAR and RAR'!Z33,'SAR and RAR'!AA33) -> 22.25245758 | O25: =SUM(R11:S11)/M25*100+N25 -> 22.25245758 | P25: =O25/N25-1 -> 0

Sheet Res Bill Impact (2) (hidden)
B1: CONFIDENTIAL This Excel Sheet Is Marked Confidential In Accordance With Applicable Law and Regulation. Basis for Confidentiality In Accompanying Confidentiality Declaration. Public Disclosure Restricted.
E3: Schedule D | O3: Schedule D-CARE
E4: ='Simple Bill Insert Calc (2)'!M4 -> 2025 | F4: ='Simple Bill Insert Calc (2)'!M3 -> 2025-06-01 | G4: Proposed | H4: Proposed | O4: ='Simple Bill Insert Calc (2)'!M4 -> 2025 | P4: ='Simple Bill Insert Calc (2)'!M3 -> 2025-06-01 | Q4: Proposed | R4: Proposed
E5: Sales Forecast | F5: Rates | G5: Rates | H5: Revenue | O5: Sales Forecast | P5: Rates | Q5: Rates | R5: Revenue
D7: Baseline - Summer | E7: ='Res Bill Impact'!F97 -> 3085.670937 | F7: ='Res Bill Impact'!F7 -> 0.32381 | G7: =(V10-SUM(R14:R15,H14:H15))/SUM(SUM(E7:E8),F9/F7*SUM(E9:E10),F11/F7*SUM(E11:E12),SUM(O7:O8)*(1+(P7/F7-1)),SUM(O9:O10)*(1+(P9/F9-1))*F9/F7,SUM(O11:O12)*(1+(P11/F11-1))*F11/F7) -> 0.32381 | H7: =E7*G7 -> 999.1711061 | N7: Baseline - Summer | O7: ='Res Bill Impact'!M97 -> 1783.360129 | P7: ='Res Bill Impact'!P7 -> 0.20347 | Q7: =G7*(1+(P7/F7-1)) -> 0.20347 | R7: =O7*Q7 -> 362.8602854 | U7: Bundled Residential Rev Req
D8: - Winter | E8: ='Res Bill Impact'!F98 -> 4290.291273 | F8: ='Res Bill Impact'!F8 -> 0.32381 | G8: =G7 -> 0.32381 | H8: 1389.239217 | N8: - Winter | O8: ='Res Bill Impact'!M98 -> 2747.277654 | P8: ='Res Bill Impact'!P8 -> 0.20347 | Q8: 0.20347 | R8: 558.9885843 | U8: Current | V8: =SUMPRODUCT(E7:E12,F7:F12)+SUMPRODUCT(O7:O12,P7:P12)+(E14*F14*365/12/10^6)+(E15*F15*365/12/10^6)+(O14*P14*365/12/10^6)+(O15*P15*365/12/10^6) -> 5900.373858
D9: 101% - 400% of Baseline - Summer | E9: ='Res Bill Impact'!F99 -> 1911.92882 | F9: ='Res Bill Impact'!F9 -> 0.41631 | G9: =F9/F$7*G$7 -> 0.41631 | H9: 795.9550872 | N9: 101% - 400% of Baseline - Summer | O9: ='Res Bill Impact'!M99 -> 745.4907551 | P9: ='Res Bill Impact'!P9 -> 0.26591 | Q9: 0.26591 | R9: 198.2334467 | U9: Change | V9: ='SAR and RAR (2)'!R16/1000-'SAR and RAR (2)'!R19/1000 -> 0
D10: - Winter | E10: ='Res Bill Impact'!F100 -> 2615.804258 | F10: ='Res Bill Impact'!F10 -> 0.41631 | G10: =G9 -> 0.41631 | H10: 1088.985471 | N10: - Winter | O10: ='Res Bill Impact'!M100 -> 1112.023766 | P10: ='Res Bill Impact'!P10 -> 0.26591 | Q10: 0.26591 | R10: 295.6982397 | U10: Proposed Change | V10: =SUM(V8:V9) -> 5900.373858
D11: 401% of Baseline - Summer | E11: ='Res Bill Impact'!F101 -> 151.6325582 | F11: ='Res Bill Impact'!F11 -> 0.41631 | G11: =F11/F$7*G$7 -> 0.41631 | H11: 63.12615031 | N11: 401% of Baseline - Summer | O11: ='Res Bill Impact'!M101 -> 8.477005966 | P11: ='Res Bill Impact'!P11 -> 0.26591 | Q11: 0.26591 | R11: 2.254120656 | V11: =V10-SUM(H7:H15,R7:R15) -> 0
D12: - Winter | E12: ='Res Bill Impact'!F102 -> 262.8967474 | F12: ='Res Bill Impact'!F12 -> 0.41631 | G12: =G11 -> 0.41631 | H12: 109.4465449 | N12: - Winter | O12: ='Res Bill Impact'!M102 -> 21.08018443 | P12: ='Res Bill Impact'!P12 -> 0.26591 | Q12: 0.26591 | R12: 5.605431843
D14: Basic Charge - Single-Family Residence | E14: ='Res Bill Impact'!F104 -> 18879671.95 | F14: ='Res Bill Impact'!F14 -> 0.031 | G14: =F14 -> 0.031 | H14: =G14*E14*365/12/10^6 -> 17.80195734 | N14: Basic Charge - Single-Family Residence | O14: ='Res Bill Impact'!M104 -> 6433922.126 | P14: ='Res Bill Impact'!P14 -> 0.021 | Q14: =P14 -> 0.021 | R14: =Q14*O14*365/12/10^6 -> 4.109667758
D15: Basic Charge - Multi-Family Residence | E15: ='Res Bill Impact'!F105 -> 8588406.524 | F15: ='Res Bill Impact'!F15 -> 0.024 | G15: =F15 -> 0.024 | H15: =G15*E15*365/12/10^6 -> 6.269536763 | N15: Basic Charge - Multi-Family Residence | O15: ='Res Bill Impact'!M105 -> 5402078.398 | P15: ='Res Bill Impact'!P15 -> 0.016 | Q15: =P15 -> 0.016 | R15: =Q15*O15*365/12/10^6 -> 2.629011487
O19: ='Res Bill Impact'!O19 -> 2024 Recorded Data - Average Monthly Usage - kWh (Bundled / Basic Service Only) | W19: ='Res Bill Impact'!W19 -> 2024 Recorded Data - Average Monthly Usage - kWh (Bundled / All Electric Only)
B20: SCHEDULE D RATES ($/kWh) | H20: MONTHLY BASELINE QUANTITIES | I20: BASIC | K20: ALL-ELECTRIC | O20: Climate Zone | P20: Summer | Q20: Winter | R20: Summer | S20: Winter | T20: Sample Population Weight | W20: Climate Zone | X20: Summer | Y20: Winter | Z20: Summer | AA20: Winter | AB20: Sample Population Weight
B21: Rates | C21: ='Res Bill Impact'!C21 -> Jan 2025 | D21: ='Simple Bill Insert Calc (2)'!M3 -> 2025-06-01 | E21: Proposed | H21: Climate Zone | I21: Summer | J21: Winter | K21: Summer | L21: Winter | P21: Non-CARE | R21: CARE | T21: Non-CARE | U21: CARE | X21: Non-CARE | Z21: CARE | AB21: Non-CARE | AC21: CARE
B22: Tier 1 | C22: ='Res Bill Impact'!C22 -> 0.33308 | D22: =F7 -> 0.32381 | E22: =G7 -> 0.32381 | H22: 5 warm | I22: 517.089 | J22: 559.6728 | K22: 511.0056 | L22: 821.259 | O22: 5 warm | P22: ='Res Bill Impact'!P22 -> 395.5552996 | Q22: ='Res Bill Impact'!Q22 -> 410.4255495 | R22: ='Res Bill Impact'!R22 -> 370.5382517 | S22: ='Res Bill Impact'!S22 -> 352.8129705 | T22: ='Res Bill Impact'!T22 -> 0.000391559287 | U22: ='Res Bill Impact'!U22 -> 5.780756421e-05 | W22: 5 warm | X22: ='Res Bill Impact'!X22 -> 395.0513658 | Y22: ='Res Bill Impact'!Y22 -> 472.3532524 | Z22: ='Res Bill Impact'!Z22 -> 354.0301735 | AA22: ='Res Bill Impact'!AA22 -> 430.0455986 | AB22: ='Res Bill Impact'!AB22 -> 0.0003215327132 | AC22: ='Res Bill Impact'!AC22 -> 0.0001643349365
B23: Tier 2 | C23: ='Res Bill Impact'!C23 -> 0.42821 | D23: =F9 -> 0.41631 | E23: =G9 -> 0.41631 | H23: 6 cool | I23: 346.7538 | J23: 334.587 | K23: 264.6279 | L23: 383.2542 | O23: 6 cool | P23: ='Res Bill Impact'!P23 -> 441.3631683 | Q23: ='Res Bill Impact'!Q23 -> 378.5967426 | R23: ='Res Bill Impact'!R23 -> 403.4336933 | S23: ='Res Bill Impact'!S23 -> 346.7408462 | T23: ='Res Bill Impact'!T23 -> 0.175728545 | U23: ='Res Bill Impact'!U23 -> 0.06241911603 | W23: 6 cool | X23: ='Res Bill Impact'!X23 -> 333.6664732 | Y23: ='Res Bill Impact'!Y23 -> 330.2803509 | Z23: ='Res Bill Impact'!Z23 -> 364.4793275 | AA23: ='Res Bill Impact'!AA23 -> 373.6317841 | AB23: ='Res Bill Impact'!AB23 -> 0.2756588649 | AC23: ='Res Bill Impact'!AC23 -> 0.1336590817
B24: HUC | C24: ='Res Bill Impact'!C24 -> 0.42821 | D24: =F11 -> 0.41631 | E24: =G11 -> 0.41631 | H24: 8 cool | I24: 389.3376 | J24: 313.2951 | K24: 301.1283 | L24: 374.1291 | O24: 8 cool | P24: ='Res Bill Impact'!P24 -> 568.4975767 | Q24: ='Res Bill Impact'!Q24 -> 397.6071315 | R24: ='Res Bill Impact'!R24 -> 503.0842528 | S24: ='Res Bill Impact'!S24 -> 372.8283632 | T24: ='Res Bill Impact'!T24 -> 0.2213136597 | U24: ='Res Bill Impact'!U24 -> 0.1553419784 | W24: 8 cool | X24: ='Res Bill Impact'!X24 -> 395.5847708 | Y24: ='Res Bill Impact'!Y24 -> 347.0862508 | Z24: ='Res Bill Impact'!Z24 -> 414.4144944 | AA24: ='Res Bill Impact'!AA24 -> 370.2534605 | AB24: ='Res Bill Impact'!AB24 -> 0.2319803089 | AC24: ='Res Bill Impact'!AC24 -> 0.1999079724
H25: 9 warm | I25: 514.0473 | J25: 365.004 | K25: 380.2125 | L25: 422.7963 | O25: 9 warm | P25: ='Res Bill Impact'!P25 -> 736.1896342 | Q25: ='Res Bill Impact'!Q25 -> 454.0542708 | R25: ='Res Bill Impact'!R25 -> 685.496621 | S25: ='Res Bill Impact'!S25 -> 424.2446352 | T25: ='Res Bill Impact'!T25 -> 0.1275808923 | U25: ='Res Bill Impact'!U25 -> 0.0946365769 | W25: 9 warm | X25: ='Res Bill Impact'!X25 -> 530.8275233 | Y25: ='Res Bill Impact'!Y25 -> 380.1763947 | Z25: ='Res Bill Impact'!Z25 -> 510.0101939 | AA25: ='Res Bill Impact'!AA25 -> 375.6663006 | AB25: ='Res Bill Impact'!AB25 -> 0.08053285732 | AC25: ='Res Bill Impact'!AC25 -> 0.08292340896
B26: SCHEDULE D-CARE RATES ($/kWh) | H26: 10 hot (Sec 745) | I26: 587.0481 | J26: 368.0457 | K26: 483.6303 | L26: 498.8388 | O26: 10 hot (Sec 745) | P26: ='Res Bill Impact'!P26 -> 857.9526651 | Q26: ='Res Bill Impact'!Q26 -> 482.0306437 | R26: ='Res Bill Impact'!R26 -> 918.4083871 | S26: ='Res Bill Impact'!S26 -> 499.6563415 | T26: ='Res Bill Impact'!T26 -> 0.3013940598 | U26: ='Res Bill Impact'!U26 -> 0.4075638401 | W26: 10 hot (Sec 745) | X26: ='Res Bill Impact'!X26 -> 627.4953074 | Y26: ='Res Bill Impact'!Y26 -> 427.1016506 | Z26: ='Res Bill Impact'!Z26 -> 660.3259927 | AA26: ='Res Bill Impact'!AA26 -> 426.1138274 | AB26: ='Res Bill Impact'!AB26 -> 0.2614116395 | AC26: ='Res Bill Impact'!AC26 -> 0.3672447605
B27: Rates | C27: =C21 -> Jan 2025 | D27: =D21 -> 2025-06-01 | E27: Proposed | H27: 13 hot | I27: 675.2574 | J27: 371.0874 | K27: 736.0914 | L27: 699.591 | O27: 13 hot | P27: ='Res Bill Impact'!P27 -> 995.7412826 | Q27: ='Res Bill Impact'!Q27 -> 488.3574385 | R27: ='Res Bill Impact'!R27 -> 1027.53491 | S27: ='Res Bill Impact'!S27 -> 485.942318 | T27: ='Res Bill Impact'!T27 -> 0.04959424669 | U27: ='Res Bill Impact'!U27 -> 0.1129503862 | W27: 13 hot | X27: ='Res Bill Impact'!X27 -> 965.9846505 | Y27: ='Res Bill Impact'!Y27 -> 574.7150255 | Z27: ='Res Bill Impact'!Z27 -> 962.9031858 | AA27: ='Res Bill Impact'!AA27 -> 549.7168372 | AB27: ='Res Bill Impact'!AB27 -> 0.03106116883 | AC27: ='Res Bill Impact'!AC27 -> 0.06378386669
B28: Tier 1 | C28: ='Res Bill Impact'!C28 -> 0.20878 | D28: =P7 -> 0.20347 | E28: =Q7 -> 0.20347 | H28: 14 hot | I28: 584.0064 | J28: 361.9623 | K28: 562.7145 | L28: 641.7987 | O28: 14 hot | P28: ='Res Bill Impact'!P28 -> 835.9220396 | Q28: ='Res Bill Impact'!Q28 -> 473.45593 | R28: ='Res Bill Impact'!R28 -> 933.1504328 | S28: ='Res Bill Impact'!S28 -> 527.5764602 | T28: ='Res Bill Impact'!T28 -> 0.06232862483 | U28: ='Res Bill Impact'!U28 -> 0.1067631121 | W28: 14 hot | X28: ='Res Bill Impact'!X28 -> 756.0211147 | Y28: ='Res Bill Impact'!Y28 -> 556.7004427 | Z28: ='Res Bill Impact'!Z28 -> 880.8399974 | AA28: ='Res Bill Impact'!AA28 -> 657.7029793 | AB28: ='Res Bill Impact'!AB28 -> 0.04437151442 | AC28: ='Res Bill Impact'!AC28 -> 0.07098173691
B29: Tier 2 | C29: ='Res Bill Impact'!C29 -> 0.27299 | D29: =P9 -> 0.26591 | E29: =Q9 -> 0.26591 | H29: 15 hot | I29: 1368.765 | J29: 295.0449 | K29: 730.008 | L29: 529.2558 | O29: 15 hot | P29: ='Res Bill Impact'!P29 -> 1219.397003 | Q29: ='Res Bill Impact'!Q29 -> 540.766029 | R29: ='Res Bill Impact'!R29 -> 1360.59217 | S29: ='Res Bill Impact'!S29 -> 535.5743293 | T29: ='Res Bill Impact'!T29 -> 0.03219052405 | U29: ='Res Bill Impact'!U29 -> 0.03515632284 | W29: 15 hot | X29: ='Res Bill Impact'!X29 -> 924.9686507 | Y29: ='Res Bill Impact'!Y29 -> 451.6365116 | Z29: ='Res Bill Impact'!Z29 -> 1114.196822 | AA29: ='Res Bill Impact'!AA29 -> 520.3020094 | AB29: ='Res Bill Impact'!AB29 -> 0.03508032774 | AC29: ='Res Bill Impact'!AC29 -> 0.05084522936
B30: HUC | C30: ='Res Bill Impact'!C30 -> 0.27299 | D30: =P11 -> 0.26591 | E30: =Q12 -> 0.26591 | H30: 16 cool | I30: 447.1299 | J30: 377.1708 | K30: 410.6295 | L30: 705.6744 | O30: 16 cool | P30: ='Res Bill Impact'!P30 -> 565.1396542 | Q30: ='Res Bill Impact'!Q30 -> 416.659723 | R30: ='Res Bill Impact'!R30 -> 776.7883471 | S30: ='Res Bill Impact'!S30 -> 493.603768 | T30: ='Res Bill Impact'!T30 -> 0.02947788832 | U30: ='Res Bill Impact'!U30 -> 0.02511085999 | W30: 16 cool | X30: ='Res Bill Impact'!X30 -> 449.8471198 | Y30: ='Res Bill Impact'!Y30 -> 538.6630052 | Z30: ='Res Bill Impact'!Z30 -> 698.918731 | AA30: ='Res Bill Impact'!AA30 -> 570.1108274 | AB30: ='Res Bill Impact'!AB30 -> 0.03958178573 | AC30: ='Res Bill Impact'!AC30 -> 0.03048960855
N32: Daily to Monthly Conversion Factor | O32: 30.417
C34: NON-CARE | K34: Essential Use (Basic) - Non-CARE | S34: Essential Use (Basic) - CARE
C35: =C27 -> Jan 2025 | E35: =D27 -> 2025-06-01 | G35: =E21 -> Proposed | K35: =C35 -> Jan 2025 | M35: =E35 -> 2025-06-01 | O35: =G35 -> Proposed | S35: =K35 -> Jan 2025 | U35: =M35 -> 2025-06-01 | W35: =O35 -> Proposed
C36: Summer | D36: Winter | E36: Summer | F36: Winter | G36: Summer | H36: Winter | K36: Summer | L36: Winter | M36: Summer | N36: Winter | O36: Summer | P36: Winter | S36: Summer | T36: Winter | U36: Summer | V36: Winter | W36: Summer | X36: Winter
B37: 5 warm | C37: =C$22*MIN(I22,P22)+IF(P22-I22>0,C$23*(P22-I22))+ROUND($F$14*365/12,2)+('Simple Bill Insert Calc (2)'!M17*2)/12 -> 123.3582259 | D37: =C$22*MIN(J22,Q22)+IF(Q22-J22>0,C$23*(Q22-J22))+ROUND($F$14*365/12,2)+('Simple Bill Insert Calc (2)'!M17*2)/12 -> 128.3112087 | E37: =D$22*MIN(I22,P22)+IF(P22-I22>0,D$23*(P22-I22))+ROUND($F$14*365/12,2)+('Simple Bill Insert Calc (2)'!M17*2)/12 -> 119.6914282 | F37: =D$22*MIN(J22,Q22)+IF(Q22-J22>0,D$23*(Q22-J22))+ROUND($F$14*365/12,2)+('Simple Bill Insert Calc (2)'!M17*2)/12 -> 124.5065638 | G37: =E$22*MIN(I22,P22)+IF(P22-I22>0,E$23*(P22-I22))+ROUND($F$14*365/12,2)+('Simple Bill Insert Calc (2)'!M17*2)/12 -> 119.6914282 | H37: =E$22*MIN(J22,Q22)+IF(Q22-J22>0,E$23*(Q22-J22))+ROUND($F$14*365/12,2)+('Simple Bill Insert Calc (2)'!M17*2)/12 -> 124.5065638 | J37: 5 warm | K37: =C$22*I22+ROUND($F$14*365/12,2)+('Simple Bill Insert Calc (2)'!M17*2)/12 -> 163.8386708 | L37: =C$22*J22+ROUND($F$14*365/12,2)+('Simple Bill Insert Calc (2)'!M17*2)/12 -> 178.0224829 | M37: =D$22*I22+ROUND($F$14*365/12,2)+('Simple Bill Insert Calc (2)'!M17*2)/12 -> 159.0452558 | N37: =D$22*J22+ROUND($F$14*365/12,2)+('Simple Bill Insert Calc (2)'!M17*2)/12 -> 172.834316 | O37: =E$22*I22+ROUND($F$14*365/12,2)+('Simple Bill Insert Calc (2)'!M17*2)/12 -> 159.0452558 | P37: =E$22*J22+ROUND($F$14*365/12,2)+('Simple Bill Insert Calc (2)'!M17*2)/12 -> 172.834316 | R37: 5 warm | S37: =C$28*I22+ROUND($P$14*365/12,2)+('Simple Bill Insert Calc (2)'!M17*2)/12 -> 99.26450809 | T37: =C$28*J22+ROUND($P$14*365/12,2)+('Simple Bill Insert Calc (2)'!M17*2)/12 -> 108.1551539 | U37: =D$28*I22+ROUND($P$14*365/12,2)+('Simple Bill Insert Calc (2)'!M17*2)/12 -> 96.5187655 | V37: =D$28*J22+ROUND($P$14*365/12,2)+('Simple Bill Insert Calc (2)'!M17*2)/12 -> 105.1832913 | W37: =E$28*I22+ROUND($P$14*365/12,2)+('Simple Bill Insert Calc (2)'!M17*2)/12 -> 96.5187655 | X37: =E$28*J22+ROUND($P$14*365/12,2)+('Simple Bill Insert Calc (2)'!M17*2)/12 -> 105.1832913
B38: 6 cool | C38: =C$22*MIN(I23,P23)+IF(P23-I23>0,C$23*(P23-I23))+ROUND($F$14*365/12,2)+('Simple Bill Insert Calc (2)'!M17*2)/12 -> 147.6161 | D38: =C$22*MIN(J23,Q23)+IF(Q23-J23>0,C$23*(Q23-J23))+ROUND($F$14*365/12,2)+('Simple Bill Insert Calc (2)'!M17*2)/12 -> 121.8963165 | E38: =D$22*MIN(I23,P23)+IF(P23-I23>0,D$23*(P23-I23))+ROUND($F$14*365/12,2)+('Simple Bill Insert Calc (2)'!M17*2)/12 -> 143.2758408 | F38: =D$22*MIN(J23,Q23)+IF(Q23-J23>0,D$23*(Q23-J23))+ROUND($F$14*365/12,2)+('Simple Bill Insert Calc (2)'!M17*2)/12 -> 118.2709791 | G38: =E$22*MIN(I23,P23)+IF(P23-I23>0,E$23*(P23-I23))+ROUND($F$14*365/12,2)+('Simple Bill Insert Calc (2)'!M17*2)/12 -> 143.2758408 | H38: =E$22*MIN(J23,Q23)+IF(Q23-J23>0,E$23*(Q23-J23))+ROUND($F$14*365/12,2)+('Simple Bill Insert Calc (2)'!M17*2)/12 -> 118.2709791 | J38: 6 cool | K38: =C$22*I23+ROUND($F$14*365/12,2)+('Simple Bill Insert Calc (2)'!M17*2)/12 -> 107.1034224 | L38: =C$22*J23+ROUND($F$14*365/12,2)+('Simple Bill Insert Calc (2)'!M17*2)/12 -> 103.0509046 | M38: =D$22*I23+ROUND($F$14*365/12,2)+('Simple Bill Insert Calc (2)'!M17*2)/12 -> 103.8890146 | N38: =D$22*J23+ROUND($F$14*365/12,2)+('Simple Bill Insert Calc (2)'!M17*2)/12 -> 99.94928314 | O38: =E$22*I23+ROUND($F$14*365/12,2)+('Simple Bill Insert Calc (2)'!M17*2)/12 -> 103.8890146 | P38: =E$22*J23+ROUND($F$14*365/12,2)+('Simple Bill Insert Calc (2)'!M17*2)/12 -> 99.94928314 | R38: 6 cool | S38: =C$28*I23+ROUND($P$14*365/12,2)+('Simple Bill Insert Calc (2)'!M17*2)/12 -> 63.70192503 | T38: =C$28*J23+ROUND($P$14*365/12,2)+('Simple Bill Insert Calc (2)'!M17*2)/12 -> 61.16174053 | U38: =D$28*I23+ROUND($P$14*365/12,2)+('Simple Bill Insert Calc (2)'!M17*2)/12 -> 61.86066235 | V38: =D$28*J23+ROUND($P$14*365/12,2)+('Simple Bill Insert Calc (2)'!M17*2)/12 -> 59.38508356 | W38: =E$28*I23+ROUND($P$14*365/12,2)+('Simple Bill Insert Calc (2)'!M17*2)/12 -> 61.86066235 | X38: =E$28*J23+ROUND($P$14*365/12,2)+('Simple Bill Insert Calc (2)'!M17*2)/12 -> 59.38508356
B39: 8 cool | C39: =C$22*MIN(I24,P24)+IF(P24-I24>0,C$23*(P24-I24))+ROUND($F$14*365/12,2)+('Simple Bill Insert Calc (2)'!M17*2)/12 -> 198.0053281 | D39: =C$22*MIN(J24,Q24)+IF(Q24-J24>0,C$23*(Q24-J24))+ROUND($F$14*365/12,2)+('Simple Bill Insert Calc (2)'!M17*2)/12 -> 132.0622536 | E39: =D$22*MIN(I24,P24)+IF(P24-I24>0,D$23*(P24-I24))+ROUND($F$14*365/12,2)+('Simple Bill Insert Calc (2)'!M17*2)/12 -> 192.2641648 | F39: =D$22*MIN(J24,Q24)+IF(Q24-J24>0,D$23*(Q24-J24))+ROUND($F$14*365/12,2)+('Simple Bill Insert Calc (2)'!M17*2)/12 -> 128.1546948 | G39: =E$22*MIN(I24,P24)+IF(P24-I24>0,E$23*(P24-I24))+ROUND($F$14*365/12,2)+('Simple Bill Insert Calc (2)'!M17*2)/12 -> 192.2641648 | H39: =E$22*MIN(J24,Q24)+IF(Q24-J24>0,E$23*(Q24-J24))+ROUND($F$14*365/12,2)+('Simple Bill Insert Calc (2)'!M17*2)/12 -> 128.1546948 | J39: 8 cool | K39: =C$22*I24+ROUND($F$14*365/12,2)+('Simple Bill Insert Calc (2)'!M17*2)/12 -> 121.2872345 | L39: =C$22*J24+ROUND($F$14*365/12,2)+('Simple Bill Insert Calc (2)'!M17*2)/12 -> 95.95899857 | M39: =D$22*I24+ROUND($F$14*365/12,2)+('Simple Bill Insert Calc (2)'!M17*2)/12 -> 117.6780749 | N39: =D$22*J24+ROUND($F$14*365/12,2)+('Simple Bill Insert Calc (2)'!M17*2)/12 -> 93.054753 | O39: =E$22*I24+ROUND($F$14*365/12,2)+('Simple Bill Insert Calc (2)'!M17*2)/12 -> 117.6780749 | P39: =E$22*J24+ROUND($F$14*365/12,2)+('Simple Bill Insert Calc (2)'!M17*2)/12 -> 93.054753 | R39: 8 cool | S39: =C$28*I24+ROUND($P$14*365/12,2)+('Simple Bill Insert Calc (2)'!M17*2)/12 -> 72.59257079 | T39: =C$28*J24+ROUND($P$14*365/12,2)+('Simple Bill Insert Calc (2)'!M17*2)/12 -> 56.71641764 | U39: =D$28*I24+ROUND($P$14*365/12,2)+('Simple Bill Insert Calc (2)'!M17*2)/12 -> 70.52518814 | V39: =D$28*J24+ROUND($P$14*365/12,2)+('Simple Bill Insert Calc (2)'!M17*2)/12 -> 55.05282066 | W39: =E$28*I24+ROUND($P$14*365/12,2)+('Simple Bill Insert Calc (2)'!M17*2)/12 -> 70.52518814 | X39: =E$28*J24+ROUND($P$14*365/12,2)+('Simple Bill Insert Calc (2)'!M17*2)/12 -> 55.05282066
B40: 9 warm | C40: =C$22*MIN(I25,P25)+IF(P25-I25>0,C$23*(P25-I25))+ROUND($F$14*365/12,2)+('Simple Bill Insert Calc (2)'!M17*2)/12 -> 257.9491103 | D40: =C$22*MIN(J25,Q25)+IF(Q25-J25>0,C$23*(Q25-J25))+ROUND($F$14*365/12,2)+('Simple Bill Insert Calc (2)'!M17*2)/12 -> 151.3144154 | E40: =D$22*MIN(I25,P25)+IF(P25-I25>0,D$23*(P25-I25))+ROUND($F$14*365/12,2)+('Simple Bill Insert Calc (2)'!M17*2)/12 -> 250.540398 | F40: =D$22*MIN(J25,Q25)+IF(Q25-J25>0,D$23*(Q25-J25))+ROUND($F$14*365/12,2)+('Simple Bill Insert Calc (2)'!M17*2)/12 -> 146.8711301 | G40: =E$22*MIN(I25,P25)+IF(P25-I25>0,E$23*(P25-I25))+ROUND($F$14*365/12,2)+('Simple Bill Insert Calc (2)'!M17*2)/12 -> 250.540398 | H40: =E$22*MIN(J25,Q25)+IF(Q25-J25>0,E$23*(Q25-J25))+ROUND($F$14*365/12,2)+('Simple Bill Insert Calc (2)'!M17*2)/12 -> 146.8711301 | J40: 9 warm | K40: =C$22*I25+ROUND($F$14*365/12,2)+('Simple Bill Insert Calc (2)'!M17*2)/12 -> 162.8255414 | L40: =C$22*J25+ROUND($F$14*365/12,2)+('Simple Bill Insert Calc (2)'!M17*2)/12 -> 113.182199 | M40: =D$22*I25+ROUND($F$14*365/12,2)+('Simple Bill Insert Calc (2)'!M17*2)/12 -> 158.0603229 | N40: =D$22*J25+ROUND($F$14*365/12,2)+('Simple Bill Insert Calc (2)'!M17*2)/12 -> 109.7986119 | O40: =E$22*I25+ROUND($F$14*365/12,2)+('Simple Bill Insert Calc (2)'!M17*2)/12 -> 158.0603229 | P40: =E$22*J25+ROUND($F$14*365/12,2)+('Simple Bill Insert Calc (2)'!M17*2)/12 -> 109.7986119 | R40: 9 warm | S40: =C$28*I25+ROUND($P$14*365/12,2)+('Simple Bill Insert Calc (2)'!M17*2)/12 -> 98.62946196 | T40: =C$28*J25+ROUND($P$14*365/12,2)+('Simple Bill Insert Calc (2)'!M17*2)/12 -> 67.51220179 | U40: =D$28*I25+ROUND($P$14*365/12,2)+('Simple Bill Insert Calc (2)'!M17*2)/12 -> 95.8998708 | V40: =D$28*J25+ROUND($P$14*365/12,2)+('Simple Bill Insert Calc (2)'!M17*2)/12 -> 65.57403055 | W40: =E$28*I25+ROUND($P$14*365/12,2)+('Simple Bill Insert Calc (2)'!M17*2)/12 -> 95.8998708 | X40: =E$28*J25+ROUND($P$14*365/12,2)+('Simple Bill Insert Calc (2)'!M17*2)/12 -> 65.57403055
B41: 10 hot (Sec 745) | C41: =C$22*MIN(I26,P26)+IF(P26-I26>0,C$23*(P26-I26))+ROUND($F$14*365/12,2)+('Simple Bill Insert Calc (2)'!M17*2)/12 -> 303.1446916 | D41: =C$22*MIN(J26,Q26)+IF(Q26-J26>0,C$23*(Q26-J26))+ROUND($F$14*365/12,2)+('Simple Bill Insert Calc (2)'!M17*2)/12 -> 163.0048212 | E41: =D$22*MIN(I26,P26)+IF(P26-I26>0,D$23*(P26-I26))+ROUND($F$14*365/12,2)+('Simple Bill Insert Calc (2)'!M17*2)/12 -> 294.4789914 | F41: =D$22*MIN(J26,Q26)+IF(Q26-J26>0,D$23*(Q26-J26))+ROUND($F$14*365/12,2)+('Simple Bill Insert Calc (2)'!M17*2)/12 -> 158.2366167 | G41: =E$22*MIN(I26,P26)+IF(P26-I26>0,E$23*(P26-I26))+ROUND($F$14*365/12,2)+('Simple Bill Insert Calc (2)'!M17*2)/12 -> 294.4789914 | H41: =E$22*MIN(J26,Q26)+IF(Q26-J26>0,E$23*(Q26-J26))+ROUND($F$14*365/12,2)+('Simple Bill Insert Calc (2)'!M17*2)/12 -> 158.2366167 | J41: 10 hot (Sec 745) | K41: =C$22*I26+ROUND($F$14*365/12,2)+('Simple Bill Insert Calc (2)'!M17*2)/12 -> 187.1406478 | L41: =C$22*J26+ROUND($F$14*365/12,2)+('Simple Bill Insert Calc (2)'!M17*2)/12 -> 114.1953284 | M41: =D$22*I26+ROUND($F$14*365/12,2)+('Simple Bill Insert Calc (2)'!M17*2)/12 -> 181.6987119 | N41: =D$22*J26+ROUND($F$14*365/12,2)+('Simple Bill Insert Calc (2)'!M17*2)/12 -> 110.7835448 | O41: =E$22*I26+ROUND($F$14*365/12,2)+('Simple Bill Insert Calc (2)'!M17*2)/12 -> 181.6987119 | P41: =E$22*J26+ROUND($F$14*365/12,2)+('Simple Bill Insert Calc (2)'!M17*2)/12 -> 110.7835448 | R41: 10 hot (Sec 745) | S41: =C$28*I26+ROUND($P$14*365/12,2)+('Simple Bill Insert Calc (2)'!M17*2)/12 -> 113.870569 | T41: =C$28*J26+ROUND($P$14*365/12,2)+('Simple Bill Insert Calc (2)'!M17*2)/12 -> 68.14724791 | U41: =D$28*I26+ROUND($P$14*365/12,2)+('Simple Bill Insert Calc (2)'!M17*2)/12 -> 110.7533436 | V41: =D$28*J26+ROUND($P$14*365/12,2)+('Simple Bill Insert Calc (2)'!M17*2)/12 -> 66.19292525 | W41: =E$28*I26+ROUND($P$14*365/12,2)+('Simple Bill Insert Calc (2)'!M17*2)/12 -> 110.7533436 | X41: =E$28*J26+ROUND($P$14*365/12,2)+('Simple Bill Insert Calc (2)'!M17*2)/12 -> 66.19292525
B42: 13 hot | C42: =C$22*MIN(I27,P27)+IF(P27-I27>0,C$23*(P27-I27))+ROUND($F$14*365/12,2)+('Simple Bill Insert Calc (2)'!M17*2)/12 -> 353.7558048 | D42: =C$22*MIN(J27,Q27)+IF(Q27-J27>0,C$23*(Q27-J27))+ROUND($F$14*365/12,2)+('Simple Bill Insert Calc (2)'!M17*2)/12 -> 165.4246611 | E42: =D$22*MIN(I27,P27)+IF(P27-I27>0,D$23*(P27-I27))+ROUND($F$14*365/12,2)+('Simple Bill Insert Calc (2)'!M17*2)/12 -> 343.6824105 | F42: =D$22*MIN(J27,Q27)+IF(Q27-J27>0,D$23*(Q27-J27))+ROUND($F$14*365/12,2)+('Simple Bill Insert Calc (2)'!M17*2)/12 -> 160.5891674 | G42: =E$22*MIN(I27,P27)+IF(P27-I27>0,E$23*(P27-I27))+ROUND($F$14*365/12,2)+('Simple Bill Insert Calc (2)'!M17*2)/12 -> 343.6824105 | H42: =E$22*MIN(J27,Q27)+IF(Q27-J27>0,E$23*(Q27-J27))+ROUND($F$14*365/12,2)+('Simple Bill Insert Calc (2)'!M17*2)/12 -> 160.5891674 | J42: 13 hot | K42: =C$22*I27+ROUND($F$14*365/12,2)+('Simple Bill Insert Calc (2)'!M17*2)/12 -> 216.5214015 | L42: =C$22*J27+ROUND($F$14*365/12,2)+('Simple Bill Insert Calc (2)'!M17*2)/12 -> 115.2084579 | M42: =D$22*I27+ROUND($F$14*365/12,2)+('Simple Bill Insert Calc (2)'!M17*2)/12 -> 210.2617654 | N42: =D$22*J27+ROUND($F$14*365/12,2)+('Simple Bill Insert Calc (2)'!M17*2)/12 -> 111.7684777 | O42: =E$22*I27+ROUND($F$14*365/12,2)+('Simple Bill Insert Calc (2)'!M17*2)/12 -> 210.2617654 | P42: =E$22*J27+ROUND($F$14*365/12,2)+('Simple Bill Insert Calc (2)'!M17*2)/12 -> 111.7684777 | R42: 13 hot | S42: =C$28*I27+ROUND($P$14*365/12,2)+('Simple Bill Insert Calc (2)'!M17*2)/12 -> 132.2869066 | T42: =C$28*J27+ROUND($P$14*365/12,2)+('Simple Bill Insert Calc (2)'!M17*2)/12 -> 68.78229404 | U42: =D$28*I27+ROUND($P$14*365/12,2)+('Simple Bill Insert Calc (2)'!M17*2)/12 -> 128.7012898 | V42: =D$28*J27+ROUND($P$14*365/12,2)+('Simple Bill Insert Calc (2)'!M17*2)/12 -> 66.81181994 | W42: =E$28*I27+ROUND($P$14*365/12,2)+('Simple Bill Insert Calc (2)'!M17*2)/12 -> 128.7012898 | X42: =E$28*J27+ROUND($P$14*365/12,2)+('Simple Bill Insert Calc (2)'!M17*2)/12 -> 66.81181994
B43: 14 hot | C43: =C$22*MIN(I28,P28)+IF(P28-I28>0,C$23*(P28-I28))+ROUND($F$14*365/12,2)+('Simple Bill Insert Calc (2)'!M17*2)/12 -> 294.0003144 | D43: =C$22*MIN(J28,Q28)+IF(Q28-J28>0,C$23*(Q28-J28))+ROUND($F$14*365/12,2)+('Simple Bill Insert Calc (2)'!M17*2)/12 -> 159.9117568 | E43: =D$22*MIN(I28,P28)+IF(P28-I28>0,D$23*(P28-I28))+ROUND($F$14*365/12,2)+('Simple Bill Insert Calc (2)'!M17*2)/12 -> 285.588779 | F43: =D$22*MIN(J28,Q28)+IF(Q28-J28>0,D$23*(Q28-J28))+ROUND($F$14*365/12,2)+('Simple Bill Insert Calc (2)'!M17*2)/12 -> 155.2295921 | G43: =E$22*MIN(I28,P28)+IF(P28-I28>0,E$23*(P28-I28))+ROUND($F$14*365/12,2)+('Simple Bill Insert Calc (2)'!M17*2)/12 -> 285.588779 | H43: =E$22*MIN(J28,Q28)+IF(Q28-J28>0,E$23*(Q28-J28))+ROUND($F$14*365/12,2)+('Simple Bill Insert Calc (2)'!M17*2)/12 -> 155.2295921 | J43: 14 hot | K43: =C$22*I28+ROUND($F$14*365/12,2)+('Simple Bill Insert Calc (2)'!M17*2)/12 -> 186.1275184 | L43: =C$22*J28+ROUND($F$14*365/12,2)+('Simple Bill Insert Calc (2)'!M17*2)/12 -> 112.1690696 | M43: =D$22*I28+ROUND($F$14*365/12,2)+('Simple Bill Insert Calc (2)'!M17*2)/12 -> 180.7137791 | N43: =D$22*J28+ROUND($F$14*365/12,2)+('Simple Bill Insert Calc (2)'!M17*2)/12 -> 108.813679 | O43: =E$22*I28+ROUND($F$14*365/12,2)+('Simple Bill Insert Calc (2)'!M17*2)/12 -> 180.7137791 | P43: =E$22*J28+ROUND($F$14*365/12,2)+('Simple Bill Insert Calc (2)'!M17*2)/12 -> 108.813679 | R43: 14 hot | S43: =C$28*I28+ROUND($P$14*365/12,2)+('Simple Bill Insert Calc (2)'!M17*2)/12 -> 113.2355229 | T43: =C$28*J28+ROUND($P$14*365/12,2)+('Simple Bill Insert Calc (2)'!M17*2)/12 -> 66.87715566 | U43: =D$28*I28+ROUND($P$14*365/12,2)+('Simple Bill Insert Calc (2)'!M17*2)/12 -> 110.1344489 | V43: =D$28*J28+ROUND($P$14*365/12,2)+('Simple Bill Insert Calc (2)'!M17*2)/12 -> 64.95513585 | W43: =E$28*I28+ROUND($P$14*365/12,2)+('Simple Bill Insert Calc (2)'!M17*2)/12 -> 110.1344489 | X43: =E$28*J28+ROUND($P$14*365/12,2)+('Simple Bill Insert Calc (2)'!M17*2)/12 -> 64.95513585
B44: 15 hot | C44: =C$22*MIN(I29,P29)+IF(P29-I29>0,C$23*(P29-I29))+ROUND($F$14*365/12,2)+('Simple Bill Insert Calc (2)'!M17*2)/12 -> 397.7634205 | D44: =C$22*MIN(J29,Q29)+IF(Q29-J29>0,C$23*(Q29-J29))+ROUND($F$14*365/12,2)+('Simple Bill Insert Calc (2)'!M17*2)/12 -> 195.1004666 | E44: =D$22*MIN(I29,P29)+IF(P29-I29>0,D$23*(P29-I29))+ROUND($F$14*365/12,2)+('Simple Bill Insert Calc (2)'!M17*2)/12 -> 386.4596103 | F44: =D$22*MIN(J29,Q29)+IF(Q29-J29>0,D$23*(Q29-J29))+ROUND($F$14*365/12,2)+('Simple Bill Insert Calc (2)'!M17*2)/12 -> 189.4413189 | G44: =E$22*MIN(I29,P29)+IF(P29-I29>0,E$23*(P29-I29))+ROUND($F$14*365/12,2)+('Simple Bill Insert Calc (2)'!M17*2)/12 -> 386.4596103 | H44: =E$22*MIN(J29,Q29)+IF(Q29-J29>0,E$23*(Q29-J29))+ROUND($F$14*365/12,2)+('Simple Bill Insert Calc (2)'!M17*2)/12 -> 189.4413189 | J44: 15 hot | K44: =C$22*I29+ROUND($F$14*365/12,2)+('Simple Bill Insert Calc (2)'!M17*2)/12 -> 447.5149129 | L44: =C$22*J29+ROUND($F$14*365/12,2)+('Simple Bill Insert Calc (2)'!M17*2)/12 -> 89.88022196 | M44: =D$22*I29+ROUND($F$14*365/12,2)+('Simple Bill Insert Calc (2)'!M17*2)/12 -> 434.8264613 | N44: =D$22*J29+ROUND($F$14*365/12,2)+('Simple Bill Insert Calc (2)'!M17*2)/12 -> 87.14515574 | O44: =E$22*I29+ROUND($F$14*365/12,2)+('Simple Bill Insert Calc (2)'!M17*2)/12 -> 434.8264613 | P44: =E$22*J29+ROUND($F$14*365/12,2)+('Simple Bill Insert Calc (2)'!M17*2)/12 -> 87.14515574 | R44: 15 hot | S44: =C$28*I29+ROUND($P$14*365/12,2)+('Simple Bill Insert Calc (2)'!M17*2)/12 -> 277.0774234 | T44: =C$28*J29+ROUND($P$14*365/12,2)+('Simple Bill Insert Calc (2)'!M17*2)/12 -> 52.90614089 | U44: =D$28*I29+ROUND($P$14*365/12,2)+('Simple Bill Insert Calc (2)'!M17*2)/12 -> 269.8092812 | V44: =D$28*J29+ROUND($P$14*365/12,2)+('Simple Bill Insert Calc (2)'!M17*2)/12 -> 51.33945247 | W44: =E$28*I29+ROUND($P$14*365/12,2)+('Simple Bill Insert Calc (2)'!M17*2)/12 -> 269.8092812 | X44: =E$28*J29+ROUND($P$14*365/12,2)+('Simple Bill Insert Calc (2)'!M17*2)/12 -> 51.33945247
B45: 16 cool | C45: =C$22*MIN(I30,P30)+IF(P30-I30>0,C$23*(P30-I30))+ROUND($F$14*365/12,2)+('Simple Bill Insert Calc (2)'!M17*2)/12 -> 191.0696506 | D45: =C$22*MIN(J30,Q30)+IF(Q30-J30>0,C$23*(Q30-J30))+ROUND($F$14*365/12,2)+('Simple Bill Insert Calc (2)'!M17*2)/12 -> 134.1442685 | E45: =D$22*MIN(I30,P30)+IF(P30-I30>0,D$23*(P30-I30))+ROUND($F$14*365/12,2)+('Simple Bill Insert Calc (2)'!M17*2)/12 -> 185.5204404 | F45: =D$22*MIN(J30,Q30)+IF(Q30-J30>0,D$23*(Q30-J30))+ROUND($F$14*365/12,2)+('Simple Bill Insert Calc (2)'!M17*2)/12 -> 130.177977 | G45: =E$22*MIN(I30,P30)+IF(P30-I30>0,E$23*(P30-I30))+ROUND($F$14*365/12,2)+('Simple Bill Insert Calc (2)'!M17*2)/12 -> 185.5204404 | H45: =E$22*MIN(J30,Q30)+IF(Q30-J30>0,E$23*(Q30-J30))+ROUND($F$14*365/12,2)+('Simple Bill Insert Calc (2)'!M17*2)/12 -> 130.177977 | J45: 16 cool | K45: =C$22*I30+ROUND($F$14*365/12,2)+('Simple Bill Insert Calc (2)'!M17*2)/12 -> 140.5366938 | L45: =C$22*J30+ROUND($F$14*365/12,2)+('Simple Bill Insert Calc (2)'!M17*2)/12 -> 117.2347167 | M45: =D$22*I30+ROUND($F$14*365/12,2)+('Simple Bill Insert Calc (2)'!M17*2)/12 -> 136.3917996 | N45: =D$22*J30+ROUND($F$14*365/12,2)+('Simple Bill Insert Calc (2)'!M17*2)/12 -> 113.7383434 | O45: =E$22*I30+ROUND($F$14*365/12,2)+('Simple Bill Insert Calc (2)'!M17*2)/12 -> 136.3917996 | P45: =E$22*J30+ROUND($F$14*365/12,2)+('Simple Bill Insert Calc (2)'!M17*2)/12 -> 113.7383434 | R45: 16 cool | S45: =C$28*I30+ROUND($P$14*365/12,2)+('Simple Bill Insert Calc (2)'!M17*2)/12 -> 84.65844719 | T45: =C$28*J30+ROUND($P$14*365/12,2)+('Simple Bill Insert Calc (2)'!M17*2)/12 -> 70.05238629 | U45: =D$28*I30+ROUND($P$14*365/12,2)+('Simple Bill Insert Calc (2)'!M17*2)/12 -> 82.28418742 | V45: =D$28*J30+ROUND($P$14*365/12,2)+('Simple Bill Insert Calc (2)'!M17*2)/12 -> 68.04960934 | W45: =E$28*I30+ROUND($P$14*365/12,2)+('Simple Bill Insert Calc (2)'!M17*2)/12 -> 82.28418742 | X45: =E$28*J30+ROUND($P$14*365/12,2)+('Simple Bill Insert Calc (2)'!M17*2)/12 -> 68.04960934
B46: ALL | C46: =SUMPRODUCT(C37:C45,$T$22:$T$30) -> 248.390766 | D46: 147.5374648 | E46: 241.2477079 | F46: 143.1993824 | G46: 241.2477079 | H46: 143.1993824 | J46: ALL | K46: =SUMPRODUCT(K37:K45,$T$22:$T$30) -> 163.7920629 | L46: 107.3275525 | M46: 158.999945 | N46: 104.106907 | O46: 158.999945 | P46: 104.106907 | R46: ALL | S46: =SUMPRODUCT(S37:S45,$U$22:$U$30) -> 109.9002144 | T46: =SUMPRODUCT(T37:T45,$U$22:$U$30) -> 65.32589318 | U46: 106.8839689 | V46: 63.44332736 | W46: 106.8839689 | X46: 63.44332736
C49: CARE | K49: Essential Use (All-Electric) - Non-CARE | S49: Essential Use (All-Electric) - CARE
C50: =C27 -> Jan 2025 | E50: =D27 -> 2025-06-01 | G50: =E27 -> Proposed | K50: =C50 -> Jan 2025 | M50: =E50 -> 2025-06-01 | O50: =G50 -> Proposed | S50: =K50 -> Jan 2025 | U50: =M50 -> 2025-06-01 | W50: =O50 -> Proposed
C51: Summer | D51: Winter | E51: Summer | F51: Winter | G51: Summer | H51: Winter | K51: Summer | L51: Winter | M51: Summer | N51: Winter | O51: Summer | P51: Winter | S51: Summer | T51: Winter | U51: Summer | V51: Winter | W51: Summer | X51: Winter
B52: 5 warm | C52: =C$28*MIN(I22,R22)+IF(R22-I22>0,C$29*(R22-I22))+ROUND($P$14*365/12,2)+('Simple Bill Insert Calc (2)'!M17*2)/12 -> 68.66764285 | D52: =C$28*MIN(J22,S22)+IF(S22-J22>0,C$29*(S22-J22))+ROUND($P$14*365/12,2)+('Simple Bill Insert Calc (2)'!M17*2)/12 -> 64.96695865 | E52: =D$28*MIN(I22,R22)+IF(R22-I22>0,D$29*(R22-I22))+ROUND($P$14*365/12,2)+('Simple Bill Insert Calc (2)'!M17*2)/12 -> 66.70008474 | F52: =D$28*MIN(J22,S22)+IF(S22-J22>0,D$29*(S22-J22))+ROUND($P$14*365/12,2)+('Simple Bill Insert Calc (2)'!M17*2)/12 -> 63.09352177 | G52: =E$28*MIN(I22,R22)+IF(R22-I22>0,E$29*(R22-I22))+ROUND($P$14*365/12,2)+('Simple Bill Insert Calc (2)'!M17*2)/12 -> 66.70008474 | H52: =E$28*MIN(J22,S22)+IF(S22-J22>0,E$29*(S22-J22))+ROUND($P$14*365/12,2)+('Simple Bill Insert Calc (2)'!M17*2)/12 -> 63.09352177 | J52: 5 warm | K52: =C$22*K22+ROUND($F$14*365/12,2)+('Simple Bill Insert Calc (2)'!M17*2)/12 -> 161.8124119 | L52: =C$22*L22+ROUND($F$14*365/12,2)+('Simple Bill Insert Calc (2)'!M17*2)/12 -> 265.1516144 | M52: =D$22*K22+ROUND($F$14*365/12,2)+('Simple Bill Insert Calc (2)'!M17*2)/12 -> 157.07539 | N52: =D$22*L22+ROUND($F$14*365/12,2)+('Simple Bill Insert Calc (2)'!M17*2)/12 -> 257.5385435 | O52: =E$22*K22+ROUND($F$14*365/12,2)+('Simple Bill Insert Calc (2)'!M17*2)/12 -> 157.07539 | P52: =E$22*L22+ROUND($F$14*365/12,2)+('Simple Bill Insert Calc (2)'!M17*2)/12 -> 257.5385435 | R52: 5 warm | S52: =C$28*K22+ROUND($P$14*365/12,2)+('Simple Bill Insert Calc (2)'!M17*2)/12 -> 97.99441583 | T52: =C$28*L22+ROUND($P$14*365/12,2)+('Simple Bill Insert Calc (2)'!M17*2)/12 -> 162.7691207 | U52: =D$28*K22+ROUND($P$14*365/12,2)+('Simple Bill Insert Calc (2)'!M17*2)/12 -> 95.2809761 | V52: =D$28*L22+ROUND($P$14*365/12,2)+('Simple Bill Insert Calc (2)'!M17*2)/12 -> 158.4082354 | W52: =E$28*K22+ROUND($P$14*365/12,2)+('Simple Bill Insert Calc (2)'!M17*2)/12 -> 95.2809761 | X52: =E$28*L22+ROUND($P$14*365/12,2)+('Simple Bill Insert Calc (2)'!M17*2)/12 -> 158.4082354
B53: 6 cool | C53: =C$28*MIN(I23,R23)+IF(R23-I23>0,C$29*(R23-I23))+ROUND($P$14*365/12,2)+('Simple Bill Insert Calc (2)'!M17*2)/12 -> 79.17496909 | D53: =C$28*MIN(J23,S23)+IF(S23-J23>0,C$29*(S23-J23))+ROUND($P$14*365/12,2)+('Simple Bill Insert Calc (2)'!M17*2)/12 -> 64.47961901 | E53: =D$28*MIN(I23,R23)+IF(R23-I23>0,D$29*(R23-I23))+ROUND($P$14*365/12,2)+('Simple Bill Insert Calc (2)'!M17*2)/12 -> 76.93241277 | F53: =D$28*MIN(J23,S23)+IF(S23-J23>0,D$29*(S23-J23))+ROUND($P$14*365/12,2)+('Simple Bill Insert Calc (2)'!M17*2)/12 -> 62.61691281 | G53: =E$28*MIN(I23,R23)+IF(R23-I23>0,E$29*(R23-I23))+ROUND($P$14*365/12,2)+('Simple Bill Insert Calc (2)'!M17*2)/12 -> 76.93241277 | H53: =E$28*MIN(J23,S23)+IF(S23-J23>0,E$29*(S23-J23))+ROUND($P$14*365/12,2)+('Simple Bill Insert Calc (2)'!M17*2)/12 -> 62.61691281 | J53: 6 cool | K53: =C$22*K23+ROUND($F$14*365/12,2)+('Simple Bill Insert Calc (2)'!M17*2)/12 -> 79.7489276 | L53: =C$22*L23+ROUND($F$14*365/12,2)+('Simple Bill Insert Calc (2)'!M17*2)/12 -> 119.2609756 | M53: =D$22*K23+ROUND($F$14*365/12,2)+('Simple Bill Insert Calc (2)'!M17*2)/12 -> 77.29582697 | N53: =D$22*L23+ROUND($F$14*365/12,2)+('Simple Bill Insert Calc (2)'!M17*2)/12 -> 115.7082092 | O53: =E$22*K23+ROUND($F$14*365/12,2)+('Simple Bill Insert Calc (2)'!M17*2)/12 -> 77.29582697 | P53: =E$22*L23+ROUND($F$14*365/12,2)+('Simple Bill Insert Calc (2)'!M17*2)/12 -> 115.7082092 | R53: 6 cool | S53: =C$28*K23+ROUND($P$14*365/12,2)+('Simple Bill Insert Calc (2)'!M17*2)/12 -> 46.55567963 | T53: =C$28*L23+ROUND($P$14*365/12,2)+('Simple Bill Insert Calc (2)'!M17*2)/12 -> 71.32247854 | U53: =D$28*K23+ROUND($P$14*365/12,2)+('Simple Bill Insert Calc (2)'!M17*2)/12 -> 45.15050548 | V53: =D$28*L23+ROUND($P$14*365/12,2)+('Simple Bill Insert Calc (2)'!M17*2)/12 -> 69.28739874 | W53: =E$28*K23+ROUND($P$14*365/12,2)+('Simple Bill Insert Calc (2)'!M17*2)/12 -> 45.15050548 | X53: =E$28*L23+ROUND($P$14*365/12,2)+('Simple Bill Insert Calc (2)'!M17*2)/12 -> 69.28739874
B54: 8 cool | C54: =C$28*MIN(I24,R24)+IF(R24-I24>0,C$29*(R24-I24))+ROUND($P$14*365/12,2)+('Simple Bill Insert Calc (2)'!M17*2)/12 -> 103.6442695 | D54: =C$28*MIN(J24,S24)+IF(S24-J24>0,C$29*(S24-J24))+ROUND($P$14*365/12,2)+('Simple Bill Insert Calc (2)'!M17*2)/12 -> 72.96840317 | E54: =D$28*MIN(I24,R24)+IF(R24-I24>0,D$29*(R24-I24))+ROUND($P$14*365/12,2)+('Simple Bill Insert Calc (2)'!M17*2)/12 -> 100.7715606 | F54: =D$28*MIN(J24,S24)+IF(S24-J24>0,D$29*(S24-J24))+ROUND($P$14*365/12,2)+('Simple Bill Insert Calc (2)'!M17*2)/12 -> 70.88331069 | G54: =E$28*MIN(I24,R24)+IF(R24-I24>0,E$29*(R24-I24))+ROUND($P$14*365/12,2)+('Simple Bill Insert Calc (2)'!M17*2)/12 -> 100.7715606 | H54: =E$28*MIN(J24,S24)+IF(S24-J24>0,E$29*(S24-J24))+ROUND($P$14*365/12,2)+('Simple Bill Insert Calc (2)'!M17*2)/12 -> 70.88331069 | J54: 8 cool | K54: =C$22*K24+ROUND($F$14*365/12,2)+('Simple Bill Insert Calc (2)'!M17*2)/12 -> 91.90648083 | L54: =C$22*L24+ROUND($F$14*365/12,2)+('Simple Bill Insert Calc (2)'!M17*2)/12 -> 116.2215873 | M54: =D$22*K24+ROUND($F$14*365/12,2)+('Simple Bill Insert Calc (2)'!M17*2)/12 -> 89.11502149 | N54: =D$22*L24+ROUND($F$14*365/12,2)+('Simple Bill Insert Calc (2)'!M17*2)/12 -> 112.7534105 | O54: =E$22*K24+ROUND($F$14*365/12,2)+('Simple Bill Insert Calc (2)'!M17*2)/12 -> 89.11502149 | P54: =E$22*L24+ROUND($F$14*365/12,2)+('Simple Bill Insert Calc (2)'!M17*2)/12 -> 112.7534105 | R54: 8 cool | S54: =C$28*K24+ROUND($P$14*365/12,2)+('Simple Bill Insert Calc (2)'!M17*2)/12 -> 54.17623314 | T54: =C$28*L24+ROUND($P$14*365/12,2)+('Simple Bill Insert Calc (2)'!M17*2)/12 -> 69.41734016 | U54: =D$28*K24+ROUND($P$14*365/12,2)+('Simple Bill Insert Calc (2)'!M17*2)/12 -> 52.57724187 | V54: =D$28*L24+ROUND($P$14*365/12,2)+('Simple Bill Insert Calc (2)'!M17*2)/12 -> 67.43071464 | W54: =E$28*K24+ROUND($P$14*365/12,2)+('Simple Bill Insert Calc (2)'!M17*2)/12 -> 52.57724187 | X54: =E$28*L24+ROUND($P$14*365/12,2)+('Simple Bill Insert Calc (2)'!M17*2)/12 -> 67.43071464
B55: 9 warm | C55: =C$28*MIN(I25,R25)+IF(R25-I25>0,C$29*(R25-I25))+ROUND($P$14*365/12,2)+('Simple Bill Insert Calc (2)'!M17*2)/12 -> 145.4334121 | D55: =C$28*MIN(J25,S25)+IF(S25-J25>0,C$29*(S25-J25))+ROUND($P$14*365/12,2)+('Simple Bill Insert Calc (2)'!M17*2)/12 -> 83.68430279 | E55: =D$28*MIN(I25,R25)+IF(R25-I25>0,D$29*(R25-I25))+ROUND($P$14*365/12,2)+('Simple Bill Insert Calc (2)'!M17*2)/12 -> 141.4899597 | F55: =D$28*MIN(J25,S25)+IF(S25-J25>0,D$29*(S25-J25))+ROUND($P$14*365/12,2)+('Simple Bill Insert Calc (2)'!M17*2)/12 -> 81.32670786 | G55: =E$28*MIN(I25,R25)+IF(R25-I25>0,E$29*(R25-I25))+ROUND($P$14*365/12,2)+('Simple Bill Insert Calc (2)'!M17*2)/12 -> 141.4899597 | H55: =E$28*MIN(J25,S25)+IF(S25-J25>0,E$29*(S25-J25))+ROUND($P$14*365/12,2)+('Simple Bill Insert Calc (2)'!M17*2)/12 -> 81.32670786 | J55: 9 warm | K55: =C$22*K25+ROUND($F$14*365/12,2)+('Simple Bill Insert Calc (2)'!M17*2)/12 -> 118.2478462 | L55: =C$22*L25+ROUND($F$14*365/12,2)+('Simple Bill Insert Calc (2)'!M17*2)/12 -> 132.4316583 | M55: =D$22*K25+ROUND($F$14*365/12,2)+('Simple Bill Insert Calc (2)'!M17*2)/12 -> 114.7232763 | N55: =D$22*L25+ROUND($F$14*365/12,2)+('Simple Bill Insert Calc (2)'!M17*2)/12 -> 128.5123366 | O55: =E$22*K25+ROUND($F$14*365/12,2)+('Simple Bill Insert Calc (2)'!M17*2)/12 -> 114.7232763 | P55: =E$22*L25+ROUND($F$14*365/12,2)+('Simple Bill Insert Calc (2)'!M17*2)/12 -> 128.5123366 | R55: 9 warm | S55: =C$28*K25+ROUND($P$14*365/12,2)+('Simple Bill Insert Calc (2)'!M17*2)/12 -> 70.68743242 | T55: =C$28*L25+ROUND($P$14*365/12,2)+('Simple Bill Insert Calc (2)'!M17*2)/12 -> 79.57807818 | U55: =D$28*K25+ROUND($P$14*365/12,2)+('Simple Bill Insert Calc (2)'!M17*2)/12 -> 68.66850404 | V55: =D$28*L25+ROUND($P$14*365/12,2)+('Simple Bill Insert Calc (2)'!M17*2)/12 -> 77.33302983 | W55: =E$28*K25+ROUND($P$14*365/12,2)+('Simple Bill Insert Calc (2)'!M17*2)/12 -> 68.66850404 | X55: =E$28*L25+ROUND($P$14*365/12,2)+('Simple Bill Insert Calc (2)'!M17*2)/12 -> 77.33302983
